{"text_format":"1","workbook":"xlsx","n_sheets":5,"sheets":["Key","Pre-Interview Example","Post-Interview Example","HHTF","Picklists"],"not_rendered":{"charts":0,"images":5,"macros":1,"external_links":0,"defined_names":6,"comments":6,"pivot_tables":0},"unopened":[],"bounds":{"document_bytes":16777216,"sheet_cells":100000,"rows_first":2000,"rows_last":500,"rows_between":2000,"halvings":0,"cell_chars":16384,"cell_head_chars":4096},"cells_cut":0,"cells_raw":0,"read":"whole","date_system":"1900"}

{"sheet":"Key","index":0,"n_rows":87,"n_cols":7,"rows_kept":87,"cut":false,"hidden":false,"merged":[[80,6,80,11],[83,6,83,11],[84,6,84,11],[85,6,85,11],[86,6,86,11],[75,6,75,11],[76,6,76,11],[77,6,77,11],[78,6,78,11],[79,6,79,11],[70,6,70,11],[71,6,71,11],[72,6,72,11],[61,6,61,11],[65,6,65,11],[66,6,66,11],[67,6,67,11],[68,6,68,11],[69,6,69,11],[61,1,61,5],[62,1,62,5],[63,1,63,5],[64,1,64,5],[0,0,0,11],[1,0,1,11],[62,6,62,11],[63,6,63,11],[64,6,64,11],[65,1,65,5],[66,1,66,5],[67,1,67,5],[68,1,68,5],[69,1,69,5],[70,1,70,5],[71,1,71,5],[72,1,72,5],[75,1,75,5],[76,1,76,5],[84,1,84,5],[85,1,85,5],[86,1,86,5],[77,1,77,5],[78,1,78,5],[79,1,79,5],[80,1,80,5],[83,1,83,5]]}
["Homeless History Tracking Form - Key"]
["Click here to be redirected to the full ICA instructional guide and webinar recording on Chronic Homeless and the HHTF"]
[]
["The Header Table"]
[]
[]
[]
[]
[]
[]
[]
[]
[]
[]
[]
[]
[]
[]
[]
[]
[]
[]
[]
[]
[]
[]
[]
[]
[]
[]
[]
[]
[]
[]
[]
[]
[]
["The Timeline Table"]
[]
[]
[]
[]
[]
[]
[]
[]
[]
[]
[]
[]
[]
[]
[]
[]
[]
[]
[]
[]
[]
["Picklists for Timeline Table"]
[]
[null,"Housing Situation",null,null,null,null,"Usage Notes"]
[null,"Place not meant for habitation",null,null,null,null,"Some examples could be in a vehicle, park, abandoned building,apartment building hallway, uninsulated garage."]
[null,"ES / SH / Agency-paid Hotel",null,null,null,null,"\"ES\" = Emergency Shelter; \"SH\" = Safe Haven"]
[null,"Transitional Housing"]
[null,"Hospital / Psych / Detox"]
[null,"Jail / Prison"]
[null,"Foster Care / Group Home"]
[null,"Apt / House (rented or owned)"]
[null,"Friend / Family"]
[null,"Self-paid Hotel / Halfway House"]
[null,"Gap (need self-report)",null,null,null,null,"Use when there is a gap that covers at least an entire calendar month."]
[null,"Gap (presumed homeless)",null,null,null,null,"Use when there is a gap between stays in ES/SH within a calendar month without evidence of a break."]
[]
[]
[null,"Documentation Source (Obtained or Anticipated)",null,null,null,null,"Usage Notes"]
[null,"HMIS ES / SH / SO record(s)",null,null,null,null,"This allows for multiple consecutive project enrollments to be captured in a single row, if needed."]
[null,"3rd Party Letter"]
[null,"Self-Certification Letter"]
[null,"Month Already Counted",null,null,null,null,"Applies for \"Gap (presumed homeless)\" or client self-report of homelessness within a month for which there is already documentation."]
[null,"N/A",null,null,null,null,"Applies for any non-homeless situation."]
[]
[]
[null,"Documentation Obtained",null,null,null,null,"Usage Notes"]
[null,"Yes",null,null,null,null,"HMIS ES / SH / SO record(s) and Month Already Counted should always be \"Yes\"."]
[null,"Pending",null,null,null,null,"Use for 3rd Party Letters & Self-Cert Letters still being gathered."]
[null,"N/A",null,null,null,null,"Applies for any non-homeless situation."]

{"sheet":"Pre-Interview Example","index":1,"n_rows":43,"n_cols":20,"rows_kept":43,"cut":false,"hidden":false,"merged":[[6,1,6,3],[6,6,6,7],[7,1,7,2],[8,0,8,7],[0,0,0,7],[2,0,2,7],[3,1,3,3],[4,1,4,3],[5,1,5,3],[5,6,5,7],[1,2,1,7]]}
["Homeless History Tracking Form v1"]
[null,null,"Copyright © 2020 Institute for Community Alliances. All Rights Reserved. For information, contact info@icalliances.org."]
["This form is meant to comprehensively present a client's homelesss history going back 3 years from the interview date and establish current and needed documentation for verifying chronic homeless status."]
["Client Name","Alfie Solomons",null,null,"#Episodes",{"$f":"IFERROR((SUM(Table117[Break Counter])+1)-$I$11,\"0\")","v":2},"Documented Chronic in 1st Episode?",{"$f":"IF(SUM(SUMIFS(Table117[Months Homeless],Table117[Episode'#],1,Table117[Documentation Obtained?],{\"Yes\",\"N/A - Month already counted\",\"N/A - Not Homeless Not Break\"}))>=12,\"Yes\",\"No\")","v":"No"},null,null,null,null,null,null,null,null,null,null,null,{"$f":"F5*30.4","v":313.82794520547941}]
["HMIS ID",230,null,null,"# Total Reported Months",{"$f":"SUM(Table117[Months Homeless])","v":10.323287671232876},"Disability Documentation",null,null,null,null,null,null,null,null,null,null,null,null,"Days Documented"]
["Interviewing Staff","Zach Ehmann",null,null,"# Documented Months",{"$f":"SUM(SUMIFS(Table117[Months Homeless],Table117[Documentation Obtained?],{\"Yes\",\"N/A\"}))","v":10.323287671232878},"?  ",null,null,null,null,null,null,null,null,null,null,null,null,{"$f":"F6*30.4","v":313.82794520547947}]
["Date of Interview ","2020-01-08",null,null,"# Months requiring documentation to meet length of time threshold",{"$f":"IF($H$4=\"Yes\",\"None - client is verified\",IF($F$6<12,12-$F$6,\"None - client is verified\"))","v":1.6767123287671222},"?  "]
["Data Quality Checks","Self-Certification Count",null,{"$f":"COUNTIF(F:F,\"Self-Certification Letter\")","v":0},"# of gaps needing self-report",{"$f":"IF(COUNTIF(A:A,\"Gap (need self-report)\")=0,\"None\",COUNTIF(A:A,\"Gap (need self-report)\"))","v":4},"Row #s with incomplete info",{"$f":"IF(COUNT(Table117[Incomplete Row Number])=0,\"None\",_xlfn.TEXTJOIN(\", \",TRUE,Table117[Incomplete Row Number]))","v":"None"},null,null,{"$f":"COUNTA(F11,G11)-COUNTBLANK(F11:G11)","v":2}]
[null,null,null,null,null,null,null,null,null,null,{"$f":"COUNTBLANK(F11:G11)","v":0}]
["Housing Situation","Start Date","End Date","Months Homeless","Whereabouts (description)","Documentation Source (obtained or anticipated)","Documentation Obtained?","Documentation Notes","Break Counter","Episode#","Row Complete?","Incomplete Row Number","Row number","Days Between","Housing Situation Category","Documentation Category"]
["Place not meant for habitation","2020-01-01",{"$f":"IF(Table117[[#This Row],[Housing Situation]]=\"\",\"\",IF(Table117[[#This Row],[Row number]]=1,$B$7,IF(OFFSET(C11,-1,-1)=\"\",\"\",OFFSET(C11,-1,-1)-1)))","v":"2020-01-08"},{"$f":"IF(\nTable117[[#This Row],[Start Date]]=\"\",\n\"\",\nIF(\nTable117[[#This Row],[Housing Situation]]=\"Gap (need self-report)\",\n\"\",\nIF(\nTable117[[#This Row],[Housing Situation]]=\"\",\n\"Missing\",\nIF(\nOR(\nAND(OR(Table117[[#This Row],[Housing Situation]]=\"Hospital / Psych / Detox\",Table117[[#This Row],[Housing Situation]]=\"Jail / Prison\",Table117[[#This Row],[Housing Situation]]=\"Foster Care / Group Home\"),(Table117[[#This Row],[End Date]]-Table117[[#This Row],[Start Date]])>=90),\nAND(OR(Table117[[#This Row],[Housing Situation]]=\"Apt / House (rented or owned)\",Table117[[#This Row],[Housing Situation]]=\"Friend / Family\",Table117[[#This Row],[Housing Situation]]=\"Self-paid Hotel / Halfway house\",Table117[[#This Row],[Housing Situation]]=\"Transitional Housing\"),(Table117[[#This Row],[End Date]]-Table117[[#This Row],[Start Date]])>=7)),\n0,\nIF(\nOR(Table117[[#This Row],[Housing Situation]]=\"ES / SH / Agency-paid Hotel\",Table117[[#This Row],[Housing Situation]]=\"Place not meant for habitation\",Table117[[#This Row],[Housing Situation]]=\"Gap (presumed homeless)\"),\n((Table117[[#This Row],[End Date]]+1)-Table117[[#This Row],[Start Date]])/(365/12),\nIF(\nAND(\nNOT(OR(Table117[[#This Row],[Housing Situation]]=\"ES / SH / Agency-paid Hotel\",Table117[[#This Row],[Housing Situation]]=\"Place not meant for habitation\",Table117[[#This Row],[Housing Situation]]=\"Gap (presumed homeless)\")),\nOR(OFFSET(Table117[[#This Row],[Housing Situation]],1,0)=\"ES / SH / Agency-paid Hotel\",OFFSET(Table117[[#This Row],[Housing Situation]],1,0)=\"Place not meant for habitation\",Table117[[#This Row],[Housing Situation]]=\"Gap (presumed homeless)\")),\n((Table117[[#This Row],[End Date]]+1)-Table117[[#This Row],[Start Date]])/(365/12),\n0))))))","v":0.26301369863013696},"Under Bridge (6th/Clybourn)","HMIS ES / SH / SO record(s)","Yes","Milwauke County Street Outreach (1/1/2019)",{"$f":"IF(OFFSET(Table117[[#This Row],[Months Homeless]],1,0)=\"\",0,IF(AND(Table117[[#This Row],[Months Homeless]]=0,OFFSET(Table117[[#This Row],[Months Homeless]],1,0)>0),1,0))","v":0},{"$f":"IF(\nTable117[[#This Row],[Row number]]=1,\n1,\nIF(OFFSET(Table117[[#This Row],[Months Homeless]],1,0)=\"\",\nINDIRECT(ADDRESS(ROW()-1,COLUMN())),\nIF(\nAND(\nTable117[[#This Row],[Months Homeless]]=0,\nOFFSET(Table117[[#This Row],[Months Homeless]],1,0)>0),\nINDIRECT(ADDRESS(ROW()-1,COLUMN()))+1,\nINDIRECT(ADDRESS(ROW()-1,COLUMN()))\n)\n)\n)","v":1},{"$f":"IF(OR(Table117[[#This Row],[Housing Situation]]=\"\",Table117[[#This Row],[Housing Situation]]=\"Gap (need self-report)\"),\"\",IF(Table117[[#This Row],[Months Homeless]]=\"Missing\",\"No\",IF(AND(Table117[[#This Row],[Housing Situation]]=\"Gap (presumed homeless)\",COUNTA(B11,C11)-(COUNTA(F11,G11)-COUNTBLANK(F11:G11))=0),\"Yes\",IF((COUNTA(B11,C11,E11)-(COUNTA(F11,G11)-COUNTBLANK(F11:G11))=1),\"Yes\",\"No\"))))","v":"Yes"},{"$f":"IF(Table117[[#This Row],[Row Complete?]]=\"No\",Table117[[#This Row],[Row number]]+10,\"\")","v":""},{"$f":"ROW(Table117[#This Row])-ROW(Table117[[#Headers], [Housing Situation]])","v":1},{"$f":"IF(ISERROR(_xlfn.DAYS(Table117[[#This Row],[End Date]],Table117[[#This Row],[Start Date]])),\"\",_xlfn.DAYS(Table117[[#This Row],[End Date]],Table117[[#This Row],[Start Date]]))","v":7},{"$f":"IF(Table117[[#This Row],[Housing Situation]]=\"\",\"\",IF(Table117[[#This Row],[Housing Situation]]=Picklists!$A$11,Picklists!$B$1,IF(Table117[[#This Row],[Housing Situation]]=Picklists!$A$2,Picklists!$B$1,IF(Table117[[#This Row],[Housing Situation]]=Picklists!$A$3,Picklists!$B$1,IF(Table117[[#This Row],[Housing Situation]]=Picklists!$A$12,Picklists!$B$1,Picklists!$C$1)))))","v":"Homeless_Documentation_Source"},{"$f":"IF(Table117[[#This Row],[Housing Situation Category]]=\"\",\"\",IF(Table117[[#This Row],[Housing Situation Category]]=Picklists!$B$1,Picklists!$D$1,Picklists!$E$1))","v":"Homeless_Documentation_Obtained?"}]
["ES / SH / Agency-paid Hotel","2019-12-15",{"$f":"IF(Table117[[#This Row],[Housing Situation]]=\"\",\"\",IF(Table117[[#This Row],[Row number]]=1,$B$7,IF(OFFSET(C12,-1,-1)=\"\",\"\",OFFSET(C12,-1,-1)-1)))","v":"2019-12-31"},{"$f":"IF(\nTable117[[#This Row],[Start Date]]=\"\",\n\"\",\nIF(\nTable117[[#This Row],[Housing Situation]]=\"Gap (need self-report)\",\n\"\",\nIF(\nTable117[[#This Row],[Housing Situation]]=\"\",\n\"Missing\",\nIF(\nOR(\nAND(OR(Table117[[#This Row],[Housing Situation]]=\"Hospital / Psych / Detox\",Table117[[#This Row],[Housing Situation]]=\"Jail / Prison\",Table117[[#This Row],[Housing Situation]]=\"Foster Care / Group Home\"),(Table117[[#This Row],[End Date]]-Table117[[#This Row],[Start Date]])>=90),\nAND(OR(Table117[[#This Row],[Housing Situation]]=\"Apt / House (rented or owned)\",Table117[[#This Row],[Housing Situation]]=\"Friend / Family\",Table117[[#This Row],[Housing Situation]]=\"Self-paid Hotel / Halfway house\",Table117[[#This Row],[Housing Situation]]=\"Transitional Housing\"),(Table117[[#This Row],[End Date]]-Table117[[#This Row],[Start Date]])>=7)),\n0,\nIF(\nOR(Table117[[#This Row],[Housing Situation]]=\"ES / SH / Agency-paid Hotel\",Table117[[#This Row],[Housing Situation]]=\"Place not meant for habitation\",Table117[[#This Row],[Housing Situation]]=\"Gap (presumed homeless)\"),\n((Table117[[#This Row],[End Date]]+1)-Table117[[#This Row],[Start Date]])/(365/12),\nIF(\nAND(\nNOT(OR(Table117[[#This Row],[Housing Situation]]=\"ES / SH / Agency-paid Hotel\",Table117[[#This Row],[Housing Situation]]=\"Place not meant for habitation\",Table117[[#This Row],[Housing Situation]]=\"Gap (presumed homeless)\")),\nOR(OFFSET(Table117[[#This Row],[Housing Situation]],1,0)=\"ES / SH / Agency-paid Hotel\",OFFSET(Table117[[#This Row],[Housing Situation]],1,0)=\"Place not meant for habitation\",Table117[[#This Row],[Housing Situation]]=\"Gap (presumed homeless)\")),\n((Table117[[#This Row],[End Date]]+1)-Table117[[#This Row],[Start Date]])/(365/12),\n0))))))","v":0.55890410958904102},"Salvation Army Emergency Lodge","HMIS ES / SH / SO record(s)","Yes",null,{"$f":"IF(OFFSET(Table117[[#This Row],[Months Homeless]],1,0)=\"\",0,IF(AND(Table117[[#This Row],[Months Homeless]]=0,OFFSET(Table117[[#This Row],[Months Homeless]],1,0)>0),1,0))","v":0},{"$f":"IF(\nTable117[[#This Row],[Row number]]=1,\n1,\nIF(OFFSET(Table117[[#This Row],[Months Homeless]],1,0)=\"\",\nINDIRECT(ADDRESS(ROW()-1,COLUMN())),\nIF(\nAND(\nTable117[[#This Row],[Months Homeless]]=0,\nOFFSET(Table117[[#This Row],[Months Homeless]],1,0)>0),\nINDIRECT(ADDRESS(ROW()-1,COLUMN()))+1,\nINDIRECT(ADDRESS(ROW()-1,COLUMN()))\n)\n)\n)","v":1},{"$f":"IF(OR(Table117[[#This Row],[Housing Situation]]=\"\",Table117[[#This Row],[Housing Situation]]=\"Gap (need self-report)\"),\"\",IF(Table117[[#This Row],[Months Homeless]]=\"Missing\",\"No\",IF(AND(Table117[[#This Row],[Housing Situation]]=\"Gap (presumed homeless)\",COUNTA(B12,C12)-(COUNTA(F12,G12)-COUNTBLANK(F12:G12))=0),\"Yes\",IF((COUNTA(B12,C12,E12)-(COUNTA(F12,G12)-COUNTBLANK(F12:G12))=1),\"Yes\",\"No\"))))","v":"Yes"},{"$f":"IF(Table117[[#This Row],[Row Complete?]]=\"No\",Table117[[#This Row],[Row number]]+10,\"\")","v":""},{"$f":"ROW(Table117[#This Row])-ROW(Table117[[#Headers], [Housing Situation]])","v":2},{"$f":"IF(ISERROR(_xlfn.DAYS(Table117[[#This Row],[End Date]],Table117[[#This Row],[Start Date]])),\"\",_xlfn.DAYS(Table117[[#This Row],[End Date]],Table117[[#This Row],[Start Date]]))","v":16},{"$f":"IF(Table117[[#This Row],[Housing Situation]]=\"\",\"\",IF(Table117[[#This Row],[Housing Situation]]=Picklists!$A$11,Picklists!$B$1,IF(Table117[[#This Row],[Housing Situation]]=Picklists!$A$2,Picklists!$B$1,IF(Table117[[#This Row],[Housing Situation]]=Picklists!$A$3,Picklists!$B$1,IF(Table117[[#This Row],[Housing Situation]]=Picklists!$A$12,Picklists!$B$1,Picklists!$C$1)))))","v":"Homeless_Documentation_Source"},{"$f":"IF(Table117[[#This Row],[Housing Situation Category]]=\"\",\"\",IF(Table117[[#This Row],[Housing Situation Category]]=Picklists!$B$1,Picklists!$D$1,Picklists!$E$1))","v":"Homeless_Documentation_Obtained?"}]
["Gap (presumed homeless)","2019-11-21",{"$f":"IF(Table117[[#This Row],[Housing Situation]]=\"\",\"\",IF(Table117[[#This Row],[Row number]]=1,$B$7,IF(OFFSET(C13,-1,-1)=\"\",\"\",OFFSET(C13,-1,-1)-1)))","v":"2019-12-14"},{"$f":"IF(\nTable117[[#This Row],[Start Date]]=\"\",\n\"\",\nIF(\nTable117[[#This Row],[Housing Situation]]=\"Gap (need self-report)\",\n\"\",\nIF(\nTable117[[#This Row],[Housing Situation]]=\"\",\n\"Missing\",\nIF(\nOR(\nAND(OR(Table117[[#This Row],[Housing Situation]]=\"Hospital / Psych / Detox\",Table117[[#This Row],[Housing Situation]]=\"Jail / Prison\",Table117[[#This Row],[Housing Situation]]=\"Foster Care / Group Home\"),(Table117[[#This Row],[End Date]]-Table117[[#This Row],[Start Date]])>=90),\nAND(OR(Table117[[#This Row],[Housing Situation]]=\"Apt / House (rented or owned)\",Table117[[#This Row],[Housing Situation]]=\"Friend / Family\",Table117[[#This Row],[Housing Situation]]=\"Self-paid Hotel / Halfway house\",Table117[[#This Row],[Housing Situation]]=\"Transitional Housing\"),(Table117[[#This Row],[End Date]]-Table117[[#This Row],[Start Date]])>=7)),\n0,\nIF(\nOR(Table117[[#This Row],[Housing Situation]]=\"ES / SH / Agency-paid Hotel\",Table117[[#This Row],[Housing Situation]]=\"Place not meant for habitation\",Table117[[#This Row],[Housing Situation]]=\"Gap (presumed homeless)\"),\n((Table117[[#This Row],[End Date]]+1)-Table117[[#This Row],[Start Date]])/(365/12),\nIF(\nAND(\nNOT(OR(Table117[[#This Row],[Housing Situation]]=\"ES / SH / Agency-paid Hotel\",Table117[[#This Row],[Housing Situation]]=\"Place not meant for habitation\",Table117[[#This Row],[Housing Situation]]=\"Gap (presumed homeless)\")),\nOR(OFFSET(Table117[[#This Row],[Housing Situation]],1,0)=\"ES / SH / Agency-paid Hotel\",OFFSET(Table117[[#This Row],[Housing Situation]],1,0)=\"Place not meant for habitation\",Table117[[#This Row],[Housing Situation]]=\"Gap (presumed homeless)\")),\n((Table117[[#This Row],[End Date]]+1)-Table117[[#This Row],[Start Date]])/(365/12),\n0))))))","v":0.78904109589041094},null,"Month Already Counted","Yes",null,{"$f":"IF(OFFSET(Table117[[#This Row],[Months Homeless]],1,0)=\"\",0,IF(AND(Table117[[#This Row],[Months Homeless]]=0,OFFSET(Table117[[#This Row],[Months Homeless]],1,0)>0),1,0))","v":0},{"$f":"IF(\nTable117[[#This Row],[Row number]]=1,\n1,\nIF(OFFSET(Table117[[#This Row],[Months Homeless]],1,0)=\"\",\nINDIRECT(ADDRESS(ROW()-1,COLUMN())),\nIF(\nAND(\nTable117[[#This Row],[Months Homeless]]=0,\nOFFSET(Table117[[#This Row],[Months Homeless]],1,0)>0),\nINDIRECT(ADDRESS(ROW()-1,COLUMN()))+1,\nINDIRECT(ADDRESS(ROW()-1,COLUMN()))\n)\n)\n)","v":1},{"$f":"IF(OR(Table117[[#This Row],[Housing Situation]]=\"\",Table117[[#This Row],[Housing Situation]]=\"Gap (need self-report)\"),\"\",IF(Table117[[#This Row],[Months Homeless]]=\"Missing\",\"No\",IF(AND(Table117[[#This Row],[Housing Situation]]=\"Gap (presumed homeless)\",COUNTA(B13,C13)-(COUNTA(F13,G13)-COUNTBLANK(F13:G13))=0),\"Yes\",IF((COUNTA(B13,C13,E13)-(COUNTA(F13,G13)-COUNTBLANK(F13:G13))=1),\"Yes\",\"No\"))))","v":"Yes"},{"$f":"IF(Table117[[#This Row],[Row Complete?]]=\"No\",Table117[[#This Row],[Row number]]+10,\"\")","v":""},{"$f":"ROW(Table117[#This Row])-ROW(Table117[[#Headers], [Housing Situation]])","v":3},{"$f":"IF(ISERROR(_xlfn.DAYS(Table117[[#This Row],[End Date]],Table117[[#This Row],[Start Date]])),\"\",_xlfn.DAYS(Table117[[#This Row],[End Date]],Table117[[#This Row],[Start Date]]))","v":23},{"$f":"IF(Table117[[#This Row],[Housing Situation]]=\"\",\"\",IF(Table117[[#This Row],[Housing Situation]]=Picklists!$A$11,Picklists!$B$1,IF(Table117[[#This Row],[Housing Situation]]=Picklists!$A$2,Picklists!$B$1,IF(Table117[[#This Row],[Housing Situation]]=Picklists!$A$3,Picklists!$B$1,IF(Table117[[#This Row],[Housing Situation]]=Picklists!$A$12,Picklists!$B$1,Picklists!$C$1)))))","v":"Homeless_Documentation_Source"},{"$f":"IF(Table117[[#This Row],[Housing Situation Category]]=\"\",\"\",IF(Table117[[#This Row],[Housing Situation Category]]=Picklists!$B$1,Picklists!$D$1,Picklists!$E$1))","v":"Homeless_Documentation_Obtained?"}]
["ES / SH / Agency-paid Hotel","2019-10-01",{"$f":"IF(Table117[[#This Row],[Housing Situation]]=\"\",\"\",IF(Table117[[#This Row],[Row number]]=1,$B$7,IF(OFFSET(C14,-1,-1)=\"\",\"\",OFFSET(C14,-1,-1)-1)))","v":"2019-11-20"},{"$f":"IF(\nTable117[[#This Row],[Start Date]]=\"\",\n\"\",\nIF(\nTable117[[#This Row],[Housing Situation]]=\"Gap (need self-report)\",\n\"\",\nIF(\nTable117[[#This Row],[Housing Situation]]=\"\",\n\"Missing\",\nIF(\nOR(\nAND(OR(Table117[[#This Row],[Housing Situation]]=\"Hospital / Psych / Detox\",Table117[[#This Row],[Housing Situation]]=\"Jail / Prison\",Table117[[#This Row],[Housing Situation]]=\"Foster Care / Group Home\"),(Table117[[#This Row],[End Date]]-Table117[[#This Row],[Start Date]])>=90),\nAND(OR(Table117[[#This Row],[Housing Situation]]=\"Apt / House (rented or owned)\",Table117[[#This Row],[Housing Situation]]=\"Friend / Family\",Table117[[#This Row],[Housing Situation]]=\"Self-paid Hotel / Halfway house\",Table117[[#This Row],[Housing Situation]]=\"Transitional Housing\"),(Table117[[#This Row],[End Date]]-Table117[[#This Row],[Start Date]])>=7)),\n0,\nIF(\nOR(Table117[[#This Row],[Housing Situation]]=\"ES / SH / Agency-paid Hotel\",Table117[[#This Row],[Housing Situation]]=\"Place not meant for habitation\",Table117[[#This Row],[Housing Situation]]=\"Gap (presumed homeless)\"),\n((Table117[[#This Row],[End Date]]+1)-Table117[[#This Row],[Start Date]])/(365/12),\nIF(\nAND(\nNOT(OR(Table117[[#This Row],[Housing Situation]]=\"ES / SH / Agency-paid Hotel\",Table117[[#This Row],[Housing Situation]]=\"Place not meant for habitation\",Table117[[#This Row],[Housing Situation]]=\"Gap (presumed homeless)\")),\nOR(OFFSET(Table117[[#This Row],[Housing Situation]],1,0)=\"ES / SH / Agency-paid Hotel\",OFFSET(Table117[[#This Row],[Housing Situation]],1,0)=\"Place not meant for habitation\",Table117[[#This Row],[Housing Situation]]=\"Gap (presumed homeless)\")),\n((Table117[[#This Row],[End Date]]+1)-Table117[[#This Row],[Start Date]])/(365/12),\n0))))))","v":1.6767123287671233},"Milwaukee Rescue Mission","HMIS ES / SH / SO record(s)","Yes",null,{"$f":"IF(OFFSET(Table117[[#This Row],[Months Homeless]],1,0)=\"\",0,IF(AND(Table117[[#This Row],[Months Homeless]]=0,OFFSET(Table117[[#This Row],[Months Homeless]],1,0)>0),1,0))","v":0},{"$f":"IF(\nTable117[[#This Row],[Row number]]=1,\n1,\nIF(OFFSET(Table117[[#This Row],[Months Homeless]],1,0)=\"\",\nINDIRECT(ADDRESS(ROW()-1,COLUMN())),\nIF(\nAND(\nTable117[[#This Row],[Months Homeless]]=0,\nOFFSET(Table117[[#This Row],[Months Homeless]],1,0)>0),\nINDIRECT(ADDRESS(ROW()-1,COLUMN()))+1,\nINDIRECT(ADDRESS(ROW()-1,COLUMN()))\n)\n)\n)","v":1},{"$f":"IF(OR(Table117[[#This Row],[Housing Situation]]=\"\",Table117[[#This Row],[Housing Situation]]=\"Gap (need self-report)\"),\"\",IF(Table117[[#This Row],[Months Homeless]]=\"Missing\",\"No\",IF(AND(Table117[[#This Row],[Housing Situation]]=\"Gap (presumed homeless)\",COUNTA(B14,C14)-(COUNTA(F14,G14)-COUNTBLANK(F14:G14))=0),\"Yes\",IF((COUNTA(B14,C14,E14)-(COUNTA(F14,G14)-COUNTBLANK(F14:G14))=1),\"Yes\",\"No\"))))","v":"Yes"},{"$f":"IF(Table117[[#This Row],[Row Complete?]]=\"No\",Table117[[#This Row],[Row number]]+10,\"\")","v":""},{"$f":"ROW(Table117[#This Row])-ROW(Table117[[#Headers], [Housing Situation]])","v":4},{"$f":"IF(ISERROR(_xlfn.DAYS(Table117[[#This Row],[End Date]],Table117[[#This Row],[Start Date]])),\"\",_xlfn.DAYS(Table117[[#This Row],[End Date]],Table117[[#This Row],[Start Date]]))","v":50},{"$f":"IF(Table117[[#This Row],[Housing Situation]]=\"\",\"\",IF(Table117[[#This Row],[Housing Situation]]=Picklists!$A$11,Picklists!$B$1,IF(Table117[[#This Row],[Housing Situation]]=Picklists!$A$2,Picklists!$B$1,IF(Table117[[#This Row],[Housing Situation]]=Picklists!$A$3,Picklists!$B$1,IF(Table117[[#This Row],[Housing Situation]]=Picklists!$A$12,Picklists!$B$1,Picklists!$C$1)))))","v":"Homeless_Documentation_Source"},{"$f":"IF(Table117[[#This Row],[Housing Situation Category]]=\"\",\"\",IF(Table117[[#This Row],[Housing Situation Category]]=Picklists!$B$1,Picklists!$D$1,Picklists!$E$1))","v":"Homeless_Documentation_Obtained?"}]
["Gap (need self-report)","2019-06-01",{"$f":"IF(Table117[[#This Row],[Housing Situation]]=\"\",\"\",IF(Table117[[#This Row],[Row number]]=1,$B$7,IF(OFFSET(C15,-1,-1)=\"\",\"\",OFFSET(C15,-1,-1)-1)))","v":"2019-09-30"},{"$f":"IF(\nTable117[[#This Row],[Start Date]]=\"\",\n\"\",\nIF(\nTable117[[#This Row],[Housing Situation]]=\"Gap (need self-report)\",\n\"\",\nIF(\nTable117[[#This Row],[Housing Situation]]=\"\",\n\"Missing\",\nIF(\nOR(\nAND(OR(Table117[[#This Row],[Housing Situation]]=\"Hospital / Psych / Detox\",Table117[[#This Row],[Housing Situation]]=\"Jail / Prison\",Table117[[#This Row],[Housing Situation]]=\"Foster Care / Group Home\"),(Table117[[#This Row],[End Date]]-Table117[[#This Row],[Start Date]])>=90),\nAND(OR(Table117[[#This Row],[Housing Situation]]=\"Apt / House (rented or owned)\",Table117[[#This Row],[Housing Situation]]=\"Friend / Family\",Table117[[#This Row],[Housing Situation]]=\"Self-paid Hotel / Halfway house\",Table117[[#This Row],[Housing Situation]]=\"Transitional Housing\"),(Table117[[#This Row],[End Date]]-Table117[[#This Row],[Start Date]])>=7)),\n0,\nIF(\nOR(Table117[[#This Row],[Housing Situation]]=\"ES / SH / Agency-paid Hotel\",Table117[[#This Row],[Housing Situation]]=\"Place not meant for habitation\",Table117[[#This Row],[Housing Situation]]=\"Gap (presumed homeless)\"),\n((Table117[[#This Row],[End Date]]+1)-Table117[[#This Row],[Start Date]])/(365/12),\nIF(\nAND(\nNOT(OR(Table117[[#This Row],[Housing Situation]]=\"ES / SH / Agency-paid Hotel\",Table117[[#This Row],[Housing Situation]]=\"Place not meant for habitation\",Table117[[#This Row],[Housing Situation]]=\"Gap (presumed homeless)\")),\nOR(OFFSET(Table117[[#This Row],[Housing Situation]],1,0)=\"ES / SH / Agency-paid Hotel\",OFFSET(Table117[[#This Row],[Housing Situation]],1,0)=\"Place not meant for habitation\",Table117[[#This Row],[Housing Situation]]=\"Gap (presumed homeless)\")),\n((Table117[[#This Row],[End Date]]+1)-Table117[[#This Row],[Start Date]])/(365/12),\n0))))))","v":""},null,{"$f":"IF(Table117[[#This Row],[Housing Situation]]=\"\",\"\",IF(Table117[[#This Row],[Housing Situation Category]]=\"Not_Homeless_Documentation_Source\",\"N/A\",\"\"))","v":""},{"$f":"IF(Table117[[#This Row],[Housing Situation]]=\"\",\"\",IF(Table117[[#This Row],[Housing Situation Category]]=\"Not_Homeless_Documentation_Source\",\"N/A\",\"\"))","v":""},null,{"$f":"IF(OFFSET(Table117[[#This Row],[Months Homeless]],1,0)=\"\",0,IF(AND(Table117[[#This Row],[Months Homeless]]=0,OFFSET(Table117[[#This Row],[Months Homeless]],1,0)>0),1,0))","v":0},{"$f":"IF(\nTable117[[#This Row],[Row number]]=1,\n1,\nIF(OFFSET(Table117[[#This Row],[Months Homeless]],1,0)=\"\",\nINDIRECT(ADDRESS(ROW()-1,COLUMN())),\nIF(\nAND(\nTable117[[#This Row],[Months Homeless]]=0,\nOFFSET(Table117[[#This Row],[Months Homeless]],1,0)>0),\nINDIRECT(ADDRESS(ROW()-1,COLUMN()))+1,\nINDIRECT(ADDRESS(ROW()-1,COLUMN()))\n)\n)\n)","v":1},{"$f":"IF(OR(Table117[[#This Row],[Housing Situation]]=\"\",Table117[[#This Row],[Housing Situation]]=\"Gap (need self-report)\"),\"\",IF(Table117[[#This Row],[Months Homeless]]=\"Missing\",\"No\",IF(AND(Table117[[#This Row],[Housing Situation]]=\"Gap (presumed homeless)\",COUNTA(B15,C15)-(COUNTA(F15,G15)-COUNTBLANK(F15:G15))=0),\"Yes\",IF((COUNTA(B15,C15,E15)-(COUNTA(F15,G15)-COUNTBLANK(F15:G15))=1),\"Yes\",\"No\"))))","v":""},{"$f":"IF(Table117[[#This Row],[Row Complete?]]=\"No\",Table117[[#This Row],[Row number]]+10,\"\")","v":""},{"$f":"ROW(Table117[#This Row])-ROW(Table117[[#Headers], [Housing Situation]])","v":5},{"$f":"IF(ISERROR(_xlfn.DAYS(Table117[[#This Row],[End Date]],Table117[[#This Row],[Start Date]])),\"\",_xlfn.DAYS(Table117[[#This Row],[End Date]],Table117[[#This Row],[Start Date]]))","v":121},{"$f":"IF(Table117[[#This Row],[Housing Situation]]=\"\",\"\",IF(Table117[[#This Row],[Housing Situation]]=Picklists!$A$11,Picklists!$B$1,IF(Table117[[#This Row],[Housing Situation]]=Picklists!$A$2,Picklists!$B$1,IF(Table117[[#This Row],[Housing Situation]]=Picklists!$A$3,Picklists!$B$1,IF(Table117[[#This Row],[Housing Situation]]=Picklists!$A$12,Picklists!$B$1,Picklists!$C$1)))))","v":"Homeless_Documentation_Source"},{"$f":"IF(Table117[[#This Row],[Housing Situation Category]]=\"\",\"\",IF(Table117[[#This Row],[Housing Situation Category]]=Picklists!$B$1,Picklists!$D$1,Picklists!$E$1))","v":"Homeless_Documentation_Obtained?"}]
["Apt / House (rented or owned)","2019-01-01",{"$f":"IF(Table117[[#This Row],[Housing Situation]]=\"\",\"\",IF(Table117[[#This Row],[Row number]]=1,$B$7,IF(OFFSET(C16,-1,-1)=\"\",\"\",OFFSET(C16,-1,-1)-1)))","v":"2019-05-31"},{"$f":"IF(\nTable117[[#This Row],[Start Date]]=\"\",\n\"\",\nIF(\nTable117[[#This Row],[Housing Situation]]=\"Gap (need self-report)\",\n\"\",\nIF(\nTable117[[#This Row],[Housing Situation]]=\"\",\n\"Missing\",\nIF(\nOR(\nAND(OR(Table117[[#This Row],[Housing Situation]]=\"Hospital / Psych / Detox\",Table117[[#This Row],[Housing Situation]]=\"Jail / Prison\",Table117[[#This Row],[Housing Situation]]=\"Foster Care / Group Home\"),(Table117[[#This Row],[End Date]]-Table117[[#This Row],[Start Date]])>=90),\nAND(OR(Table117[[#This Row],[Housing Situation]]=\"Apt / House (rented or owned)\",Table117[[#This Row],[Housing Situation]]=\"Friend / Family\",Table117[[#This Row],[Housing Situation]]=\"Self-paid Hotel / Halfway house\",Table117[[#This Row],[Housing Situation]]=\"Transitional Housing\"),(Table117[[#This Row],[End Date]]-Table117[[#This Row],[Start Date]])>=7)),\n0,\nIF(\nOR(Table117[[#This Row],[Housing Situation]]=\"ES / SH / Agency-paid Hotel\",Table117[[#This Row],[Housing Situation]]=\"Place not meant for habitation\",Table117[[#This Row],[Housing Situation]]=\"Gap (presumed homeless)\"),\n((Table117[[#This Row],[End Date]]+1)-Table117[[#This Row],[Start Date]])/(365/12),\nIF(\nAND(\nNOT(OR(Table117[[#This Row],[Housing Situation]]=\"ES / SH / Agency-paid Hotel\",Table117[[#This Row],[Housing Situation]]=\"Place not meant for habitation\",Table117[[#This Row],[Housing Situation]]=\"Gap (presumed homeless)\")),\nOR(OFFSET(Table117[[#This Row],[Housing Situation]],1,0)=\"ES / SH / Agency-paid Hotel\",OFFSET(Table117[[#This Row],[Housing Situation]],1,0)=\"Place not meant for habitation\",Table117[[#This Row],[Housing Situation]]=\"Gap (presumed homeless)\")),\n((Table117[[#This Row],[End Date]]+1)-Table117[[#This Row],[Start Date]])/(365/12),\n0))))))","v":0},"1510 Wright St.",{"$f":"IF(Table117[[#This Row],[Housing Situation]]=\"\",\"\",IF(Table117[[#This Row],[Housing Situation Category]]=\"Not_Homeless_Documentation_Source\",\"N/A\",\"\"))","v":"N/A"},{"$f":"IF(Table117[[#This Row],[Housing Situation]]=\"\",\"\",IF(Table117[[#This Row],[Housing Situation Category]]=\"Not_Homeless_Documentation_Source\",\"N/A\",\"\"))","v":"N/A"},"Received Guest House RRH subsidy during this time.",{"$f":"IF(OFFSET(Table117[[#This Row],[Months Homeless]],1,0)=\"\",0,IF(AND(Table117[[#This Row],[Months Homeless]]=0,OFFSET(Table117[[#This Row],[Months Homeless]],1,0)>0),1,0))","v":0},{"$f":"IF(\nTable117[[#This Row],[Row number]]=1,\n1,\nIF(OFFSET(Table117[[#This Row],[Months Homeless]],1,0)=\"\",\nINDIRECT(ADDRESS(ROW()-1,COLUMN())),\nIF(\nAND(\nTable117[[#This Row],[Months Homeless]]=0,\nOFFSET(Table117[[#This Row],[Months Homeless]],1,0)>0),\nINDIRECT(ADDRESS(ROW()-1,COLUMN()))+1,\nINDIRECT(ADDRESS(ROW()-1,COLUMN()))\n)\n)\n)","v":1},{"$f":"IF(OR(Table117[[#This Row],[Housing Situation]]=\"\",Table117[[#This Row],[Housing Situation]]=\"Gap (need self-report)\"),\"\",IF(Table117[[#This Row],[Months Homeless]]=\"Missing\",\"No\",IF(AND(Table117[[#This Row],[Housing Situation]]=\"Gap (presumed homeless)\",COUNTA(B16,C16)-(COUNTA(F16,G16)-COUNTBLANK(F16:G16))=0),\"Yes\",IF((COUNTA(B16,C16,E16)-(COUNTA(F16,G16)-COUNTBLANK(F16:G16))=1),\"Yes\",\"No\"))))","v":"Yes"},{"$f":"IF(Table117[[#This Row],[Row Complete?]]=\"No\",Table117[[#This Row],[Row number]]+10,\"\")","v":""},{"$f":"ROW(Table117[#This Row])-ROW(Table117[[#Headers], [Housing Situation]])","v":6},{"$f":"IF(ISERROR(_xlfn.DAYS(Table117[[#This Row],[End Date]],Table117[[#This Row],[Start Date]])),\"\",_xlfn.DAYS(Table117[[#This Row],[End Date]],Table117[[#This Row],[Start Date]]))","v":150},{"$f":"IF(Table117[[#This Row],[Housing Situation]]=\"\",\"\",IF(Table117[[#This Row],[Housing Situation]]=Picklists!$A$11,Picklists!$B$1,IF(Table117[[#This Row],[Housing Situation]]=Picklists!$A$2,Picklists!$B$1,IF(Table117[[#This Row],[Housing Situation]]=Picklists!$A$3,Picklists!$B$1,IF(Table117[[#This Row],[Housing Situation]]=Picklists!$A$12,Picklists!$B$1,Picklists!$C$1)))))","v":"Not_Homeless_Documentation_Source"},{"$f":"IF(Table117[[#This Row],[Housing Situation Category]]=\"\",\"\",IF(Table117[[#This Row],[Housing Situation Category]]=Picklists!$B$1,Picklists!$D$1,Picklists!$E$1))","v":"Not_Homeless_Documentation_Obtained?"}]
["Gap (need self-report)","2018-11-01",{"$f":"IF(Table117[[#This Row],[Housing Situation]]=\"\",\"\",IF(Table117[[#This Row],[Row number]]=1,$B$7,IF(OFFSET(C17,-1,-1)=\"\",\"\",OFFSET(C17,-1,-1)-1)))","v":"2018-12-31"},{"$f":"IF(\nTable117[[#This Row],[Start Date]]=\"\",\n\"\",\nIF(\nTable117[[#This Row],[Housing Situation]]=\"Gap (need self-report)\",\n\"\",\nIF(\nTable117[[#This Row],[Housing Situation]]=\"\",\n\"Missing\",\nIF(\nOR(\nAND(OR(Table117[[#This Row],[Housing Situation]]=\"Hospital / Psych / Detox\",Table117[[#This Row],[Housing Situation]]=\"Jail / Prison\",Table117[[#This Row],[Housing Situation]]=\"Foster Care / Group Home\"),(Table117[[#This Row],[End Date]]-Table117[[#This Row],[Start Date]])>=90),\nAND(OR(Table117[[#This Row],[Housing Situation]]=\"Apt / House (rented or owned)\",Table117[[#This Row],[Housing Situation]]=\"Friend / Family\",Table117[[#This Row],[Housing Situation]]=\"Self-paid Hotel / Halfway house\",Table117[[#This Row],[Housing Situation]]=\"Transitional Housing\"),(Table117[[#This Row],[End Date]]-Table117[[#This Row],[Start Date]])>=7)),\n0,\nIF(\nOR(Table117[[#This Row],[Housing Situation]]=\"ES / SH / Agency-paid Hotel\",Table117[[#This Row],[Housing Situation]]=\"Place not meant for habitation\",Table117[[#This Row],[Housing Situation]]=\"Gap (presumed homeless)\"),\n((Table117[[#This Row],[End Date]]+1)-Table117[[#This Row],[Start Date]])/(365/12),\nIF(\nAND(\nNOT(OR(Table117[[#This Row],[Housing Situation]]=\"ES / SH / Agency-paid Hotel\",Table117[[#This Row],[Housing Situation]]=\"Place not meant for habitation\",Table117[[#This Row],[Housing Situation]]=\"Gap (presumed homeless)\")),\nOR(OFFSET(Table117[[#This Row],[Housing Situation]],1,0)=\"ES / SH / Agency-paid Hotel\",OFFSET(Table117[[#This Row],[Housing Situation]],1,0)=\"Place not meant for habitation\",Table117[[#This Row],[Housing Situation]]=\"Gap (presumed homeless)\")),\n((Table117[[#This Row],[End Date]]+1)-Table117[[#This Row],[Start Date]])/(365/12),\n0))))))","v":""},null,null,null,null,{"$f":"IF(OFFSET(Table117[[#This Row],[Months Homeless]],1,0)=\"\",0,IF(AND(Table117[[#This Row],[Months Homeless]]=0,OFFSET(Table117[[#This Row],[Months Homeless]],1,0)>0),1,0))","v":0},{"$f":"IF(\nTable117[[#This Row],[Row number]]=1,\n1,\nIF(OFFSET(Table117[[#This Row],[Months Homeless]],1,0)=\"\",\nINDIRECT(ADDRESS(ROW()-1,COLUMN())),\nIF(\nAND(\nTable117[[#This Row],[Months Homeless]]=0,\nOFFSET(Table117[[#This Row],[Months Homeless]],1,0)>0),\nINDIRECT(ADDRESS(ROW()-1,COLUMN()))+1,\nINDIRECT(ADDRESS(ROW()-1,COLUMN()))\n)\n)\n)","v":1},{"$f":"IF(OR(Table117[[#This Row],[Housing Situation]]=\"\",Table117[[#This Row],[Housing Situation]]=\"Gap (need self-report)\"),\"\",IF(Table117[[#This Row],[Months Homeless]]=\"Missing\",\"No\",IF(AND(Table117[[#This Row],[Housing Situation]]=\"Gap (presumed homeless)\",COUNTA(B17,C17)-(COUNTA(F17,G17)-COUNTBLANK(F17:G17))=0),\"Yes\",IF((COUNTA(B17,C17,E17)-(COUNTA(F17,G17)-COUNTBLANK(F17:G17))=1),\"Yes\",\"No\"))))","v":""},{"$f":"IF(Table117[[#This Row],[Row Complete?]]=\"No\",Table117[[#This Row],[Row number]]+10,\"\")","v":""},{"$f":"ROW(Table117[#This Row])-ROW(Table117[[#Headers], [Housing Situation]])","v":7},{"$f":"IF(ISERROR(_xlfn.DAYS(Table117[[#This Row],[End Date]],Table117[[#This Row],[Start Date]])),\"\",_xlfn.DAYS(Table117[[#This Row],[End Date]],Table117[[#This Row],[Start Date]]))","v":60},{"$f":"IF(Table117[[#This Row],[Housing Situation]]=\"\",\"\",IF(Table117[[#This Row],[Housing Situation]]=Picklists!$A$11,Picklists!$B$1,IF(Table117[[#This Row],[Housing Situation]]=Picklists!$A$2,Picklists!$B$1,IF(Table117[[#This Row],[Housing Situation]]=Picklists!$A$3,Picklists!$B$1,IF(Table117[[#This Row],[Housing Situation]]=Picklists!$A$12,Picklists!$B$1,Picklists!$C$1)))))","v":"Homeless_Documentation_Source"},{"$f":"IF(Table117[[#This Row],[Housing Situation Category]]=\"\",\"\",IF(Table117[[#This Row],[Housing Situation Category]]=Picklists!$B$1,Picklists!$D$1,Picklists!$E$1))","v":"Homeless_Documentation_Obtained?"}]
["Gap (presumed homeless)","2018-10-21",{"$f":"IF(Table117[[#This Row],[Housing Situation]]=\"\",\"\",IF(Table117[[#This Row],[Row number]]=1,$B$7,IF(OFFSET(C18,-1,-1)=\"\",\"\",OFFSET(C18,-1,-1)-1)))","v":"2018-10-31"},{"$f":"IF(\nTable117[[#This Row],[Start Date]]=\"\",\n\"\",\nIF(\nTable117[[#This Row],[Housing Situation]]=\"Gap (need self-report)\",\n\"\",\nIF(\nTable117[[#This Row],[Housing Situation]]=\"\",\n\"Missing\",\nIF(\nOR(\nAND(OR(Table117[[#This Row],[Housing Situation]]=\"Hospital / Psych / Detox\",Table117[[#This Row],[Housing Situation]]=\"Jail / Prison\",Table117[[#This Row],[Housing Situation]]=\"Foster Care / Group Home\"),(Table117[[#This Row],[End Date]]-Table117[[#This Row],[Start Date]])>=90),\nAND(OR(Table117[[#This Row],[Housing Situation]]=\"Apt / House (rented or owned)\",Table117[[#This Row],[Housing Situation]]=\"Friend / Family\",Table117[[#This Row],[Housing Situation]]=\"Self-paid Hotel / Halfway house\",Table117[[#This Row],[Housing Situation]]=\"Transitional Housing\"),(Table117[[#This Row],[End Date]]-Table117[[#This Row],[Start Date]])>=7)),\n0,\nIF(\nOR(Table117[[#This Row],[Housing Situation]]=\"ES / SH / Agency-paid Hotel\",Table117[[#This Row],[Housing Situation]]=\"Place not meant for habitation\",Table117[[#This Row],[Housing Situation]]=\"Gap (presumed homeless)\"),\n((Table117[[#This Row],[End Date]]+1)-Table117[[#This Row],[Start Date]])/(365/12),\nIF(\nAND(\nNOT(OR(Table117[[#This Row],[Housing Situation]]=\"ES / SH / Agency-paid Hotel\",Table117[[#This Row],[Housing Situation]]=\"Place not meant for habitation\",Table117[[#This Row],[Housing Situation]]=\"Gap (presumed homeless)\")),\nOR(OFFSET(Table117[[#This Row],[Housing Situation]],1,0)=\"ES / SH / Agency-paid Hotel\",OFFSET(Table117[[#This Row],[Housing Situation]],1,0)=\"Place not meant for habitation\",Table117[[#This Row],[Housing Situation]]=\"Gap (presumed homeless)\")),\n((Table117[[#This Row],[End Date]]+1)-Table117[[#This Row],[Start Date]])/(365/12),\n0))))))","v":0.36164383561643837},null,"Month Already Counted","Yes",null,{"$f":"IF(OFFSET(Table117[[#This Row],[Months Homeless]],1,0)=\"\",0,IF(AND(Table117[[#This Row],[Months Homeless]]=0,OFFSET(Table117[[#This Row],[Months Homeless]],1,0)>0),1,0))","v":0},{"$f":"IF(\nTable117[[#This Row],[Row number]]=1,\n1,\nIF(OFFSET(Table117[[#This Row],[Months Homeless]],1,0)=\"\",\nINDIRECT(ADDRESS(ROW()-1,COLUMN())),\nIF(\nAND(\nTable117[[#This Row],[Months Homeless]]=0,\nOFFSET(Table117[[#This Row],[Months Homeless]],1,0)>0),\nINDIRECT(ADDRESS(ROW()-1,COLUMN()))+1,\nINDIRECT(ADDRESS(ROW()-1,COLUMN()))\n)\n)\n)","v":1},{"$f":"IF(OR(Table117[[#This Row],[Housing Situation]]=\"\",Table117[[#This Row],[Housing Situation]]=\"Gap (need self-report)\"),\"\",IF(Table117[[#This Row],[Months Homeless]]=\"Missing\",\"No\",IF(AND(Table117[[#This Row],[Housing Situation]]=\"Gap (presumed homeless)\",COUNTA(B18,C18)-(COUNTA(F18,G18)-COUNTBLANK(F18:G18))=0),\"Yes\",IF((COUNTA(B18,C18,E18)-(COUNTA(F18,G18)-COUNTBLANK(F18:G18))=1),\"Yes\",\"No\"))))","v":"Yes"},{"$f":"IF(Table117[[#This Row],[Row Complete?]]=\"No\",Table117[[#This Row],[Row number]]+10,\"\")","v":""},{"$f":"ROW(Table117[#This Row])-ROW(Table117[[#Headers], [Housing Situation]])","v":8},{"$f":"IF(ISERROR(_xlfn.DAYS(Table117[[#This Row],[End Date]],Table117[[#This Row],[Start Date]])),\"\",_xlfn.DAYS(Table117[[#This Row],[End Date]],Table117[[#This Row],[Start Date]]))","v":10},{"$f":"IF(Table117[[#This Row],[Housing Situation]]=\"\",\"\",IF(Table117[[#This Row],[Housing Situation]]=Picklists!$A$11,Picklists!$B$1,IF(Table117[[#This Row],[Housing Situation]]=Picklists!$A$2,Picklists!$B$1,IF(Table117[[#This Row],[Housing Situation]]=Picklists!$A$3,Picklists!$B$1,IF(Table117[[#This Row],[Housing Situation]]=Picklists!$A$12,Picklists!$B$1,Picklists!$C$1)))))","v":"Homeless_Documentation_Source"},{"$f":"IF(Table117[[#This Row],[Housing Situation Category]]=\"\",\"\",IF(Table117[[#This Row],[Housing Situation Category]]=Picklists!$B$1,Picklists!$D$1,Picklists!$E$1))","v":"Homeless_Documentation_Obtained?"}]
["ES / SH / Agency-paid Hotel","2018-10-10",{"$f":"IF(Table117[[#This Row],[Housing Situation]]=\"\",\"\",IF(Table117[[#This Row],[Row number]]=1,$B$7,IF(OFFSET(C19,-1,-1)=\"\",\"\",OFFSET(C19,-1,-1)-1)))","v":"2018-10-20"},{"$f":"IF(\nTable117[[#This Row],[Start Date]]=\"\",\n\"\",\nIF(\nTable117[[#This Row],[Housing Situation]]=\"Gap (need self-report)\",\n\"\",\nIF(\nTable117[[#This Row],[Housing Situation]]=\"\",\n\"Missing\",\nIF(\nOR(\nAND(OR(Table117[[#This Row],[Housing Situation]]=\"Hospital / Psych / Detox\",Table117[[#This Row],[Housing Situation]]=\"Jail / Prison\",Table117[[#This Row],[Housing Situation]]=\"Foster Care / Group Home\"),(Table117[[#This Row],[End Date]]-Table117[[#This Row],[Start Date]])>=90),\nAND(OR(Table117[[#This Row],[Housing Situation]]=\"Apt / House (rented or owned)\",Table117[[#This Row],[Housing Situation]]=\"Friend / Family\",Table117[[#This Row],[Housing Situation]]=\"Self-paid Hotel / Halfway house\",Table117[[#This Row],[Housing Situation]]=\"Transitional Housing\"),(Table117[[#This Row],[End Date]]-Table117[[#This Row],[Start Date]])>=7)),\n0,\nIF(\nOR(Table117[[#This Row],[Housing Situation]]=\"ES / SH / Agency-paid Hotel\",Table117[[#This Row],[Housing Situation]]=\"Place not meant for habitation\",Table117[[#This Row],[Housing Situation]]=\"Gap (presumed homeless)\"),\n((Table117[[#This Row],[End Date]]+1)-Table117[[#This Row],[Start Date]])/(365/12),\nIF(\nAND(\nNOT(OR(Table117[[#This Row],[Housing Situation]]=\"ES / SH / Agency-paid Hotel\",Table117[[#This Row],[Housing Situation]]=\"Place not meant for habitation\",Table117[[#This Row],[Housing Situation]]=\"Gap (presumed homeless)\")),\nOR(OFFSET(Table117[[#This Row],[Housing Situation]],1,0)=\"ES / SH / Agency-paid Hotel\",OFFSET(Table117[[#This Row],[Housing Situation]],1,0)=\"Place not meant for habitation\",Table117[[#This Row],[Housing Situation]]=\"Gap (presumed homeless)\")),\n((Table117[[#This Row],[End Date]]+1)-Table117[[#This Row],[Start Date]])/(365/12),\n0))))))","v":0.36164383561643837},"Guest House ES","HMIS ES / SH / SO record(s)","Yes","Exit from GH was to Jail/Prison",{"$f":"IF(OFFSET(Table117[[#This Row],[Months Homeless]],1,0)=\"\",0,IF(AND(Table117[[#This Row],[Months Homeless]]=0,OFFSET(Table117[[#This Row],[Months Homeless]],1,0)>0),1,0))","v":0},{"$f":"IF(\nTable117[[#This Row],[Row number]]=1,\n1,\nIF(OFFSET(Table117[[#This Row],[Months Homeless]],1,0)=\"\",\nINDIRECT(ADDRESS(ROW()-1,COLUMN())),\nIF(\nAND(\nTable117[[#This Row],[Months Homeless]]=0,\nOFFSET(Table117[[#This Row],[Months Homeless]],1,0)>0),\nINDIRECT(ADDRESS(ROW()-1,COLUMN()))+1,\nINDIRECT(ADDRESS(ROW()-1,COLUMN()))\n)\n)\n)","v":1},{"$f":"IF(OR(Table117[[#This Row],[Housing Situation]]=\"\",Table117[[#This Row],[Housing Situation]]=\"Gap (need self-report)\"),\"\",IF(Table117[[#This Row],[Months Homeless]]=\"Missing\",\"No\",IF(AND(Table117[[#This Row],[Housing Situation]]=\"Gap (presumed homeless)\",COUNTA(B19,C19)-(COUNTA(F19,G19)-COUNTBLANK(F19:G19))=0),\"Yes\",IF((COUNTA(B19,C19,E19)-(COUNTA(F19,G19)-COUNTBLANK(F19:G19))=1),\"Yes\",\"No\"))))","v":"Yes"},{"$f":"IF(Table117[[#This Row],[Row Complete?]]=\"No\",Table117[[#This Row],[Row number]]+10,\"\")","v":""},{"$f":"ROW(Table117[#This Row])-ROW(Table117[[#Headers], [Housing Situation]])","v":9},{"$f":"IF(ISERROR(_xlfn.DAYS(Table117[[#This Row],[End Date]],Table117[[#This Row],[Start Date]])),\"\",_xlfn.DAYS(Table117[[#This Row],[End Date]],Table117[[#This Row],[Start Date]]))","v":10},{"$f":"IF(Table117[[#This Row],[Housing Situation]]=\"\",\"\",IF(Table117[[#This Row],[Housing Situation]]=Picklists!$A$11,Picklists!$B$1,IF(Table117[[#This Row],[Housing Situation]]=Picklists!$A$2,Picklists!$B$1,IF(Table117[[#This Row],[Housing Situation]]=Picklists!$A$3,Picklists!$B$1,IF(Table117[[#This Row],[Housing Situation]]=Picklists!$A$12,Picklists!$B$1,Picklists!$C$1)))))","v":"Homeless_Documentation_Source"},{"$f":"IF(Table117[[#This Row],[Housing Situation Category]]=\"\",\"\",IF(Table117[[#This Row],[Housing Situation Category]]=Picklists!$B$1,Picklists!$D$1,Picklists!$E$1))","v":"Homeless_Documentation_Obtained?"}]
["Gap (presumed homeless)","2018-10-03",{"$f":"IF(Table117[[#This Row],[Housing Situation]]=\"\",\"\",IF(Table117[[#This Row],[Row number]]=1,$B$7,IF(OFFSET(C20,-1,-1)=\"\",\"\",OFFSET(C20,-1,-1)-1)))","v":"2018-10-09"},{"$f":"IF(\nTable117[[#This Row],[Start Date]]=\"\",\n\"\",\nIF(\nTable117[[#This Row],[Housing Situation]]=\"Gap (need self-report)\",\n\"\",\nIF(\nTable117[[#This Row],[Housing Situation]]=\"\",\n\"Missing\",\nIF(\nOR(\nAND(OR(Table117[[#This Row],[Housing Situation]]=\"Hospital / Psych / Detox\",Table117[[#This Row],[Housing Situation]]=\"Jail / Prison\",Table117[[#This Row],[Housing Situation]]=\"Foster Care / Group Home\"),(Table117[[#This Row],[End Date]]-Table117[[#This Row],[Start Date]])>=90),\nAND(OR(Table117[[#This Row],[Housing Situation]]=\"Apt / House (rented or owned)\",Table117[[#This Row],[Housing Situation]]=\"Friend / Family\",Table117[[#This Row],[Housing Situation]]=\"Self-paid Hotel / Halfway house\",Table117[[#This Row],[Housing Situation]]=\"Transitional Housing\"),(Table117[[#This Row],[End Date]]-Table117[[#This Row],[Start Date]])>=7)),\n0,\nIF(\nOR(Table117[[#This Row],[Housing Situation]]=\"ES / SH / Agency-paid Hotel\",Table117[[#This Row],[Housing Situation]]=\"Place not meant for habitation\",Table117[[#This Row],[Housing Situation]]=\"Gap (presumed homeless)\"),\n((Table117[[#This Row],[End Date]]+1)-Table117[[#This Row],[Start Date]])/(365/12),\nIF(\nAND(\nNOT(OR(Table117[[#This Row],[Housing Situation]]=\"ES / SH / Agency-paid Hotel\",Table117[[#This Row],[Housing Situation]]=\"Place not meant for habitation\",Table117[[#This Row],[Housing Situation]]=\"Gap (presumed homeless)\")),\nOR(OFFSET(Table117[[#This Row],[Housing Situation]],1,0)=\"ES / SH / Agency-paid Hotel\",OFFSET(Table117[[#This Row],[Housing Situation]],1,0)=\"Place not meant for habitation\",Table117[[#This Row],[Housing Situation]]=\"Gap (presumed homeless)\")),\n((Table117[[#This Row],[End Date]]+1)-Table117[[#This Row],[Start Date]])/(365/12),\n0))))))","v":0.23013698630136986},null,"Month Already Counted","Yes",null,{"$f":"IF(OFFSET(Table117[[#This Row],[Months Homeless]],1,0)=\"\",0,IF(AND(Table117[[#This Row],[Months Homeless]]=0,OFFSET(Table117[[#This Row],[Months Homeless]],1,0)>0),1,0))","v":0},{"$f":"IF(\nTable117[[#This Row],[Row number]]=1,\n1,\nIF(OFFSET(Table117[[#This Row],[Months Homeless]],1,0)=\"\",\nINDIRECT(ADDRESS(ROW()-1,COLUMN())),\nIF(\nAND(\nTable117[[#This Row],[Months Homeless]]=0,\nOFFSET(Table117[[#This Row],[Months Homeless]],1,0)>0),\nINDIRECT(ADDRESS(ROW()-1,COLUMN()))+1,\nINDIRECT(ADDRESS(ROW()-1,COLUMN()))\n)\n)\n)","v":1},{"$f":"IF(OR(Table117[[#This Row],[Housing Situation]]=\"\",Table117[[#This Row],[Housing Situation]]=\"Gap (need self-report)\"),\"\",IF(Table117[[#This Row],[Months Homeless]]=\"Missing\",\"No\",IF(AND(Table117[[#This Row],[Housing Situation]]=\"Gap (presumed homeless)\",COUNTA(B20,C20)-(COUNTA(F20,G20)-COUNTBLANK(F20:G20))=0),\"Yes\",IF((COUNTA(B20,C20,E20)-(COUNTA(F20,G20)-COUNTBLANK(F20:G20))=1),\"Yes\",\"No\"))))","v":"Yes"},{"$f":"IF(Table117[[#This Row],[Row Complete?]]=\"No\",Table117[[#This Row],[Row number]]+10,\"\")","v":""},{"$f":"ROW(Table117[#This Row])-ROW(Table117[[#Headers], [Housing Situation]])","v":10},{"$f":"IF(ISERROR(_xlfn.DAYS(Table117[[#This Row],[End Date]],Table117[[#This Row],[Start Date]])),\"\",_xlfn.DAYS(Table117[[#This Row],[End Date]],Table117[[#This Row],[Start Date]]))","v":6},{"$f":"IF(Table117[[#This Row],[Housing Situation]]=\"\",\"\",IF(Table117[[#This Row],[Housing Situation]]=Picklists!$A$11,Picklists!$B$1,IF(Table117[[#This Row],[Housing Situation]]=Picklists!$A$2,Picklists!$B$1,IF(Table117[[#This Row],[Housing Situation]]=Picklists!$A$3,Picklists!$B$1,IF(Table117[[#This Row],[Housing Situation]]=Picklists!$A$12,Picklists!$B$1,Picklists!$C$1)))))","v":"Homeless_Documentation_Source"},{"$f":"IF(Table117[[#This Row],[Housing Situation Category]]=\"\",\"\",IF(Table117[[#This Row],[Housing Situation Category]]=Picklists!$B$1,Picklists!$D$1,Picklists!$E$1))","v":"Homeless_Documentation_Obtained?"}]
["ES / SH / Agency-paid Hotel","2018-08-15",{"$f":"IF(Table117[[#This Row],[Housing Situation]]=\"\",\"\",IF(Table117[[#This Row],[Row number]]=1,$B$7,IF(OFFSET(C21,-1,-1)=\"\",\"\",OFFSET(C21,-1,-1)-1)))","v":"2018-10-02"},{"$f":"IF(\nTable117[[#This Row],[Start Date]]=\"\",\n\"\",\nIF(\nTable117[[#This Row],[Housing Situation]]=\"Gap (need self-report)\",\n\"\",\nIF(\nTable117[[#This Row],[Housing Situation]]=\"\",\n\"Missing\",\nIF(\nOR(\nAND(OR(Table117[[#This Row],[Housing Situation]]=\"Hospital / Psych / Detox\",Table117[[#This Row],[Housing Situation]]=\"Jail / Prison\",Table117[[#This Row],[Housing Situation]]=\"Foster Care / Group Home\"),(Table117[[#This Row],[End Date]]-Table117[[#This Row],[Start Date]])>=90),\nAND(OR(Table117[[#This Row],[Housing Situation]]=\"Apt / House (rented or owned)\",Table117[[#This Row],[Housing Situation]]=\"Friend / Family\",Table117[[#This Row],[Housing Situation]]=\"Self-paid Hotel / Halfway house\",Table117[[#This Row],[Housing Situation]]=\"Transitional Housing\"),(Table117[[#This Row],[End Date]]-Table117[[#This Row],[Start Date]])>=7)),\n0,\nIF(\nOR(Table117[[#This Row],[Housing Situation]]=\"ES / SH / Agency-paid Hotel\",Table117[[#This Row],[Housing Situation]]=\"Place not meant for habitation\",Table117[[#This Row],[Housing Situation]]=\"Gap (presumed homeless)\"),\n((Table117[[#This Row],[End Date]]+1)-Table117[[#This Row],[Start Date]])/(365/12),\nIF(\nAND(\nNOT(OR(Table117[[#This Row],[Housing Situation]]=\"ES / SH / Agency-paid Hotel\",Table117[[#This Row],[Housing Situation]]=\"Place not meant for habitation\",Table117[[#This Row],[Housing Situation]]=\"Gap (presumed homeless)\")),\nOR(OFFSET(Table117[[#This Row],[Housing Situation]],1,0)=\"ES / SH / Agency-paid Hotel\",OFFSET(Table117[[#This Row],[Housing Situation]],1,0)=\"Place not meant for habitation\",Table117[[#This Row],[Housing Situation]]=\"Gap (presumed homeless)\")),\n((Table117[[#This Row],[End Date]]+1)-Table117[[#This Row],[Start Date]])/(365/12),\n0))))))","v":1.6109589041095891},"Salvation Army Emergency Lodge","HMIS ES / SH / SO record(s)","Yes",null,{"$f":"IF(OFFSET(Table117[[#This Row],[Months Homeless]],1,0)=\"\",0,IF(AND(Table117[[#This Row],[Months Homeless]]=0,OFFSET(Table117[[#This Row],[Months Homeless]],1,0)>0),1,0))","v":0},{"$f":"IF(\nTable117[[#This Row],[Row number]]=1,\n1,\nIF(OFFSET(Table117[[#This Row],[Months Homeless]],1,0)=\"\",\nINDIRECT(ADDRESS(ROW()-1,COLUMN())),\nIF(\nAND(\nTable117[[#This Row],[Months Homeless]]=0,\nOFFSET(Table117[[#This Row],[Months Homeless]],1,0)>0),\nINDIRECT(ADDRESS(ROW()-1,COLUMN()))+1,\nINDIRECT(ADDRESS(ROW()-1,COLUMN()))\n)\n)\n)","v":1},{"$f":"IF(OR(Table117[[#This Row],[Housing Situation]]=\"\",Table117[[#This Row],[Housing Situation]]=\"Gap (need self-report)\"),\"\",IF(Table117[[#This Row],[Months Homeless]]=\"Missing\",\"No\",IF(AND(Table117[[#This Row],[Housing Situation]]=\"Gap (presumed homeless)\",COUNTA(B21,C21)-(COUNTA(F21,G21)-COUNTBLANK(F21:G21))=0),\"Yes\",IF((COUNTA(B21,C21,E21)-(COUNTA(F21,G21)-COUNTBLANK(F21:G21))=1),\"Yes\",\"No\"))))","v":"Yes"},{"$f":"IF(Table117[[#This Row],[Row Complete?]]=\"No\",Table117[[#This Row],[Row number]]+10,\"\")","v":""},{"$f":"ROW(Table117[#This Row])-ROW(Table117[[#Headers], [Housing Situation]])","v":11},{"$f":"IF(ISERROR(_xlfn.DAYS(Table117[[#This Row],[End Date]],Table117[[#This Row],[Start Date]])),\"\",_xlfn.DAYS(Table117[[#This Row],[End Date]],Table117[[#This Row],[Start Date]]))","v":48},{"$f":"IF(Table117[[#This Row],[Housing Situation]]=\"\",\"\",IF(Table117[[#This Row],[Housing Situation]]=Picklists!$A$11,Picklists!$B$1,IF(Table117[[#This Row],[Housing Situation]]=Picklists!$A$2,Picklists!$B$1,IF(Table117[[#This Row],[Housing Situation]]=Picklists!$A$3,Picklists!$B$1,IF(Table117[[#This Row],[Housing Situation]]=Picklists!$A$12,Picklists!$B$1,Picklists!$C$1)))))","v":"Homeless_Documentation_Source"},{"$f":"IF(Table117[[#This Row],[Housing Situation Category]]=\"\",\"\",IF(Table117[[#This Row],[Housing Situation Category]]=Picklists!$B$1,Picklists!$D$1,Picklists!$E$1))","v":"Homeless_Documentation_Obtained?"}]
["Hospital / Psych / Detox","2018-08-01",{"$f":"IF(Table117[[#This Row],[Housing Situation]]=\"\",\"\",IF(Table117[[#This Row],[Row number]]=1,$B$7,IF(OFFSET(C22,-1,-1)=\"\",\"\",OFFSET(C22,-1,-1)-1)))","v":"2018-08-14"},{"$f":"IF(\nTable117[[#This Row],[Start Date]]=\"\",\n\"\",\nIF(\nTable117[[#This Row],[Housing Situation]]=\"Gap (need self-report)\",\n\"\",\nIF(\nTable117[[#This Row],[Housing Situation]]=\"\",\n\"Missing\",\nIF(\nOR(\nAND(OR(Table117[[#This Row],[Housing Situation]]=\"Hospital / Psych / Detox\",Table117[[#This Row],[Housing Situation]]=\"Jail / Prison\",Table117[[#This Row],[Housing Situation]]=\"Foster Care / Group Home\"),(Table117[[#This Row],[End Date]]-Table117[[#This Row],[Start Date]])>=90),\nAND(OR(Table117[[#This Row],[Housing Situation]]=\"Apt / House (rented or owned)\",Table117[[#This Row],[Housing Situation]]=\"Friend / Family\",Table117[[#This Row],[Housing Situation]]=\"Self-paid Hotel / Halfway house\",Table117[[#This Row],[Housing Situation]]=\"Transitional Housing\"),(Table117[[#This Row],[End Date]]-Table117[[#This Row],[Start Date]])>=7)),\n0,\nIF(\nOR(Table117[[#This Row],[Housing Situation]]=\"ES / SH / Agency-paid Hotel\",Table117[[#This Row],[Housing Situation]]=\"Place not meant for habitation\",Table117[[#This Row],[Housing Situation]]=\"Gap (presumed homeless)\"),\n((Table117[[#This Row],[End Date]]+1)-Table117[[#This Row],[Start Date]])/(365/12),\nIF(\nAND(\nNOT(OR(Table117[[#This Row],[Housing Situation]]=\"ES / SH / Agency-paid Hotel\",Table117[[#This Row],[Housing Situation]]=\"Place not meant for habitation\",Table117[[#This Row],[Housing Situation]]=\"Gap (presumed homeless)\")),\nOR(OFFSET(Table117[[#This Row],[Housing Situation]],1,0)=\"ES / SH / Agency-paid Hotel\",OFFSET(Table117[[#This Row],[Housing Situation]],1,0)=\"Place not meant for habitation\",Table117[[#This Row],[Housing Situation]]=\"Gap (presumed homeless)\")),\n((Table117[[#This Row],[End Date]]+1)-Table117[[#This Row],[Start Date]])/(365/12),\n0))))))","v":0.46027397260273972},"Whole Health Clinical Crisi Resource Center",{"$f":"IF(Table117[[#This Row],[Housing Situation]]=\"\",\"\",IF(Table117[[#This Row],[Housing Situation Category]]=\"Not_Homeless_Documentation_Source\",\"N/A\",\"\"))","v":"N/A"},{"$f":"IF(Table117[[#This Row],[Housing Situation]]=\"\",\"\",IF(Table117[[#This Row],[Housing Situation Category]]=\"Not_Homeless_Documentation_Source\",\"N/A\",\"\"))","v":"N/A"},"Whole Health Clinical confirmed",{"$f":"IF(OFFSET(Table117[[#This Row],[Months Homeless]],1,0)=\"\",0,IF(AND(Table117[[#This Row],[Months Homeless]]=0,OFFSET(Table117[[#This Row],[Months Homeless]],1,0)>0),1,0))","v":0},{"$f":"IF(\nTable117[[#This Row],[Row number]]=1,\n1,\nIF(OFFSET(Table117[[#This Row],[Months Homeless]],1,0)=\"\",\nINDIRECT(ADDRESS(ROW()-1,COLUMN())),\nIF(\nAND(\nTable117[[#This Row],[Months Homeless]]=0,\nOFFSET(Table117[[#This Row],[Months Homeless]],1,0)>0),\nINDIRECT(ADDRESS(ROW()-1,COLUMN()))+1,\nINDIRECT(ADDRESS(ROW()-1,COLUMN()))\n)\n)\n)","v":1},{"$f":"IF(OR(Table117[[#This Row],[Housing Situation]]=\"\",Table117[[#This Row],[Housing Situation]]=\"Gap (need self-report)\"),\"\",IF(Table117[[#This Row],[Months Homeless]]=\"Missing\",\"No\",IF(AND(Table117[[#This Row],[Housing Situation]]=\"Gap (presumed homeless)\",COUNTA(B22,C22)-(COUNTA(F22,G22)-COUNTBLANK(F22:G22))=0),\"Yes\",IF((COUNTA(B22,C22,E22)-(COUNTA(F22,G22)-COUNTBLANK(F22:G22))=1),\"Yes\",\"No\"))))","v":"Yes"},{"$f":"IF(Table117[[#This Row],[Row Complete?]]=\"No\",Table117[[#This Row],[Row number]]+10,\"\")","v":""},{"$f":"ROW(Table117[#This Row])-ROW(Table117[[#Headers], [Housing Situation]])","v":12},{"$f":"IF(ISERROR(_xlfn.DAYS(Table117[[#This Row],[End Date]],Table117[[#This Row],[Start Date]])),\"\",_xlfn.DAYS(Table117[[#This Row],[End Date]],Table117[[#This Row],[Start Date]]))","v":13},{"$f":"IF(Table117[[#This Row],[Housing Situation]]=\"\",\"\",IF(Table117[[#This Row],[Housing Situation]]=Picklists!$A$11,Picklists!$B$1,IF(Table117[[#This Row],[Housing Situation]]=Picklists!$A$2,Picklists!$B$1,IF(Table117[[#This Row],[Housing Situation]]=Picklists!$A$3,Picklists!$B$1,IF(Table117[[#This Row],[Housing Situation]]=Picklists!$A$12,Picklists!$B$1,Picklists!$C$1)))))","v":"Not_Homeless_Documentation_Source"},{"$f":"IF(Table117[[#This Row],[Housing Situation Category]]=\"\",\"\",IF(Table117[[#This Row],[Housing Situation Category]]=Picklists!$B$1,Picklists!$D$1,Picklists!$E$1))","v":"Not_Homeless_Documentation_Obtained?"}]
["ES / SH / Agency-paid Hotel","2018-07-01",{"$f":"IF(Table117[[#This Row],[Housing Situation]]=\"\",\"\",IF(Table117[[#This Row],[Row number]]=1,$B$7,IF(OFFSET(C23,-1,-1)=\"\",\"\",OFFSET(C23,-1,-1)-1)))","v":"2018-07-31"},{"$f":"IF(\nTable117[[#This Row],[Start Date]]=\"\",\n\"\",\nIF(\nTable117[[#This Row],[Housing Situation]]=\"Gap (need self-report)\",\n\"\",\nIF(\nTable117[[#This Row],[Housing Situation]]=\"\",\n\"Missing\",\nIF(\nOR(\nAND(OR(Table117[[#This Row],[Housing Situation]]=\"Hospital / Psych / Detox\",Table117[[#This Row],[Housing Situation]]=\"Jail / Prison\",Table117[[#This Row],[Housing Situation]]=\"Foster Care / Group Home\"),(Table117[[#This Row],[End Date]]-Table117[[#This Row],[Start Date]])>=90),\nAND(OR(Table117[[#This Row],[Housing Situation]]=\"Apt / House (rented or owned)\",Table117[[#This Row],[Housing Situation]]=\"Friend / Family\",Table117[[#This Row],[Housing Situation]]=\"Self-paid Hotel / Halfway house\",Table117[[#This Row],[Housing Situation]]=\"Transitional Housing\"),(Table117[[#This Row],[End Date]]-Table117[[#This Row],[Start Date]])>=7)),\n0,\nIF(\nOR(Table117[[#This Row],[Housing Situation]]=\"ES / SH / Agency-paid Hotel\",Table117[[#This Row],[Housing Situation]]=\"Place not meant for habitation\",Table117[[#This Row],[Housing Situation]]=\"Gap (presumed homeless)\"),\n((Table117[[#This Row],[End Date]]+1)-Table117[[#This Row],[Start Date]])/(365/12),\nIF(\nAND(\nNOT(OR(Table117[[#This Row],[Housing Situation]]=\"ES / SH / Agency-paid Hotel\",Table117[[#This Row],[Housing Situation]]=\"Place not meant for habitation\",Table117[[#This Row],[Housing Situation]]=\"Gap (presumed homeless)\")),\nOR(OFFSET(Table117[[#This Row],[Housing Situation]],1,0)=\"ES / SH / Agency-paid Hotel\",OFFSET(Table117[[#This Row],[Housing Situation]],1,0)=\"Place not meant for habitation\",Table117[[#This Row],[Housing Situation]]=\"Gap (presumed homeless)\")),\n((Table117[[#This Row],[End Date]]+1)-Table117[[#This Row],[Start Date]])/(365/12),\n0))))))","v":1.0191780821917809},"Salvation Army Emergency Lodge","HMIS ES / SH / SO record(s)","Yes",null,{"$f":"IF(OFFSET(Table117[[#This Row],[Months Homeless]],1,0)=\"\",0,IF(AND(Table117[[#This Row],[Months Homeless]]=0,OFFSET(Table117[[#This Row],[Months Homeless]],1,0)>0),1,0))","v":0},{"$f":"IF(\nTable117[[#This Row],[Row number]]=1,\n1,\nIF(OFFSET(Table117[[#This Row],[Months Homeless]],1,0)=\"\",\nINDIRECT(ADDRESS(ROW()-1,COLUMN())),\nIF(\nAND(\nTable117[[#This Row],[Months Homeless]]=0,\nOFFSET(Table117[[#This Row],[Months Homeless]],1,0)>0),\nINDIRECT(ADDRESS(ROW()-1,COLUMN()))+1,\nINDIRECT(ADDRESS(ROW()-1,COLUMN()))\n)\n)\n)","v":1},{"$f":"IF(OR(Table117[[#This Row],[Housing Situation]]=\"\",Table117[[#This Row],[Housing Situation]]=\"Gap (need self-report)\"),\"\",IF(Table117[[#This Row],[Months Homeless]]=\"Missing\",\"No\",IF(AND(Table117[[#This Row],[Housing Situation]]=\"Gap (presumed homeless)\",COUNTA(B23,C23)-(COUNTA(F23,G23)-COUNTBLANK(F23:G23))=0),\"Yes\",IF((COUNTA(B23,C23,E23)-(COUNTA(F23,G23)-COUNTBLANK(F23:G23))=1),\"Yes\",\"No\"))))","v":"Yes"},{"$f":"IF(Table117[[#This Row],[Row Complete?]]=\"No\",Table117[[#This Row],[Row number]]+10,\"\")","v":""},{"$f":"ROW(Table117[#This Row])-ROW(Table117[[#Headers], [Housing Situation]])","v":13},{"$f":"IF(ISERROR(_xlfn.DAYS(Table117[[#This Row],[End Date]],Table117[[#This Row],[Start Date]])),\"\",_xlfn.DAYS(Table117[[#This Row],[End Date]],Table117[[#This Row],[Start Date]]))","v":30},{"$f":"IF(Table117[[#This Row],[Housing Situation]]=\"\",\"\",IF(Table117[[#This Row],[Housing Situation]]=Picklists!$A$11,Picklists!$B$1,IF(Table117[[#This Row],[Housing Situation]]=Picklists!$A$2,Picklists!$B$1,IF(Table117[[#This Row],[Housing Situation]]=Picklists!$A$3,Picklists!$B$1,IF(Table117[[#This Row],[Housing Situation]]=Picklists!$A$12,Picklists!$B$1,Picklists!$C$1)))))","v":"Homeless_Documentation_Source"},{"$f":"IF(Table117[[#This Row],[Housing Situation Category]]=\"\",\"\",IF(Table117[[#This Row],[Housing Situation Category]]=Picklists!$B$1,Picklists!$D$1,Picklists!$E$1))","v":"Homeless_Documentation_Obtained?"}]
["Gap (need self-report)","2018-04-01",{"$f":"IF(Table117[[#This Row],[Housing Situation]]=\"\",\"\",IF(Table117[[#This Row],[Row number]]=1,$B$7,IF(OFFSET(C24,-1,-1)=\"\",\"\",OFFSET(C24,-1,-1)-1)))","v":"2018-06-30"},{"$f":"IF(\nTable117[[#This Row],[Start Date]]=\"\",\n\"\",\nIF(\nTable117[[#This Row],[Housing Situation]]=\"Gap (need self-report)\",\n\"\",\nIF(\nTable117[[#This Row],[Housing Situation]]=\"\",\n\"Missing\",\nIF(\nOR(\nAND(OR(Table117[[#This Row],[Housing Situation]]=\"Hospital / Psych / Detox\",Table117[[#This Row],[Housing Situation]]=\"Jail / Prison\",Table117[[#This Row],[Housing Situation]]=\"Foster Care / Group Home\"),(Table117[[#This Row],[End Date]]-Table117[[#This Row],[Start Date]])>=90),\nAND(OR(Table117[[#This Row],[Housing Situation]]=\"Apt / House (rented or owned)\",Table117[[#This Row],[Housing Situation]]=\"Friend / Family\",Table117[[#This Row],[Housing Situation]]=\"Self-paid Hotel / Halfway house\",Table117[[#This Row],[Housing Situation]]=\"Transitional Housing\"),(Table117[[#This Row],[End Date]]-Table117[[#This Row],[Start Date]])>=7)),\n0,\nIF(\nOR(Table117[[#This Row],[Housing Situation]]=\"ES / SH / Agency-paid Hotel\",Table117[[#This Row],[Housing Situation]]=\"Place not meant for habitation\",Table117[[#This Row],[Housing Situation]]=\"Gap (presumed homeless)\"),\n((Table117[[#This Row],[End Date]]+1)-Table117[[#This Row],[Start Date]])/(365/12),\nIF(\nAND(\nNOT(OR(Table117[[#This Row],[Housing Situation]]=\"ES / SH / Agency-paid Hotel\",Table117[[#This Row],[Housing Situation]]=\"Place not meant for habitation\",Table117[[#This Row],[Housing Situation]]=\"Gap (presumed homeless)\")),\nOR(OFFSET(Table117[[#This Row],[Housing Situation]],1,0)=\"ES / SH / Agency-paid Hotel\",OFFSET(Table117[[#This Row],[Housing Situation]],1,0)=\"Place not meant for habitation\",Table117[[#This Row],[Housing Situation]]=\"Gap (presumed homeless)\")),\n((Table117[[#This Row],[End Date]]+1)-Table117[[#This Row],[Start Date]])/(365/12),\n0))))))","v":""},null,null,null,"Open in Street Outreach, but no contacts",{"$f":"IF(OFFSET(Table117[[#This Row],[Months Homeless]],1,0)=\"\",0,IF(AND(Table117[[#This Row],[Months Homeless]]=0,OFFSET(Table117[[#This Row],[Months Homeless]],1,0)>0),1,0))","v":0},{"$f":"IF(\nTable117[[#This Row],[Row number]]=1,\n1,\nIF(OFFSET(Table117[[#This Row],[Months Homeless]],1,0)=\"\",\nINDIRECT(ADDRESS(ROW()-1,COLUMN())),\nIF(\nAND(\nTable117[[#This Row],[Months Homeless]]=0,\nOFFSET(Table117[[#This Row],[Months Homeless]],1,0)>0),\nINDIRECT(ADDRESS(ROW()-1,COLUMN()))+1,\nINDIRECT(ADDRESS(ROW()-1,COLUMN()))\n)\n)\n)","v":1},{"$f":"IF(OR(Table117[[#This Row],[Housing Situation]]=\"\",Table117[[#This Row],[Housing Situation]]=\"Gap (need self-report)\"),\"\",IF(Table117[[#This Row],[Months Homeless]]=\"Missing\",\"No\",IF(AND(Table117[[#This Row],[Housing Situation]]=\"Gap (presumed homeless)\",COUNTA(B24,C24)-(COUNTA(F24,G24)-COUNTBLANK(F24:G24))=0),\"Yes\",IF((COUNTA(B24,C24,E24)-(COUNTA(F24,G24)-COUNTBLANK(F24:G24))=1),\"Yes\",\"No\"))))","v":""},{"$f":"IF(Table117[[#This Row],[Row Complete?]]=\"No\",Table117[[#This Row],[Row number]]+10,\"\")","v":""},{"$f":"ROW(Table117[#This Row])-ROW(Table117[[#Headers], [Housing Situation]])","v":14},{"$f":"IF(ISERROR(_xlfn.DAYS(Table117[[#This Row],[End Date]],Table117[[#This Row],[Start Date]])),\"\",_xlfn.DAYS(Table117[[#This Row],[End Date]],Table117[[#This Row],[Start Date]]))","v":90},{"$f":"IF(Table117[[#This Row],[Housing Situation]]=\"\",\"\",IF(Table117[[#This Row],[Housing Situation]]=Picklists!$A$11,Picklists!$B$1,IF(Table117[[#This Row],[Housing Situation]]=Picklists!$A$2,Picklists!$B$1,IF(Table117[[#This Row],[Housing Situation]]=Picklists!$A$3,Picklists!$B$1,IF(Table117[[#This Row],[Housing Situation]]=Picklists!$A$12,Picklists!$B$1,Picklists!$C$1)))))","v":"Homeless_Documentation_Source"},{"$f":"IF(Table117[[#This Row],[Housing Situation Category]]=\"\",\"\",IF(Table117[[#This Row],[Housing Situation Category]]=Picklists!$B$1,Picklists!$D$1,Picklists!$E$1))","v":"Homeless_Documentation_Obtained?"}]
["Place not meant for habitation","2018-03-01",{"$f":"IF(Table117[[#This Row],[Housing Situation]]=\"\",\"\",IF(Table117[[#This Row],[Row number]]=1,$B$7,IF(OFFSET(C25,-1,-1)=\"\",\"\",OFFSET(C25,-1,-1)-1)))","v":"2018-03-31"},{"$f":"IF(\nTable117[[#This Row],[Start Date]]=\"\",\n\"\",\nIF(\nTable117[[#This Row],[Housing Situation]]=\"Gap (need self-report)\",\n\"\",\nIF(\nTable117[[#This Row],[Housing Situation]]=\"\",\n\"Missing\",\nIF(\nOR(\nAND(OR(Table117[[#This Row],[Housing Situation]]=\"Hospital / Psych / Detox\",Table117[[#This Row],[Housing Situation]]=\"Jail / Prison\",Table117[[#This Row],[Housing Situation]]=\"Foster Care / Group Home\"),(Table117[[#This Row],[End Date]]-Table117[[#This Row],[Start Date]])>=90),\nAND(OR(Table117[[#This Row],[Housing Situation]]=\"Apt / House (rented or owned)\",Table117[[#This Row],[Housing Situation]]=\"Friend / Family\",Table117[[#This Row],[Housing Situation]]=\"Self-paid Hotel / Halfway house\",Table117[[#This Row],[Housing Situation]]=\"Transitional Housing\"),(Table117[[#This Row],[End Date]]-Table117[[#This Row],[Start Date]])>=7)),\n0,\nIF(\nOR(Table117[[#This Row],[Housing Situation]]=\"ES / SH / Agency-paid Hotel\",Table117[[#This Row],[Housing Situation]]=\"Place not meant for habitation\",Table117[[#This Row],[Housing Situation]]=\"Gap (presumed homeless)\"),\n((Table117[[#This Row],[End Date]]+1)-Table117[[#This Row],[Start Date]])/(365/12),\nIF(\nAND(\nNOT(OR(Table117[[#This Row],[Housing Situation]]=\"ES / SH / Agency-paid Hotel\",Table117[[#This Row],[Housing Situation]]=\"Place not meant for habitation\",Table117[[#This Row],[Housing Situation]]=\"Gap (presumed homeless)\")),\nOR(OFFSET(Table117[[#This Row],[Housing Situation]],1,0)=\"ES / SH / Agency-paid Hotel\",OFFSET(Table117[[#This Row],[Housing Situation]],1,0)=\"Place not meant for habitation\",Table117[[#This Row],[Housing Situation]]=\"Gap (presumed homeless)\")),\n((Table117[[#This Row],[End Date]]+1)-Table117[[#This Row],[Start Date]])/(365/12),\n0))))))","v":1.0191780821917809},"In car at Walmart parking lot","HMIS ES / SH / SO record(s)","Yes",null,{"$f":"IF(OFFSET(Table117[[#This Row],[Months Homeless]],1,0)=\"\",0,IF(AND(Table117[[#This Row],[Months Homeless]]=0,OFFSET(Table117[[#This Row],[Months Homeless]],1,0)>0),1,0))","v":0},{"$f":"IF(\nTable117[[#This Row],[Row number]]=1,\n1,\nIF(OFFSET(Table117[[#This Row],[Months Homeless]],1,0)=\"\",\nINDIRECT(ADDRESS(ROW()-1,COLUMN())),\nIF(\nAND(\nTable117[[#This Row],[Months Homeless]]=0,\nOFFSET(Table117[[#This Row],[Months Homeless]],1,0)>0),\nINDIRECT(ADDRESS(ROW()-1,COLUMN()))+1,\nINDIRECT(ADDRESS(ROW()-1,COLUMN()))\n)\n)\n)","v":1},{"$f":"IF(OR(Table117[[#This Row],[Housing Situation]]=\"\",Table117[[#This Row],[Housing Situation]]=\"Gap (need self-report)\"),\"\",IF(Table117[[#This Row],[Months Homeless]]=\"Missing\",\"No\",IF(AND(Table117[[#This Row],[Housing Situation]]=\"Gap (presumed homeless)\",COUNTA(B25,C25)-(COUNTA(F25,G25)-COUNTBLANK(F25:G25))=0),\"Yes\",IF((COUNTA(B25,C25,E25)-(COUNTA(F25,G25)-COUNTBLANK(F25:G25))=1),\"Yes\",\"No\"))))","v":"Yes"},{"$f":"IF(Table117[[#This Row],[Row Complete?]]=\"No\",Table117[[#This Row],[Row number]]+10,\"\")","v":""},{"$f":"ROW(Table117[#This Row])-ROW(Table117[[#Headers], [Housing Situation]])","v":15},{"$f":"IF(ISERROR(_xlfn.DAYS(Table117[[#This Row],[End Date]],Table117[[#This Row],[Start Date]])),\"\",_xlfn.DAYS(Table117[[#This Row],[End Date]],Table117[[#This Row],[Start Date]]))","v":30},{"$f":"IF(Table117[[#This Row],[Housing Situation]]=\"\",\"\",IF(Table117[[#This Row],[Housing Situation]]=Picklists!$A$11,Picklists!$B$1,IF(Table117[[#This Row],[Housing Situation]]=Picklists!$A$2,Picklists!$B$1,IF(Table117[[#This Row],[Housing Situation]]=Picklists!$A$3,Picklists!$B$1,IF(Table117[[#This Row],[Housing Situation]]=Picklists!$A$12,Picklists!$B$1,Picklists!$C$1)))))","v":"Homeless_Documentation_Source"},{"$f":"IF(Table117[[#This Row],[Housing Situation Category]]=\"\",\"\",IF(Table117[[#This Row],[Housing Situation Category]]=Picklists!$B$1,Picklists!$D$1,Picklists!$E$1))","v":"Homeless_Documentation_Obtained?"}]
["Gap (need self-report)","2017-08-10",{"$f":"IF(Table117[[#This Row],[Housing Situation]]=\"\",\"\",IF(Table117[[#This Row],[Row number]]=1,$B$7,IF(OFFSET(C26,-1,-1)=\"\",\"\",OFFSET(C26,-1,-1)-1)))","v":"2018-02-28"},{"$f":"IF(\nTable117[[#This Row],[Start Date]]=\"\",\n\"\",\nIF(\nTable117[[#This Row],[Housing Situation]]=\"Gap (need self-report)\",\n\"\",\nIF(\nTable117[[#This Row],[Housing Situation]]=\"\",\n\"Missing\",\nIF(\nOR(\nAND(OR(Table117[[#This Row],[Housing Situation]]=\"Hospital / Psych / Detox\",Table117[[#This Row],[Housing Situation]]=\"Jail / Prison\",Table117[[#This Row],[Housing Situation]]=\"Foster Care / Group Home\"),(Table117[[#This Row],[End Date]]-Table117[[#This Row],[Start Date]])>=90),\nAND(OR(Table117[[#This Row],[Housing Situation]]=\"Apt / House (rented or owned)\",Table117[[#This Row],[Housing Situation]]=\"Friend / Family\",Table117[[#This Row],[Housing Situation]]=\"Self-paid Hotel / Halfway house\",Table117[[#This Row],[Housing Situation]]=\"Transitional Housing\"),(Table117[[#This Row],[End Date]]-Table117[[#This Row],[Start Date]])>=7)),\n0,\nIF(\nOR(Table117[[#This Row],[Housing Situation]]=\"ES / SH / Agency-paid Hotel\",Table117[[#This Row],[Housing Situation]]=\"Place not meant for habitation\",Table117[[#This Row],[Housing Situation]]=\"Gap (presumed homeless)\"),\n((Table117[[#This Row],[End Date]]+1)-Table117[[#This Row],[Start Date]])/(365/12),\nIF(\nAND(\nNOT(OR(Table117[[#This Row],[Housing Situation]]=\"ES / SH / Agency-paid Hotel\",Table117[[#This Row],[Housing Situation]]=\"Place not meant for habitation\",Table117[[#This Row],[Housing Situation]]=\"Gap (presumed homeless)\")),\nOR(OFFSET(Table117[[#This Row],[Housing Situation]],1,0)=\"ES / SH / Agency-paid Hotel\",OFFSET(Table117[[#This Row],[Housing Situation]],1,0)=\"Place not meant for habitation\",Table117[[#This Row],[Housing Situation]]=\"Gap (presumed homeless)\")),\n((Table117[[#This Row],[End Date]]+1)-Table117[[#This Row],[Start Date]])/(365/12),\n0))))))","v":""},null,{"$f":"IF(Table117[[#This Row],[Housing Situation]]=\"\",\"\",IF(Table117[[#This Row],[Housing Situation Category]]=\"Not_Homeless_Documentation_Source\",\"N/A\",\"\"))","v":""},{"$f":"IF(Table117[[#This Row],[Housing Situation]]=\"\",\"\",IF(Table117[[#This Row],[Housing Situation Category]]=\"Not_Homeless_Documentation_Source\",\"N/A\",\"\"))","v":""},null,{"$f":"IF(OFFSET(Table117[[#This Row],[Months Homeless]],1,0)=\"\",0,IF(AND(Table117[[#This Row],[Months Homeless]]=0,OFFSET(Table117[[#This Row],[Months Homeless]],1,0)>0),1,0))","v":0},{"$f":"IF(\nTable117[[#This Row],[Row number]]=1,\n1,\nIF(OFFSET(Table117[[#This Row],[Months Homeless]],1,0)=\"\",\nINDIRECT(ADDRESS(ROW()-1,COLUMN())),\nIF(\nAND(\nTable117[[#This Row],[Months Homeless]]=0,\nOFFSET(Table117[[#This Row],[Months Homeless]],1,0)>0),\nINDIRECT(ADDRESS(ROW()-1,COLUMN()))+1,\nINDIRECT(ADDRESS(ROW()-1,COLUMN()))\n)\n)\n)","v":1},{"$f":"IF(OR(Table117[[#This Row],[Housing Situation]]=\"\",Table117[[#This Row],[Housing Situation]]=\"Gap (need self-report)\"),\"\",IF(Table117[[#This Row],[Months Homeless]]=\"Missing\",\"No\",IF(AND(Table117[[#This Row],[Housing Situation]]=\"Gap (presumed homeless)\",COUNTA(B26,C26)-(COUNTA(F26,G26)-COUNTBLANK(F26:G26))=0),\"Yes\",IF((COUNTA(B26,C26,E26)-(COUNTA(F26,G26)-COUNTBLANK(F26:G26))=1),\"Yes\",\"No\"))))","v":""},{"$f":"IF(Table117[[#This Row],[Row Complete?]]=\"No\",Table117[[#This Row],[Row number]]+10,\"\")","v":""},{"$f":"ROW(Table117[#This Row])-ROW(Table117[[#Headers], [Housing Situation]])","v":16},{"$f":"IF(ISERROR(_xlfn.DAYS(Table117[[#This Row],[End Date]],Table117[[#This Row],[Start Date]])),\"\",_xlfn.DAYS(Table117[[#This Row],[End Date]],Table117[[#This Row],[Start Date]]))","v":202},{"$f":"IF(Table117[[#This Row],[Housing Situation]]=\"\",\"\",IF(Table117[[#This Row],[Housing Situation]]=Picklists!$A$11,Picklists!$B$1,IF(Table117[[#This Row],[Housing Situation]]=Picklists!$A$2,Picklists!$B$1,IF(Table117[[#This Row],[Housing Situation]]=Picklists!$A$3,Picklists!$B$1,IF(Table117[[#This Row],[Housing Situation]]=Picklists!$A$12,Picklists!$B$1,Picklists!$C$1)))))","v":"Homeless_Documentation_Source"},{"$f":"IF(Table117[[#This Row],[Housing Situation Category]]=\"\",\"\",IF(Table117[[#This Row],[Housing Situation Category]]=Picklists!$B$1,Picklists!$D$1,Picklists!$E$1))","v":"Homeless_Documentation_Obtained?"}]
["Transitional Housing","2017-03-10",{"$f":"IF(Table117[[#This Row],[Housing Situation]]=\"\",\"\",IF(Table117[[#This Row],[Row number]]=1,$B$7,IF(OFFSET(C27,-1,-1)=\"\",\"\",OFFSET(C27,-1,-1)-1)))","v":"2017-08-09"},{"$f":"IF(\nTable117[[#This Row],[Start Date]]=\"\",\n\"\",\nIF(\nTable117[[#This Row],[Housing Situation]]=\"Gap (need self-report)\",\n\"\",\nIF(\nTable117[[#This Row],[Housing Situation]]=\"\",\n\"Missing\",\nIF(\nOR(\nAND(OR(Table117[[#This Row],[Housing Situation]]=\"Hospital / Psych / Detox\",Table117[[#This Row],[Housing Situation]]=\"Jail / Prison\",Table117[[#This Row],[Housing Situation]]=\"Foster Care / Group Home\"),(Table117[[#This Row],[End Date]]-Table117[[#This Row],[Start Date]])>=90),\nAND(OR(Table117[[#This Row],[Housing Situation]]=\"Apt / House (rented or owned)\",Table117[[#This Row],[Housing Situation]]=\"Friend / Family\",Table117[[#This Row],[Housing Situation]]=\"Self-paid Hotel / Halfway house\",Table117[[#This Row],[Housing Situation]]=\"Transitional Housing\"),(Table117[[#This Row],[End Date]]-Table117[[#This Row],[Start Date]])>=7)),\n0,\nIF(\nOR(Table117[[#This Row],[Housing Situation]]=\"ES / SH / Agency-paid Hotel\",Table117[[#This Row],[Housing Situation]]=\"Place not meant for habitation\",Table117[[#This Row],[Housing Situation]]=\"Gap (presumed homeless)\"),\n((Table117[[#This Row],[End Date]]+1)-Table117[[#This Row],[Start Date]])/(365/12),\nIF(\nAND(\nNOT(OR(Table117[[#This Row],[Housing Situation]]=\"ES / SH / Agency-paid Hotel\",Table117[[#This Row],[Housing Situation]]=\"Place not meant for habitation\",Table117[[#This Row],[Housing Situation]]=\"Gap (presumed homeless)\")),\nOR(OFFSET(Table117[[#This Row],[Housing Situation]],1,0)=\"ES / SH / Agency-paid Hotel\",OFFSET(Table117[[#This Row],[Housing Situation]],1,0)=\"Place not meant for habitation\",Table117[[#This Row],[Housing Situation]]=\"Gap (presumed homeless)\")),\n((Table117[[#This Row],[End Date]]+1)-Table117[[#This Row],[Start Date]])/(365/12),\n0))))))","v":0},"CVI GPD program",{"$f":"IF(Table117[[#This Row],[Housing Situation]]=\"\",\"\",IF(Table117[[#This Row],[Housing Situation Category]]=\"Not_Homeless_Documentation_Source\",\"N/A\",\"\"))","v":"N/A"},{"$f":"IF(Table117[[#This Row],[Housing Situation]]=\"\",\"\",IF(Table117[[#This Row],[Housing Situation Category]]=\"Not_Homeless_Documentation_Source\",\"N/A\",\"\"))","v":"N/A"},null,{"$f":"IF(OFFSET(Table117[[#This Row],[Months Homeless]],1,0)=\"\",0,IF(AND(Table117[[#This Row],[Months Homeless]]=0,OFFSET(Table117[[#This Row],[Months Homeless]],1,0)>0),1,0))","v":1},{"$f":"IF(\nTable117[[#This Row],[Row number]]=1,\n1,\nIF(OFFSET(Table117[[#This Row],[Months Homeless]],1,0)=\"\",\nINDIRECT(ADDRESS(ROW()-1,COLUMN())),\nIF(\nAND(\nTable117[[#This Row],[Months Homeless]]=0,\nOFFSET(Table117[[#This Row],[Months Homeless]],1,0)>0),\nINDIRECT(ADDRESS(ROW()-1,COLUMN()))+1,\nINDIRECT(ADDRESS(ROW()-1,COLUMN()))\n)\n)\n)","v":2},{"$f":"IF(OR(Table117[[#This Row],[Housing Situation]]=\"\",Table117[[#This Row],[Housing Situation]]=\"Gap (need self-report)\"),\"\",IF(Table117[[#This Row],[Months Homeless]]=\"Missing\",\"No\",IF(AND(Table117[[#This Row],[Housing Situation]]=\"Gap (presumed homeless)\",COUNTA(B27,C27)-(COUNTA(F27,G27)-COUNTBLANK(F27:G27))=0),\"Yes\",IF((COUNTA(B27,C27,E27)-(COUNTA(F27,G27)-COUNTBLANK(F27:G27))=1),\"Yes\",\"No\"))))","v":"Yes"},{"$f":"IF(Table117[[#This Row],[Row Complete?]]=\"No\",Table117[[#This Row],[Row number]]+10,\"\")","v":""},{"$f":"ROW(Table117[#This Row])-ROW(Table117[[#Headers], [Housing Situation]])","v":17},{"$f":"IF(ISERROR(_xlfn.DAYS(Table117[[#This Row],[End Date]],Table117[[#This Row],[Start Date]])),\"\",_xlfn.DAYS(Table117[[#This Row],[End Date]],Table117[[#This Row],[Start Date]]))","v":152},{"$f":"IF(Table117[[#This Row],[Housing Situation]]=\"\",\"\",IF(Table117[[#This Row],[Housing Situation]]=Picklists!$A$11,Picklists!$B$1,IF(Table117[[#This Row],[Housing Situation]]=Picklists!$A$2,Picklists!$B$1,IF(Table117[[#This Row],[Housing Situation]]=Picklists!$A$3,Picklists!$B$1,IF(Table117[[#This Row],[Housing Situation]]=Picklists!$A$12,Picklists!$B$1,Picklists!$C$1)))))","v":"Not_Homeless_Documentation_Source"},{"$f":"IF(Table117[[#This Row],[Housing Situation Category]]=\"\",\"\",IF(Table117[[#This Row],[Housing Situation Category]]=Picklists!$B$1,Picklists!$D$1,Picklists!$E$1))","v":"Not_Homeless_Documentation_Obtained?"}]
["ES / SH / Agency-paid Hotel","2017-01-09",{"$f":"IF(Table117[[#This Row],[Housing Situation]]=\"\",\"\",IF(Table117[[#This Row],[Row number]]=1,$B$7,IF(OFFSET(C28,-1,-1)=\"\",\"\",OFFSET(C28,-1,-1)-1)))","v":"2017-03-09"},{"$f":"IF(\nTable117[[#This Row],[Start Date]]=\"\",\n\"\",\nIF(\nTable117[[#This Row],[Housing Situation]]=\"Gap (need self-report)\",\n\"\",\nIF(\nTable117[[#This Row],[Housing Situation]]=\"\",\n\"Missing\",\nIF(\nOR(\nAND(OR(Table117[[#This Row],[Housing Situation]]=\"Hospital / Psych / Detox\",Table117[[#This Row],[Housing Situation]]=\"Jail / Prison\",Table117[[#This Row],[Housing Situation]]=\"Foster Care / Group Home\"),(Table117[[#This Row],[End Date]]-Table117[[#This Row],[Start Date]])>=90),\nAND(OR(Table117[[#This Row],[Housing Situation]]=\"Apt / House (rented or owned)\",Table117[[#This Row],[Housing Situation]]=\"Friend / Family\",Table117[[#This Row],[Housing Situation]]=\"Self-paid Hotel / Halfway house\",Table117[[#This Row],[Housing Situation]]=\"Transitional Housing\"),(Table117[[#This Row],[End Date]]-Table117[[#This Row],[Start Date]])>=7)),\n0,\nIF(\nOR(Table117[[#This Row],[Housing Situation]]=\"ES / SH / Agency-paid Hotel\",Table117[[#This Row],[Housing Situation]]=\"Place not meant for habitation\",Table117[[#This Row],[Housing Situation]]=\"Gap (presumed homeless)\"),\n((Table117[[#This Row],[End Date]]+1)-Table117[[#This Row],[Start Date]])/(365/12),\nIF(\nAND(\nNOT(OR(Table117[[#This Row],[Housing Situation]]=\"ES / SH / Agency-paid Hotel\",Table117[[#This Row],[Housing Situation]]=\"Place not meant for habitation\",Table117[[#This Row],[Housing Situation]]=\"Gap (presumed homeless)\")),\nOR(OFFSET(Table117[[#This Row],[Housing Situation]],1,0)=\"ES / SH / Agency-paid Hotel\",OFFSET(Table117[[#This Row],[Housing Situation]],1,0)=\"Place not meant for habitation\",Table117[[#This Row],[Housing Situation]]=\"Gap (presumed homeless)\")),\n((Table117[[#This Row],[End Date]]+1)-Table117[[#This Row],[Start Date]])/(365/12),\n0))))))","v":1.9726027397260273},"Milwaukee Rescue Mission","HMIS ES / SH / SO record(s)","Yes",null,{"$f":"IF(OFFSET(Table117[[#This Row],[Months Homeless]],1,0)=\"\",0,IF(AND(Table117[[#This Row],[Months Homeless]]=0,OFFSET(Table117[[#This Row],[Months Homeless]],1,0)>0),1,0))","v":0},{"$f":"IF(\nTable117[[#This Row],[Row number]]=1,\n1,\nIF(OFFSET(Table117[[#This Row],[Months Homeless]],1,0)=\"\",\nINDIRECT(ADDRESS(ROW()-1,COLUMN())),\nIF(\nAND(\nTable117[[#This Row],[Months Homeless]]=0,\nOFFSET(Table117[[#This Row],[Months Homeless]],1,0)>0),\nINDIRECT(ADDRESS(ROW()-1,COLUMN()))+1,\nINDIRECT(ADDRESS(ROW()-1,COLUMN()))\n)\n)\n)","v":2},{"$f":"IF(OR(Table117[[#This Row],[Housing Situation]]=\"\",Table117[[#This Row],[Housing Situation]]=\"Gap (need self-report)\"),\"\",IF(Table117[[#This Row],[Months Homeless]]=\"Missing\",\"No\",IF(AND(Table117[[#This Row],[Housing Situation]]=\"Gap (presumed homeless)\",COUNTA(B28,C28)-(COUNTA(F28,G28)-COUNTBLANK(F28:G28))=0),\"Yes\",IF((COUNTA(B28,C28,E28)-(COUNTA(F28,G28)-COUNTBLANK(F28:G28))=1),\"Yes\",\"No\"))))","v":"Yes"},{"$f":"IF(Table117[[#This Row],[Row Complete?]]=\"No\",Table117[[#This Row],[Row number]]+10,\"\")","v":""},{"$f":"ROW(Table117[#This Row])-ROW(Table117[[#Headers], [Housing Situation]])","v":18},{"$f":"IF(ISERROR(_xlfn.DAYS(Table117[[#This Row],[End Date]],Table117[[#This Row],[Start Date]])),\"\",_xlfn.DAYS(Table117[[#This Row],[End Date]],Table117[[#This Row],[Start Date]]))","v":59},{"$f":"IF(Table117[[#This Row],[Housing Situation]]=\"\",\"\",IF(Table117[[#This Row],[Housing Situation]]=Picklists!$A$11,Picklists!$B$1,IF(Table117[[#This Row],[Housing Situation]]=Picklists!$A$2,Picklists!$B$1,IF(Table117[[#This Row],[Housing Situation]]=Picklists!$A$3,Picklists!$B$1,IF(Table117[[#This Row],[Housing Situation]]=Picklists!$A$12,Picklists!$B$1,Picklists!$C$1)))))","v":"Homeless_Documentation_Source"},{"$f":"IF(Table117[[#This Row],[Housing Situation Category]]=\"\",\"\",IF(Table117[[#This Row],[Housing Situation Category]]=Picklists!$B$1,Picklists!$D$1,Picklists!$E$1))","v":"Homeless_Documentation_Obtained?"}]
[null,null,{"$f":"IF(Table117[[#This Row],[Housing Situation]]=\"\",\"\",IF(Table117[[#This Row],[Row number]]=1,$B$7,IF(OFFSET(C29,-1,-1)=\"\",\"\",OFFSET(C29,-1,-1)-1)))","v":""},{"$f":"IF(\nTable117[[#This Row],[Start Date]]=\"\",\n\"\",\nIF(\nTable117[[#This Row],[Housing Situation]]=\"Gap (need self-report)\",\n\"\",\nIF(\nTable117[[#This Row],[Housing Situation]]=\"\",\n\"Missing\",\nIF(\nOR(\nAND(OR(Table117[[#This Row],[Housing Situation]]=\"Hospital / Psych / Detox\",Table117[[#This Row],[Housing Situation]]=\"Jail / Prison\",Table117[[#This Row],[Housing Situation]]=\"Foster Care / Group Home\"),(Table117[[#This Row],[End Date]]-Table117[[#This Row],[Start Date]])>=90),\nAND(OR(Table117[[#This Row],[Housing Situation]]=\"Apt / House (rented or owned)\",Table117[[#This Row],[Housing Situation]]=\"Friend / Family\",Table117[[#This Row],[Housing Situation]]=\"Self-paid Hotel / Halfway house\",Table117[[#This Row],[Housing Situation]]=\"Transitional Housing\"),(Table117[[#This Row],[End Date]]-Table117[[#This Row],[Start Date]])>=7)),\n0,\nIF(\nOR(Table117[[#This Row],[Housing Situation]]=\"ES / SH / Agency-paid Hotel\",Table117[[#This Row],[Housing Situation]]=\"Place not meant for habitation\",Table117[[#This Row],[Housing Situation]]=\"Gap (presumed homeless)\"),\n((Table117[[#This Row],[End Date]]+1)-Table117[[#This Row],[Start Date]])/(365/12),\nIF(\nAND(\nNOT(OR(Table117[[#This Row],[Housing Situation]]=\"ES / SH / Agency-paid Hotel\",Table117[[#This Row],[Housing Situation]]=\"Place not meant for habitation\",Table117[[#This Row],[Housing Situation]]=\"Gap (presumed homeless)\")),\nOR(OFFSET(Table117[[#This Row],[Housing Situation]],1,0)=\"ES / SH / Agency-paid Hotel\",OFFSET(Table117[[#This Row],[Housing Situation]],1,0)=\"Place not meant for habitation\",Table117[[#This Row],[Housing Situation]]=\"Gap (presumed homeless)\")),\n((Table117[[#This Row],[End Date]]+1)-Table117[[#This Row],[Start Date]])/(365/12),\n0))))))","v":""},null,{"$f":"IF(Table117[[#This Row],[Housing Situation]]=\"\",\"\",IF(Table117[[#This Row],[Housing Situation Category]]=\"Not_Homeless_Documentation_Source\",\"N/A\",\"\"))","v":""},{"$f":"IF(Table117[[#This Row],[Housing Situation]]=\"\",\"\",IF(Table117[[#This Row],[Housing Situation Category]]=\"Not_Homeless_Documentation_Source\",\"N/A\",\"\"))","v":""},null,{"$f":"IF(OFFSET(Table117[[#This Row],[Months Homeless]],1,0)=\"\",0,IF(AND(Table117[[#This Row],[Months Homeless]]=0,OFFSET(Table117[[#This Row],[Months Homeless]],1,0)>0),1,0))","v":0},{"$f":"IF(\nTable117[[#This Row],[Row number]]=1,\n1,\nIF(OFFSET(Table117[[#This Row],[Months Homeless]],1,0)=\"\",\nINDIRECT(ADDRESS(ROW()-1,COLUMN())),\nIF(\nAND(\nTable117[[#This Row],[Months Homeless]]=0,\nOFFSET(Table117[[#This Row],[Months Homeless]],1,0)>0),\nINDIRECT(ADDRESS(ROW()-1,COLUMN()))+1,\nINDIRECT(ADDRESS(ROW()-1,COLUMN()))\n)\n)\n)","v":2},{"$f":"IF(OR(Table117[[#This Row],[Housing Situation]]=\"\",Table117[[#This Row],[Housing Situation]]=\"Gap (need self-report)\"),\"\",IF(Table117[[#This Row],[Months Homeless]]=\"Missing\",\"No\",IF(AND(Table117[[#This Row],[Housing Situation]]=\"Gap (presumed homeless)\",COUNTA(B29,C29)-(COUNTA(F29,G29)-COUNTBLANK(F29:G29))=0),\"Yes\",IF((COUNTA(B29,C29,E29)-(COUNTA(F29,G29)-COUNTBLANK(F29:G29))=1),\"Yes\",\"No\"))))","v":""},{"$f":"IF(Table117[[#This Row],[Row Complete?]]=\"No\",Table117[[#This Row],[Row number]]+10,\"\")","v":""},{"$f":"ROW(Table117[#This Row])-ROW(Table117[[#Headers], [Housing Situation]])","v":19},{"$f":"IF(ISERROR(_xlfn.DAYS(Table117[[#This Row],[End Date]],Table117[[#This Row],[Start Date]])),\"\",_xlfn.DAYS(Table117[[#This Row],[End Date]],Table117[[#This Row],[Start Date]]))","v":""},{"$f":"IF(Table117[[#This Row],[Housing Situation]]=\"\",\"\",IF(Table117[[#This Row],[Housing Situation]]=Picklists!$A$11,Picklists!$B$1,IF(Table117[[#This Row],[Housing Situation]]=Picklists!$A$2,Picklists!$B$1,IF(Table117[[#This Row],[Housing Situation]]=Picklists!$A$3,Picklists!$B$1,IF(Table117[[#This Row],[Housing Situation]]=Picklists!$A$12,Picklists!$B$1,Picklists!$C$1)))))","v":""},{"$f":"IF(Table117[[#This Row],[Housing Situation Category]]=\"\",\"\",IF(Table117[[#This Row],[Housing Situation Category]]=Picklists!$B$1,Picklists!$D$1,Picklists!$E$1))","v":""}]
[null,null,{"$f":"IF(Table117[[#This Row],[Housing Situation]]=\"\",\"\",IF(Table117[[#This Row],[Row number]]=1,$B$7,IF(OFFSET(C30,-1,-1)=\"\",\"\",OFFSET(C30,-1,-1)-1)))","v":""},{"$f":"IF(\nTable117[[#This Row],[Start Date]]=\"\",\n\"\",\nIF(\nTable117[[#This Row],[Housing Situation]]=\"Gap (need self-report)\",\n\"\",\nIF(\nTable117[[#This Row],[Housing Situation]]=\"\",\n\"Missing\",\nIF(\nOR(\nAND(OR(Table117[[#This Row],[Housing Situation]]=\"Hospital / Psych / Detox\",Table117[[#This Row],[Housing Situation]]=\"Jail / Prison\",Table117[[#This Row],[Housing Situation]]=\"Foster Care / Group Home\"),(Table117[[#This Row],[End Date]]-Table117[[#This Row],[Start Date]])>=90),\nAND(OR(Table117[[#This Row],[Housing Situation]]=\"Apt / House (rented or owned)\",Table117[[#This Row],[Housing Situation]]=\"Friend / Family\",Table117[[#This Row],[Housing Situation]]=\"Self-paid Hotel / Halfway house\",Table117[[#This Row],[Housing Situation]]=\"Transitional Housing\"),(Table117[[#This Row],[End Date]]-Table117[[#This Row],[Start Date]])>=7)),\n0,\nIF(\nOR(Table117[[#This Row],[Housing Situation]]=\"ES / SH / Agency-paid Hotel\",Table117[[#This Row],[Housing Situation]]=\"Place not meant for habitation\",Table117[[#This Row],[Housing Situation]]=\"Gap (presumed homeless)\"),\n((Table117[[#This Row],[End Date]]+1)-Table117[[#This Row],[Start Date]])/(365/12),\nIF(\nAND(\nNOT(OR(Table117[[#This Row],[Housing Situation]]=\"ES / SH / Agency-paid Hotel\",Table117[[#This Row],[Housing Situation]]=\"Place not meant for habitation\",Table117[[#This Row],[Housing Situation]]=\"Gap (presumed homeless)\")),\nOR(OFFSET(Table117[[#This Row],[Housing Situation]],1,0)=\"ES / SH / Agency-paid Hotel\",OFFSET(Table117[[#This Row],[Housing Situation]],1,0)=\"Place not meant for habitation\",Table117[[#This Row],[Housing Situation]]=\"Gap (presumed homeless)\")),\n((Table117[[#This Row],[End Date]]+1)-Table117[[#This Row],[Start Date]])/(365/12),\n0))))))","v":""},null,{"$f":"IF(Table117[[#This Row],[Housing Situation]]=\"\",\"\",IF(Table117[[#This Row],[Housing Situation Category]]=\"Not_Homeless_Documentation_Source\",\"N/A\",\"\"))","v":""},{"$f":"IF(Table117[[#This Row],[Housing Situation]]=\"\",\"\",IF(Table117[[#This Row],[Housing Situation Category]]=\"Not_Homeless_Documentation_Source\",\"N/A\",\"\"))","v":""},null,{"$f":"IF(OFFSET(Table117[[#This Row],[Months Homeless]],1,0)=\"\",0,IF(AND(Table117[[#This Row],[Months Homeless]]=0,OFFSET(Table117[[#This Row],[Months Homeless]],1,0)>0),1,0))","v":0},{"$f":"IF(\nTable117[[#This Row],[Row number]]=1,\n1,\nIF(OFFSET(Table117[[#This Row],[Months Homeless]],1,0)=\"\",\nINDIRECT(ADDRESS(ROW()-1,COLUMN())),\nIF(\nAND(\nTable117[[#This Row],[Months Homeless]]=0,\nOFFSET(Table117[[#This Row],[Months Homeless]],1,0)>0),\nINDIRECT(ADDRESS(ROW()-1,COLUMN()))+1,\nINDIRECT(ADDRESS(ROW()-1,COLUMN()))\n)\n)\n)","v":2},{"$f":"IF(OR(Table117[[#This Row],[Housing Situation]]=\"\",Table117[[#This Row],[Housing Situation]]=\"Gap (need self-report)\"),\"\",IF(Table117[[#This Row],[Months Homeless]]=\"Missing\",\"No\",IF(AND(Table117[[#This Row],[Housing Situation]]=\"Gap (presumed homeless)\",COUNTA(B30,C30)-(COUNTA(F30,G30)-COUNTBLANK(F30:G30))=0),\"Yes\",IF((COUNTA(B30,C30,E30)-(COUNTA(F30,G30)-COUNTBLANK(F30:G30))=1),\"Yes\",\"No\"))))","v":""},{"$f":"IF(Table117[[#This Row],[Row Complete?]]=\"No\",Table117[[#This Row],[Row number]]+10,\"\")","v":""},{"$f":"ROW(Table117[#This Row])-ROW(Table117[[#Headers], [Housing Situation]])","v":20},{"$f":"IF(ISERROR(_xlfn.DAYS(Table117[[#This Row],[End Date]],Table117[[#This Row],[Start Date]])),\"\",_xlfn.DAYS(Table117[[#This Row],[End Date]],Table117[[#This Row],[Start Date]]))","v":""},{"$f":"IF(Table117[[#This Row],[Housing Situation]]=\"\",\"\",IF(Table117[[#This Row],[Housing Situation]]=Picklists!$A$11,Picklists!$B$1,IF(Table117[[#This Row],[Housing Situation]]=Picklists!$A$2,Picklists!$B$1,IF(Table117[[#This Row],[Housing Situation]]=Picklists!$A$3,Picklists!$B$1,IF(Table117[[#This Row],[Housing Situation]]=Picklists!$A$12,Picklists!$B$1,Picklists!$C$1)))))","v":""},{"$f":"IF(Table117[[#This Row],[Housing Situation Category]]=\"\",\"\",IF(Table117[[#This Row],[Housing Situation Category]]=Picklists!$B$1,Picklists!$D$1,Picklists!$E$1))","v":""}]
[null,null,{"$f":"IF(Table117[[#This Row],[Housing Situation]]=\"\",\"\",IF(Table117[[#This Row],[Row number]]=1,$B$7,IF(OFFSET(C31,-1,-1)=\"\",\"\",OFFSET(C31,-1,-1)-1)))","v":""},{"$f":"IF(\nTable117[[#This Row],[Start Date]]=\"\",\n\"\",\nIF(\nTable117[[#This Row],[Housing Situation]]=\"Gap (need self-report)\",\n\"\",\nIF(\nTable117[[#This Row],[Housing Situation]]=\"\",\n\"Missing\",\nIF(\nOR(\nAND(OR(Table117[[#This Row],[Housing Situation]]=\"Hospital / Psych / Detox\",Table117[[#This Row],[Housing Situation]]=\"Jail / Prison\",Table117[[#This Row],[Housing Situation]]=\"Foster Care / Group Home\"),(Table117[[#This Row],[End Date]]-Table117[[#This Row],[Start Date]])>=90),\nAND(OR(Table117[[#This Row],[Housing Situation]]=\"Apt / House (rented or owned)\",Table117[[#This Row],[Housing Situation]]=\"Friend / Family\",Table117[[#This Row],[Housing Situation]]=\"Self-paid Hotel / Halfway house\",Table117[[#This Row],[Housing Situation]]=\"Transitional Housing\"),(Table117[[#This Row],[End Date]]-Table117[[#This Row],[Start Date]])>=7)),\n0,\nIF(\nOR(Table117[[#This Row],[Housing Situation]]=\"ES / SH / Agency-paid Hotel\",Table117[[#This Row],[Housing Situation]]=\"Place not meant for habitation\",Table117[[#This Row],[Housing Situation]]=\"Gap (presumed homeless)\"),\n((Table117[[#This Row],[End Date]]+1)-Table117[[#This Row],[Start Date]])/(365/12),\nIF(\nAND(\nNOT(OR(Table117[[#This Row],[Housing Situation]]=\"ES / SH / Agency-paid Hotel\",Table117[[#This Row],[Housing Situation]]=\"Place not meant for habitation\",Table117[[#This Row],[Housing Situation]]=\"Gap (presumed homeless)\")),\nOR(OFFSET(Table117[[#This Row],[Housing Situation]],1,0)=\"ES / SH / Agency-paid Hotel\",OFFSET(Table117[[#This Row],[Housing Situation]],1,0)=\"Place not meant for habitation\",Table117[[#This Row],[Housing Situation]]=\"Gap (presumed homeless)\")),\n((Table117[[#This Row],[End Date]]+1)-Table117[[#This Row],[Start Date]])/(365/12),\n0))))))","v":""},null,{"$f":"IF(Table117[[#This Row],[Housing Situation]]=\"\",\"\",IF(Table117[[#This Row],[Housing Situation Category]]=\"Not_Homeless_Documentation_Source\",\"N/A\",\"\"))","v":""},{"$f":"IF(Table117[[#This Row],[Housing Situation]]=\"\",\"\",IF(Table117[[#This Row],[Housing Situation Category]]=\"Not_Homeless_Documentation_Source\",\"N/A\",\"\"))","v":""},null,{"$f":"IF(OFFSET(Table117[[#This Row],[Months Homeless]],1,0)=\"\",0,IF(AND(Table117[[#This Row],[Months Homeless]]=0,OFFSET(Table117[[#This Row],[Months Homeless]],1,0)>0),1,0))","v":0},{"$f":"IF(\nTable117[[#This Row],[Row number]]=1,\n1,\nIF(OFFSET(Table117[[#This Row],[Months Homeless]],1,0)=\"\",\nINDIRECT(ADDRESS(ROW()-1,COLUMN())),\nIF(\nAND(\nTable117[[#This Row],[Months Homeless]]=0,\nOFFSET(Table117[[#This Row],[Months Homeless]],1,0)>0),\nINDIRECT(ADDRESS(ROW()-1,COLUMN()))+1,\nINDIRECT(ADDRESS(ROW()-1,COLUMN()))\n)\n)\n)","v":2},{"$f":"IF(OR(Table117[[#This Row],[Housing Situation]]=\"\",Table117[[#This Row],[Housing Situation]]=\"Gap (need self-report)\"),\"\",IF(Table117[[#This Row],[Months Homeless]]=\"Missing\",\"No\",IF(AND(Table117[[#This Row],[Housing Situation]]=\"Gap (presumed homeless)\",COUNTA(B31,C31)-(COUNTA(F31,G31)-COUNTBLANK(F31:G31))=0),\"Yes\",IF((COUNTA(B31,C31,E31)-(COUNTA(F31,G31)-COUNTBLANK(F31:G31))=1),\"Yes\",\"No\"))))","v":""},{"$f":"IF(Table117[[#This Row],[Row Complete?]]=\"No\",Table117[[#This Row],[Row number]]+10,\"\")","v":""},{"$f":"ROW(Table117[#This Row])-ROW(Table117[[#Headers], [Housing Situation]])","v":21},{"$f":"IF(ISERROR(_xlfn.DAYS(Table117[[#This Row],[End Date]],Table117[[#This Row],[Start Date]])),\"\",_xlfn.DAYS(Table117[[#This Row],[End Date]],Table117[[#This Row],[Start Date]]))","v":""},{"$f":"IF(Table117[[#This Row],[Housing Situation]]=\"\",\"\",IF(Table117[[#This Row],[Housing Situation]]=Picklists!$A$11,Picklists!$B$1,IF(Table117[[#This Row],[Housing Situation]]=Picklists!$A$2,Picklists!$B$1,IF(Table117[[#This Row],[Housing Situation]]=Picklists!$A$3,Picklists!$B$1,IF(Table117[[#This Row],[Housing Situation]]=Picklists!$A$12,Picklists!$B$1,Picklists!$C$1)))))","v":""},{"$f":"IF(Table117[[#This Row],[Housing Situation Category]]=\"\",\"\",IF(Table117[[#This Row],[Housing Situation Category]]=Picklists!$B$1,Picklists!$D$1,Picklists!$E$1))","v":""}]
[null,null,{"$f":"IF(Table117[[#This Row],[Housing Situation]]=\"\",\"\",IF(Table117[[#This Row],[Row number]]=1,$B$7,IF(OFFSET(C32,-1,-1)=\"\",\"\",OFFSET(C32,-1,-1)-1)))","v":""},{"$f":"IF(\nTable117[[#This Row],[Start Date]]=\"\",\n\"\",\nIF(\nTable117[[#This Row],[Housing Situation]]=\"Gap (need self-report)\",\n\"\",\nIF(\nTable117[[#This Row],[Housing Situation]]=\"\",\n\"Missing\",\nIF(\nOR(\nAND(OR(Table117[[#This Row],[Housing Situation]]=\"Hospital / Psych / Detox\",Table117[[#This Row],[Housing Situation]]=\"Jail / Prison\",Table117[[#This Row],[Housing Situation]]=\"Foster Care / Group Home\"),(Table117[[#This Row],[End Date]]-Table117[[#This Row],[Start Date]])>=90),\nAND(OR(Table117[[#This Row],[Housing Situation]]=\"Apt / House (rented or owned)\",Table117[[#This Row],[Housing Situation]]=\"Friend / Family\",Table117[[#This Row],[Housing Situation]]=\"Self-paid Hotel / Halfway house\",Table117[[#This Row],[Housing Situation]]=\"Transitional Housing\"),(Table117[[#This Row],[End Date]]-Table117[[#This Row],[Start Date]])>=7)),\n0,\nIF(\nOR(Table117[[#This Row],[Housing Situation]]=\"ES / SH / Agency-paid Hotel\",Table117[[#This Row],[Housing Situation]]=\"Place not meant for habitation\",Table117[[#This Row],[Housing Situation]]=\"Gap (presumed homeless)\"),\n((Table117[[#This Row],[End Date]]+1)-Table117[[#This Row],[Start Date]])/(365/12),\nIF(\nAND(\nNOT(OR(Table117[[#This Row],[Housing Situation]]=\"ES / SH / Agency-paid Hotel\",Table117[[#This Row],[Housing Situation]]=\"Place not meant for habitation\",Table117[[#This Row],[Housing Situation]]=\"Gap (presumed homeless)\")),\nOR(OFFSET(Table117[[#This Row],[Housing Situation]],1,0)=\"ES / SH / Agency-paid Hotel\",OFFSET(Table117[[#This Row],[Housing Situation]],1,0)=\"Place not meant for habitation\",Table117[[#This Row],[Housing Situation]]=\"Gap (presumed homeless)\")),\n((Table117[[#This Row],[End Date]]+1)-Table117[[#This Row],[Start Date]])/(365/12),\n0))))))","v":""},null,{"$f":"IF(Table117[[#This Row],[Housing Situation]]=\"\",\"\",IF(Table117[[#This Row],[Housing Situation Category]]=\"Not_Homeless_Documentation_Source\",\"N/A\",\"\"))","v":""},{"$f":"IF(Table117[[#This Row],[Housing Situation]]=\"\",\"\",IF(Table117[[#This Row],[Housing Situation Category]]=\"Not_Homeless_Documentation_Source\",\"N/A\",\"\"))","v":""},null,{"$f":"IF(OFFSET(Table117[[#This Row],[Months Homeless]],1,0)=\"\",0,IF(AND(Table117[[#This Row],[Months Homeless]]=0,OFFSET(Table117[[#This Row],[Months Homeless]],1,0)>0),1,0))","v":0},{"$f":"IF(\nTable117[[#This Row],[Row number]]=1,\n1,\nIF(OFFSET(Table117[[#This Row],[Months Homeless]],1,0)=\"\",\nINDIRECT(ADDRESS(ROW()-1,COLUMN())),\nIF(\nAND(\nTable117[[#This Row],[Months Homeless]]=0,\nOFFSET(Table117[[#This Row],[Months Homeless]],1,0)>0),\nINDIRECT(ADDRESS(ROW()-1,COLUMN()))+1,\nINDIRECT(ADDRESS(ROW()-1,COLUMN()))\n)\n)\n)","v":2},{"$f":"IF(OR(Table117[[#This Row],[Housing Situation]]=\"\",Table117[[#This Row],[Housing Situation]]=\"Gap (need self-report)\"),\"\",IF(Table117[[#This Row],[Months Homeless]]=\"Missing\",\"No\",IF(AND(Table117[[#This Row],[Housing Situation]]=\"Gap (presumed homeless)\",COUNTA(B32,C32)-(COUNTA(F32,G32)-COUNTBLANK(F32:G32))=0),\"Yes\",IF((COUNTA(B32,C32,E32)-(COUNTA(F32,G32)-COUNTBLANK(F32:G32))=1),\"Yes\",\"No\"))))","v":""},{"$f":"IF(Table117[[#This Row],[Row Complete?]]=\"No\",Table117[[#This Row],[Row number]]+10,\"\")","v":""},{"$f":"ROW(Table117[#This Row])-ROW(Table117[[#Headers], [Housing Situation]])","v":22},{"$f":"IF(ISERROR(_xlfn.DAYS(Table117[[#This Row],[End Date]],Table117[[#This Row],[Start Date]])),\"\",_xlfn.DAYS(Table117[[#This Row],[End Date]],Table117[[#This Row],[Start Date]]))","v":""},{"$f":"IF(Table117[[#This Row],[Housing Situation]]=\"\",\"\",IF(Table117[[#This Row],[Housing Situation]]=Picklists!$A$11,Picklists!$B$1,IF(Table117[[#This Row],[Housing Situation]]=Picklists!$A$2,Picklists!$B$1,IF(Table117[[#This Row],[Housing Situation]]=Picklists!$A$3,Picklists!$B$1,IF(Table117[[#This Row],[Housing Situation]]=Picklists!$A$12,Picklists!$B$1,Picklists!$C$1)))))","v":""},{"$f":"IF(Table117[[#This Row],[Housing Situation Category]]=\"\",\"\",IF(Table117[[#This Row],[Housing Situation Category]]=Picklists!$B$1,Picklists!$D$1,Picklists!$E$1))","v":""}]
[null,null,{"$f":"IF(Table117[[#This Row],[Housing Situation]]=\"\",\"\",IF(Table117[[#This Row],[Row number]]=1,$B$7,IF(OFFSET(C33,-1,-1)=\"\",\"\",OFFSET(C33,-1,-1)-1)))","v":""},{"$f":"IF(\nTable117[[#This Row],[Start Date]]=\"\",\n\"\",\nIF(\nTable117[[#This Row],[Housing Situation]]=\"Gap (need self-report)\",\n\"\",\nIF(\nTable117[[#This Row],[Housing Situation]]=\"\",\n\"Missing\",\nIF(\nOR(\nAND(OR(Table117[[#This Row],[Housing Situation]]=\"Hospital / Psych / Detox\",Table117[[#This Row],[Housing Situation]]=\"Jail / Prison\",Table117[[#This Row],[Housing Situation]]=\"Foster Care / Group Home\"),(Table117[[#This Row],[End Date]]-Table117[[#This Row],[Start Date]])>=90),\nAND(OR(Table117[[#This Row],[Housing Situation]]=\"Apt / House (rented or owned)\",Table117[[#This Row],[Housing Situation]]=\"Friend / Family\",Table117[[#This Row],[Housing Situation]]=\"Self-paid Hotel / Halfway house\",Table117[[#This Row],[Housing Situation]]=\"Transitional Housing\"),(Table117[[#This Row],[End Date]]-Table117[[#This Row],[Start Date]])>=7)),\n0,\nIF(\nOR(Table117[[#This Row],[Housing Situation]]=\"ES / SH / Agency-paid Hotel\",Table117[[#This Row],[Housing Situation]]=\"Place not meant for habitation\",Table117[[#This Row],[Housing Situation]]=\"Gap (presumed homeless)\"),\n((Table117[[#This Row],[End Date]]+1)-Table117[[#This Row],[Start Date]])/(365/12),\nIF(\nAND(\nNOT(OR(Table117[[#This Row],[Housing Situation]]=\"ES / SH / Agency-paid Hotel\",Table117[[#This Row],[Housing Situation]]=\"Place not meant for habitation\",Table117[[#This Row],[Housing Situation]]=\"Gap (presumed homeless)\")),\nOR(OFFSET(Table117[[#This Row],[Housing Situation]],1,0)=\"ES / SH / Agency-paid Hotel\",OFFSET(Table117[[#This Row],[Housing Situation]],1,0)=\"Place not meant for habitation\",Table117[[#This Row],[Housing Situation]]=\"Gap (presumed homeless)\")),\n((Table117[[#This Row],[End Date]]+1)-Table117[[#This Row],[Start Date]])/(365/12),\n0))))))","v":""},null,{"$f":"IF(Table117[[#This Row],[Housing Situation]]=\"\",\"\",IF(Table117[[#This Row],[Housing Situation Category]]=\"Not_Homeless_Documentation_Source\",\"N/A\",\"\"))","v":""},{"$f":"IF(Table117[[#This Row],[Housing Situation]]=\"\",\"\",IF(Table117[[#This Row],[Housing Situation Category]]=\"Not_Homeless_Documentation_Source\",\"N/A\",\"\"))","v":""},null,{"$f":"IF(OFFSET(Table117[[#This Row],[Months Homeless]],1,0)=\"\",0,IF(AND(Table117[[#This Row],[Months Homeless]]=0,OFFSET(Table117[[#This Row],[Months Homeless]],1,0)>0),1,0))","v":0},{"$f":"IF(\nTable117[[#This Row],[Row number]]=1,\n1,\nIF(OFFSET(Table117[[#This Row],[Months Homeless]],1,0)=\"\",\nINDIRECT(ADDRESS(ROW()-1,COLUMN())),\nIF(\nAND(\nTable117[[#This Row],[Months Homeless]]=0,\nOFFSET(Table117[[#This Row],[Months Homeless]],1,0)>0),\nINDIRECT(ADDRESS(ROW()-1,COLUMN()))+1,\nINDIRECT(ADDRESS(ROW()-1,COLUMN()))\n)\n)\n)","v":2},{"$f":"IF(OR(Table117[[#This Row],[Housing Situation]]=\"\",Table117[[#This Row],[Housing Situation]]=\"Gap (need self-report)\"),\"\",IF(Table117[[#This Row],[Months Homeless]]=\"Missing\",\"No\",IF(AND(Table117[[#This Row],[Housing Situation]]=\"Gap (presumed homeless)\",COUNTA(B33,C33)-(COUNTA(F33,G33)-COUNTBLANK(F33:G33))=0),\"Yes\",IF((COUNTA(B33,C33,E33)-(COUNTA(F33,G33)-COUNTBLANK(F33:G33))=1),\"Yes\",\"No\"))))","v":""},{"$f":"IF(Table117[[#This Row],[Row Complete?]]=\"No\",Table117[[#This Row],[Row number]]+10,\"\")","v":""},{"$f":"ROW(Table117[#This Row])-ROW(Table117[[#Headers], [Housing Situation]])","v":23},{"$f":"IF(ISERROR(_xlfn.DAYS(Table117[[#This Row],[End Date]],Table117[[#This Row],[Start Date]])),\"\",_xlfn.DAYS(Table117[[#This Row],[End Date]],Table117[[#This Row],[Start Date]]))","v":""},{"$f":"IF(Table117[[#This Row],[Housing Situation]]=\"\",\"\",IF(Table117[[#This Row],[Housing Situation]]=Picklists!$A$11,Picklists!$B$1,IF(Table117[[#This Row],[Housing Situation]]=Picklists!$A$2,Picklists!$B$1,IF(Table117[[#This Row],[Housing Situation]]=Picklists!$A$3,Picklists!$B$1,IF(Table117[[#This Row],[Housing Situation]]=Picklists!$A$12,Picklists!$B$1,Picklists!$C$1)))))","v":""},{"$f":"IF(Table117[[#This Row],[Housing Situation Category]]=\"\",\"\",IF(Table117[[#This Row],[Housing Situation Category]]=Picklists!$B$1,Picklists!$D$1,Picklists!$E$1))","v":""}]
[null,null,{"$f":"IF(Table117[[#This Row],[Housing Situation]]=\"\",\"\",IF(Table117[[#This Row],[Row number]]=1,$B$7,IF(OFFSET(C34,-1,-1)=\"\",\"\",OFFSET(C34,-1,-1)-1)))","v":""},{"$f":"IF(\nTable117[[#This Row],[Start Date]]=\"\",\n\"\",\nIF(\nTable117[[#This Row],[Housing Situation]]=\"Gap (need self-report)\",\n\"\",\nIF(\nTable117[[#This Row],[Housing Situation]]=\"\",\n\"Missing\",\nIF(\nOR(\nAND(OR(Table117[[#This Row],[Housing Situation]]=\"Hospital / Psych / Detox\",Table117[[#This Row],[Housing Situation]]=\"Jail / Prison\",Table117[[#This Row],[Housing Situation]]=\"Foster Care / Group Home\"),(Table117[[#This Row],[End Date]]-Table117[[#This Row],[Start Date]])>=90),\nAND(OR(Table117[[#This Row],[Housing Situation]]=\"Apt / House (rented or owned)\",Table117[[#This Row],[Housing Situation]]=\"Friend / Family\",Table117[[#This Row],[Housing Situation]]=\"Self-paid Hotel / Halfway house\",Table117[[#This Row],[Housing Situation]]=\"Transitional Housing\"),(Table117[[#This Row],[End Date]]-Table117[[#This Row],[Start Date]])>=7)),\n0,\nIF(\nOR(Table117[[#This Row],[Housing Situation]]=\"ES / SH / Agency-paid Hotel\",Table117[[#This Row],[Housing Situation]]=\"Place not meant for habitation\",Table117[[#This Row],[Housing Situation]]=\"Gap (presumed homeless)\"),\n((Table117[[#This Row],[End Date]]+1)-Table117[[#This Row],[Start Date]])/(365/12),\nIF(\nAND(\nNOT(OR(Table117[[#This Row],[Housing Situation]]=\"ES / SH / Agency-paid Hotel\",Table117[[#This Row],[Housing Situation]]=\"Place not meant for habitation\",Table117[[#This Row],[Housing Situation]]=\"Gap (presumed homeless)\")),\nOR(OFFSET(Table117[[#This Row],[Housing Situation]],1,0)=\"ES / SH / Agency-paid Hotel\",OFFSET(Table117[[#This Row],[Housing Situation]],1,0)=\"Place not meant for habitation\",Table117[[#This Row],[Housing Situation]]=\"Gap (presumed homeless)\")),\n((Table117[[#This Row],[End Date]]+1)-Table117[[#This Row],[Start Date]])/(365/12),\n0))))))","v":""},null,{"$f":"IF(Table117[[#This Row],[Housing Situation]]=\"\",\"\",IF(Table117[[#This Row],[Housing Situation Category]]=\"Not_Homeless_Documentation_Source\",\"N/A\",\"\"))","v":""},{"$f":"IF(Table117[[#This Row],[Housing Situation]]=\"\",\"\",IF(Table117[[#This Row],[Housing Situation Category]]=\"Not_Homeless_Documentation_Source\",\"N/A\",\"\"))","v":""},null,{"$f":"IF(OFFSET(Table117[[#This Row],[Months Homeless]],1,0)=\"\",0,IF(AND(Table117[[#This Row],[Months Homeless]]=0,OFFSET(Table117[[#This Row],[Months Homeless]],1,0)>0),1,0))","v":0},{"$f":"IF(\nTable117[[#This Row],[Row number]]=1,\n1,\nIF(OFFSET(Table117[[#This Row],[Months Homeless]],1,0)=\"\",\nINDIRECT(ADDRESS(ROW()-1,COLUMN())),\nIF(\nAND(\nTable117[[#This Row],[Months Homeless]]=0,\nOFFSET(Table117[[#This Row],[Months Homeless]],1,0)>0),\nINDIRECT(ADDRESS(ROW()-1,COLUMN()))+1,\nINDIRECT(ADDRESS(ROW()-1,COLUMN()))\n)\n)\n)","v":2},{"$f":"IF(OR(Table117[[#This Row],[Housing Situation]]=\"\",Table117[[#This Row],[Housing Situation]]=\"Gap (need self-report)\"),\"\",IF(Table117[[#This Row],[Months Homeless]]=\"Missing\",\"No\",IF(AND(Table117[[#This Row],[Housing Situation]]=\"Gap (presumed homeless)\",COUNTA(B34,C34)-(COUNTA(F34,G34)-COUNTBLANK(F34:G34))=0),\"Yes\",IF((COUNTA(B34,C34,E34)-(COUNTA(F34,G34)-COUNTBLANK(F34:G34))=1),\"Yes\",\"No\"))))","v":""},{"$f":"IF(Table117[[#This Row],[Row Complete?]]=\"No\",Table117[[#This Row],[Row number]]+10,\"\")","v":""},{"$f":"ROW(Table117[#This Row])-ROW(Table117[[#Headers], [Housing Situation]])","v":24},{"$f":"IF(ISERROR(_xlfn.DAYS(Table117[[#This Row],[End Date]],Table117[[#This Row],[Start Date]])),\"\",_xlfn.DAYS(Table117[[#This Row],[End Date]],Table117[[#This Row],[Start Date]]))","v":""},{"$f":"IF(Table117[[#This Row],[Housing Situation]]=\"\",\"\",IF(Table117[[#This Row],[Housing Situation]]=Picklists!$A$11,Picklists!$B$1,IF(Table117[[#This Row],[Housing Situation]]=Picklists!$A$2,Picklists!$B$1,IF(Table117[[#This Row],[Housing Situation]]=Picklists!$A$3,Picklists!$B$1,IF(Table117[[#This Row],[Housing Situation]]=Picklists!$A$12,Picklists!$B$1,Picklists!$C$1)))))","v":""},{"$f":"IF(Table117[[#This Row],[Housing Situation Category]]=\"\",\"\",IF(Table117[[#This Row],[Housing Situation Category]]=Picklists!$B$1,Picklists!$D$1,Picklists!$E$1))","v":""}]
[null,null,{"$f":"IF(Table117[[#This Row],[Housing Situation]]=\"\",\"\",IF(Table117[[#This Row],[Row number]]=1,$B$7,IF(OFFSET(C35,-1,-1)=\"\",\"\",OFFSET(C35,-1,-1)-1)))","v":""},{"$f":"IF(\nTable117[[#This Row],[Start Date]]=\"\",\n\"\",\nIF(\nTable117[[#This Row],[Housing Situation]]=\"Gap (need self-report)\",\n\"\",\nIF(\nTable117[[#This Row],[Housing Situation]]=\"\",\n\"Missing\",\nIF(\nOR(\nAND(OR(Table117[[#This Row],[Housing Situation]]=\"Hospital / Psych / Detox\",Table117[[#This Row],[Housing Situation]]=\"Jail / Prison\",Table117[[#This Row],[Housing Situation]]=\"Foster Care / Group Home\"),(Table117[[#This Row],[End Date]]-Table117[[#This Row],[Start Date]])>=90),\nAND(OR(Table117[[#This Row],[Housing Situation]]=\"Apt / House (rented or owned)\",Table117[[#This Row],[Housing Situation]]=\"Friend / Family\",Table117[[#This Row],[Housing Situation]]=\"Self-paid Hotel / Halfway house\",Table117[[#This Row],[Housing Situation]]=\"Transitional Housing\"),(Table117[[#This Row],[End Date]]-Table117[[#This Row],[Start Date]])>=7)),\n0,\nIF(\nOR(Table117[[#This Row],[Housing Situation]]=\"ES / SH / Agency-paid Hotel\",Table117[[#This Row],[Housing Situation]]=\"Place not meant for habitation\",Table117[[#This Row],[Housing Situation]]=\"Gap (presumed homeless)\"),\n((Table117[[#This Row],[End Date]]+1)-Table117[[#This Row],[Start Date]])/(365/12),\nIF(\nAND(\nNOT(OR(Table117[[#This Row],[Housing Situation]]=\"ES / SH / Agency-paid Hotel\",Table117[[#This Row],[Housing Situation]]=\"Place not meant for habitation\",Table117[[#This Row],[Housing Situation]]=\"Gap (presumed homeless)\")),\nOR(OFFSET(Table117[[#This Row],[Housing Situation]],1,0)=\"ES / SH / Agency-paid Hotel\",OFFSET(Table117[[#This Row],[Housing Situation]],1,0)=\"Place not meant for habitation\",Table117[[#This Row],[Housing Situation]]=\"Gap (presumed homeless)\")),\n((Table117[[#This Row],[End Date]]+1)-Table117[[#This Row],[Start Date]])/(365/12),\n0))))))","v":""},null,{"$f":"IF(Table117[[#This Row],[Housing Situation]]=\"\",\"\",IF(Table117[[#This Row],[Housing Situation Category]]=\"Not_Homeless_Documentation_Source\",\"N/A\",\"\"))","v":""},{"$f":"IF(Table117[[#This Row],[Housing Situation]]=\"\",\"\",IF(Table117[[#This Row],[Housing Situation Category]]=\"Not_Homeless_Documentation_Source\",\"N/A\",\"\"))","v":""},null,{"$f":"IF(OFFSET(Table117[[#This Row],[Months Homeless]],1,0)=\"\",0,IF(AND(Table117[[#This Row],[Months Homeless]]=0,OFFSET(Table117[[#This Row],[Months Homeless]],1,0)>0),1,0))","v":0},{"$f":"IF(\nTable117[[#This Row],[Row number]]=1,\n1,\nIF(OFFSET(Table117[[#This Row],[Months Homeless]],1,0)=\"\",\nINDIRECT(ADDRESS(ROW()-1,COLUMN())),\nIF(\nAND(\nTable117[[#This Row],[Months Homeless]]=0,\nOFFSET(Table117[[#This Row],[Months Homeless]],1,0)>0),\nINDIRECT(ADDRESS(ROW()-1,COLUMN()))+1,\nINDIRECT(ADDRESS(ROW()-1,COLUMN()))\n)\n)\n)","v":2},{"$f":"IF(OR(Table117[[#This Row],[Housing Situation]]=\"\",Table117[[#This Row],[Housing Situation]]=\"Gap (need self-report)\"),\"\",IF(Table117[[#This Row],[Months Homeless]]=\"Missing\",\"No\",IF(AND(Table117[[#This Row],[Housing Situation]]=\"Gap (presumed homeless)\",COUNTA(B35,C35)-(COUNTA(F35,G35)-COUNTBLANK(F35:G35))=0),\"Yes\",IF((COUNTA(B35,C35,E35)-(COUNTA(F35,G35)-COUNTBLANK(F35:G35))=1),\"Yes\",\"No\"))))","v":""},{"$f":"IF(Table117[[#This Row],[Row Complete?]]=\"No\",Table117[[#This Row],[Row number]]+10,\"\")","v":""},{"$f":"ROW(Table117[#This Row])-ROW(Table117[[#Headers], [Housing Situation]])","v":25},{"$f":"IF(ISERROR(_xlfn.DAYS(Table117[[#This Row],[End Date]],Table117[[#This Row],[Start Date]])),\"\",_xlfn.DAYS(Table117[[#This Row],[End Date]],Table117[[#This Row],[Start Date]]))","v":""},{"$f":"IF(Table117[[#This Row],[Housing Situation]]=\"\",\"\",IF(Table117[[#This Row],[Housing Situation]]=Picklists!$A$11,Picklists!$B$1,IF(Table117[[#This Row],[Housing Situation]]=Picklists!$A$2,Picklists!$B$1,IF(Table117[[#This Row],[Housing Situation]]=Picklists!$A$3,Picklists!$B$1,IF(Table117[[#This Row],[Housing Situation]]=Picklists!$A$12,Picklists!$B$1,Picklists!$C$1)))))","v":""},{"$f":"IF(Table117[[#This Row],[Housing Situation Category]]=\"\",\"\",IF(Table117[[#This Row],[Housing Situation Category]]=Picklists!$B$1,Picklists!$D$1,Picklists!$E$1))","v":""}]
[null,null,{"$f":"IF(Table117[[#This Row],[Housing Situation]]=\"\",\"\",IF(Table117[[#This Row],[Row number]]=1,$B$7,IF(OFFSET(C36,-1,-1)=\"\",\"\",OFFSET(C36,-1,-1)-1)))","v":""},{"$f":"IF(\nTable117[[#This Row],[Start Date]]=\"\",\n\"\",\nIF(\nTable117[[#This Row],[Housing Situation]]=\"Gap (need self-report)\",\n\"\",\nIF(\nTable117[[#This Row],[Housing Situation]]=\"\",\n\"Missing\",\nIF(\nOR(\nAND(OR(Table117[[#This Row],[Housing Situation]]=\"Hospital / Psych / Detox\",Table117[[#This Row],[Housing Situation]]=\"Jail / Prison\",Table117[[#This Row],[Housing Situation]]=\"Foster Care / Group Home\"),(Table117[[#This Row],[End Date]]-Table117[[#This Row],[Start Date]])>=90),\nAND(OR(Table117[[#This Row],[Housing Situation]]=\"Apt / House (rented or owned)\",Table117[[#This Row],[Housing Situation]]=\"Friend / Family\",Table117[[#This Row],[Housing Situation]]=\"Self-paid Hotel / Halfway house\",Table117[[#This Row],[Housing Situation]]=\"Transitional Housing\"),(Table117[[#This Row],[End Date]]-Table117[[#This Row],[Start Date]])>=7)),\n0,\nIF(\nOR(Table117[[#This Row],[Housing Situation]]=\"ES / SH / Agency-paid Hotel\",Table117[[#This Row],[Housing Situation]]=\"Place not meant for habitation\",Table117[[#This Row],[Housing Situation]]=\"Gap (presumed homeless)\"),\n((Table117[[#This Row],[End Date]]+1)-Table117[[#This Row],[Start Date]])/(365/12),\nIF(\nAND(\nNOT(OR(Table117[[#This Row],[Housing Situation]]=\"ES / SH / Agency-paid Hotel\",Table117[[#This Row],[Housing Situation]]=\"Place not meant for habitation\",Table117[[#This Row],[Housing Situation]]=\"Gap (presumed homeless)\")),\nOR(OFFSET(Table117[[#This Row],[Housing Situation]],1,0)=\"ES / SH / Agency-paid Hotel\",OFFSET(Table117[[#This Row],[Housing Situation]],1,0)=\"Place not meant for habitation\",Table117[[#This Row],[Housing Situation]]=\"Gap (presumed homeless)\")),\n((Table117[[#This Row],[End Date]]+1)-Table117[[#This Row],[Start Date]])/(365/12),\n0))))))","v":""},null,{"$f":"IF(Table117[[#This Row],[Housing Situation]]=\"\",\"\",IF(Table117[[#This Row],[Housing Situation Category]]=\"Not_Homeless_Documentation_Source\",\"N/A\",\"\"))","v":""},{"$f":"IF(Table117[[#This Row],[Housing Situation]]=\"\",\"\",IF(Table117[[#This Row],[Housing Situation Category]]=\"Not_Homeless_Documentation_Source\",\"N/A\",\"\"))","v":""},null,{"$f":"IF(OFFSET(Table117[[#This Row],[Months Homeless]],1,0)=\"\",0,IF(AND(Table117[[#This Row],[Months Homeless]]=0,OFFSET(Table117[[#This Row],[Months Homeless]],1,0)>0),1,0))","v":0},{"$f":"IF(\nTable117[[#This Row],[Row number]]=1,\n1,\nIF(OFFSET(Table117[[#This Row],[Months Homeless]],1,0)=\"\",\nINDIRECT(ADDRESS(ROW()-1,COLUMN())),\nIF(\nAND(\nTable117[[#This Row],[Months Homeless]]=0,\nOFFSET(Table117[[#This Row],[Months Homeless]],1,0)>0),\nINDIRECT(ADDRESS(ROW()-1,COLUMN()))+1,\nINDIRECT(ADDRESS(ROW()-1,COLUMN()))\n)\n)\n)","v":2},{"$f":"IF(OR(Table117[[#This Row],[Housing Situation]]=\"\",Table117[[#This Row],[Housing Situation]]=\"Gap (need self-report)\"),\"\",IF(Table117[[#This Row],[Months Homeless]]=\"Missing\",\"No\",IF(AND(Table117[[#This Row],[Housing Situation]]=\"Gap (presumed homeless)\",COUNTA(B36,C36)-(COUNTA(F36,G36)-COUNTBLANK(F36:G36))=0),\"Yes\",IF((COUNTA(B36,C36,E36)-(COUNTA(F36,G36)-COUNTBLANK(F36:G36))=1),\"Yes\",\"No\"))))","v":""},{"$f":"IF(Table117[[#This Row],[Row Complete?]]=\"No\",Table117[[#This Row],[Row number]]+10,\"\")","v":""},{"$f":"ROW(Table117[#This Row])-ROW(Table117[[#Headers], [Housing Situation]])","v":26},{"$f":"IF(ISERROR(_xlfn.DAYS(Table117[[#This Row],[End Date]],Table117[[#This Row],[Start Date]])),\"\",_xlfn.DAYS(Table117[[#This Row],[End Date]],Table117[[#This Row],[Start Date]]))","v":""},{"$f":"IF(Table117[[#This Row],[Housing Situation]]=\"\",\"\",IF(Table117[[#This Row],[Housing Situation]]=Picklists!$A$11,Picklists!$B$1,IF(Table117[[#This Row],[Housing Situation]]=Picklists!$A$2,Picklists!$B$1,IF(Table117[[#This Row],[Housing Situation]]=Picklists!$A$3,Picklists!$B$1,IF(Table117[[#This Row],[Housing Situation]]=Picklists!$A$12,Picklists!$B$1,Picklists!$C$1)))))","v":""},{"$f":"IF(Table117[[#This Row],[Housing Situation Category]]=\"\",\"\",IF(Table117[[#This Row],[Housing Situation Category]]=Picklists!$B$1,Picklists!$D$1,Picklists!$E$1))","v":""}]
[null,null,{"$f":"IF(Table117[[#This Row],[Housing Situation]]=\"\",\"\",IF(Table117[[#This Row],[Row number]]=1,$B$7,IF(OFFSET(C37,-1,-1)=\"\",\"\",OFFSET(C37,-1,-1)-1)))","v":""},{"$f":"IF(\nTable117[[#This Row],[Start Date]]=\"\",\n\"\",\nIF(\nTable117[[#This Row],[Housing Situation]]=\"Gap (need self-report)\",\n\"\",\nIF(\nTable117[[#This Row],[Housing Situation]]=\"\",\n\"Missing\",\nIF(\nOR(\nAND(OR(Table117[[#This Row],[Housing Situation]]=\"Hospital / Psych / Detox\",Table117[[#This Row],[Housing Situation]]=\"Jail / Prison\",Table117[[#This Row],[Housing Situation]]=\"Foster Care / Group Home\"),(Table117[[#This Row],[End Date]]-Table117[[#This Row],[Start Date]])>=90),\nAND(OR(Table117[[#This Row],[Housing Situation]]=\"Apt / House (rented or owned)\",Table117[[#This Row],[Housing Situation]]=\"Friend / Family\",Table117[[#This Row],[Housing Situation]]=\"Self-paid Hotel / Halfway house\",Table117[[#This Row],[Housing Situation]]=\"Transitional Housing\"),(Table117[[#This Row],[End Date]]-Table117[[#This Row],[Start Date]])>=7)),\n0,\nIF(\nOR(Table117[[#This Row],[Housing Situation]]=\"ES / SH / Agency-paid Hotel\",Table117[[#This Row],[Housing Situation]]=\"Place not meant for habitation\",Table117[[#This Row],[Housing Situation]]=\"Gap (presumed homeless)\"),\n((Table117[[#This Row],[End Date]]+1)-Table117[[#This Row],[Start Date]])/(365/12),\nIF(\nAND(\nNOT(OR(Table117[[#This Row],[Housing Situation]]=\"ES / SH / Agency-paid Hotel\",Table117[[#This Row],[Housing Situation]]=\"Place not meant for habitation\",Table117[[#This Row],[Housing Situation]]=\"Gap (presumed homeless)\")),\nOR(OFFSET(Table117[[#This Row],[Housing Situation]],1,0)=\"ES / SH / Agency-paid Hotel\",OFFSET(Table117[[#This Row],[Housing Situation]],1,0)=\"Place not meant for habitation\",Table117[[#This Row],[Housing Situation]]=\"Gap (presumed homeless)\")),\n((Table117[[#This Row],[End Date]]+1)-Table117[[#This Row],[Start Date]])/(365/12),\n0))))))","v":""},null,{"$f":"IF(Table117[[#This Row],[Housing Situation]]=\"\",\"\",IF(Table117[[#This Row],[Housing Situation Category]]=\"Not_Homeless_Documentation_Source\",\"N/A\",\"\"))","v":""},{"$f":"IF(Table117[[#This Row],[Housing Situation]]=\"\",\"\",IF(Table117[[#This Row],[Housing Situation Category]]=\"Not_Homeless_Documentation_Source\",\"N/A\",\"\"))","v":""},null,{"$f":"IF(OFFSET(Table117[[#This Row],[Months Homeless]],1,0)=\"\",0,IF(AND(Table117[[#This Row],[Months Homeless]]=0,OFFSET(Table117[[#This Row],[Months Homeless]],1,0)>0),1,0))","v":0},{"$f":"IF(\nTable117[[#This Row],[Row number]]=1,\n1,\nIF(OFFSET(Table117[[#This Row],[Months Homeless]],1,0)=\"\",\nINDIRECT(ADDRESS(ROW()-1,COLUMN())),\nIF(\nAND(\nTable117[[#This Row],[Months Homeless]]=0,\nOFFSET(Table117[[#This Row],[Months Homeless]],1,0)>0),\nINDIRECT(ADDRESS(ROW()-1,COLUMN()))+1,\nINDIRECT(ADDRESS(ROW()-1,COLUMN()))\n)\n)\n)","v":2},{"$f":"IF(OR(Table117[[#This Row],[Housing Situation]]=\"\",Table117[[#This Row],[Housing Situation]]=\"Gap (need self-report)\"),\"\",IF(Table117[[#This Row],[Months Homeless]]=\"Missing\",\"No\",IF(AND(Table117[[#This Row],[Housing Situation]]=\"Gap (presumed homeless)\",COUNTA(B37,C37)-(COUNTA(F37,G37)-COUNTBLANK(F37:G37))=0),\"Yes\",IF((COUNTA(B37,C37,E37)-(COUNTA(F37,G37)-COUNTBLANK(F37:G37))=1),\"Yes\",\"No\"))))","v":""},{"$f":"IF(Table117[[#This Row],[Row Complete?]]=\"No\",Table117[[#This Row],[Row number]]+10,\"\")","v":""},{"$f":"ROW(Table117[#This Row])-ROW(Table117[[#Headers], [Housing Situation]])","v":27},{"$f":"IF(ISERROR(_xlfn.DAYS(Table117[[#This Row],[End Date]],Table117[[#This Row],[Start Date]])),\"\",_xlfn.DAYS(Table117[[#This Row],[End Date]],Table117[[#This Row],[Start Date]]))","v":""},{"$f":"IF(Table117[[#This Row],[Housing Situation]]=\"\",\"\",IF(Table117[[#This Row],[Housing Situation]]=Picklists!$A$11,Picklists!$B$1,IF(Table117[[#This Row],[Housing Situation]]=Picklists!$A$2,Picklists!$B$1,IF(Table117[[#This Row],[Housing Situation]]=Picklists!$A$3,Picklists!$B$1,IF(Table117[[#This Row],[Housing Situation]]=Picklists!$A$12,Picklists!$B$1,Picklists!$C$1)))))","v":""},{"$f":"IF(Table117[[#This Row],[Housing Situation Category]]=\"\",\"\",IF(Table117[[#This Row],[Housing Situation Category]]=Picklists!$B$1,Picklists!$D$1,Picklists!$E$1))","v":""}]
[null,null,{"$f":"IF(Table117[[#This Row],[Housing Situation]]=\"\",\"\",IF(Table117[[#This Row],[Row number]]=1,$B$7,IF(OFFSET(C38,-1,-1)=\"\",\"\",OFFSET(C38,-1,-1)-1)))","v":""},{"$f":"IF(\nTable117[[#This Row],[Start Date]]=\"\",\n\"\",\nIF(\nTable117[[#This Row],[Housing Situation]]=\"Gap (need self-report)\",\n\"\",\nIF(\nTable117[[#This Row],[Housing Situation]]=\"\",\n\"Missing\",\nIF(\nOR(\nAND(OR(Table117[[#This Row],[Housing Situation]]=\"Hospital / Psych / Detox\",Table117[[#This Row],[Housing Situation]]=\"Jail / Prison\",Table117[[#This Row],[Housing Situation]]=\"Foster Care / Group Home\"),(Table117[[#This Row],[End Date]]-Table117[[#This Row],[Start Date]])>=90),\nAND(OR(Table117[[#This Row],[Housing Situation]]=\"Apt / House (rented or owned)\",Table117[[#This Row],[Housing Situation]]=\"Friend / Family\",Table117[[#This Row],[Housing Situation]]=\"Self-paid Hotel / Halfway house\",Table117[[#This Row],[Housing Situation]]=\"Transitional Housing\"),(Table117[[#This Row],[End Date]]-Table117[[#This Row],[Start Date]])>=7)),\n0,\nIF(\nOR(Table117[[#This Row],[Housing Situation]]=\"ES / SH / Agency-paid Hotel\",Table117[[#This Row],[Housing Situation]]=\"Place not meant for habitation\",Table117[[#This Row],[Housing Situation]]=\"Gap (presumed homeless)\"),\n((Table117[[#This Row],[End Date]]+1)-Table117[[#This Row],[Start Date]])/(365/12),\nIF(\nAND(\nNOT(OR(Table117[[#This Row],[Housing Situation]]=\"ES / SH / Agency-paid Hotel\",Table117[[#This Row],[Housing Situation]]=\"Place not meant for habitation\",Table117[[#This Row],[Housing Situation]]=\"Gap (presumed homeless)\")),\nOR(OFFSET(Table117[[#This Row],[Housing Situation]],1,0)=\"ES / SH / Agency-paid Hotel\",OFFSET(Table117[[#This Row],[Housing Situation]],1,0)=\"Place not meant for habitation\",Table117[[#This Row],[Housing Situation]]=\"Gap (presumed homeless)\")),\n((Table117[[#This Row],[End Date]]+1)-Table117[[#This Row],[Start Date]])/(365/12),\n0))))))","v":""},null,{"$f":"IF(Table117[[#This Row],[Housing Situation]]=\"\",\"\",IF(Table117[[#This Row],[Housing Situation Category]]=\"Not_Homeless_Documentation_Source\",\"N/A\",\"\"))","v":""},{"$f":"IF(Table117[[#This Row],[Housing Situation]]=\"\",\"\",IF(Table117[[#This Row],[Housing Situation Category]]=\"Not_Homeless_Documentation_Source\",\"N/A\",\"\"))","v":""},null,{"$f":"IF(OFFSET(Table117[[#This Row],[Months Homeless]],1,0)=\"\",0,IF(AND(Table117[[#This Row],[Months Homeless]]=0,OFFSET(Table117[[#This Row],[Months Homeless]],1,0)>0),1,0))","v":0},{"$f":"IF(\nTable117[[#This Row],[Row number]]=1,\n1,\nIF(OFFSET(Table117[[#This Row],[Months Homeless]],1,0)=\"\",\nINDIRECT(ADDRESS(ROW()-1,COLUMN())),\nIF(\nAND(\nTable117[[#This Row],[Months Homeless]]=0,\nOFFSET(Table117[[#This Row],[Months Homeless]],1,0)>0),\nINDIRECT(ADDRESS(ROW()-1,COLUMN()))+1,\nINDIRECT(ADDRESS(ROW()-1,COLUMN()))\n)\n)\n)","v":2},{"$f":"IF(OR(Table117[[#This Row],[Housing Situation]]=\"\",Table117[[#This Row],[Housing Situation]]=\"Gap (need self-report)\"),\"\",IF(Table117[[#This Row],[Months Homeless]]=\"Missing\",\"No\",IF(AND(Table117[[#This Row],[Housing Situation]]=\"Gap (presumed homeless)\",COUNTA(B38,C38)-(COUNTA(F38,G38)-COUNTBLANK(F38:G38))=0),\"Yes\",IF((COUNTA(B38,C38,E38)-(COUNTA(F38,G38)-COUNTBLANK(F38:G38))=1),\"Yes\",\"No\"))))","v":""},{"$f":"IF(Table117[[#This Row],[Row Complete?]]=\"No\",Table117[[#This Row],[Row number]]+10,\"\")","v":""},{"$f":"ROW(Table117[#This Row])-ROW(Table117[[#Headers], [Housing Situation]])","v":28},{"$f":"IF(ISERROR(_xlfn.DAYS(Table117[[#This Row],[End Date]],Table117[[#This Row],[Start Date]])),\"\",_xlfn.DAYS(Table117[[#This Row],[End Date]],Table117[[#This Row],[Start Date]]))","v":""},{"$f":"IF(Table117[[#This Row],[Housing Situation]]=\"\",\"\",IF(Table117[[#This Row],[Housing Situation]]=Picklists!$A$11,Picklists!$B$1,IF(Table117[[#This Row],[Housing Situation]]=Picklists!$A$2,Picklists!$B$1,IF(Table117[[#This Row],[Housing Situation]]=Picklists!$A$3,Picklists!$B$1,IF(Table117[[#This Row],[Housing Situation]]=Picklists!$A$12,Picklists!$B$1,Picklists!$C$1)))))","v":""},{"$f":"IF(Table117[[#This Row],[Housing Situation Category]]=\"\",\"\",IF(Table117[[#This Row],[Housing Situation Category]]=Picklists!$B$1,Picklists!$D$1,Picklists!$E$1))","v":""}]
[null,null,{"$f":"IF(Table117[[#This Row],[Housing Situation]]=\"\",\"\",IF(Table117[[#This Row],[Row number]]=1,$B$7,IF(OFFSET(C39,-1,-1)=\"\",\"\",OFFSET(C39,-1,-1)-1)))","v":""},{"$f":"IF(\nTable117[[#This Row],[Start Date]]=\"\",\n\"\",\nIF(\nTable117[[#This Row],[Housing Situation]]=\"Gap (need self-report)\",\n\"\",\nIF(\nTable117[[#This Row],[Housing Situation]]=\"\",\n\"Missing\",\nIF(\nOR(\nAND(OR(Table117[[#This Row],[Housing Situation]]=\"Hospital / Psych / Detox\",Table117[[#This Row],[Housing Situation]]=\"Jail / Prison\",Table117[[#This Row],[Housing Situation]]=\"Foster Care / Group Home\"),(Table117[[#This Row],[End Date]]-Table117[[#This Row],[Start Date]])>=90),\nAND(OR(Table117[[#This Row],[Housing Situation]]=\"Apt / House (rented or owned)\",Table117[[#This Row],[Housing Situation]]=\"Friend / Family\",Table117[[#This Row],[Housing Situation]]=\"Self-paid Hotel / Halfway house\",Table117[[#This Row],[Housing Situation]]=\"Transitional Housing\"),(Table117[[#This Row],[End Date]]-Table117[[#This Row],[Start Date]])>=7)),\n0,\nIF(\nOR(Table117[[#This Row],[Housing Situation]]=\"ES / SH / Agency-paid Hotel\",Table117[[#This Row],[Housing Situation]]=\"Place not meant for habitation\",Table117[[#This Row],[Housing Situation]]=\"Gap (presumed homeless)\"),\n((Table117[[#This Row],[End Date]]+1)-Table117[[#This Row],[Start Date]])/(365/12),\nIF(\nAND(\nNOT(OR(Table117[[#This Row],[Housing Situation]]=\"ES / SH / Agency-paid Hotel\",Table117[[#This Row],[Housing Situation]]=\"Place not meant for habitation\",Table117[[#This Row],[Housing Situation]]=\"Gap (presumed homeless)\")),\nOR(OFFSET(Table117[[#This Row],[Housing Situation]],1,0)=\"ES / SH / Agency-paid Hotel\",OFFSET(Table117[[#This Row],[Housing Situation]],1,0)=\"Place not meant for habitation\",Table117[[#This Row],[Housing Situation]]=\"Gap (presumed homeless)\")),\n((Table117[[#This Row],[End Date]]+1)-Table117[[#This Row],[Start Date]])/(365/12),\n0))))))","v":""},null,{"$f":"IF(Table117[[#This Row],[Housing Situation]]=\"\",\"\",IF(Table117[[#This Row],[Housing Situation Category]]=\"Not_Homeless_Documentation_Source\",\"N/A\",\"\"))","v":""},{"$f":"IF(Table117[[#This Row],[Housing Situation]]=\"\",\"\",IF(Table117[[#This Row],[Housing Situation Category]]=\"Not_Homeless_Documentation_Source\",\"N/A\",\"\"))","v":""},null,{"$f":"IF(OFFSET(Table117[[#This Row],[Months Homeless]],1,0)=\"\",0,IF(AND(Table117[[#This Row],[Months Homeless]]=0,OFFSET(Table117[[#This Row],[Months Homeless]],1,0)>0),1,0))","v":0},{"$f":"IF(\nTable117[[#This Row],[Row number]]=1,\n1,\nIF(OFFSET(Table117[[#This Row],[Months Homeless]],1,0)=\"\",\nINDIRECT(ADDRESS(ROW()-1,COLUMN())),\nIF(\nAND(\nTable117[[#This Row],[Months Homeless]]=0,\nOFFSET(Table117[[#This Row],[Months Homeless]],1,0)>0),\nINDIRECT(ADDRESS(ROW()-1,COLUMN()))+1,\nINDIRECT(ADDRESS(ROW()-1,COLUMN()))\n)\n)\n)","v":2},{"$f":"IF(OR(Table117[[#This Row],[Housing Situation]]=\"\",Table117[[#This Row],[Housing Situation]]=\"Gap (need self-report)\"),\"\",IF(Table117[[#This Row],[Months Homeless]]=\"Missing\",\"No\",IF(AND(Table117[[#This Row],[Housing Situation]]=\"Gap (presumed homeless)\",COUNTA(B39,C39)-(COUNTA(F39,G39)-COUNTBLANK(F39:G39))=0),\"Yes\",IF((COUNTA(B39,C39,E39)-(COUNTA(F39,G39)-COUNTBLANK(F39:G39))=1),\"Yes\",\"No\"))))","v":""},{"$f":"IF(Table117[[#This Row],[Row Complete?]]=\"No\",Table117[[#This Row],[Row number]]+10,\"\")","v":""},{"$f":"ROW(Table117[#This Row])-ROW(Table117[[#Headers], [Housing Situation]])","v":29},{"$f":"IF(ISERROR(_xlfn.DAYS(Table117[[#This Row],[End Date]],Table117[[#This Row],[Start Date]])),\"\",_xlfn.DAYS(Table117[[#This Row],[End Date]],Table117[[#This Row],[Start Date]]))","v":""},{"$f":"IF(Table117[[#This Row],[Housing Situation]]=\"\",\"\",IF(Table117[[#This Row],[Housing Situation]]=Picklists!$A$11,Picklists!$B$1,IF(Table117[[#This Row],[Housing Situation]]=Picklists!$A$2,Picklists!$B$1,IF(Table117[[#This Row],[Housing Situation]]=Picklists!$A$3,Picklists!$B$1,IF(Table117[[#This Row],[Housing Situation]]=Picklists!$A$12,Picklists!$B$1,Picklists!$C$1)))))","v":""},{"$f":"IF(Table117[[#This Row],[Housing Situation Category]]=\"\",\"\",IF(Table117[[#This Row],[Housing Situation Category]]=Picklists!$B$1,Picklists!$D$1,Picklists!$E$1))","v":""}]
[null,null,{"$f":"IF(Table117[[#This Row],[Housing Situation]]=\"\",\"\",IF(Table117[[#This Row],[Row number]]=1,$B$7,IF(OFFSET(C40,-1,-1)=\"\",\"\",OFFSET(C40,-1,-1)-1)))","v":""},{"$f":"IF(\nTable117[[#This Row],[Start Date]]=\"\",\n\"\",\nIF(\nTable117[[#This Row],[Housing Situation]]=\"Gap (need self-report)\",\n\"\",\nIF(\nTable117[[#This Row],[Housing Situation]]=\"\",\n\"Missing\",\nIF(\nOR(\nAND(OR(Table117[[#This Row],[Housing Situation]]=\"Hospital / Psych / Detox\",Table117[[#This Row],[Housing Situation]]=\"Jail / Prison\",Table117[[#This Row],[Housing Situation]]=\"Foster Care / Group Home\"),(Table117[[#This Row],[End Date]]-Table117[[#This Row],[Start Date]])>=90),\nAND(OR(Table117[[#This Row],[Housing Situation]]=\"Apt / House (rented or owned)\",Table117[[#This Row],[Housing Situation]]=\"Friend / Family\",Table117[[#This Row],[Housing Situation]]=\"Self-paid Hotel / Halfway house\",Table117[[#This Row],[Housing Situation]]=\"Transitional Housing\"),(Table117[[#This Row],[End Date]]-Table117[[#This Row],[Start Date]])>=7)),\n0,\nIF(\nOR(Table117[[#This Row],[Housing Situation]]=\"ES / SH / Agency-paid Hotel\",Table117[[#This Row],[Housing Situation]]=\"Place not meant for habitation\",Table117[[#This Row],[Housing Situation]]=\"Gap (presumed homeless)\"),\n((Table117[[#This Row],[End Date]]+1)-Table117[[#This Row],[Start Date]])/(365/12),\nIF(\nAND(\nNOT(OR(Table117[[#This Row],[Housing Situation]]=\"ES / SH / Agency-paid Hotel\",Table117[[#This Row],[Housing Situation]]=\"Place not meant for habitation\",Table117[[#This Row],[Housing Situation]]=\"Gap (presumed homeless)\")),\nOR(OFFSET(Table117[[#This Row],[Housing Situation]],1,0)=\"ES / SH / Agency-paid Hotel\",OFFSET(Table117[[#This Row],[Housing Situation]],1,0)=\"Place not meant for habitation\",Table117[[#This Row],[Housing Situation]]=\"Gap (presumed homeless)\")),\n((Table117[[#This Row],[End Date]]+1)-Table117[[#This Row],[Start Date]])/(365/12),\n0))))))","v":""},null,{"$f":"IF(Table117[[#This Row],[Housing Situation]]=\"\",\"\",IF(Table117[[#This Row],[Housing Situation Category]]=\"Not_Homeless_Documentation_Source\",\"N/A\",\"\"))","v":""},{"$f":"IF(Table117[[#This Row],[Housing Situation]]=\"\",\"\",IF(Table117[[#This Row],[Housing Situation Category]]=\"Not_Homeless_Documentation_Source\",\"N/A\",\"\"))","v":""},null,{"$f":"IF(OFFSET(Table117[[#This Row],[Months Homeless]],1,0)=\"\",0,IF(AND(Table117[[#This Row],[Months Homeless]]=0,OFFSET(Table117[[#This Row],[Months Homeless]],1,0)>0),1,0))","v":0},{"$f":"IF(\nTable117[[#This Row],[Row number]]=1,\n1,\nIF(OFFSET(Table117[[#This Row],[Months Homeless]],1,0)=\"\",\nINDIRECT(ADDRESS(ROW()-1,COLUMN())),\nIF(\nAND(\nTable117[[#This Row],[Months Homeless]]=0,\nOFFSET(Table117[[#This Row],[Months Homeless]],1,0)>0),\nINDIRECT(ADDRESS(ROW()-1,COLUMN()))+1,\nINDIRECT(ADDRESS(ROW()-1,COLUMN()))\n)\n)\n)","v":2},{"$f":"IF(OR(Table117[[#This Row],[Housing Situation]]=\"\",Table117[[#This Row],[Housing Situation]]=\"Gap (need self-report)\"),\"\",IF(Table117[[#This Row],[Months Homeless]]=\"Missing\",\"No\",IF(AND(Table117[[#This Row],[Housing Situation]]=\"Gap (presumed homeless)\",COUNTA(B40,C40)-(COUNTA(F40,G40)-COUNTBLANK(F40:G40))=0),\"Yes\",IF((COUNTA(B40,C40,E40)-(COUNTA(F40,G40)-COUNTBLANK(F40:G40))=1),\"Yes\",\"No\"))))","v":""},{"$f":"IF(Table117[[#This Row],[Row Complete?]]=\"No\",Table117[[#This Row],[Row number]]+10,\"\")","v":""},{"$f":"ROW(Table117[#This Row])-ROW(Table117[[#Headers], [Housing Situation]])","v":30},{"$f":"IF(ISERROR(_xlfn.DAYS(Table117[[#This Row],[End Date]],Table117[[#This Row],[Start Date]])),\"\",_xlfn.DAYS(Table117[[#This Row],[End Date]],Table117[[#This Row],[Start Date]]))","v":""},{"$f":"IF(Table117[[#This Row],[Housing Situation]]=\"\",\"\",IF(Table117[[#This Row],[Housing Situation]]=Picklists!$A$11,Picklists!$B$1,IF(Table117[[#This Row],[Housing Situation]]=Picklists!$A$2,Picklists!$B$1,IF(Table117[[#This Row],[Housing Situation]]=Picklists!$A$3,Picklists!$B$1,IF(Table117[[#This Row],[Housing Situation]]=Picklists!$A$12,Picklists!$B$1,Picklists!$C$1)))))","v":""},{"$f":"IF(Table117[[#This Row],[Housing Situation Category]]=\"\",\"\",IF(Table117[[#This Row],[Housing Situation Category]]=Picklists!$B$1,Picklists!$D$1,Picklists!$E$1))","v":""}]
[null,null,{"$f":"IF(Table117[[#This Row],[Housing Situation]]=\"\",\"\",IF(Table117[[#This Row],[Row number]]=1,$B$7,IF(OFFSET(C41,-1,-1)=\"\",\"\",OFFSET(C41,-1,-1)-1)))","v":""},{"$f":"IF(\nTable117[[#This Row],[Start Date]]=\"\",\n\"\",\nIF(\nTable117[[#This Row],[Housing Situation]]=\"Gap (need self-report)\",\n\"\",\nIF(\nTable117[[#This Row],[Housing Situation]]=\"\",\n\"Missing\",\nIF(\nOR(\nAND(OR(Table117[[#This Row],[Housing Situation]]=\"Hospital / Psych / Detox\",Table117[[#This Row],[Housing Situation]]=\"Jail / Prison\",Table117[[#This Row],[Housing Situation]]=\"Foster Care / Group Home\"),(Table117[[#This Row],[End Date]]-Table117[[#This Row],[Start Date]])>=90),\nAND(OR(Table117[[#This Row],[Housing Situation]]=\"Apt / House (rented or owned)\",Table117[[#This Row],[Housing Situation]]=\"Friend / Family\",Table117[[#This Row],[Housing Situation]]=\"Self-paid Hotel / Halfway house\",Table117[[#This Row],[Housing Situation]]=\"Transitional Housing\"),(Table117[[#This Row],[End Date]]-Table117[[#This Row],[Start Date]])>=7)),\n0,\nIF(\nOR(Table117[[#This Row],[Housing Situation]]=\"ES / SH / Agency-paid Hotel\",Table117[[#This Row],[Housing Situation]]=\"Place not meant for habitation\",Table117[[#This Row],[Housing Situation]]=\"Gap (presumed homeless)\"),\n((Table117[[#This Row],[End Date]]+1)-Table117[[#This Row],[Start Date]])/(365/12),\nIF(\nAND(\nNOT(OR(Table117[[#This Row],[Housing Situation]]=\"ES / SH / Agency-paid Hotel\",Table117[[#This Row],[Housing Situation]]=\"Place not meant for habitation\",Table117[[#This Row],[Housing Situation]]=\"Gap (presumed homeless)\")),\nOR(OFFSET(Table117[[#This Row],[Housing Situation]],1,0)=\"ES / SH / Agency-paid Hotel\",OFFSET(Table117[[#This Row],[Housing Situation]],1,0)=\"Place not meant for habitation\",Table117[[#This Row],[Housing Situation]]=\"Gap (presumed homeless)\")),\n((Table117[[#This Row],[End Date]]+1)-Table117[[#This Row],[Start Date]])/(365/12),\n0))))))","v":""},null,{"$f":"IF(Table117[[#This Row],[Housing Situation]]=\"\",\"\",IF(Table117[[#This Row],[Housing Situation Category]]=\"Not_Homeless_Documentation_Source\",\"N/A\",\"\"))","v":""},{"$f":"IF(Table117[[#This Row],[Housing Situation]]=\"\",\"\",IF(Table117[[#This Row],[Housing Situation Category]]=\"Not_Homeless_Documentation_Source\",\"N/A\",\"\"))","v":""},null,{"$f":"IF(OFFSET(Table117[[#This Row],[Months Homeless]],1,0)=\"\",0,IF(AND(Table117[[#This Row],[Months Homeless]]=0,OFFSET(Table117[[#This Row],[Months Homeless]],1,0)>0),1,0))","v":0},{"$f":"IF(\nTable117[[#This Row],[Row number]]=1,\n1,\nIF(OFFSET(Table117[[#This Row],[Months Homeless]],1,0)=\"\",\nINDIRECT(ADDRESS(ROW()-1,COLUMN())),\nIF(\nAND(\nTable117[[#This Row],[Months Homeless]]=0,\nOFFSET(Table117[[#This Row],[Months Homeless]],1,0)>0),\nINDIRECT(ADDRESS(ROW()-1,COLUMN()))+1,\nINDIRECT(ADDRESS(ROW()-1,COLUMN()))\n)\n)\n)","v":2},{"$f":"IF(OR(Table117[[#This Row],[Housing Situation]]=\"\",Table117[[#This Row],[Housing Situation]]=\"Gap (need self-report)\"),\"\",IF(Table117[[#This Row],[Months Homeless]]=\"Missing\",\"No\",IF(AND(Table117[[#This Row],[Housing Situation]]=\"Gap (presumed homeless)\",COUNTA(B41,C41)-(COUNTA(F41,G41)-COUNTBLANK(F41:G41))=0),\"Yes\",IF((COUNTA(B41,C41,E41)-(COUNTA(F41,G41)-COUNTBLANK(F41:G41))=1),\"Yes\",\"No\"))))","v":""},{"$f":"IF(Table117[[#This Row],[Row Complete?]]=\"No\",Table117[[#This Row],[Row number]]+10,\"\")","v":""},{"$f":"ROW(Table117[#This Row])-ROW(Table117[[#Headers], [Housing Situation]])","v":31},{"$f":"IF(ISERROR(_xlfn.DAYS(Table117[[#This Row],[End Date]],Table117[[#This Row],[Start Date]])),\"\",_xlfn.DAYS(Table117[[#This Row],[End Date]],Table117[[#This Row],[Start Date]]))","v":""},{"$f":"IF(Table117[[#This Row],[Housing Situation]]=\"\",\"\",IF(Table117[[#This Row],[Housing Situation]]=Picklists!$A$11,Picklists!$B$1,IF(Table117[[#This Row],[Housing Situation]]=Picklists!$A$2,Picklists!$B$1,IF(Table117[[#This Row],[Housing Situation]]=Picklists!$A$3,Picklists!$B$1,IF(Table117[[#This Row],[Housing Situation]]=Picklists!$A$12,Picklists!$B$1,Picklists!$C$1)))))","v":""},{"$f":"IF(Table117[[#This Row],[Housing Situation Category]]=\"\",\"\",IF(Table117[[#This Row],[Housing Situation Category]]=Picklists!$B$1,Picklists!$D$1,Picklists!$E$1))","v":""}]
[null,null,{"$f":"IF(Table117[[#This Row],[Housing Situation]]=\"\",\"\",IF(Table117[[#This Row],[Row number]]=1,$B$7,IF(OFFSET(C42,-1,-1)=\"\",\"\",OFFSET(C42,-1,-1)-1)))","v":""},{"$f":"IF(\nTable117[[#This Row],[Start Date]]=\"\",\n\"\",\nIF(\nTable117[[#This Row],[Housing Situation]]=\"Gap (need self-report)\",\n\"\",\nIF(\nTable117[[#This Row],[Housing Situation]]=\"\",\n\"Missing\",\nIF(\nOR(\nAND(OR(Table117[[#This Row],[Housing Situation]]=\"Hospital / Psych / Detox\",Table117[[#This Row],[Housing Situation]]=\"Jail / Prison\",Table117[[#This Row],[Housing Situation]]=\"Foster Care / Group Home\"),(Table117[[#This Row],[End Date]]-Table117[[#This Row],[Start Date]])>=90),\nAND(OR(Table117[[#This Row],[Housing Situation]]=\"Apt / House (rented or owned)\",Table117[[#This Row],[Housing Situation]]=\"Friend / Family\",Table117[[#This Row],[Housing Situation]]=\"Self-paid Hotel / Halfway house\",Table117[[#This Row],[Housing Situation]]=\"Transitional Housing\"),(Table117[[#This Row],[End Date]]-Table117[[#This Row],[Start Date]])>=7)),\n0,\nIF(\nOR(Table117[[#This Row],[Housing Situation]]=\"ES / SH / Agency-paid Hotel\",Table117[[#This Row],[Housing Situation]]=\"Place not meant for habitation\",Table117[[#This Row],[Housing Situation]]=\"Gap (presumed homeless)\"),\n((Table117[[#This Row],[End Date]]+1)-Table117[[#This Row],[Start Date]])/(365/12),\nIF(\nAND(\nNOT(OR(Table117[[#This Row],[Housing Situation]]=\"ES / SH / Agency-paid Hotel\",Table117[[#This Row],[Housing Situation]]=\"Place not meant for habitation\",Table117[[#This Row],[Housing Situation]]=\"Gap (presumed homeless)\")),\nOR(OFFSET(Table117[[#This Row],[Housing Situation]],1,0)=\"ES / SH / Agency-paid Hotel\",OFFSET(Table117[[#This Row],[Housing Situation]],1,0)=\"Place not meant for habitation\",Table117[[#This Row],[Housing Situation]]=\"Gap (presumed homeless)\")),\n((Table117[[#This Row],[End Date]]+1)-Table117[[#This Row],[Start Date]])/(365/12),\n0))))))","v":""},null,{"$f":"IF(Table117[[#This Row],[Housing Situation]]=\"\",\"\",IF(Table117[[#This Row],[Housing Situation Category]]=\"Not_Homeless_Documentation_Source\",\"N/A\",\"\"))","v":""},{"$f":"IF(Table117[[#This Row],[Housing Situation]]=\"\",\"\",IF(Table117[[#This Row],[Housing Situation Category]]=\"Not_Homeless_Documentation_Source\",\"N/A\",\"\"))","v":""},null,{"$f":"IF(OFFSET(Table117[[#This Row],[Months Homeless]],1,0)=\"\",0,IF(AND(Table117[[#This Row],[Months Homeless]]=0,OFFSET(Table117[[#This Row],[Months Homeless]],1,0)>0),1,0))","v":0},{"$f":"IF(\nTable117[[#This Row],[Row number]]=1,\n1,\nIF(OFFSET(Table117[[#This Row],[Months Homeless]],1,0)=\"\",\nINDIRECT(ADDRESS(ROW()-1,COLUMN())),\nIF(\nAND(\nTable117[[#This Row],[Months Homeless]]=0,\nOFFSET(Table117[[#This Row],[Months Homeless]],1,0)>0),\nINDIRECT(ADDRESS(ROW()-1,COLUMN()))+1,\nINDIRECT(ADDRESS(ROW()-1,COLUMN()))\n)\n)\n)","v":2},{"$f":"IF(OR(Table117[[#This Row],[Housing Situation]]=\"\",Table117[[#This Row],[Housing Situation]]=\"Gap (need self-report)\"),\"\",IF(Table117[[#This Row],[Months Homeless]]=\"Missing\",\"No\",IF(AND(Table117[[#This Row],[Housing Situation]]=\"Gap (presumed homeless)\",COUNTA(B42,C42)-(COUNTA(F42,G42)-COUNTBLANK(F42:G42))=0),\"Yes\",IF((COUNTA(B42,C42,E42)-(COUNTA(F42,G42)-COUNTBLANK(F42:G42))=1),\"Yes\",\"No\"))))","v":""},{"$f":"IF(Table117[[#This Row],[Row Complete?]]=\"No\",Table117[[#This Row],[Row number]]+10,\"\")","v":""},{"$f":"ROW(Table117[#This Row])-ROW(Table117[[#Headers], [Housing Situation]])","v":32},{"$f":"IF(ISERROR(_xlfn.DAYS(Table117[[#This Row],[End Date]],Table117[[#This Row],[Start Date]])),\"\",_xlfn.DAYS(Table117[[#This Row],[End Date]],Table117[[#This Row],[Start Date]]))","v":""},{"$f":"IF(Table117[[#This Row],[Housing Situation]]=\"\",\"\",IF(Table117[[#This Row],[Housing Situation]]=Picklists!$A$11,Picklists!$B$1,IF(Table117[[#This Row],[Housing Situation]]=Picklists!$A$2,Picklists!$B$1,IF(Table117[[#This Row],[Housing Situation]]=Picklists!$A$3,Picklists!$B$1,IF(Table117[[#This Row],[Housing Situation]]=Picklists!$A$12,Picklists!$B$1,Picklists!$C$1)))))","v":""},{"$f":"IF(Table117[[#This Row],[Housing Situation Category]]=\"\",\"\",IF(Table117[[#This Row],[Housing Situation Category]]=Picklists!$B$1,Picklists!$D$1,Picklists!$E$1))","v":""}]
[null,null,{"$f":"IF(Table117[[#This Row],[Housing Situation]]=\"\",\"\",IF(Table117[[#This Row],[Row number]]=1,$B$7,IF(OFFSET(C43,-1,-1)=\"\",\"\",OFFSET(C43,-1,-1)-1)))","v":""},{"$f":"IF(\nTable117[[#This Row],[Start Date]]=\"\",\n\"\",\nIF(\nTable117[[#This Row],[Housing Situation]]=\"Gap (need self-report)\",\n\"\",\nIF(\nTable117[[#This Row],[Housing Situation]]=\"\",\n\"Missing\",\nIF(\nOR(\nAND(OR(Table117[[#This Row],[Housing Situation]]=\"Hospital / Psych / Detox\",Table117[[#This Row],[Housing Situation]]=\"Jail / Prison\",Table117[[#This Row],[Housing Situation]]=\"Foster Care / Group Home\"),(Table117[[#This Row],[End Date]]-Table117[[#This Row],[Start Date]])>=90),\nAND(OR(Table117[[#This Row],[Housing Situation]]=\"Apt / House (rented or owned)\",Table117[[#This Row],[Housing Situation]]=\"Friend / Family\",Table117[[#This Row],[Housing Situation]]=\"Self-paid Hotel / Halfway house\",Table117[[#This Row],[Housing Situation]]=\"Transitional Housing\"),(Table117[[#This Row],[End Date]]-Table117[[#This Row],[Start Date]])>=7)),\n0,\nIF(\nOR(Table117[[#This Row],[Housing Situation]]=\"ES / SH / Agency-paid Hotel\",Table117[[#This Row],[Housing Situation]]=\"Place not meant for habitation\",Table117[[#This Row],[Housing Situation]]=\"Gap (presumed homeless)\"),\n((Table117[[#This Row],[End Date]]+1)-Table117[[#This Row],[Start Date]])/(365/12),\nIF(\nAND(\nNOT(OR(Table117[[#This Row],[Housing Situation]]=\"ES / SH / Agency-paid Hotel\",Table117[[#This Row],[Housing Situation]]=\"Place not meant for habitation\",Table117[[#This Row],[Housing Situation]]=\"Gap (presumed homeless)\")),\nOR(OFFSET(Table117[[#This Row],[Housing Situation]],1,0)=\"ES / SH / Agency-paid Hotel\",OFFSET(Table117[[#This Row],[Housing Situation]],1,0)=\"Place not meant for habitation\",Table117[[#This Row],[Housing Situation]]=\"Gap (presumed homeless)\")),\n((Table117[[#This Row],[End Date]]+1)-Table117[[#This Row],[Start Date]])/(365/12),\n0))))))","v":""},null,{"$f":"IF(Table117[[#This Row],[Housing Situation]]=\"\",\"\",IF(Table117[[#This Row],[Housing Situation Category]]=\"Not_Homeless_Documentation_Source\",\"N/A\",\"\"))","v":""},{"$f":"IF(Table117[[#This Row],[Housing Situation]]=\"\",\"\",IF(Table117[[#This Row],[Housing Situation Category]]=\"Not_Homeless_Documentation_Source\",\"N/A\",\"\"))","v":""},null,{"$f":"IF(OFFSET(Table117[[#This Row],[Months Homeless]],1,0)=\"\",0,IF(AND(Table117[[#This Row],[Months Homeless]]=0,OFFSET(Table117[[#This Row],[Months Homeless]],1,0)>0),1,0))","v":0},{"$f":"IF(\nTable117[[#This Row],[Row number]]=1,\n1,\nIF(OFFSET(Table117[[#This Row],[Months Homeless]],1,0)=\"\",\nINDIRECT(ADDRESS(ROW()-1,COLUMN())),\nIF(\nAND(\nTable117[[#This Row],[Months Homeless]]=0,\nOFFSET(Table117[[#This Row],[Months Homeless]],1,0)>0),\nINDIRECT(ADDRESS(ROW()-1,COLUMN()))+1,\nINDIRECT(ADDRESS(ROW()-1,COLUMN()))\n)\n)\n)","v":2},{"$f":"IF(OR(Table117[[#This Row],[Housing Situation]]=\"\",Table117[[#This Row],[Housing Situation]]=\"Gap (need self-report)\"),\"\",IF(Table117[[#This Row],[Months Homeless]]=\"Missing\",\"No\",IF(AND(Table117[[#This Row],[Housing Situation]]=\"Gap (presumed homeless)\",COUNTA(B43,C43)-(COUNTA(F43,G43)-COUNTBLANK(F43:G43))=0),\"Yes\",IF((COUNTA(B43,C43,E43)-(COUNTA(F43,G43)-COUNTBLANK(F43:G43))=1),\"Yes\",\"No\"))))","v":""},{"$f":"IF(Table117[[#This Row],[Row Complete?]]=\"No\",Table117[[#This Row],[Row number]]+10,\"\")","v":""},{"$f":"ROW(Table117[#This Row])-ROW(Table117[[#Headers], [Housing Situation]])","v":33},{"$f":"IF(ISERROR(_xlfn.DAYS(Table117[[#This Row],[End Date]],Table117[[#This Row],[Start Date]])),\"\",_xlfn.DAYS(Table117[[#This Row],[End Date]],Table117[[#This Row],[Start Date]]))","v":""},{"$f":"IF(Table117[[#This Row],[Housing Situation]]=\"\",\"\",IF(Table117[[#This Row],[Housing Situation]]=Picklists!$A$11,Picklists!$B$1,IF(Table117[[#This Row],[Housing Situation]]=Picklists!$A$2,Picklists!$B$1,IF(Table117[[#This Row],[Housing Situation]]=Picklists!$A$3,Picklists!$B$1,IF(Table117[[#This Row],[Housing Situation]]=Picklists!$A$12,Picklists!$B$1,Picklists!$C$1)))))","v":""},{"$f":"IF(Table117[[#This Row],[Housing Situation Category]]=\"\",\"\",IF(Table117[[#This Row],[Housing Situation Category]]=Picklists!$B$1,Picklists!$D$1,Picklists!$E$1))","v":""}]

{"sheet":"Post-Interview Example","index":2,"n_rows":44,"n_cols":20,"rows_kept":44,"cut":false,"hidden":false,"merged":[[6,1,6,3],[6,6,6,7],[7,1,7,2],[8,0,8,7],[0,0,0,7],[2,0,2,7],[3,1,3,3],[4,1,4,3],[5,1,5,3],[5,6,5,7],[1,2,1,7]]}
["Homeless History Tracking Form v1"]
[null,null,"Copyright © 2020 Institute for Community Alliances. All Rights Reserved. For information, contact info@icalliances.org."]
["This form is meant to comprehensively present a client's homelesss history going back 3 years from the interview date and establish current and needed documentation for verifying chronic homeless status."]
["Client Name","Alfie Solomons",null,null,"#Episodes",{"$f":"IFERROR((SUM(Table1174[Break Counter])+1)-$I$11,\"0\")","v":5},"Documented Chronic in 1st Episode?",{"$f":"IF(SUM(SUMIFS(Table1174[Months Homeless],Table1174[Episode'#],1,Table1174[Documentation Obtained?],{\"Yes\",\"N/A - Month already counted\",\"N/A - Not Homeless Not Break\"}))>=12,\"Yes\",\"No\")","v":"No"},null,null,null,null,null,null,null,null,null,null,null,{"$f":"F5*30.4","v":507.72164383561642}]
["HMIS ID",230,null,null,"# Total Reported Months",{"$f":"SUM(Table1174[Months Homeless])","v":16.701369863013699},"Disability Documentation",null,null,null,null,null,null,null,null,null,null,null,null,"Days Documented"]
["Interviewing Staff","Zach Ehmann",null,null,"# Documented Months",{"$f":"SUM(SUMIFS(Table1174[Months Homeless],Table1174[Documentation Obtained?],{\"Yes\",\"N/A\"}))","v":12.493150684931505},"?  ",null,null,null,null,null,null,null,null,null,null,null,null,{"$f":"F6*30.4","v":379.79178082191777}]
["Date of Interview ","2020-01-08",null,null,"# Months requiring documentation to meet length of time threshold",{"$f":"IF($H$4=\"Yes\",\"None - client is verified\",IF($F$6<12,12-$F$6,\"None - client is verified\"))","v":"None - client is verified"},"?  "]
["Data Quality Checks","Self-Certification Count",null,{"$f":"COUNTIF(F:F,\"Self-Certification Letter\")","v":1},"# of gaps needing self-report",{"$f":"IF(COUNTIF(A:A,\"Gap (need self-report)\")=0,\"None\",COUNTIF(A:A,\"Gap (need self-report)\"))","v":"None"},"Row #s with incomplete info",{"$f":"IF(COUNT(Table1174[Incomplete Row Number])=0,\"None\",_xlfn.TEXTJOIN(\", \",TRUE,Table1174[Incomplete Row Number]))","v":"None"},null,null,{"$f":"COUNTA(F11,G11)-COUNTBLANK(F11:G11)","v":2}]
[null,null,null,null,null,null,null,null,null,null,{"$f":"COUNTBLANK(F11:G11)","v":0}]
["Housing Situation","Start Date","End Date","Months Homeless","Whereabouts (description)","Documentation Source (obtained or anticipated)","Documentation Obtained?","Documentation Notes","Break Counter","Episode#","Row Complete?","Incomplete Row Number","Row number","Days Between","Housing Situation Category","Documentation Category"]
["Place not meant for habitation","2020-01-01",{"$f":"IF(Table1174[[#This Row],[Housing Situation]]=\"\",\"\",IF(Table1174[[#This Row],[Row number]]=1,$B$7,IF(OFFSET(C11,-1,-1)=\"\",\"\",OFFSET(C11,-1,-1)-1)))","v":"2020-01-08"},{"$f":"IF(\nTable1174[[#This Row],[Start Date]]=\"\",\n\"\",\nIF(\nTable1174[[#This Row],[Housing Situation]]=\"Gap (need self-report)\",\n\"\",\nIF(\nTable1174[[#This Row],[Housing Situation]]=\"\",\n\"Missing\",\nIF(\nOR(\nAND(OR(Table1174[[#This Row],[Housing Situation]]=\"Hospital / Psych / Detox\",Table1174[[#This Row],[Housing Situation]]=\"Jail / Prison\",Table1174[[#This Row],[Housing Situation]]=\"Foster Care / Group Home\"),(Table1174[[#This Row],[End Date]]-Table1174[[#This Row],[Start Date]])>=90),\nAND(OR(Table1174[[#This Row],[Housing Situation]]=\"Apt / House (rented or owned)\",Table1174[[#This Row],[Housing Situation]]=\"Friend / Family\",Table1174[[#This Row],[Housing Situation]]=\"Self-paid Hotel / Halfway house\",Table1174[[#This Row],[Housing Situation]]=\"Transitional Housing\"),(Table1174[[#This Row],[End Date]]-Table1174[[#This Row],[Start Date]])>=7)),\n0,\nIF(\nOR(Table1174[[#This Row],[Housing Situation]]=\"ES / SH / Agency-paid Hotel\",Table1174[[#This Row],[Housing Situation]]=\"Place not meant for habitation\",Table1174[[#This Row],[Housing Situation]]=\"Gap (presumed homeless)\"),\n((Table1174[[#This Row],[End Date]]+1)-Table1174[[#This Row],[Start Date]])/(365/12),\nIF(\nAND(\nNOT(OR(Table1174[[#This Row],[Housing Situation]]=\"ES / SH / Agency-paid Hotel\",Table1174[[#This Row],[Housing Situation]]=\"Place not meant for habitation\",Table1174[[#This Row],[Housing Situation]]=\"Gap (presumed homeless)\")),\nOR(OFFSET(Table1174[[#This Row],[Housing Situation]],1,0)=\"ES / SH / Agency-paid Hotel\",OFFSET(Table1174[[#This Row],[Housing Situation]],1,0)=\"Place not meant for habitation\",Table1174[[#This Row],[Housing Situation]]=\"Gap (presumed homeless)\")),\n((Table1174[[#This Row],[End Date]]+1)-Table1174[[#This Row],[Start Date]])/(365/12),\n0))))))","v":0.26301369863013696},"Under Bridge (6th/Clybourn)","HMIS ES / SH / SO record(s)","Yes","Milwauke County Street Outreach (1/1/2019)",{"$f":"IF(OFFSET(Table1174[[#This Row],[Months Homeless]],1,0)=\"\",0,IF(AND(Table1174[[#This Row],[Months Homeless]]=0,OFFSET(Table1174[[#This Row],[Months Homeless]],1,0)>0),1,0))","v":0},{"$f":"IF(\nTable1174[[#This Row],[Row number]]=1,\n1,\nIF(OFFSET(Table1174[[#This Row],[Months Homeless]],1,0)=\"\",\nINDIRECT(ADDRESS(ROW()-1,COLUMN())),\nIF(\nAND(\nTable1174[[#This Row],[Months Homeless]]=0,\nOFFSET(Table1174[[#This Row],[Months Homeless]],1,0)>0),\nINDIRECT(ADDRESS(ROW()-1,COLUMN()))+1,\nINDIRECT(ADDRESS(ROW()-1,COLUMN()))\n)\n)\n)","v":1},{"$f":"IF(OR(Table1174[[#This Row],[Housing Situation]]=\"\",Table1174[[#This Row],[Housing Situation]]=\"Gap (need self-report)\"),\"\",IF(Table1174[[#This Row],[Months Homeless]]=\"Missing\",\"No\",IF(AND(Table1174[[#This Row],[Housing Situation]]=\"Gap (presumed homeless)\",COUNTA(B11,C11)-(COUNTA(F11,G11)-COUNTBLANK(F11:G11))=0),\"Yes\",IF((COUNTA(B11,C11,E11)-(COUNTA(F11,G11)-COUNTBLANK(F11:G11))=1),\"Yes\",\"No\"))))","v":"Yes"},{"$f":"IF(Table1174[[#This Row],[Row Complete?]]=\"No\",Table1174[[#This Row],[Row number]]+10,\"\")","v":""},{"$f":"ROW(Table1174[#This Row])-ROW(Table1174[[#Headers], [Housing Situation]])","v":1},{"$f":"IF(ISERROR(_xlfn.DAYS(Table1174[[#This Row],[End Date]],Table1174[[#This Row],[Start Date]])),\"\",_xlfn.DAYS(Table1174[[#This Row],[End Date]],Table1174[[#This Row],[Start Date]]))","v":7},{"$f":"IF(Table1174[[#This Row],[Housing Situation]]=\"\",\"\",IF(Table1174[[#This Row],[Housing Situation]]=Picklists!$A$11,Picklists!$B$1,IF(Table1174[[#This Row],[Housing Situation]]=Picklists!$A$2,Picklists!$B$1,IF(Table1174[[#This Row],[Housing Situation]]=Picklists!$A$3,Picklists!$B$1,IF(Table1174[[#This Row],[Housing Situation]]=Picklists!$A$12,Picklists!$B$1,Picklists!$C$1)))))","v":"Homeless_Documentation_Source"},{"$f":"IF(Table1174[[#This Row],[Housing Situation Category]]=\"\",\"\",IF(Table1174[[#This Row],[Housing Situation Category]]=Picklists!$B$1,Picklists!$D$1,Picklists!$E$1))","v":"Homeless_Documentation_Obtained?"}]
["ES / SH / Agency-paid Hotel","2019-12-15",{"$f":"IF(Table1174[[#This Row],[Housing Situation]]=\"\",\"\",IF(Table1174[[#This Row],[Row number]]=1,$B$7,IF(OFFSET(C12,-1,-1)=\"\",\"\",OFFSET(C12,-1,-1)-1)))","v":"2019-12-31"},{"$f":"IF(\nTable1174[[#This Row],[Start Date]]=\"\",\n\"\",\nIF(\nTable1174[[#This Row],[Housing Situation]]=\"Gap (need self-report)\",\n\"\",\nIF(\nTable1174[[#This Row],[Housing Situation]]=\"\",\n\"Missing\",\nIF(\nOR(\nAND(OR(Table1174[[#This Row],[Housing Situation]]=\"Hospital / Psych / Detox\",Table1174[[#This Row],[Housing Situation]]=\"Jail / Prison\",Table1174[[#This Row],[Housing Situation]]=\"Foster Care / Group Home\"),(Table1174[[#This Row],[End Date]]-Table1174[[#This Row],[Start Date]])>=90),\nAND(OR(Table1174[[#This Row],[Housing Situation]]=\"Apt / House (rented or owned)\",Table1174[[#This Row],[Housing Situation]]=\"Friend / Family\",Table1174[[#This Row],[Housing Situation]]=\"Self-paid Hotel / Halfway house\",Table1174[[#This Row],[Housing Situation]]=\"Transitional Housing\"),(Table1174[[#This Row],[End Date]]-Table1174[[#This Row],[Start Date]])>=7)),\n0,\nIF(\nOR(Table1174[[#This Row],[Housing Situation]]=\"ES / SH / Agency-paid Hotel\",Table1174[[#This Row],[Housing Situation]]=\"Place not meant for habitation\",Table1174[[#This Row],[Housing Situation]]=\"Gap (presumed homeless)\"),\n((Table1174[[#This Row],[End Date]]+1)-Table1174[[#This Row],[Start Date]])/(365/12),\nIF(\nAND(\nNOT(OR(Table1174[[#This Row],[Housing Situation]]=\"ES / SH / Agency-paid Hotel\",Table1174[[#This Row],[Housing Situation]]=\"Place not meant for habitation\",Table1174[[#This Row],[Housing Situation]]=\"Gap (presumed homeless)\")),\nOR(OFFSET(Table1174[[#This Row],[Housing Situation]],1,0)=\"ES / SH / Agency-paid Hotel\",OFFSET(Table1174[[#This Row],[Housing Situation]],1,0)=\"Place not meant for habitation\",Table1174[[#This Row],[Housing Situation]]=\"Gap (presumed homeless)\")),\n((Table1174[[#This Row],[End Date]]+1)-Table1174[[#This Row],[Start Date]])/(365/12),\n0))))))","v":0.55890410958904102},"Salvation Army Emergency Lodge","HMIS ES / SH / SO record(s)","Yes",null,{"$f":"IF(OFFSET(Table1174[[#This Row],[Months Homeless]],1,0)=\"\",0,IF(AND(Table1174[[#This Row],[Months Homeless]]=0,OFFSET(Table1174[[#This Row],[Months Homeless]],1,0)>0),1,0))","v":0},{"$f":"IF(\nTable1174[[#This Row],[Row number]]=1,\n1,\nIF(OFFSET(Table1174[[#This Row],[Months Homeless]],1,0)=\"\",\nINDIRECT(ADDRESS(ROW()-1,COLUMN())),\nIF(\nAND(\nTable1174[[#This Row],[Months Homeless]]=0,\nOFFSET(Table1174[[#This Row],[Months Homeless]],1,0)>0),\nINDIRECT(ADDRESS(ROW()-1,COLUMN()))+1,\nINDIRECT(ADDRESS(ROW()-1,COLUMN()))\n)\n)\n)","v":1},{"$f":"IF(OR(Table1174[[#This Row],[Housing Situation]]=\"\",Table1174[[#This Row],[Housing Situation]]=\"Gap (need self-report)\"),\"\",IF(Table1174[[#This Row],[Months Homeless]]=\"Missing\",\"No\",IF(AND(Table1174[[#This Row],[Housing Situation]]=\"Gap (presumed homeless)\",COUNTA(B12,C12)-(COUNTA(F12,G12)-COUNTBLANK(F12:G12))=0),\"Yes\",IF((COUNTA(B12,C12,E12)-(COUNTA(F12,G12)-COUNTBLANK(F12:G12))=1),\"Yes\",\"No\"))))","v":"Yes"},{"$f":"IF(Table1174[[#This Row],[Row Complete?]]=\"No\",Table1174[[#This Row],[Row number]]+10,\"\")","v":""},{"$f":"ROW(Table1174[#This Row])-ROW(Table1174[[#Headers], [Housing Situation]])","v":2},{"$f":"IF(ISERROR(_xlfn.DAYS(Table1174[[#This Row],[End Date]],Table1174[[#This Row],[Start Date]])),\"\",_xlfn.DAYS(Table1174[[#This Row],[End Date]],Table1174[[#This Row],[Start Date]]))","v":16},{"$f":"IF(Table1174[[#This Row],[Housing Situation]]=\"\",\"\",IF(Table1174[[#This Row],[Housing Situation]]=Picklists!$A$11,Picklists!$B$1,IF(Table1174[[#This Row],[Housing Situation]]=Picklists!$A$2,Picklists!$B$1,IF(Table1174[[#This Row],[Housing Situation]]=Picklists!$A$3,Picklists!$B$1,IF(Table1174[[#This Row],[Housing Situation]]=Picklists!$A$12,Picklists!$B$1,Picklists!$C$1)))))","v":"Homeless_Documentation_Source"},{"$f":"IF(Table1174[[#This Row],[Housing Situation Category]]=\"\",\"\",IF(Table1174[[#This Row],[Housing Situation Category]]=Picklists!$B$1,Picklists!$D$1,Picklists!$E$1))","v":"Homeless_Documentation_Obtained?"}]
["Friend / Family","2019-11-21",{"$f":"IF(Table1174[[#This Row],[Housing Situation]]=\"\",\"\",IF(Table1174[[#This Row],[Row number]]=1,$B$7,IF(OFFSET(C13,-1,-1)=\"\",\"\",OFFSET(C13,-1,-1)-1)))","v":"2019-12-14"},{"$f":"IF(\nTable1174[[#This Row],[Start Date]]=\"\",\n\"\",\nIF(\nTable1174[[#This Row],[Housing Situation]]=\"Gap (need self-report)\",\n\"\",\nIF(\nTable1174[[#This Row],[Housing Situation]]=\"\",\n\"Missing\",\nIF(\nOR(\nAND(OR(Table1174[[#This Row],[Housing Situation]]=\"Hospital / Psych / Detox\",Table1174[[#This Row],[Housing Situation]]=\"Jail / Prison\",Table1174[[#This Row],[Housing Situation]]=\"Foster Care / Group Home\"),(Table1174[[#This Row],[End Date]]-Table1174[[#This Row],[Start Date]])>=90),\nAND(OR(Table1174[[#This Row],[Housing Situation]]=\"Apt / House (rented or owned)\",Table1174[[#This Row],[Housing Situation]]=\"Friend / Family\",Table1174[[#This Row],[Housing Situation]]=\"Self-paid Hotel / Halfway house\",Table1174[[#This Row],[Housing Situation]]=\"Transitional Housing\"),(Table1174[[#This Row],[End Date]]-Table1174[[#This Row],[Start Date]])>=7)),\n0,\nIF(\nOR(Table1174[[#This Row],[Housing Situation]]=\"ES / SH / Agency-paid Hotel\",Table1174[[#This Row],[Housing Situation]]=\"Place not meant for habitation\",Table1174[[#This Row],[Housing Situation]]=\"Gap (presumed homeless)\"),\n((Table1174[[#This Row],[End Date]]+1)-Table1174[[#This Row],[Start Date]])/(365/12),\nIF(\nAND(\nNOT(OR(Table1174[[#This Row],[Housing Situation]]=\"ES / SH / Agency-paid Hotel\",Table1174[[#This Row],[Housing Situation]]=\"Place not meant for habitation\",Table1174[[#This Row],[Housing Situation]]=\"Gap (presumed homeless)\")),\nOR(OFFSET(Table1174[[#This Row],[Housing Situation]],1,0)=\"ES / SH / Agency-paid Hotel\",OFFSET(Table1174[[#This Row],[Housing Situation]],1,0)=\"Place not meant for habitation\",Table1174[[#This Row],[Housing Situation]]=\"Gap (presumed homeless)\")),\n((Table1174[[#This Row],[End Date]]+1)-Table1174[[#This Row],[Start Date]])/(365/12),\n0))))))","v":0},"Stayed with Brother","N/A","N/A",null,{"$f":"IF(OFFSET(Table1174[[#This Row],[Months Homeless]],1,0)=\"\",0,IF(AND(Table1174[[#This Row],[Months Homeless]]=0,OFFSET(Table1174[[#This Row],[Months Homeless]],1,0)>0),1,0))","v":1},{"$f":"IF(\nTable1174[[#This Row],[Row number]]=1,\n1,\nIF(OFFSET(Table1174[[#This Row],[Months Homeless]],1,0)=\"\",\nINDIRECT(ADDRESS(ROW()-1,COLUMN())),\nIF(\nAND(\nTable1174[[#This Row],[Months Homeless]]=0,\nOFFSET(Table1174[[#This Row],[Months Homeless]],1,0)>0),\nINDIRECT(ADDRESS(ROW()-1,COLUMN()))+1,\nINDIRECT(ADDRESS(ROW()-1,COLUMN()))\n)\n)\n)","v":2},{"$f":"IF(OR(Table1174[[#This Row],[Housing Situation]]=\"\",Table1174[[#This Row],[Housing Situation]]=\"Gap (need self-report)\"),\"\",IF(Table1174[[#This Row],[Months Homeless]]=\"Missing\",\"No\",IF(AND(Table1174[[#This Row],[Housing Situation]]=\"Gap (presumed homeless)\",COUNTA(B13,C13)-(COUNTA(F13,G13)-COUNTBLANK(F13:G13))=0),\"Yes\",IF((COUNTA(B13,C13,E13)-(COUNTA(F13,G13)-COUNTBLANK(F13:G13))=1),\"Yes\",\"No\"))))","v":"Yes"},{"$f":"IF(Table1174[[#This Row],[Row Complete?]]=\"No\",Table1174[[#This Row],[Row number]]+10,\"\")","v":""},{"$f":"ROW(Table1174[#This Row])-ROW(Table1174[[#Headers], [Housing Situation]])","v":3},{"$f":"IF(ISERROR(_xlfn.DAYS(Table1174[[#This Row],[End Date]],Table1174[[#This Row],[Start Date]])),\"\",_xlfn.DAYS(Table1174[[#This Row],[End Date]],Table1174[[#This Row],[Start Date]]))","v":23},{"$f":"IF(Table1174[[#This Row],[Housing Situation]]=\"\",\"\",IF(Table1174[[#This Row],[Housing Situation]]=Picklists!$A$11,Picklists!$B$1,IF(Table1174[[#This Row],[Housing Situation]]=Picklists!$A$2,Picklists!$B$1,IF(Table1174[[#This Row],[Housing Situation]]=Picklists!$A$3,Picklists!$B$1,IF(Table1174[[#This Row],[Housing Situation]]=Picklists!$A$12,Picklists!$B$1,Picklists!$C$1)))))","v":"Not_Homeless_Documentation_Source"},{"$f":"IF(Table1174[[#This Row],[Housing Situation Category]]=\"\",\"\",IF(Table1174[[#This Row],[Housing Situation Category]]=Picklists!$B$1,Picklists!$D$1,Picklists!$E$1))","v":"Not_Homeless_Documentation_Obtained?"}]
["ES / SH / Agency-paid Hotel","2019-10-01",{"$f":"IF(Table1174[[#This Row],[Housing Situation]]=\"\",\"\",IF(Table1174[[#This Row],[Row number]]=1,$B$7,IF(OFFSET(C14,-1,-1)=\"\",\"\",OFFSET(C14,-1,-1)-1)))","v":"2019-11-20"},{"$f":"IF(\nTable1174[[#This Row],[Start Date]]=\"\",\n\"\",\nIF(\nTable1174[[#This Row],[Housing Situation]]=\"Gap (need self-report)\",\n\"\",\nIF(\nTable1174[[#This Row],[Housing Situation]]=\"\",\n\"Missing\",\nIF(\nOR(\nAND(OR(Table1174[[#This Row],[Housing Situation]]=\"Hospital / Psych / Detox\",Table1174[[#This Row],[Housing Situation]]=\"Jail / Prison\",Table1174[[#This Row],[Housing Situation]]=\"Foster Care / Group Home\"),(Table1174[[#This Row],[End Date]]-Table1174[[#This Row],[Start Date]])>=90),\nAND(OR(Table1174[[#This Row],[Housing Situation]]=\"Apt / House (rented or owned)\",Table1174[[#This Row],[Housing Situation]]=\"Friend / Family\",Table1174[[#This Row],[Housing Situation]]=\"Self-paid Hotel / Halfway house\",Table1174[[#This Row],[Housing Situation]]=\"Transitional Housing\"),(Table1174[[#This Row],[End Date]]-Table1174[[#This Row],[Start Date]])>=7)),\n0,\nIF(\nOR(Table1174[[#This Row],[Housing Situation]]=\"ES / SH / Agency-paid Hotel\",Table1174[[#This Row],[Housing Situation]]=\"Place not meant for habitation\",Table1174[[#This Row],[Housing Situation]]=\"Gap (presumed homeless)\"),\n((Table1174[[#This Row],[End Date]]+1)-Table1174[[#This Row],[Start Date]])/(365/12),\nIF(\nAND(\nNOT(OR(Table1174[[#This Row],[Housing Situation]]=\"ES / SH / Agency-paid Hotel\",Table1174[[#This Row],[Housing Situation]]=\"Place not meant for habitation\",Table1174[[#This Row],[Housing Situation]]=\"Gap (presumed homeless)\")),\nOR(OFFSET(Table1174[[#This Row],[Housing Situation]],1,0)=\"ES / SH / Agency-paid Hotel\",OFFSET(Table1174[[#This Row],[Housing Situation]],1,0)=\"Place not meant for habitation\",Table1174[[#This Row],[Housing Situation]]=\"Gap (presumed homeless)\")),\n((Table1174[[#This Row],[End Date]]+1)-Table1174[[#This Row],[Start Date]])/(365/12),\n0))))))","v":1.6767123287671233},"Milwaukee Rescue Mission","HMIS ES / SH / SO record(s)","Yes",null,{"$f":"IF(OFFSET(Table1174[[#This Row],[Months Homeless]],1,0)=\"\",0,IF(AND(Table1174[[#This Row],[Months Homeless]]=0,OFFSET(Table1174[[#This Row],[Months Homeless]],1,0)>0),1,0))","v":0},{"$f":"IF(\nTable1174[[#This Row],[Row number]]=1,\n1,\nIF(OFFSET(Table1174[[#This Row],[Months Homeless]],1,0)=\"\",\nINDIRECT(ADDRESS(ROW()-1,COLUMN())),\nIF(\nAND(\nTable1174[[#This Row],[Months Homeless]]=0,\nOFFSET(Table1174[[#This Row],[Months Homeless]],1,0)>0),\nINDIRECT(ADDRESS(ROW()-1,COLUMN()))+1,\nINDIRECT(ADDRESS(ROW()-1,COLUMN()))\n)\n)\n)","v":2},{"$f":"IF(OR(Table1174[[#This Row],[Housing Situation]]=\"\",Table1174[[#This Row],[Housing Situation]]=\"Gap (need self-report)\"),\"\",IF(Table1174[[#This Row],[Months Homeless]]=\"Missing\",\"No\",IF(AND(Table1174[[#This Row],[Housing Situation]]=\"Gap (presumed homeless)\",COUNTA(B14,C14)-(COUNTA(F14,G14)-COUNTBLANK(F14:G14))=0),\"Yes\",IF((COUNTA(B14,C14,E14)-(COUNTA(F14,G14)-COUNTBLANK(F14:G14))=1),\"Yes\",\"No\"))))","v":"Yes"},{"$f":"IF(Table1174[[#This Row],[Row Complete?]]=\"No\",Table1174[[#This Row],[Row number]]+10,\"\")","v":""},{"$f":"ROW(Table1174[#This Row])-ROW(Table1174[[#Headers], [Housing Situation]])","v":4},{"$f":"IF(ISERROR(_xlfn.DAYS(Table1174[[#This Row],[End Date]],Table1174[[#This Row],[Start Date]])),\"\",_xlfn.DAYS(Table1174[[#This Row],[End Date]],Table1174[[#This Row],[Start Date]]))","v":50},{"$f":"IF(Table1174[[#This Row],[Housing Situation]]=\"\",\"\",IF(Table1174[[#This Row],[Housing Situation]]=Picklists!$A$11,Picklists!$B$1,IF(Table1174[[#This Row],[Housing Situation]]=Picklists!$A$2,Picklists!$B$1,IF(Table1174[[#This Row],[Housing Situation]]=Picklists!$A$3,Picklists!$B$1,IF(Table1174[[#This Row],[Housing Situation]]=Picklists!$A$12,Picklists!$B$1,Picklists!$C$1)))))","v":"Homeless_Documentation_Source"},{"$f":"IF(Table1174[[#This Row],[Housing Situation Category]]=\"\",\"\",IF(Table1174[[#This Row],[Housing Situation Category]]=Picklists!$B$1,Picklists!$D$1,Picklists!$E$1))","v":"Homeless_Documentation_Obtained?"}]
["Friend / Family","2019-06-01",{"$f":"IF(Table1174[[#This Row],[Housing Situation]]=\"\",\"\",IF(Table1174[[#This Row],[Row number]]=1,$B$7,IF(OFFSET(C15,-1,-1)=\"\",\"\",OFFSET(C15,-1,-1)-1)))","v":"2019-09-30"},{"$f":"IF(\nTable1174[[#This Row],[Start Date]]=\"\",\n\"\",\nIF(\nTable1174[[#This Row],[Housing Situation]]=\"Gap (need self-report)\",\n\"\",\nIF(\nTable1174[[#This Row],[Housing Situation]]=\"\",\n\"Missing\",\nIF(\nOR(\nAND(OR(Table1174[[#This Row],[Housing Situation]]=\"Hospital / Psych / Detox\",Table1174[[#This Row],[Housing Situation]]=\"Jail / Prison\",Table1174[[#This Row],[Housing Situation]]=\"Foster Care / Group Home\"),(Table1174[[#This Row],[End Date]]-Table1174[[#This Row],[Start Date]])>=90),\nAND(OR(Table1174[[#This Row],[Housing Situation]]=\"Apt / House (rented or owned)\",Table1174[[#This Row],[Housing Situation]]=\"Friend / Family\",Table1174[[#This Row],[Housing Situation]]=\"Self-paid Hotel / Halfway house\",Table1174[[#This Row],[Housing Situation]]=\"Transitional Housing\"),(Table1174[[#This Row],[End Date]]-Table1174[[#This Row],[Start Date]])>=7)),\n0,\nIF(\nOR(Table1174[[#This Row],[Housing Situation]]=\"ES / SH / Agency-paid Hotel\",Table1174[[#This Row],[Housing Situation]]=\"Place not meant for habitation\",Table1174[[#This Row],[Housing Situation]]=\"Gap (presumed homeless)\"),\n((Table1174[[#This Row],[End Date]]+1)-Table1174[[#This Row],[Start Date]])/(365/12),\nIF(\nAND(\nNOT(OR(Table1174[[#This Row],[Housing Situation]]=\"ES / SH / Agency-paid Hotel\",Table1174[[#This Row],[Housing Situation]]=\"Place not meant for habitation\",Table1174[[#This Row],[Housing Situation]]=\"Gap (presumed homeless)\")),\nOR(OFFSET(Table1174[[#This Row],[Housing Situation]],1,0)=\"ES / SH / Agency-paid Hotel\",OFFSET(Table1174[[#This Row],[Housing Situation]],1,0)=\"Place not meant for habitation\",Table1174[[#This Row],[Housing Situation]]=\"Gap (presumed homeless)\")),\n((Table1174[[#This Row],[End Date]]+1)-Table1174[[#This Row],[Start Date]])/(365/12),\n0))))))","v":0},"Stayed with Brother",{"$f":"IF(Table1174[[#This Row],[Housing Situation]]=\"\",\"\",IF(Table1174[[#This Row],[Housing Situation Category]]=\"Not_Homeless_Documentation_Source\",\"N/A\",\"\"))","v":"N/A"},{"$f":"IF(Table1174[[#This Row],[Housing Situation]]=\"\",\"\",IF(Table1174[[#This Row],[Housing Situation Category]]=\"Not_Homeless_Documentation_Source\",\"N/A\",\"\"))","v":"N/A"},null,{"$f":"IF(OFFSET(Table1174[[#This Row],[Months Homeless]],1,0)=\"\",0,IF(AND(Table1174[[#This Row],[Months Homeless]]=0,OFFSET(Table1174[[#This Row],[Months Homeless]],1,0)>0),1,0))","v":0},{"$f":"IF(\nTable1174[[#This Row],[Row number]]=1,\n1,\nIF(OFFSET(Table1174[[#This Row],[Months Homeless]],1,0)=\"\",\nINDIRECT(ADDRESS(ROW()-1,COLUMN())),\nIF(\nAND(\nTable1174[[#This Row],[Months Homeless]]=0,\nOFFSET(Table1174[[#This Row],[Months Homeless]],1,0)>0),\nINDIRECT(ADDRESS(ROW()-1,COLUMN()))+1,\nINDIRECT(ADDRESS(ROW()-1,COLUMN()))\n)\n)\n)","v":2},{"$f":"IF(OR(Table1174[[#This Row],[Housing Situation]]=\"\",Table1174[[#This Row],[Housing Situation]]=\"Gap (need self-report)\"),\"\",IF(Table1174[[#This Row],[Months Homeless]]=\"Missing\",\"No\",IF(AND(Table1174[[#This Row],[Housing Situation]]=\"Gap (presumed homeless)\",COUNTA(B15,C15)-(COUNTA(F15,G15)-COUNTBLANK(F15:G15))=0),\"Yes\",IF((COUNTA(B15,C15,E15)-(COUNTA(F15,G15)-COUNTBLANK(F15:G15))=1),\"Yes\",\"No\"))))","v":"Yes"},{"$f":"IF(Table1174[[#This Row],[Row Complete?]]=\"No\",Table1174[[#This Row],[Row number]]+10,\"\")","v":""},{"$f":"ROW(Table1174[#This Row])-ROW(Table1174[[#Headers], [Housing Situation]])","v":5},{"$f":"IF(ISERROR(_xlfn.DAYS(Table1174[[#This Row],[End Date]],Table1174[[#This Row],[Start Date]])),\"\",_xlfn.DAYS(Table1174[[#This Row],[End Date]],Table1174[[#This Row],[Start Date]]))","v":121},{"$f":"IF(Table1174[[#This Row],[Housing Situation]]=\"\",\"\",IF(Table1174[[#This Row],[Housing Situation]]=Picklists!$A$11,Picklists!$B$1,IF(Table1174[[#This Row],[Housing Situation]]=Picklists!$A$2,Picklists!$B$1,IF(Table1174[[#This Row],[Housing Situation]]=Picklists!$A$3,Picklists!$B$1,IF(Table1174[[#This Row],[Housing Situation]]=Picklists!$A$12,Picklists!$B$1,Picklists!$C$1)))))","v":"Not_Homeless_Documentation_Source"},{"$f":"IF(Table1174[[#This Row],[Housing Situation Category]]=\"\",\"\",IF(Table1174[[#This Row],[Housing Situation Category]]=Picklists!$B$1,Picklists!$D$1,Picklists!$E$1))","v":"Not_Homeless_Documentation_Obtained?"}]
["Apt / House (rented or owned)","2019-01-01",{"$f":"IF(Table1174[[#This Row],[Housing Situation]]=\"\",\"\",IF(Table1174[[#This Row],[Row number]]=1,$B$7,IF(OFFSET(C16,-1,-1)=\"\",\"\",OFFSET(C16,-1,-1)-1)))","v":"2019-05-31"},{"$f":"IF(\nTable1174[[#This Row],[Start Date]]=\"\",\n\"\",\nIF(\nTable1174[[#This Row],[Housing Situation]]=\"Gap (need self-report)\",\n\"\",\nIF(\nTable1174[[#This Row],[Housing Situation]]=\"\",\n\"Missing\",\nIF(\nOR(\nAND(OR(Table1174[[#This Row],[Housing Situation]]=\"Hospital / Psych / Detox\",Table1174[[#This Row],[Housing Situation]]=\"Jail / Prison\",Table1174[[#This Row],[Housing Situation]]=\"Foster Care / Group Home\"),(Table1174[[#This Row],[End Date]]-Table1174[[#This Row],[Start Date]])>=90),\nAND(OR(Table1174[[#This Row],[Housing Situation]]=\"Apt / House (rented or owned)\",Table1174[[#This Row],[Housing Situation]]=\"Friend / Family\",Table1174[[#This Row],[Housing Situation]]=\"Self-paid Hotel / Halfway house\",Table1174[[#This Row],[Housing Situation]]=\"Transitional Housing\"),(Table1174[[#This Row],[End Date]]-Table1174[[#This Row],[Start Date]])>=7)),\n0,\nIF(\nOR(Table1174[[#This Row],[Housing Situation]]=\"ES / SH / Agency-paid Hotel\",Table1174[[#This Row],[Housing Situation]]=\"Place not meant for habitation\",Table1174[[#This Row],[Housing Situation]]=\"Gap (presumed homeless)\"),\n((Table1174[[#This Row],[End Date]]+1)-Table1174[[#This Row],[Start Date]])/(365/12),\nIF(\nAND(\nNOT(OR(Table1174[[#This Row],[Housing Situation]]=\"ES / SH / Agency-paid Hotel\",Table1174[[#This Row],[Housing Situation]]=\"Place not meant for habitation\",Table1174[[#This Row],[Housing Situation]]=\"Gap (presumed homeless)\")),\nOR(OFFSET(Table1174[[#This Row],[Housing Situation]],1,0)=\"ES / SH / Agency-paid Hotel\",OFFSET(Table1174[[#This Row],[Housing Situation]],1,0)=\"Place not meant for habitation\",Table1174[[#This Row],[Housing Situation]]=\"Gap (presumed homeless)\")),\n((Table1174[[#This Row],[End Date]]+1)-Table1174[[#This Row],[Start Date]])/(365/12),\n0))))))","v":0},"1510 Wright St.",{"$f":"IF(Table1174[[#This Row],[Housing Situation]]=\"\",\"\",IF(Table1174[[#This Row],[Housing Situation Category]]=\"Not_Homeless_Documentation_Source\",\"N/A\",\"\"))","v":"N/A"},{"$f":"IF(Table1174[[#This Row],[Housing Situation]]=\"\",\"\",IF(Table1174[[#This Row],[Housing Situation Category]]=\"Not_Homeless_Documentation_Source\",\"N/A\",\"\"))","v":"N/A"},"Received Guest House RRH subsidy during this time.",{"$f":"IF(OFFSET(Table1174[[#This Row],[Months Homeless]],1,0)=\"\",0,IF(AND(Table1174[[#This Row],[Months Homeless]]=0,OFFSET(Table1174[[#This Row],[Months Homeless]],1,0)>0),1,0))","v":1},{"$f":"IF(\nTable1174[[#This Row],[Row number]]=1,\n1,\nIF(OFFSET(Table1174[[#This Row],[Months Homeless]],1,0)=\"\",\nINDIRECT(ADDRESS(ROW()-1,COLUMN())),\nIF(\nAND(\nTable1174[[#This Row],[Months Homeless]]=0,\nOFFSET(Table1174[[#This Row],[Months Homeless]],1,0)>0),\nINDIRECT(ADDRESS(ROW()-1,COLUMN()))+1,\nINDIRECT(ADDRESS(ROW()-1,COLUMN()))\n)\n)\n)","v":3},{"$f":"IF(OR(Table1174[[#This Row],[Housing Situation]]=\"\",Table1174[[#This Row],[Housing Situation]]=\"Gap (need self-report)\"),\"\",IF(Table1174[[#This Row],[Months Homeless]]=\"Missing\",\"No\",IF(AND(Table1174[[#This Row],[Housing Situation]]=\"Gap (presumed homeless)\",COUNTA(B16,C16)-(COUNTA(F16,G16)-COUNTBLANK(F16:G16))=0),\"Yes\",IF((COUNTA(B16,C16,E16)-(COUNTA(F16,G16)-COUNTBLANK(F16:G16))=1),\"Yes\",\"No\"))))","v":"Yes"},{"$f":"IF(Table1174[[#This Row],[Row Complete?]]=\"No\",Table1174[[#This Row],[Row number]]+10,\"\")","v":""},{"$f":"ROW(Table1174[#This Row])-ROW(Table1174[[#Headers], [Housing Situation]])","v":6},{"$f":"IF(ISERROR(_xlfn.DAYS(Table1174[[#This Row],[End Date]],Table1174[[#This Row],[Start Date]])),\"\",_xlfn.DAYS(Table1174[[#This Row],[End Date]],Table1174[[#This Row],[Start Date]]))","v":150},{"$f":"IF(Table1174[[#This Row],[Housing Situation]]=\"\",\"\",IF(Table1174[[#This Row],[Housing Situation]]=Picklists!$A$11,Picklists!$B$1,IF(Table1174[[#This Row],[Housing Situation]]=Picklists!$A$2,Picklists!$B$1,IF(Table1174[[#This Row],[Housing Situation]]=Picklists!$A$3,Picklists!$B$1,IF(Table1174[[#This Row],[Housing Situation]]=Picklists!$A$12,Picklists!$B$1,Picklists!$C$1)))))","v":"Not_Homeless_Documentation_Source"},{"$f":"IF(Table1174[[#This Row],[Housing Situation Category]]=\"\",\"\",IF(Table1174[[#This Row],[Housing Situation Category]]=Picklists!$B$1,Picklists!$D$1,Picklists!$E$1))","v":"Not_Homeless_Documentation_Obtained?"}]
["Place not meant for habitation","2018-12-01",{"$f":"IF(Table1174[[#This Row],[Housing Situation]]=\"\",\"\",IF(Table1174[[#This Row],[Row number]]=1,$B$7,IF(OFFSET(C17,-1,-1)=\"\",\"\",OFFSET(C17,-1,-1)-1)))","v":"2018-12-31"},{"$f":"IF(\nTable1174[[#This Row],[Start Date]]=\"\",\n\"\",\nIF(\nTable1174[[#This Row],[Housing Situation]]=\"Gap (need self-report)\",\n\"\",\nIF(\nTable1174[[#This Row],[Housing Situation]]=\"\",\n\"Missing\",\nIF(\nOR(\nAND(OR(Table1174[[#This Row],[Housing Situation]]=\"Hospital / Psych / Detox\",Table1174[[#This Row],[Housing Situation]]=\"Jail / Prison\",Table1174[[#This Row],[Housing Situation]]=\"Foster Care / Group Home\"),(Table1174[[#This Row],[End Date]]-Table1174[[#This Row],[Start Date]])>=90),\nAND(OR(Table1174[[#This Row],[Housing Situation]]=\"Apt / House (rented or owned)\",Table1174[[#This Row],[Housing Situation]]=\"Friend / Family\",Table1174[[#This Row],[Housing Situation]]=\"Self-paid Hotel / Halfway house\",Table1174[[#This Row],[Housing Situation]]=\"Transitional Housing\"),(Table1174[[#This Row],[End Date]]-Table1174[[#This Row],[Start Date]])>=7)),\n0,\nIF(\nOR(Table1174[[#This Row],[Housing Situation]]=\"ES / SH / Agency-paid Hotel\",Table1174[[#This Row],[Housing Situation]]=\"Place not meant for habitation\",Table1174[[#This Row],[Housing Situation]]=\"Gap (presumed homeless)\"),\n((Table1174[[#This Row],[End Date]]+1)-Table1174[[#This Row],[Start Date]])/(365/12),\nIF(\nAND(\nNOT(OR(Table1174[[#This Row],[Housing Situation]]=\"ES / SH / Agency-paid Hotel\",Table1174[[#This Row],[Housing Situation]]=\"Place not meant for habitation\",Table1174[[#This Row],[Housing Situation]]=\"Gap (presumed homeless)\")),\nOR(OFFSET(Table1174[[#This Row],[Housing Situation]],1,0)=\"ES / SH / Agency-paid Hotel\",OFFSET(Table1174[[#This Row],[Housing Situation]],1,0)=\"Place not meant for habitation\",Table1174[[#This Row],[Housing Situation]]=\"Gap (presumed homeless)\")),\n((Table1174[[#This Row],[End Date]]+1)-Table1174[[#This Row],[Start Date]])/(365/12),\n0))))))","v":1.0191780821917809},"In car at Walmart parking lot","3rd Party Letter","Pending","Street Angels verified",{"$f":"IF(OFFSET(Table1174[[#This Row],[Months Homeless]],1,0)=\"\",0,IF(AND(Table1174[[#This Row],[Months Homeless]]=0,OFFSET(Table1174[[#This Row],[Months Homeless]],1,0)>0),1,0))","v":0},{"$f":"IF(\nTable1174[[#This Row],[Row number]]=1,\n1,\nIF(OFFSET(Table1174[[#This Row],[Months Homeless]],1,0)=\"\",\nINDIRECT(ADDRESS(ROW()-1,COLUMN())),\nIF(\nAND(\nTable1174[[#This Row],[Months Homeless]]=0,\nOFFSET(Table1174[[#This Row],[Months Homeless]],1,0)>0),\nINDIRECT(ADDRESS(ROW()-1,COLUMN()))+1,\nINDIRECT(ADDRESS(ROW()-1,COLUMN()))\n)\n)\n)","v":3},{"$f":"IF(OR(Table1174[[#This Row],[Housing Situation]]=\"\",Table1174[[#This Row],[Housing Situation]]=\"Gap (need self-report)\"),\"\",IF(Table1174[[#This Row],[Months Homeless]]=\"Missing\",\"No\",IF(AND(Table1174[[#This Row],[Housing Situation]]=\"Gap (presumed homeless)\",COUNTA(B17,C17)-(COUNTA(F17,G17)-COUNTBLANK(F17:G17))=0),\"Yes\",IF((COUNTA(B17,C17,E17)-(COUNTA(F17,G17)-COUNTBLANK(F17:G17))=1),\"Yes\",\"No\"))))","v":"Yes"},{"$f":"IF(Table1174[[#This Row],[Row Complete?]]=\"No\",Table1174[[#This Row],[Row number]]+10,\"\")","v":""},{"$f":"ROW(Table1174[#This Row])-ROW(Table1174[[#Headers], [Housing Situation]])","v":7},{"$f":"IF(ISERROR(_xlfn.DAYS(Table1174[[#This Row],[End Date]],Table1174[[#This Row],[Start Date]])),\"\",_xlfn.DAYS(Table1174[[#This Row],[End Date]],Table1174[[#This Row],[Start Date]]))","v":30},{"$f":"IF(Table1174[[#This Row],[Housing Situation]]=\"\",\"\",IF(Table1174[[#This Row],[Housing Situation]]=Picklists!$A$11,Picklists!$B$1,IF(Table1174[[#This Row],[Housing Situation]]=Picklists!$A$2,Picklists!$B$1,IF(Table1174[[#This Row],[Housing Situation]]=Picklists!$A$3,Picklists!$B$1,IF(Table1174[[#This Row],[Housing Situation]]=Picklists!$A$12,Picklists!$B$1,Picklists!$C$1)))))","v":"Homeless_Documentation_Source"},{"$f":"IF(Table1174[[#This Row],[Housing Situation Category]]=\"\",\"\",IF(Table1174[[#This Row],[Housing Situation Category]]=Picklists!$B$1,Picklists!$D$1,Picklists!$E$1))","v":"Homeless_Documentation_Obtained?"}]
["Jail / Prison","2018-10-21",{"$f":"IF(Table1174[[#This Row],[Housing Situation]]=\"\",\"\",IF(Table1174[[#This Row],[Row number]]=1,$B$7,IF(OFFSET(C18,-1,-1)=\"\",\"\",OFFSET(C18,-1,-1)-1)))","v":"2018-11-30"},{"$f":"IF(\nTable1174[[#This Row],[Start Date]]=\"\",\n\"\",\nIF(\nTable1174[[#This Row],[Housing Situation]]=\"Gap (need self-report)\",\n\"\",\nIF(\nTable1174[[#This Row],[Housing Situation]]=\"\",\n\"Missing\",\nIF(\nOR(\nAND(OR(Table1174[[#This Row],[Housing Situation]]=\"Hospital / Psych / Detox\",Table1174[[#This Row],[Housing Situation]]=\"Jail / Prison\",Table1174[[#This Row],[Housing Situation]]=\"Foster Care / Group Home\"),(Table1174[[#This Row],[End Date]]-Table1174[[#This Row],[Start Date]])>=90),\nAND(OR(Table1174[[#This Row],[Housing Situation]]=\"Apt / House (rented or owned)\",Table1174[[#This Row],[Housing Situation]]=\"Friend / Family\",Table1174[[#This Row],[Housing Situation]]=\"Self-paid Hotel / Halfway house\",Table1174[[#This Row],[Housing Situation]]=\"Transitional Housing\"),(Table1174[[#This Row],[End Date]]-Table1174[[#This Row],[Start Date]])>=7)),\n0,\nIF(\nOR(Table1174[[#This Row],[Housing Situation]]=\"ES / SH / Agency-paid Hotel\",Table1174[[#This Row],[Housing Situation]]=\"Place not meant for habitation\",Table1174[[#This Row],[Housing Situation]]=\"Gap (presumed homeless)\"),\n((Table1174[[#This Row],[End Date]]+1)-Table1174[[#This Row],[Start Date]])/(365/12),\nIF(\nAND(\nNOT(OR(Table1174[[#This Row],[Housing Situation]]=\"ES / SH / Agency-paid Hotel\",Table1174[[#This Row],[Housing Situation]]=\"Place not meant for habitation\",Table1174[[#This Row],[Housing Situation]]=\"Gap (presumed homeless)\")),\nOR(OFFSET(Table1174[[#This Row],[Housing Situation]],1,0)=\"ES / SH / Agency-paid Hotel\",OFFSET(Table1174[[#This Row],[Housing Situation]],1,0)=\"Place not meant for habitation\",Table1174[[#This Row],[Housing Situation]]=\"Gap (presumed homeless)\")),\n((Table1174[[#This Row],[End Date]]+1)-Table1174[[#This Row],[Start Date]])/(365/12),\n0))))))","v":1.3479452054794521},"Milwaukee Secure Detention Facility","N/A","N/A",null,{"$f":"IF(OFFSET(Table1174[[#This Row],[Months Homeless]],1,0)=\"\",0,IF(AND(Table1174[[#This Row],[Months Homeless]]=0,OFFSET(Table1174[[#This Row],[Months Homeless]],1,0)>0),1,0))","v":0},{"$f":"IF(\nTable1174[[#This Row],[Row number]]=1,\n1,\nIF(OFFSET(Table1174[[#This Row],[Months Homeless]],1,0)=\"\",\nINDIRECT(ADDRESS(ROW()-1,COLUMN())),\nIF(\nAND(\nTable1174[[#This Row],[Months Homeless]]=0,\nOFFSET(Table1174[[#This Row],[Months Homeless]],1,0)>0),\nINDIRECT(ADDRESS(ROW()-1,COLUMN()))+1,\nINDIRECT(ADDRESS(ROW()-1,COLUMN()))\n)\n)\n)","v":3},{"$f":"IF(OR(Table1174[[#This Row],[Housing Situation]]=\"\",Table1174[[#This Row],[Housing Situation]]=\"Gap (need self-report)\"),\"\",IF(Table1174[[#This Row],[Months Homeless]]=\"Missing\",\"No\",IF(AND(Table1174[[#This Row],[Housing Situation]]=\"Gap (presumed homeless)\",COUNTA(B18,C18)-(COUNTA(F18,G18)-COUNTBLANK(F18:G18))=0),\"Yes\",IF((COUNTA(B18,C18,E18)-(COUNTA(F18,G18)-COUNTBLANK(F18:G18))=1),\"Yes\",\"No\"))))","v":"Yes"},{"$f":"IF(Table1174[[#This Row],[Row Complete?]]=\"No\",Table1174[[#This Row],[Row number]]+10,\"\")","v":""},{"$f":"ROW(Table1174[#This Row])-ROW(Table1174[[#Headers], [Housing Situation]])","v":8},{"$f":"IF(ISERROR(_xlfn.DAYS(Table1174[[#This Row],[End Date]],Table1174[[#This Row],[Start Date]])),\"\",_xlfn.DAYS(Table1174[[#This Row],[End Date]],Table1174[[#This Row],[Start Date]]))","v":40},{"$f":"IF(Table1174[[#This Row],[Housing Situation]]=\"\",\"\",IF(Table1174[[#This Row],[Housing Situation]]=Picklists!$A$11,Picklists!$B$1,IF(Table1174[[#This Row],[Housing Situation]]=Picklists!$A$2,Picklists!$B$1,IF(Table1174[[#This Row],[Housing Situation]]=Picklists!$A$3,Picklists!$B$1,IF(Table1174[[#This Row],[Housing Situation]]=Picklists!$A$12,Picklists!$B$1,Picklists!$C$1)))))","v":"Not_Homeless_Documentation_Source"},{"$f":"IF(Table1174[[#This Row],[Housing Situation Category]]=\"\",\"\",IF(Table1174[[#This Row],[Housing Situation Category]]=Picklists!$B$1,Picklists!$D$1,Picklists!$E$1))","v":"Not_Homeless_Documentation_Obtained?"}]
["ES / SH / Agency-paid Hotel","2018-10-10",{"$f":"IF(Table1174[[#This Row],[Housing Situation]]=\"\",\"\",IF(Table1174[[#This Row],[Row number]]=1,$B$7,IF(OFFSET(C19,-1,-1)=\"\",\"\",OFFSET(C19,-1,-1)-1)))","v":"2018-10-20"},{"$f":"IF(\nTable1174[[#This Row],[Start Date]]=\"\",\n\"\",\nIF(\nTable1174[[#This Row],[Housing Situation]]=\"Gap (need self-report)\",\n\"\",\nIF(\nTable1174[[#This Row],[Housing Situation]]=\"\",\n\"Missing\",\nIF(\nOR(\nAND(OR(Table1174[[#This Row],[Housing Situation]]=\"Hospital / Psych / Detox\",Table1174[[#This Row],[Housing Situation]]=\"Jail / Prison\",Table1174[[#This Row],[Housing Situation]]=\"Foster Care / Group Home\"),(Table1174[[#This Row],[End Date]]-Table1174[[#This Row],[Start Date]])>=90),\nAND(OR(Table1174[[#This Row],[Housing Situation]]=\"Apt / House (rented or owned)\",Table1174[[#This Row],[Housing Situation]]=\"Friend / Family\",Table1174[[#This Row],[Housing Situation]]=\"Self-paid Hotel / Halfway house\",Table1174[[#This Row],[Housing Situation]]=\"Transitional Housing\"),(Table1174[[#This Row],[End Date]]-Table1174[[#This Row],[Start Date]])>=7)),\n0,\nIF(\nOR(Table1174[[#This Row],[Housing Situation]]=\"ES / SH / Agency-paid Hotel\",Table1174[[#This Row],[Housing Situation]]=\"Place not meant for habitation\",Table1174[[#This Row],[Housing Situation]]=\"Gap (presumed homeless)\"),\n((Table1174[[#This Row],[End Date]]+1)-Table1174[[#This Row],[Start Date]])/(365/12),\nIF(\nAND(\nNOT(OR(Table1174[[#This Row],[Housing Situation]]=\"ES / SH / Agency-paid Hotel\",Table1174[[#This Row],[Housing Situation]]=\"Place not meant for habitation\",Table1174[[#This Row],[Housing Situation]]=\"Gap (presumed homeless)\")),\nOR(OFFSET(Table1174[[#This Row],[Housing Situation]],1,0)=\"ES / SH / Agency-paid Hotel\",OFFSET(Table1174[[#This Row],[Housing Situation]],1,0)=\"Place not meant for habitation\",Table1174[[#This Row],[Housing Situation]]=\"Gap (presumed homeless)\")),\n((Table1174[[#This Row],[End Date]]+1)-Table1174[[#This Row],[Start Date]])/(365/12),\n0))))))","v":0.36164383561643837},"Guest House ES","HMIS ES / SH / SO record(s)","Yes","Exit from GH was to Jail/Prison",{"$f":"IF(OFFSET(Table1174[[#This Row],[Months Homeless]],1,0)=\"\",0,IF(AND(Table1174[[#This Row],[Months Homeless]]=0,OFFSET(Table1174[[#This Row],[Months Homeless]],1,0)>0),1,0))","v":0},{"$f":"IF(\nTable1174[[#This Row],[Row number]]=1,\n1,\nIF(OFFSET(Table1174[[#This Row],[Months Homeless]],1,0)=\"\",\nINDIRECT(ADDRESS(ROW()-1,COLUMN())),\nIF(\nAND(\nTable1174[[#This Row],[Months Homeless]]=0,\nOFFSET(Table1174[[#This Row],[Months Homeless]],1,0)>0),\nINDIRECT(ADDRESS(ROW()-1,COLUMN()))+1,\nINDIRECT(ADDRESS(ROW()-1,COLUMN()))\n)\n)\n)","v":3},{"$f":"IF(OR(Table1174[[#This Row],[Housing Situation]]=\"\",Table1174[[#This Row],[Housing Situation]]=\"Gap (need self-report)\"),\"\",IF(Table1174[[#This Row],[Months Homeless]]=\"Missing\",\"No\",IF(AND(Table1174[[#This Row],[Housing Situation]]=\"Gap (presumed homeless)\",COUNTA(B19,C19)-(COUNTA(F19,G19)-COUNTBLANK(F19:G19))=0),\"Yes\",IF((COUNTA(B19,C19,E19)-(COUNTA(F19,G19)-COUNTBLANK(F19:G19))=1),\"Yes\",\"No\"))))","v":"Yes"},{"$f":"IF(Table1174[[#This Row],[Row Complete?]]=\"No\",Table1174[[#This Row],[Row number]]+10,\"\")","v":""},{"$f":"ROW(Table1174[#This Row])-ROW(Table1174[[#Headers], [Housing Situation]])","v":9},{"$f":"IF(ISERROR(_xlfn.DAYS(Table1174[[#This Row],[End Date]],Table1174[[#This Row],[Start Date]])),\"\",_xlfn.DAYS(Table1174[[#This Row],[End Date]],Table1174[[#This Row],[Start Date]]))","v":10},{"$f":"IF(Table1174[[#This Row],[Housing Situation]]=\"\",\"\",IF(Table1174[[#This Row],[Housing Situation]]=Picklists!$A$11,Picklists!$B$1,IF(Table1174[[#This Row],[Housing Situation]]=Picklists!$A$2,Picklists!$B$1,IF(Table1174[[#This Row],[Housing Situation]]=Picklists!$A$3,Picklists!$B$1,IF(Table1174[[#This Row],[Housing Situation]]=Picklists!$A$12,Picklists!$B$1,Picklists!$C$1)))))","v":"Homeless_Documentation_Source"},{"$f":"IF(Table1174[[#This Row],[Housing Situation Category]]=\"\",\"\",IF(Table1174[[#This Row],[Housing Situation Category]]=Picklists!$B$1,Picklists!$D$1,Picklists!$E$1))","v":"Homeless_Documentation_Obtained?"}]
["Gap (presumed homeless)","2018-10-03",{"$f":"IF(Table1174[[#This Row],[Housing Situation]]=\"\",\"\",IF(Table1174[[#This Row],[Row number]]=1,$B$7,IF(OFFSET(C20,-1,-1)=\"\",\"\",OFFSET(C20,-1,-1)-1)))","v":"2018-10-09"},{"$f":"IF(\nTable1174[[#This Row],[Start Date]]=\"\",\n\"\",\nIF(\nTable1174[[#This Row],[Housing Situation]]=\"Gap (need self-report)\",\n\"\",\nIF(\nTable1174[[#This Row],[Housing Situation]]=\"\",\n\"Missing\",\nIF(\nOR(\nAND(OR(Table1174[[#This Row],[Housing Situation]]=\"Hospital / Psych / Detox\",Table1174[[#This Row],[Housing Situation]]=\"Jail / Prison\",Table1174[[#This Row],[Housing Situation]]=\"Foster Care / Group Home\"),(Table1174[[#This Row],[End Date]]-Table1174[[#This Row],[Start Date]])>=90),\nAND(OR(Table1174[[#This Row],[Housing Situation]]=\"Apt / House (rented or owned)\",Table1174[[#This Row],[Housing Situation]]=\"Friend / Family\",Table1174[[#This Row],[Housing Situation]]=\"Self-paid Hotel / Halfway house\",Table1174[[#This Row],[Housing Situation]]=\"Transitional Housing\"),(Table1174[[#This Row],[End Date]]-Table1174[[#This Row],[Start Date]])>=7)),\n0,\nIF(\nOR(Table1174[[#This Row],[Housing Situation]]=\"ES / SH / Agency-paid Hotel\",Table1174[[#This Row],[Housing Situation]]=\"Place not meant for habitation\",Table1174[[#This Row],[Housing Situation]]=\"Gap (presumed homeless)\"),\n((Table1174[[#This Row],[End Date]]+1)-Table1174[[#This Row],[Start Date]])/(365/12),\nIF(\nAND(\nNOT(OR(Table1174[[#This Row],[Housing Situation]]=\"ES / SH / Agency-paid Hotel\",Table1174[[#This Row],[Housing Situation]]=\"Place not meant for habitation\",Table1174[[#This Row],[Housing Situation]]=\"Gap (presumed homeless)\")),\nOR(OFFSET(Table1174[[#This Row],[Housing Situation]],1,0)=\"ES / SH / Agency-paid Hotel\",OFFSET(Table1174[[#This Row],[Housing Situation]],1,0)=\"Place not meant for habitation\",Table1174[[#This Row],[Housing Situation]]=\"Gap (presumed homeless)\")),\n((Table1174[[#This Row],[End Date]]+1)-Table1174[[#This Row],[Start Date]])/(365/12),\n0))))))","v":0.23013698630136986},null,"Month Already Counted","Yes",null,{"$f":"IF(OFFSET(Table1174[[#This Row],[Months Homeless]],1,0)=\"\",0,IF(AND(Table1174[[#This Row],[Months Homeless]]=0,OFFSET(Table1174[[#This Row],[Months Homeless]],1,0)>0),1,0))","v":0},{"$f":"IF(\nTable1174[[#This Row],[Row number]]=1,\n1,\nIF(OFFSET(Table1174[[#This Row],[Months Homeless]],1,0)=\"\",\nINDIRECT(ADDRESS(ROW()-1,COLUMN())),\nIF(\nAND(\nTable1174[[#This Row],[Months Homeless]]=0,\nOFFSET(Table1174[[#This Row],[Months Homeless]],1,0)>0),\nINDIRECT(ADDRESS(ROW()-1,COLUMN()))+1,\nINDIRECT(ADDRESS(ROW()-1,COLUMN()))\n)\n)\n)","v":3},{"$f":"IF(OR(Table1174[[#This Row],[Housing Situation]]=\"\",Table1174[[#This Row],[Housing Situation]]=\"Gap (need self-report)\"),\"\",IF(Table1174[[#This Row],[Months Homeless]]=\"Missing\",\"No\",IF(AND(Table1174[[#This Row],[Housing Situation]]=\"Gap (presumed homeless)\",COUNTA(B20,C20)-(COUNTA(F20,G20)-COUNTBLANK(F20:G20))=0),\"Yes\",IF((COUNTA(B20,C20,E20)-(COUNTA(F20,G20)-COUNTBLANK(F20:G20))=1),\"Yes\",\"No\"))))","v":"Yes"},{"$f":"IF(Table1174[[#This Row],[Row Complete?]]=\"No\",Table1174[[#This Row],[Row number]]+10,\"\")","v":""},{"$f":"ROW(Table1174[#This Row])-ROW(Table1174[[#Headers], [Housing Situation]])","v":10},{"$f":"IF(ISERROR(_xlfn.DAYS(Table1174[[#This Row],[End Date]],Table1174[[#This Row],[Start Date]])),\"\",_xlfn.DAYS(Table1174[[#This Row],[End Date]],Table1174[[#This Row],[Start Date]]))","v":6},{"$f":"IF(Table1174[[#This Row],[Housing Situation]]=\"\",\"\",IF(Table1174[[#This Row],[Housing Situation]]=Picklists!$A$11,Picklists!$B$1,IF(Table1174[[#This Row],[Housing Situation]]=Picklists!$A$2,Picklists!$B$1,IF(Table1174[[#This Row],[Housing Situation]]=Picklists!$A$3,Picklists!$B$1,IF(Table1174[[#This Row],[Housing Situation]]=Picklists!$A$12,Picklists!$B$1,Picklists!$C$1)))))","v":"Homeless_Documentation_Source"},{"$f":"IF(Table1174[[#This Row],[Housing Situation Category]]=\"\",\"\",IF(Table1174[[#This Row],[Housing Situation Category]]=Picklists!$B$1,Picklists!$D$1,Picklists!$E$1))","v":"Homeless_Documentation_Obtained?"}]
["ES / SH / Agency-paid Hotel","2018-08-15",{"$f":"IF(Table1174[[#This Row],[Housing Situation]]=\"\",\"\",IF(Table1174[[#This Row],[Row number]]=1,$B$7,IF(OFFSET(C21,-1,-1)=\"\",\"\",OFFSET(C21,-1,-1)-1)))","v":"2018-10-02"},{"$f":"IF(\nTable1174[[#This Row],[Start Date]]=\"\",\n\"\",\nIF(\nTable1174[[#This Row],[Housing Situation]]=\"Gap (need self-report)\",\n\"\",\nIF(\nTable1174[[#This Row],[Housing Situation]]=\"\",\n\"Missing\",\nIF(\nOR(\nAND(OR(Table1174[[#This Row],[Housing Situation]]=\"Hospital / Psych / Detox\",Table1174[[#This Row],[Housing Situation]]=\"Jail / Prison\",Table1174[[#This Row],[Housing Situation]]=\"Foster Care / Group Home\"),(Table1174[[#This Row],[End Date]]-Table1174[[#This Row],[Start Date]])>=90),\nAND(OR(Table1174[[#This Row],[Housing Situation]]=\"Apt / House (rented or owned)\",Table1174[[#This Row],[Housing Situation]]=\"Friend / Family\",Table1174[[#This Row],[Housing Situation]]=\"Self-paid Hotel / Halfway house\",Table1174[[#This Row],[Housing Situation]]=\"Transitional Housing\"),(Table1174[[#This Row],[End Date]]-Table1174[[#This Row],[Start Date]])>=7)),\n0,\nIF(\nOR(Table1174[[#This Row],[Housing Situation]]=\"ES / SH / Agency-paid Hotel\",Table1174[[#This Row],[Housing Situation]]=\"Place not meant for habitation\",Table1174[[#This Row],[Housing Situation]]=\"Gap (presumed homeless)\"),\n((Table1174[[#This Row],[End Date]]+1)-Table1174[[#This Row],[Start Date]])/(365/12),\nIF(\nAND(\nNOT(OR(Table1174[[#This Row],[Housing Situation]]=\"ES / SH / Agency-paid Hotel\",Table1174[[#This Row],[Housing Situation]]=\"Place not meant for habitation\",Table1174[[#This Row],[Housing Situation]]=\"Gap (presumed homeless)\")),\nOR(OFFSET(Table1174[[#This Row],[Housing Situation]],1,0)=\"ES / SH / Agency-paid Hotel\",OFFSET(Table1174[[#This Row],[Housing Situation]],1,0)=\"Place not meant for habitation\",Table1174[[#This Row],[Housing Situation]]=\"Gap (presumed homeless)\")),\n((Table1174[[#This Row],[End Date]]+1)-Table1174[[#This Row],[Start Date]])/(365/12),\n0))))))","v":1.6109589041095891},"Salvation Army Emergency Lodge","HMIS ES / SH / SO record(s)","Yes",null,{"$f":"IF(OFFSET(Table1174[[#This Row],[Months Homeless]],1,0)=\"\",0,IF(AND(Table1174[[#This Row],[Months Homeless]]=0,OFFSET(Table1174[[#This Row],[Months Homeless]],1,0)>0),1,0))","v":0},{"$f":"IF(\nTable1174[[#This Row],[Row number]]=1,\n1,\nIF(OFFSET(Table1174[[#This Row],[Months Homeless]],1,0)=\"\",\nINDIRECT(ADDRESS(ROW()-1,COLUMN())),\nIF(\nAND(\nTable1174[[#This Row],[Months Homeless]]=0,\nOFFSET(Table1174[[#This Row],[Months Homeless]],1,0)>0),\nINDIRECT(ADDRESS(ROW()-1,COLUMN()))+1,\nINDIRECT(ADDRESS(ROW()-1,COLUMN()))\n)\n)\n)","v":3},{"$f":"IF(OR(Table1174[[#This Row],[Housing Situation]]=\"\",Table1174[[#This Row],[Housing Situation]]=\"Gap (need self-report)\"),\"\",IF(Table1174[[#This Row],[Months Homeless]]=\"Missing\",\"No\",IF(AND(Table1174[[#This Row],[Housing Situation]]=\"Gap (presumed homeless)\",COUNTA(B21,C21)-(COUNTA(F21,G21)-COUNTBLANK(F21:G21))=0),\"Yes\",IF((COUNTA(B21,C21,E21)-(COUNTA(F21,G21)-COUNTBLANK(F21:G21))=1),\"Yes\",\"No\"))))","v":"Yes"},{"$f":"IF(Table1174[[#This Row],[Row Complete?]]=\"No\",Table1174[[#This Row],[Row number]]+10,\"\")","v":""},{"$f":"ROW(Table1174[#This Row])-ROW(Table1174[[#Headers], [Housing Situation]])","v":11},{"$f":"IF(ISERROR(_xlfn.DAYS(Table1174[[#This Row],[End Date]],Table1174[[#This Row],[Start Date]])),\"\",_xlfn.DAYS(Table1174[[#This Row],[End Date]],Table1174[[#This Row],[Start Date]]))","v":48},{"$f":"IF(Table1174[[#This Row],[Housing Situation]]=\"\",\"\",IF(Table1174[[#This Row],[Housing Situation]]=Picklists!$A$11,Picklists!$B$1,IF(Table1174[[#This Row],[Housing Situation]]=Picklists!$A$2,Picklists!$B$1,IF(Table1174[[#This Row],[Housing Situation]]=Picklists!$A$3,Picklists!$B$1,IF(Table1174[[#This Row],[Housing Situation]]=Picklists!$A$12,Picklists!$B$1,Picklists!$C$1)))))","v":"Homeless_Documentation_Source"},{"$f":"IF(Table1174[[#This Row],[Housing Situation Category]]=\"\",\"\",IF(Table1174[[#This Row],[Housing Situation Category]]=Picklists!$B$1,Picklists!$D$1,Picklists!$E$1))","v":"Homeless_Documentation_Obtained?"}]
["Hospital / Psych / Detox","2018-08-01",{"$f":"IF(Table1174[[#This Row],[Housing Situation]]=\"\",\"\",IF(Table1174[[#This Row],[Row number]]=1,$B$7,IF(OFFSET(C22,-1,-1)=\"\",\"\",OFFSET(C22,-1,-1)-1)))","v":"2018-08-14"},{"$f":"IF(\nTable1174[[#This Row],[Start Date]]=\"\",\n\"\",\nIF(\nTable1174[[#This Row],[Housing Situation]]=\"Gap (need self-report)\",\n\"\",\nIF(\nTable1174[[#This Row],[Housing Situation]]=\"\",\n\"Missing\",\nIF(\nOR(\nAND(OR(Table1174[[#This Row],[Housing Situation]]=\"Hospital / Psych / Detox\",Table1174[[#This Row],[Housing Situation]]=\"Jail / Prison\",Table1174[[#This Row],[Housing Situation]]=\"Foster Care / Group Home\"),(Table1174[[#This Row],[End Date]]-Table1174[[#This Row],[Start Date]])>=90),\nAND(OR(Table1174[[#This Row],[Housing Situation]]=\"Apt / House (rented or owned)\",Table1174[[#This Row],[Housing Situation]]=\"Friend / Family\",Table1174[[#This Row],[Housing Situation]]=\"Self-paid Hotel / Halfway house\",Table1174[[#This Row],[Housing Situation]]=\"Transitional Housing\"),(Table1174[[#This Row],[End Date]]-Table1174[[#This Row],[Start Date]])>=7)),\n0,\nIF(\nOR(Table1174[[#This Row],[Housing Situation]]=\"ES / SH / Agency-paid Hotel\",Table1174[[#This Row],[Housing Situation]]=\"Place not meant for habitation\",Table1174[[#This Row],[Housing Situation]]=\"Gap (presumed homeless)\"),\n((Table1174[[#This Row],[End Date]]+1)-Table1174[[#This Row],[Start Date]])/(365/12),\nIF(\nAND(\nNOT(OR(Table1174[[#This Row],[Housing Situation]]=\"ES / SH / Agency-paid Hotel\",Table1174[[#This Row],[Housing Situation]]=\"Place not meant for habitation\",Table1174[[#This Row],[Housing Situation]]=\"Gap (presumed homeless)\")),\nOR(OFFSET(Table1174[[#This Row],[Housing Situation]],1,0)=\"ES / SH / Agency-paid Hotel\",OFFSET(Table1174[[#This Row],[Housing Situation]],1,0)=\"Place not meant for habitation\",Table1174[[#This Row],[Housing Situation]]=\"Gap (presumed homeless)\")),\n((Table1174[[#This Row],[End Date]]+1)-Table1174[[#This Row],[Start Date]])/(365/12),\n0))))))","v":0.46027397260273972},"Whole Health Clinical",{"$f":"IF(Table1174[[#This Row],[Housing Situation]]=\"\",\"\",IF(Table1174[[#This Row],[Housing Situation Category]]=\"Not_Homeless_Documentation_Source\",\"N/A\",\"\"))","v":"N/A"},{"$f":"IF(Table1174[[#This Row],[Housing Situation]]=\"\",\"\",IF(Table1174[[#This Row],[Housing Situation Category]]=\"Not_Homeless_Documentation_Source\",\"N/A\",\"\"))","v":"N/A"},"Whole Health Clinical",{"$f":"IF(OFFSET(Table1174[[#This Row],[Months Homeless]],1,0)=\"\",0,IF(AND(Table1174[[#This Row],[Months Homeless]]=0,OFFSET(Table1174[[#This Row],[Months Homeless]],1,0)>0),1,0))","v":0},{"$f":"IF(\nTable1174[[#This Row],[Row number]]=1,\n1,\nIF(OFFSET(Table1174[[#This Row],[Months Homeless]],1,0)=\"\",\nINDIRECT(ADDRESS(ROW()-1,COLUMN())),\nIF(\nAND(\nTable1174[[#This Row],[Months Homeless]]=0,\nOFFSET(Table1174[[#This Row],[Months Homeless]],1,0)>0),\nINDIRECT(ADDRESS(ROW()-1,COLUMN()))+1,\nINDIRECT(ADDRESS(ROW()-1,COLUMN()))\n)\n)\n)","v":3},{"$f":"IF(OR(Table1174[[#This Row],[Housing Situation]]=\"\",Table1174[[#This Row],[Housing Situation]]=\"Gap (need self-report)\"),\"\",IF(Table1174[[#This Row],[Months Homeless]]=\"Missing\",\"No\",IF(AND(Table1174[[#This Row],[Housing Situation]]=\"Gap (presumed homeless)\",COUNTA(B22,C22)-(COUNTA(F22,G22)-COUNTBLANK(F22:G22))=0),\"Yes\",IF((COUNTA(B22,C22,E22)-(COUNTA(F22,G22)-COUNTBLANK(F22:G22))=1),\"Yes\",\"No\"))))","v":"Yes"},{"$f":"IF(Table1174[[#This Row],[Row Complete?]]=\"No\",Table1174[[#This Row],[Row number]]+10,\"\")","v":""},{"$f":"ROW(Table1174[#This Row])-ROW(Table1174[[#Headers], [Housing Situation]])","v":12},{"$f":"IF(ISERROR(_xlfn.DAYS(Table1174[[#This Row],[End Date]],Table1174[[#This Row],[Start Date]])),\"\",_xlfn.DAYS(Table1174[[#This Row],[End Date]],Table1174[[#This Row],[Start Date]]))","v":13},{"$f":"IF(Table1174[[#This Row],[Housing Situation]]=\"\",\"\",IF(Table1174[[#This Row],[Housing Situation]]=Picklists!$A$11,Picklists!$B$1,IF(Table1174[[#This Row],[Housing Situation]]=Picklists!$A$2,Picklists!$B$1,IF(Table1174[[#This Row],[Housing Situation]]=Picklists!$A$3,Picklists!$B$1,IF(Table1174[[#This Row],[Housing Situation]]=Picklists!$A$12,Picklists!$B$1,Picklists!$C$1)))))","v":"Not_Homeless_Documentation_Source"},{"$f":"IF(Table1174[[#This Row],[Housing Situation Category]]=\"\",\"\",IF(Table1174[[#This Row],[Housing Situation Category]]=Picklists!$B$1,Picklists!$D$1,Picklists!$E$1))","v":"Not_Homeless_Documentation_Obtained?"}]
["ES / SH / Agency-paid Hotel","2018-07-01",{"$f":"IF(Table1174[[#This Row],[Housing Situation]]=\"\",\"\",IF(Table1174[[#This Row],[Row number]]=1,$B$7,IF(OFFSET(C23,-1,-1)=\"\",\"\",OFFSET(C23,-1,-1)-1)))","v":"2018-07-31"},{"$f":"IF(\nTable1174[[#This Row],[Start Date]]=\"\",\n\"\",\nIF(\nTable1174[[#This Row],[Housing Situation]]=\"Gap (need self-report)\",\n\"\",\nIF(\nTable1174[[#This Row],[Housing Situation]]=\"\",\n\"Missing\",\nIF(\nOR(\nAND(OR(Table1174[[#This Row],[Housing Situation]]=\"Hospital / Psych / Detox\",Table1174[[#This Row],[Housing Situation]]=\"Jail / Prison\",Table1174[[#This Row],[Housing Situation]]=\"Foster Care / Group Home\"),(Table1174[[#This Row],[End Date]]-Table1174[[#This Row],[Start Date]])>=90),\nAND(OR(Table1174[[#This Row],[Housing Situation]]=\"Apt / House (rented or owned)\",Table1174[[#This Row],[Housing Situation]]=\"Friend / Family\",Table1174[[#This Row],[Housing Situation]]=\"Self-paid Hotel / Halfway house\",Table1174[[#This Row],[Housing Situation]]=\"Transitional Housing\"),(Table1174[[#This Row],[End Date]]-Table1174[[#This Row],[Start Date]])>=7)),\n0,\nIF(\nOR(Table1174[[#This Row],[Housing Situation]]=\"ES / SH / Agency-paid Hotel\",Table1174[[#This Row],[Housing Situation]]=\"Place not meant for habitation\",Table1174[[#This Row],[Housing Situation]]=\"Gap (presumed homeless)\"),\n((Table1174[[#This Row],[End Date]]+1)-Table1174[[#This Row],[Start Date]])/(365/12),\nIF(\nAND(\nNOT(OR(Table1174[[#This Row],[Housing Situation]]=\"ES / SH / Agency-paid Hotel\",Table1174[[#This Row],[Housing Situation]]=\"Place not meant for habitation\",Table1174[[#This Row],[Housing Situation]]=\"Gap (presumed homeless)\")),\nOR(OFFSET(Table1174[[#This Row],[Housing Situation]],1,0)=\"ES / SH / Agency-paid Hotel\",OFFSET(Table1174[[#This Row],[Housing Situation]],1,0)=\"Place not meant for habitation\",Table1174[[#This Row],[Housing Situation]]=\"Gap (presumed homeless)\")),\n((Table1174[[#This Row],[End Date]]+1)-Table1174[[#This Row],[Start Date]])/(365/12),\n0))))))","v":1.0191780821917809},"Salvation Army Emergency Lodge","HMIS ES / SH / SO record(s)","Yes",null,{"$f":"IF(OFFSET(Table1174[[#This Row],[Months Homeless]],1,0)=\"\",0,IF(AND(Table1174[[#This Row],[Months Homeless]]=0,OFFSET(Table1174[[#This Row],[Months Homeless]],1,0)>0),1,0))","v":0},{"$f":"IF(\nTable1174[[#This Row],[Row number]]=1,\n1,\nIF(OFFSET(Table1174[[#This Row],[Months Homeless]],1,0)=\"\",\nINDIRECT(ADDRESS(ROW()-1,COLUMN())),\nIF(\nAND(\nTable1174[[#This Row],[Months Homeless]]=0,\nOFFSET(Table1174[[#This Row],[Months Homeless]],1,0)>0),\nINDIRECT(ADDRESS(ROW()-1,COLUMN()))+1,\nINDIRECT(ADDRESS(ROW()-1,COLUMN()))\n)\n)\n)","v":3},{"$f":"IF(OR(Table1174[[#This Row],[Housing Situation]]=\"\",Table1174[[#This Row],[Housing Situation]]=\"Gap (need self-report)\"),\"\",IF(Table1174[[#This Row],[Months Homeless]]=\"Missing\",\"No\",IF(AND(Table1174[[#This Row],[Housing Situation]]=\"Gap (presumed homeless)\",COUNTA(B23,C23)-(COUNTA(F23,G23)-COUNTBLANK(F23:G23))=0),\"Yes\",IF((COUNTA(B23,C23,E23)-(COUNTA(F23,G23)-COUNTBLANK(F23:G23))=1),\"Yes\",\"No\"))))","v":"Yes"},{"$f":"IF(Table1174[[#This Row],[Row Complete?]]=\"No\",Table1174[[#This Row],[Row number]]+10,\"\")","v":""},{"$f":"ROW(Table1174[#This Row])-ROW(Table1174[[#Headers], [Housing Situation]])","v":13},{"$f":"IF(ISERROR(_xlfn.DAYS(Table1174[[#This Row],[End Date]],Table1174[[#This Row],[Start Date]])),\"\",_xlfn.DAYS(Table1174[[#This Row],[End Date]],Table1174[[#This Row],[Start Date]]))","v":30},{"$f":"IF(Table1174[[#This Row],[Housing Situation]]=\"\",\"\",IF(Table1174[[#This Row],[Housing Situation]]=Picklists!$A$11,Picklists!$B$1,IF(Table1174[[#This Row],[Housing Situation]]=Picklists!$A$2,Picklists!$B$1,IF(Table1174[[#This Row],[Housing Situation]]=Picklists!$A$3,Picklists!$B$1,IF(Table1174[[#This Row],[Housing Situation]]=Picklists!$A$12,Picklists!$B$1,Picklists!$C$1)))))","v":"Homeless_Documentation_Source"},{"$f":"IF(Table1174[[#This Row],[Housing Situation Category]]=\"\",\"\",IF(Table1174[[#This Row],[Housing Situation Category]]=Picklists!$B$1,Picklists!$D$1,Picklists!$E$1))","v":"Homeless_Documentation_Obtained?"}]
["Place not meant for habitation","2018-04-01",{"$f":"IF(Table1174[[#This Row],[Housing Situation]]=\"\",\"\",IF(Table1174[[#This Row],[Row number]]=1,$B$7,IF(OFFSET(C24,-1,-1)=\"\",\"\",OFFSET(C24,-1,-1)-1)))","v":"2018-06-30"},{"$f":"IF(\nTable1174[[#This Row],[Start Date]]=\"\",\n\"\",\nIF(\nTable1174[[#This Row],[Housing Situation]]=\"Gap (need self-report)\",\n\"\",\nIF(\nTable1174[[#This Row],[Housing Situation]]=\"\",\n\"Missing\",\nIF(\nOR(\nAND(OR(Table1174[[#This Row],[Housing Situation]]=\"Hospital / Psych / Detox\",Table1174[[#This Row],[Housing Situation]]=\"Jail / Prison\",Table1174[[#This Row],[Housing Situation]]=\"Foster Care / Group Home\"),(Table1174[[#This Row],[End Date]]-Table1174[[#This Row],[Start Date]])>=90),\nAND(OR(Table1174[[#This Row],[Housing Situation]]=\"Apt / House (rented or owned)\",Table1174[[#This Row],[Housing Situation]]=\"Friend / Family\",Table1174[[#This Row],[Housing Situation]]=\"Self-paid Hotel / Halfway house\",Table1174[[#This Row],[Housing Situation]]=\"Transitional Housing\"),(Table1174[[#This Row],[End Date]]-Table1174[[#This Row],[Start Date]])>=7)),\n0,\nIF(\nOR(Table1174[[#This Row],[Housing Situation]]=\"ES / SH / Agency-paid Hotel\",Table1174[[#This Row],[Housing Situation]]=\"Place not meant for habitation\",Table1174[[#This Row],[Housing Situation]]=\"Gap (presumed homeless)\"),\n((Table1174[[#This Row],[End Date]]+1)-Table1174[[#This Row],[Start Date]])/(365/12),\nIF(\nAND(\nNOT(OR(Table1174[[#This Row],[Housing Situation]]=\"ES / SH / Agency-paid Hotel\",Table1174[[#This Row],[Housing Situation]]=\"Place not meant for habitation\",Table1174[[#This Row],[Housing Situation]]=\"Gap (presumed homeless)\")),\nOR(OFFSET(Table1174[[#This Row],[Housing Situation]],1,0)=\"ES / SH / Agency-paid Hotel\",OFFSET(Table1174[[#This Row],[Housing Situation]],1,0)=\"Place not meant for habitation\",Table1174[[#This Row],[Housing Situation]]=\"Gap (presumed homeless)\")),\n((Table1174[[#This Row],[End Date]]+1)-Table1174[[#This Row],[Start Date]])/(365/12),\n0))))))","v":2.9917808219178079},"In car in West Allis","Self-Certification Letter","Yes","No contact with Street Outreach",{"$f":"IF(OFFSET(Table1174[[#This Row],[Months Homeless]],1,0)=\"\",0,IF(AND(Table1174[[#This Row],[Months Homeless]]=0,OFFSET(Table1174[[#This Row],[Months Homeless]],1,0)>0),1,0))","v":0},{"$f":"IF(\nTable1174[[#This Row],[Row number]]=1,\n1,\nIF(OFFSET(Table1174[[#This Row],[Months Homeless]],1,0)=\"\",\nINDIRECT(ADDRESS(ROW()-1,COLUMN())),\nIF(\nAND(\nTable1174[[#This Row],[Months Homeless]]=0,\nOFFSET(Table1174[[#This Row],[Months Homeless]],1,0)>0),\nINDIRECT(ADDRESS(ROW()-1,COLUMN()))+1,\nINDIRECT(ADDRESS(ROW()-1,COLUMN()))\n)\n)\n)","v":3},{"$f":"IF(OR(Table1174[[#This Row],[Housing Situation]]=\"\",Table1174[[#This Row],[Housing Situation]]=\"Gap (need self-report)\"),\"\",IF(Table1174[[#This Row],[Months Homeless]]=\"Missing\",\"No\",IF(AND(Table1174[[#This Row],[Housing Situation]]=\"Gap (presumed homeless)\",COUNTA(B24,C24)-(COUNTA(F24,G24)-COUNTBLANK(F24:G24))=0),\"Yes\",IF((COUNTA(B24,C24,E24)-(COUNTA(F24,G24)-COUNTBLANK(F24:G24))=1),\"Yes\",\"No\"))))","v":"Yes"},{"$f":"IF(Table1174[[#This Row],[Row Complete?]]=\"No\",Table1174[[#This Row],[Row number]]+10,\"\")","v":""},{"$f":"ROW(Table1174[#This Row])-ROW(Table1174[[#Headers], [Housing Situation]])","v":14},{"$f":"IF(ISERROR(_xlfn.DAYS(Table1174[[#This Row],[End Date]],Table1174[[#This Row],[Start Date]])),\"\",_xlfn.DAYS(Table1174[[#This Row],[End Date]],Table1174[[#This Row],[Start Date]]))","v":90},{"$f":"IF(Table1174[[#This Row],[Housing Situation]]=\"\",\"\",IF(Table1174[[#This Row],[Housing Situation]]=Picklists!$A$11,Picklists!$B$1,IF(Table1174[[#This Row],[Housing Situation]]=Picklists!$A$2,Picklists!$B$1,IF(Table1174[[#This Row],[Housing Situation]]=Picklists!$A$3,Picklists!$B$1,IF(Table1174[[#This Row],[Housing Situation]]=Picklists!$A$12,Picklists!$B$1,Picklists!$C$1)))))","v":"Homeless_Documentation_Source"},{"$f":"IF(Table1174[[#This Row],[Housing Situation Category]]=\"\",\"\",IF(Table1174[[#This Row],[Housing Situation Category]]=Picklists!$B$1,Picklists!$D$1,Picklists!$E$1))","v":"Homeless_Documentation_Obtained?"}]
["Place not meant for habitation","2018-03-01",{"$f":"IF(Table1174[[#This Row],[Housing Situation]]=\"\",\"\",IF(Table1174[[#This Row],[Row number]]=1,$B$7,IF(OFFSET(C25,-1,-1)=\"\",\"\",OFFSET(C25,-1,-1)-1)))","v":"2018-03-31"},{"$f":"IF(\nTable1174[[#This Row],[Start Date]]=\"\",\n\"\",\nIF(\nTable1174[[#This Row],[Housing Situation]]=\"Gap (need self-report)\",\n\"\",\nIF(\nTable1174[[#This Row],[Housing Situation]]=\"\",\n\"Missing\",\nIF(\nOR(\nAND(OR(Table1174[[#This Row],[Housing Situation]]=\"Hospital / Psych / Detox\",Table1174[[#This Row],[Housing Situation]]=\"Jail / Prison\",Table1174[[#This Row],[Housing Situation]]=\"Foster Care / Group Home\"),(Table1174[[#This Row],[End Date]]-Table1174[[#This Row],[Start Date]])>=90),\nAND(OR(Table1174[[#This Row],[Housing Situation]]=\"Apt / House (rented or owned)\",Table1174[[#This Row],[Housing Situation]]=\"Friend / Family\",Table1174[[#This Row],[Housing Situation]]=\"Self-paid Hotel / Halfway house\",Table1174[[#This Row],[Housing Situation]]=\"Transitional Housing\"),(Table1174[[#This Row],[End Date]]-Table1174[[#This Row],[Start Date]])>=7)),\n0,\nIF(\nOR(Table1174[[#This Row],[Housing Situation]]=\"ES / SH / Agency-paid Hotel\",Table1174[[#This Row],[Housing Situation]]=\"Place not meant for habitation\",Table1174[[#This Row],[Housing Situation]]=\"Gap (presumed homeless)\"),\n((Table1174[[#This Row],[End Date]]+1)-Table1174[[#This Row],[Start Date]])/(365/12),\nIF(\nAND(\nNOT(OR(Table1174[[#This Row],[Housing Situation]]=\"ES / SH / Agency-paid Hotel\",Table1174[[#This Row],[Housing Situation]]=\"Place not meant for habitation\",Table1174[[#This Row],[Housing Situation]]=\"Gap (presumed homeless)\")),\nOR(OFFSET(Table1174[[#This Row],[Housing Situation]],1,0)=\"ES / SH / Agency-paid Hotel\",OFFSET(Table1174[[#This Row],[Housing Situation]],1,0)=\"Place not meant for habitation\",Table1174[[#This Row],[Housing Situation]]=\"Gap (presumed homeless)\")),\n((Table1174[[#This Row],[End Date]]+1)-Table1174[[#This Row],[Start Date]])/(365/12),\n0))))))","v":1.0191780821917809},"In car at Walmart parking lot","HMIS ES / SH / SO record(s)","Pending","Requested 3rd Party Letter from Feeding His Flock",{"$f":"IF(OFFSET(Table1174[[#This Row],[Months Homeless]],1,0)=\"\",0,IF(AND(Table1174[[#This Row],[Months Homeless]]=0,OFFSET(Table1174[[#This Row],[Months Homeless]],1,0)>0),1,0))","v":0},{"$f":"IF(\nTable1174[[#This Row],[Row number]]=1,\n1,\nIF(OFFSET(Table1174[[#This Row],[Months Homeless]],1,0)=\"\",\nINDIRECT(ADDRESS(ROW()-1,COLUMN())),\nIF(\nAND(\nTable1174[[#This Row],[Months Homeless]]=0,\nOFFSET(Table1174[[#This Row],[Months Homeless]],1,0)>0),\nINDIRECT(ADDRESS(ROW()-1,COLUMN()))+1,\nINDIRECT(ADDRESS(ROW()-1,COLUMN()))\n)\n)\n)","v":3},{"$f":"IF(OR(Table1174[[#This Row],[Housing Situation]]=\"\",Table1174[[#This Row],[Housing Situation]]=\"Gap (need self-report)\"),\"\",IF(Table1174[[#This Row],[Months Homeless]]=\"Missing\",\"No\",IF(AND(Table1174[[#This Row],[Housing Situation]]=\"Gap (presumed homeless)\",COUNTA(B25,C25)-(COUNTA(F25,G25)-COUNTBLANK(F25:G25))=0),\"Yes\",IF((COUNTA(B25,C25,E25)-(COUNTA(F25,G25)-COUNTBLANK(F25:G25))=1),\"Yes\",\"No\"))))","v":"Yes"},{"$f":"IF(Table1174[[#This Row],[Row Complete?]]=\"No\",Table1174[[#This Row],[Row number]]+10,\"\")","v":""},{"$f":"ROW(Table1174[#This Row])-ROW(Table1174[[#Headers], [Housing Situation]])","v":15},{"$f":"IF(ISERROR(_xlfn.DAYS(Table1174[[#This Row],[End Date]],Table1174[[#This Row],[Start Date]])),\"\",_xlfn.DAYS(Table1174[[#This Row],[End Date]],Table1174[[#This Row],[Start Date]]))","v":30},{"$f":"IF(Table1174[[#This Row],[Housing Situation]]=\"\",\"\",IF(Table1174[[#This Row],[Housing Situation]]=Picklists!$A$11,Picklists!$B$1,IF(Table1174[[#This Row],[Housing Situation]]=Picklists!$A$2,Picklists!$B$1,IF(Table1174[[#This Row],[Housing Situation]]=Picklists!$A$3,Picklists!$B$1,IF(Table1174[[#This Row],[Housing Situation]]=Picklists!$A$12,Picklists!$B$1,Picklists!$C$1)))))","v":"Homeless_Documentation_Source"},{"$f":"IF(Table1174[[#This Row],[Housing Situation Category]]=\"\",\"\",IF(Table1174[[#This Row],[Housing Situation Category]]=Picklists!$B$1,Picklists!$D$1,Picklists!$E$1))","v":"Homeless_Documentation_Obtained?"}]
["Hospital / Psych / Detox","2017-08-10",{"$f":"IF(Table1174[[#This Row],[Housing Situation]]=\"\",\"\",IF(Table1174[[#This Row],[Row number]]=1,$B$7,IF(OFFSET(C26,-1,-1)=\"\",\"\",OFFSET(C26,-1,-1)-1)))","v":"2018-02-28"},{"$f":"IF(\nTable1174[[#This Row],[Start Date]]=\"\",\n\"\",\nIF(\nTable1174[[#This Row],[Housing Situation]]=\"Gap (need self-report)\",\n\"\",\nIF(\nTable1174[[#This Row],[Housing Situation]]=\"\",\n\"Missing\",\nIF(\nOR(\nAND(OR(Table1174[[#This Row],[Housing Situation]]=\"Hospital / Psych / Detox\",Table1174[[#This Row],[Housing Situation]]=\"Jail / Prison\",Table1174[[#This Row],[Housing Situation]]=\"Foster Care / Group Home\"),(Table1174[[#This Row],[End Date]]-Table1174[[#This Row],[Start Date]])>=90),\nAND(OR(Table1174[[#This Row],[Housing Situation]]=\"Apt / House (rented or owned)\",Table1174[[#This Row],[Housing Situation]]=\"Friend / Family\",Table1174[[#This Row],[Housing Situation]]=\"Self-paid Hotel / Halfway house\",Table1174[[#This Row],[Housing Situation]]=\"Transitional Housing\"),(Table1174[[#This Row],[End Date]]-Table1174[[#This Row],[Start Date]])>=7)),\n0,\nIF(\nOR(Table1174[[#This Row],[Housing Situation]]=\"ES / SH / Agency-paid Hotel\",Table1174[[#This Row],[Housing Situation]]=\"Place not meant for habitation\",Table1174[[#This Row],[Housing Situation]]=\"Gap (presumed homeless)\"),\n((Table1174[[#This Row],[End Date]]+1)-Table1174[[#This Row],[Start Date]])/(365/12),\nIF(\nAND(\nNOT(OR(Table1174[[#This Row],[Housing Situation]]=\"ES / SH / Agency-paid Hotel\",Table1174[[#This Row],[Housing Situation]]=\"Place not meant for habitation\",Table1174[[#This Row],[Housing Situation]]=\"Gap (presumed homeless)\")),\nOR(OFFSET(Table1174[[#This Row],[Housing Situation]],1,0)=\"ES / SH / Agency-paid Hotel\",OFFSET(Table1174[[#This Row],[Housing Situation]],1,0)=\"Place not meant for habitation\",Table1174[[#This Row],[Housing Situation]]=\"Gap (presumed homeless)\")),\n((Table1174[[#This Row],[End Date]]+1)-Table1174[[#This Row],[Start Date]])/(365/12),\n0))))))","v":0},"VA Hospital",{"$f":"IF(Table1174[[#This Row],[Housing Situation]]=\"\",\"\",IF(Table1174[[#This Row],[Housing Situation Category]]=\"Not_Homeless_Documentation_Source\",\"N/A\",\"\"))","v":"N/A"},{"$f":"IF(Table1174[[#This Row],[Housing Situation]]=\"\",\"\",IF(Table1174[[#This Row],[Housing Situation Category]]=\"Not_Homeless_Documentation_Source\",\"N/A\",\"\"))","v":"N/A"},null,{"$f":"IF(OFFSET(Table1174[[#This Row],[Months Homeless]],1,0)=\"\",0,IF(AND(Table1174[[#This Row],[Months Homeless]]=0,OFFSET(Table1174[[#This Row],[Months Homeless]],1,0)>0),1,0))","v":1},{"$f":"IF(\nTable1174[[#This Row],[Row number]]=1,\n1,\nIF(OFFSET(Table1174[[#This Row],[Months Homeless]],1,0)=\"\",\nINDIRECT(ADDRESS(ROW()-1,COLUMN())),\nIF(\nAND(\nTable1174[[#This Row],[Months Homeless]]=0,\nOFFSET(Table1174[[#This Row],[Months Homeless]],1,0)>0),\nINDIRECT(ADDRESS(ROW()-1,COLUMN()))+1,\nINDIRECT(ADDRESS(ROW()-1,COLUMN()))\n)\n)\n)","v":4},{"$f":"IF(OR(Table1174[[#This Row],[Housing Situation]]=\"\",Table1174[[#This Row],[Housing Situation]]=\"Gap (need self-report)\"),\"\",IF(Table1174[[#This Row],[Months Homeless]]=\"Missing\",\"No\",IF(AND(Table1174[[#This Row],[Housing Situation]]=\"Gap (presumed homeless)\",COUNTA(B26,C26)-(COUNTA(F26,G26)-COUNTBLANK(F26:G26))=0),\"Yes\",IF((COUNTA(B26,C26,E26)-(COUNTA(F26,G26)-COUNTBLANK(F26:G26))=1),\"Yes\",\"No\"))))","v":"Yes"},{"$f":"IF(Table1174[[#This Row],[Row Complete?]]=\"No\",Table1174[[#This Row],[Row number]]+10,\"\")","v":""},{"$f":"ROW(Table1174[#This Row])-ROW(Table1174[[#Headers], [Housing Situation]])","v":16},{"$f":"IF(ISERROR(_xlfn.DAYS(Table1174[[#This Row],[End Date]],Table1174[[#This Row],[Start Date]])),\"\",_xlfn.DAYS(Table1174[[#This Row],[End Date]],Table1174[[#This Row],[Start Date]]))","v":202},{"$f":"IF(Table1174[[#This Row],[Housing Situation]]=\"\",\"\",IF(Table1174[[#This Row],[Housing Situation]]=Picklists!$A$11,Picklists!$B$1,IF(Table1174[[#This Row],[Housing Situation]]=Picklists!$A$2,Picklists!$B$1,IF(Table1174[[#This Row],[Housing Situation]]=Picklists!$A$3,Picklists!$B$1,IF(Table1174[[#This Row],[Housing Situation]]=Picklists!$A$12,Picklists!$B$1,Picklists!$C$1)))))","v":"Not_Homeless_Documentation_Source"},{"$f":"IF(Table1174[[#This Row],[Housing Situation Category]]=\"\",\"\",IF(Table1174[[#This Row],[Housing Situation Category]]=Picklists!$B$1,Picklists!$D$1,Picklists!$E$1))","v":"Not_Homeless_Documentation_Obtained?"}]
["Place not meant for habitation","2017-06-05",{"$f":"IF(Table1174[[#This Row],[Housing Situation]]=\"\",\"\",IF(Table1174[[#This Row],[Row number]]=1,$B$7,IF(OFFSET(C27,-1,-1)=\"\",\"\",OFFSET(C27,-1,-1)-1)))","v":"2017-08-09"},{"$f":"IF(\nTable1174[[#This Row],[Start Date]]=\"\",\n\"\",\nIF(\nTable1174[[#This Row],[Housing Situation]]=\"Gap (need self-report)\",\n\"\",\nIF(\nTable1174[[#This Row],[Housing Situation]]=\"\",\n\"Missing\",\nIF(\nOR(\nAND(OR(Table1174[[#This Row],[Housing Situation]]=\"Hospital / Psych / Detox\",Table1174[[#This Row],[Housing Situation]]=\"Jail / Prison\",Table1174[[#This Row],[Housing Situation]]=\"Foster Care / Group Home\"),(Table1174[[#This Row],[End Date]]-Table1174[[#This Row],[Start Date]])>=90),\nAND(OR(Table1174[[#This Row],[Housing Situation]]=\"Apt / House (rented or owned)\",Table1174[[#This Row],[Housing Situation]]=\"Friend / Family\",Table1174[[#This Row],[Housing Situation]]=\"Self-paid Hotel / Halfway house\",Table1174[[#This Row],[Housing Situation]]=\"Transitional Housing\"),(Table1174[[#This Row],[End Date]]-Table1174[[#This Row],[Start Date]])>=7)),\n0,\nIF(\nOR(Table1174[[#This Row],[Housing Situation]]=\"ES / SH / Agency-paid Hotel\",Table1174[[#This Row],[Housing Situation]]=\"Place not meant for habitation\",Table1174[[#This Row],[Housing Situation]]=\"Gap (presumed homeless)\"),\n((Table1174[[#This Row],[End Date]]+1)-Table1174[[#This Row],[Start Date]])/(365/12),\nIF(\nAND(\nNOT(OR(Table1174[[#This Row],[Housing Situation]]=\"ES / SH / Agency-paid Hotel\",Table1174[[#This Row],[Housing Situation]]=\"Place not meant for habitation\",Table1174[[#This Row],[Housing Situation]]=\"Gap (presumed homeless)\")),\nOR(OFFSET(Table1174[[#This Row],[Housing Situation]],1,0)=\"ES / SH / Agency-paid Hotel\",OFFSET(Table1174[[#This Row],[Housing Situation]],1,0)=\"Place not meant for habitation\",Table1174[[#This Row],[Housing Situation]]=\"Gap (presumed homeless)\")),\n((Table1174[[#This Row],[End Date]]+1)-Table1174[[#This Row],[Start Date]])/(365/12),\n0))))))","v":2.1698630136986301},"In car at Walmart parking lot","HMIS ES / SH / SO record(s)","Pending","Requested 3rd Party Letter from Feeding His Flock",{"$f":"IF(OFFSET(Table1174[[#This Row],[Months Homeless]],1,0)=\"\",0,IF(AND(Table1174[[#This Row],[Months Homeless]]=0,OFFSET(Table1174[[#This Row],[Months Homeless]],1,0)>0),1,0))","v":0},{"$f":"IF(\nTable1174[[#This Row],[Row number]]=1,\n1,\nIF(OFFSET(Table1174[[#This Row],[Months Homeless]],1,0)=\"\",\nINDIRECT(ADDRESS(ROW()-1,COLUMN())),\nIF(\nAND(\nTable1174[[#This Row],[Months Homeless]]=0,\nOFFSET(Table1174[[#This Row],[Months Homeless]],1,0)>0),\nINDIRECT(ADDRESS(ROW()-1,COLUMN()))+1,\nINDIRECT(ADDRESS(ROW()-1,COLUMN()))\n)\n)\n)","v":4},{"$f":"IF(OR(Table1174[[#This Row],[Housing Situation]]=\"\",Table1174[[#This Row],[Housing Situation]]=\"Gap (need self-report)\"),\"\",IF(Table1174[[#This Row],[Months Homeless]]=\"Missing\",\"No\",IF(AND(Table1174[[#This Row],[Housing Situation]]=\"Gap (presumed homeless)\",COUNTA(B27,C27)-(COUNTA(F27,G27)-COUNTBLANK(F27:G27))=0),\"Yes\",IF((COUNTA(B27,C27,E27)-(COUNTA(F27,G27)-COUNTBLANK(F27:G27))=1),\"Yes\",\"No\"))))","v":"Yes"},{"$f":"IF(Table1174[[#This Row],[Row Complete?]]=\"No\",Table1174[[#This Row],[Row number]]+10,\"\")","v":""},{"$f":"ROW(Table1174[#This Row])-ROW(Table1174[[#Headers], [Housing Situation]])","v":17},{"$f":"IF(ISERROR(_xlfn.DAYS(Table1174[[#This Row],[End Date]],Table1174[[#This Row],[Start Date]])),\"\",_xlfn.DAYS(Table1174[[#This Row],[End Date]],Table1174[[#This Row],[Start Date]]))","v":65},{"$f":"IF(Table1174[[#This Row],[Housing Situation]]=\"\",\"\",IF(Table1174[[#This Row],[Housing Situation]]=Picklists!$A$11,Picklists!$B$1,IF(Table1174[[#This Row],[Housing Situation]]=Picklists!$A$2,Picklists!$B$1,IF(Table1174[[#This Row],[Housing Situation]]=Picklists!$A$3,Picklists!$B$1,IF(Table1174[[#This Row],[Housing Situation]]=Picklists!$A$12,Picklists!$B$1,Picklists!$C$1)))))","v":"Homeless_Documentation_Source"},{"$f":"IF(Table1174[[#This Row],[Housing Situation Category]]=\"\",\"\",IF(Table1174[[#This Row],[Housing Situation Category]]=Picklists!$B$1,Picklists!$D$1,Picklists!$E$1))","v":"Homeless_Documentation_Obtained?"}]
["Transitional Housing","2017-03-10",{"$f":"IF(Table1174[[#This Row],[Housing Situation]]=\"\",\"\",IF(Table1174[[#This Row],[Row number]]=1,$B$7,IF(OFFSET(C28,-1,-1)=\"\",\"\",OFFSET(C28,-1,-1)-1)))","v":"2017-06-04"},{"$f":"IF(\nTable1174[[#This Row],[Start Date]]=\"\",\n\"\",\nIF(\nTable1174[[#This Row],[Housing Situation]]=\"Gap (need self-report)\",\n\"\",\nIF(\nTable1174[[#This Row],[Housing Situation]]=\"\",\n\"Missing\",\nIF(\nOR(\nAND(OR(Table1174[[#This Row],[Housing Situation]]=\"Hospital / Psych / Detox\",Table1174[[#This Row],[Housing Situation]]=\"Jail / Prison\",Table1174[[#This Row],[Housing Situation]]=\"Foster Care / Group Home\"),(Table1174[[#This Row],[End Date]]-Table1174[[#This Row],[Start Date]])>=90),\nAND(OR(Table1174[[#This Row],[Housing Situation]]=\"Apt / House (rented or owned)\",Table1174[[#This Row],[Housing Situation]]=\"Friend / Family\",Table1174[[#This Row],[Housing Situation]]=\"Self-paid Hotel / Halfway house\",Table1174[[#This Row],[Housing Situation]]=\"Transitional Housing\"),(Table1174[[#This Row],[End Date]]-Table1174[[#This Row],[Start Date]])>=7)),\n0,\nIF(\nOR(Table1174[[#This Row],[Housing Situation]]=\"ES / SH / Agency-paid Hotel\",Table1174[[#This Row],[Housing Situation]]=\"Place not meant for habitation\",Table1174[[#This Row],[Housing Situation]]=\"Gap (presumed homeless)\"),\n((Table1174[[#This Row],[End Date]]+1)-Table1174[[#This Row],[Start Date]])/(365/12),\nIF(\nAND(\nNOT(OR(Table1174[[#This Row],[Housing Situation]]=\"ES / SH / Agency-paid Hotel\",Table1174[[#This Row],[Housing Situation]]=\"Place not meant for habitation\",Table1174[[#This Row],[Housing Situation]]=\"Gap (presumed homeless)\")),\nOR(OFFSET(Table1174[[#This Row],[Housing Situation]],1,0)=\"ES / SH / Agency-paid Hotel\",OFFSET(Table1174[[#This Row],[Housing Situation]],1,0)=\"Place not meant for habitation\",Table1174[[#This Row],[Housing Situation]]=\"Gap (presumed homeless)\")),\n((Table1174[[#This Row],[End Date]]+1)-Table1174[[#This Row],[Start Date]])/(365/12),\n0))))))","v":0},"CVI GPD program",{"$f":"IF(Table1174[[#This Row],[Housing Situation]]=\"\",\"\",IF(Table1174[[#This Row],[Housing Situation Category]]=\"Not_Homeless_Documentation_Source\",\"N/A\",\"\"))","v":"N/A"},{"$f":"IF(Table1174[[#This Row],[Housing Situation]]=\"\",\"\",IF(Table1174[[#This Row],[Housing Situation Category]]=\"Not_Homeless_Documentation_Source\",\"N/A\",\"\"))","v":"N/A"},null,{"$f":"IF(OFFSET(Table1174[[#This Row],[Months Homeless]],1,0)=\"\",0,IF(AND(Table1174[[#This Row],[Months Homeless]]=0,OFFSET(Table1174[[#This Row],[Months Homeless]],1,0)>0),1,0))","v":1},{"$f":"IF(\nTable1174[[#This Row],[Row number]]=1,\n1,\nIF(OFFSET(Table1174[[#This Row],[Months Homeless]],1,0)=\"\",\nINDIRECT(ADDRESS(ROW()-1,COLUMN())),\nIF(\nAND(\nTable1174[[#This Row],[Months Homeless]]=0,\nOFFSET(Table1174[[#This Row],[Months Homeless]],1,0)>0),\nINDIRECT(ADDRESS(ROW()-1,COLUMN()))+1,\nINDIRECT(ADDRESS(ROW()-1,COLUMN()))\n)\n)\n)","v":5},{"$f":"IF(OR(Table1174[[#This Row],[Housing Situation]]=\"\",Table1174[[#This Row],[Housing Situation]]=\"Gap (need self-report)\"),\"\",IF(Table1174[[#This Row],[Months Homeless]]=\"Missing\",\"No\",IF(AND(Table1174[[#This Row],[Housing Situation]]=\"Gap (presumed homeless)\",COUNTA(B28,C28)-(COUNTA(F28,G28)-COUNTBLANK(F28:G28))=0),\"Yes\",IF((COUNTA(B28,C28,E28)-(COUNTA(F28,G28)-COUNTBLANK(F28:G28))=1),\"Yes\",\"No\"))))","v":"Yes"},{"$f":"IF(Table1174[[#This Row],[Row Complete?]]=\"No\",Table1174[[#This Row],[Row number]]+10,\"\")","v":""},{"$f":"ROW(Table1174[#This Row])-ROW(Table1174[[#Headers], [Housing Situation]])","v":18},{"$f":"IF(ISERROR(_xlfn.DAYS(Table1174[[#This Row],[End Date]],Table1174[[#This Row],[Start Date]])),\"\",_xlfn.DAYS(Table1174[[#This Row],[End Date]],Table1174[[#This Row],[Start Date]]))","v":86},{"$f":"IF(Table1174[[#This Row],[Housing Situation]]=\"\",\"\",IF(Table1174[[#This Row],[Housing Situation]]=Picklists!$A$11,Picklists!$B$1,IF(Table1174[[#This Row],[Housing Situation]]=Picklists!$A$2,Picklists!$B$1,IF(Table1174[[#This Row],[Housing Situation]]=Picklists!$A$3,Picklists!$B$1,IF(Table1174[[#This Row],[Housing Situation]]=Picklists!$A$12,Picklists!$B$1,Picklists!$C$1)))))","v":"Not_Homeless_Documentation_Source"},{"$f":"IF(Table1174[[#This Row],[Housing Situation Category]]=\"\",\"\",IF(Table1174[[#This Row],[Housing Situation Category]]=Picklists!$B$1,Picklists!$D$1,Picklists!$E$1))","v":"Not_Homeless_Documentation_Obtained?"}]
["ES / SH / Agency-paid Hotel","2017-01-09",{"$f":"IF(Table1174[[#This Row],[Housing Situation]]=\"\",\"\",IF(Table1174[[#This Row],[Row number]]=1,$B$7,IF(OFFSET(C29,-1,-1)=\"\",\"\",OFFSET(C29,-1,-1)-1)))","v":"2017-03-09"},{"$f":"IF(\nTable1174[[#This Row],[Start Date]]=\"\",\n\"\",\nIF(\nTable1174[[#This Row],[Housing Situation]]=\"Gap (need self-report)\",\n\"\",\nIF(\nTable1174[[#This Row],[Housing Situation]]=\"\",\n\"Missing\",\nIF(\nOR(\nAND(OR(Table1174[[#This Row],[Housing Situation]]=\"Hospital / Psych / Detox\",Table1174[[#This Row],[Housing Situation]]=\"Jail / Prison\",Table1174[[#This Row],[Housing Situation]]=\"Foster Care / Group Home\"),(Table1174[[#This Row],[End Date]]-Table1174[[#This Row],[Start Date]])>=90),\nAND(OR(Table1174[[#This Row],[Housing Situation]]=\"Apt / House (rented or owned)\",Table1174[[#This Row],[Housing Situation]]=\"Friend / Family\",Table1174[[#This Row],[Housing Situation]]=\"Self-paid Hotel / Halfway house\",Table1174[[#This Row],[Housing Situation]]=\"Transitional Housing\"),(Table1174[[#This Row],[End Date]]-Table1174[[#This Row],[Start Date]])>=7)),\n0,\nIF(\nOR(Table1174[[#This Row],[Housing Situation]]=\"ES / SH / Agency-paid Hotel\",Table1174[[#This Row],[Housing Situation]]=\"Place not meant for habitation\",Table1174[[#This Row],[Housing Situation]]=\"Gap (presumed homeless)\"),\n((Table1174[[#This Row],[End Date]]+1)-Table1174[[#This Row],[Start Date]])/(365/12),\nIF(\nAND(\nNOT(OR(Table1174[[#This Row],[Housing Situation]]=\"ES / SH / Agency-paid Hotel\",Table1174[[#This Row],[Housing Situation]]=\"Place not meant for habitation\",Table1174[[#This Row],[Housing Situation]]=\"Gap (presumed homeless)\")),\nOR(OFFSET(Table1174[[#This Row],[Housing Situation]],1,0)=\"ES / SH / Agency-paid Hotel\",OFFSET(Table1174[[#This Row],[Housing Situation]],1,0)=\"Place not meant for habitation\",Table1174[[#This Row],[Housing Situation]]=\"Gap (presumed homeless)\")),\n((Table1174[[#This Row],[End Date]]+1)-Table1174[[#This Row],[Start Date]])/(365/12),\n0))))))","v":1.9726027397260273},"Milwaukee Rescue Mission","HMIS ES / SH / SO record(s)","Yes",null,{"$f":"IF(OFFSET(Table1174[[#This Row],[Months Homeless]],1,0)=\"\",0,IF(AND(Table1174[[#This Row],[Months Homeless]]=0,OFFSET(Table1174[[#This Row],[Months Homeless]],1,0)>0),1,0))","v":0},{"$f":"IF(\nTable1174[[#This Row],[Row number]]=1,\n1,\nIF(OFFSET(Table1174[[#This Row],[Months Homeless]],1,0)=\"\",\nINDIRECT(ADDRESS(ROW()-1,COLUMN())),\nIF(\nAND(\nTable1174[[#This Row],[Months Homeless]]=0,\nOFFSET(Table1174[[#This Row],[Months Homeless]],1,0)>0),\nINDIRECT(ADDRESS(ROW()-1,COLUMN()))+1,\nINDIRECT(ADDRESS(ROW()-1,COLUMN()))\n)\n)\n)","v":5},{"$f":"IF(OR(Table1174[[#This Row],[Housing Situation]]=\"\",Table1174[[#This Row],[Housing Situation]]=\"Gap (need self-report)\"),\"\",IF(Table1174[[#This Row],[Months Homeless]]=\"Missing\",\"No\",IF(AND(Table1174[[#This Row],[Housing Situation]]=\"Gap (presumed homeless)\",COUNTA(B29,C29)-(COUNTA(F29,G29)-COUNTBLANK(F29:G29))=0),\"Yes\",IF((COUNTA(B29,C29,E29)-(COUNTA(F29,G29)-COUNTBLANK(F29:G29))=1),\"Yes\",\"No\"))))","v":"Yes"},{"$f":"IF(Table1174[[#This Row],[Row Complete?]]=\"No\",Table1174[[#This Row],[Row number]]+10,\"\")","v":""},{"$f":"ROW(Table1174[#This Row])-ROW(Table1174[[#Headers], [Housing Situation]])","v":19},{"$f":"IF(ISERROR(_xlfn.DAYS(Table1174[[#This Row],[End Date]],Table1174[[#This Row],[Start Date]])),\"\",_xlfn.DAYS(Table1174[[#This Row],[End Date]],Table1174[[#This Row],[Start Date]]))","v":59},{"$f":"IF(Table1174[[#This Row],[Housing Situation]]=\"\",\"\",IF(Table1174[[#This Row],[Housing Situation]]=Picklists!$A$11,Picklists!$B$1,IF(Table1174[[#This Row],[Housing Situation]]=Picklists!$A$2,Picklists!$B$1,IF(Table1174[[#This Row],[Housing Situation]]=Picklists!$A$3,Picklists!$B$1,IF(Table1174[[#This Row],[Housing Situation]]=Picklists!$A$12,Picklists!$B$1,Picklists!$C$1)))))","v":"Homeless_Documentation_Source"},{"$f":"IF(Table1174[[#This Row],[Housing Situation Category]]=\"\",\"\",IF(Table1174[[#This Row],[Housing Situation Category]]=Picklists!$B$1,Picklists!$D$1,Picklists!$E$1))","v":"Homeless_Documentation_Obtained?"}]
[null,null,{"$f":"IF(Table1174[[#This Row],[Housing Situation]]=\"\",\"\",IF(Table1174[[#This Row],[Row number]]=1,$B$7,IF(OFFSET(C30,-1,-1)=\"\",\"\",OFFSET(C30,-1,-1)-1)))","v":""},{"$f":"IF(\nTable1174[[#This Row],[Start Date]]=\"\",\n\"\",\nIF(\nTable1174[[#This Row],[Housing Situation]]=\"Gap (need self-report)\",\n\"\",\nIF(\nTable1174[[#This Row],[Housing Situation]]=\"\",\n\"Missing\",\nIF(\nOR(\nAND(OR(Table1174[[#This Row],[Housing Situation]]=\"Hospital / Psych / Detox\",Table1174[[#This Row],[Housing Situation]]=\"Jail / Prison\",Table1174[[#This Row],[Housing Situation]]=\"Foster Care / Group Home\"),(Table1174[[#This Row],[End Date]]-Table1174[[#This Row],[Start Date]])>=90),\nAND(OR(Table1174[[#This Row],[Housing Situation]]=\"Apt / House (rented or owned)\",Table1174[[#This Row],[Housing Situation]]=\"Friend / Family\",Table1174[[#This Row],[Housing Situation]]=\"Self-paid Hotel / Halfway house\",Table1174[[#This Row],[Housing Situation]]=\"Transitional Housing\"),(Table1174[[#This Row],[End Date]]-Table1174[[#This Row],[Start Date]])>=7)),\n0,\nIF(\nOR(Table1174[[#This Row],[Housing Situation]]=\"ES / SH / Agency-paid Hotel\",Table1174[[#This Row],[Housing Situation]]=\"Place not meant for habitation\",Table1174[[#This Row],[Housing Situation]]=\"Gap (presumed homeless)\"),\n((Table1174[[#This Row],[End Date]]+1)-Table1174[[#This Row],[Start Date]])/(365/12),\nIF(\nAND(\nNOT(OR(Table1174[[#This Row],[Housing Situation]]=\"ES / SH / Agency-paid Hotel\",Table1174[[#This Row],[Housing Situation]]=\"Place not meant for habitation\",Table1174[[#This Row],[Housing Situation]]=\"Gap (presumed homeless)\")),\nOR(OFFSET(Table1174[[#This Row],[Housing Situation]],1,0)=\"ES / SH / Agency-paid Hotel\",OFFSET(Table1174[[#This Row],[Housing Situation]],1,0)=\"Place not meant for habitation\",Table1174[[#This Row],[Housing Situation]]=\"Gap (presumed homeless)\")),\n((Table1174[[#This Row],[End Date]]+1)-Table1174[[#This Row],[Start Date]])/(365/12),\n0))))))","v":""},null,{"$f":"IF(Table1174[[#This Row],[Housing Situation]]=\"\",\"\",IF(Table1174[[#This Row],[Housing Situation Category]]=\"Not_Homeless_Documentation_Source\",\"N/A\",\"\"))","v":""},{"$f":"IF(Table1174[[#This Row],[Housing Situation]]=\"\",\"\",IF(Table1174[[#This Row],[Housing Situation Category]]=\"Not_Homeless_Documentation_Source\",\"N/A\",\"\"))","v":""},null,{"$f":"IF(OFFSET(Table1174[[#This Row],[Months Homeless]],1,0)=\"\",0,IF(AND(Table1174[[#This Row],[Months Homeless]]=0,OFFSET(Table1174[[#This Row],[Months Homeless]],1,0)>0),1,0))","v":0},{"$f":"IF(\nTable1174[[#This Row],[Row number]]=1,\n1,\nIF(OFFSET(Table1174[[#This Row],[Months Homeless]],1,0)=\"\",\nINDIRECT(ADDRESS(ROW()-1,COLUMN())),\nIF(\nAND(\nTable1174[[#This Row],[Months Homeless]]=0,\nOFFSET(Table1174[[#This Row],[Months Homeless]],1,0)>0),\nINDIRECT(ADDRESS(ROW()-1,COLUMN()))+1,\nINDIRECT(ADDRESS(ROW()-1,COLUMN()))\n)\n)\n)","v":5},{"$f":"IF(OR(Table1174[[#This Row],[Housing Situation]]=\"\",Table1174[[#This Row],[Housing Situation]]=\"Gap (need self-report)\"),\"\",IF(Table1174[[#This Row],[Months Homeless]]=\"Missing\",\"No\",IF(AND(Table1174[[#This Row],[Housing Situation]]=\"Gap (presumed homeless)\",COUNTA(B30,C30)-(COUNTA(F30,G30)-COUNTBLANK(F30:G30))=0),\"Yes\",IF((COUNTA(B30,C30,E30)-(COUNTA(F30,G30)-COUNTBLANK(F30:G30))=1),\"Yes\",\"No\"))))","v":""},{"$f":"IF(Table1174[[#This Row],[Row Complete?]]=\"No\",Table1174[[#This Row],[Row number]]+10,\"\")","v":""},{"$f":"ROW(Table1174[#This Row])-ROW(Table1174[[#Headers], [Housing Situation]])","v":20},{"$f":"IF(ISERROR(_xlfn.DAYS(Table1174[[#This Row],[End Date]],Table1174[[#This Row],[Start Date]])),\"\",_xlfn.DAYS(Table1174[[#This Row],[End Date]],Table1174[[#This Row],[Start Date]]))","v":""},{"$f":"IF(Table1174[[#This Row],[Housing Situation]]=\"\",\"\",IF(Table1174[[#This Row],[Housing Situation]]=Picklists!$A$11,Picklists!$B$1,IF(Table1174[[#This Row],[Housing Situation]]=Picklists!$A$2,Picklists!$B$1,IF(Table1174[[#This Row],[Housing Situation]]=Picklists!$A$3,Picklists!$B$1,IF(Table1174[[#This Row],[Housing Situation]]=Picklists!$A$12,Picklists!$B$1,Picklists!$C$1)))))","v":""},{"$f":"IF(Table1174[[#This Row],[Housing Situation Category]]=\"\",\"\",IF(Table1174[[#This Row],[Housing Situation Category]]=Picklists!$B$1,Picklists!$D$1,Picklists!$E$1))","v":""}]
[null,null,{"$f":"IF(Table1174[[#This Row],[Housing Situation]]=\"\",\"\",IF(Table1174[[#This Row],[Row number]]=1,$B$7,IF(OFFSET(C31,-1,-1)=\"\",\"\",OFFSET(C31,-1,-1)-1)))","v":""},{"$f":"IF(\nTable1174[[#This Row],[Start Date]]=\"\",\n\"\",\nIF(\nTable1174[[#This Row],[Housing Situation]]=\"Gap (need self-report)\",\n\"\",\nIF(\nTable1174[[#This Row],[Housing Situation]]=\"\",\n\"Missing\",\nIF(\nOR(\nAND(OR(Table1174[[#This Row],[Housing Situation]]=\"Hospital / Psych / Detox\",Table1174[[#This Row],[Housing Situation]]=\"Jail / Prison\",Table1174[[#This Row],[Housing Situation]]=\"Foster Care / Group Home\"),(Table1174[[#This Row],[End Date]]-Table1174[[#This Row],[Start Date]])>=90),\nAND(OR(Table1174[[#This Row],[Housing Situation]]=\"Apt / House (rented or owned)\",Table1174[[#This Row],[Housing Situation]]=\"Friend / Family\",Table1174[[#This Row],[Housing Situation]]=\"Self-paid Hotel / Halfway house\",Table1174[[#This Row],[Housing Situation]]=\"Transitional Housing\"),(Table1174[[#This Row],[End Date]]-Table1174[[#This Row],[Start Date]])>=7)),\n0,\nIF(\nOR(Table1174[[#This Row],[Housing Situation]]=\"ES / SH / Agency-paid Hotel\",Table1174[[#This Row],[Housing Situation]]=\"Place not meant for habitation\",Table1174[[#This Row],[Housing Situation]]=\"Gap (presumed homeless)\"),\n((Table1174[[#This Row],[End Date]]+1)-Table1174[[#This Row],[Start Date]])/(365/12),\nIF(\nAND(\nNOT(OR(Table1174[[#This Row],[Housing Situation]]=\"ES / SH / Agency-paid Hotel\",Table1174[[#This Row],[Housing Situation]]=\"Place not meant for habitation\",Table1174[[#This Row],[Housing Situation]]=\"Gap (presumed homeless)\")),\nOR(OFFSET(Table1174[[#This Row],[Housing Situation]],1,0)=\"ES / SH / Agency-paid Hotel\",OFFSET(Table1174[[#This Row],[Housing Situation]],1,0)=\"Place not meant for habitation\",Table1174[[#This Row],[Housing Situation]]=\"Gap (presumed homeless)\")),\n((Table1174[[#This Row],[End Date]]+1)-Table1174[[#This Row],[Start Date]])/(365/12),\n0))))))","v":""},null,{"$f":"IF(Table1174[[#This Row],[Housing Situation]]=\"\",\"\",IF(Table1174[[#This Row],[Housing Situation Category]]=\"Not_Homeless_Documentation_Source\",\"N/A\",\"\"))","v":""},{"$f":"IF(Table1174[[#This Row],[Housing Situation]]=\"\",\"\",IF(Table1174[[#This Row],[Housing Situation Category]]=\"Not_Homeless_Documentation_Source\",\"N/A\",\"\"))","v":""},null,{"$f":"IF(OFFSET(Table1174[[#This Row],[Months Homeless]],1,0)=\"\",0,IF(AND(Table1174[[#This Row],[Months Homeless]]=0,OFFSET(Table1174[[#This Row],[Months Homeless]],1,0)>0),1,0))","v":0},{"$f":"IF(\nTable1174[[#This Row],[Row number]]=1,\n1,\nIF(OFFSET(Table1174[[#This Row],[Months Homeless]],1,0)=\"\",\nINDIRECT(ADDRESS(ROW()-1,COLUMN())),\nIF(\nAND(\nTable1174[[#This Row],[Months Homeless]]=0,\nOFFSET(Table1174[[#This Row],[Months Homeless]],1,0)>0),\nINDIRECT(ADDRESS(ROW()-1,COLUMN()))+1,\nINDIRECT(ADDRESS(ROW()-1,COLUMN()))\n)\n)\n)","v":5},{"$f":"IF(OR(Table1174[[#This Row],[Housing Situation]]=\"\",Table1174[[#This Row],[Housing Situation]]=\"Gap (need self-report)\"),\"\",IF(Table1174[[#This Row],[Months Homeless]]=\"Missing\",\"No\",IF(AND(Table1174[[#This Row],[Housing Situation]]=\"Gap (presumed homeless)\",COUNTA(B31,C31)-(COUNTA(F31,G31)-COUNTBLANK(F31:G31))=0),\"Yes\",IF((COUNTA(B31,C31,E31)-(COUNTA(F31,G31)-COUNTBLANK(F31:G31))=1),\"Yes\",\"No\"))))","v":""},{"$f":"IF(Table1174[[#This Row],[Row Complete?]]=\"No\",Table1174[[#This Row],[Row number]]+10,\"\")","v":""},{"$f":"ROW(Table1174[#This Row])-ROW(Table1174[[#Headers], [Housing Situation]])","v":21},{"$f":"IF(ISERROR(_xlfn.DAYS(Table1174[[#This Row],[End Date]],Table1174[[#This Row],[Start Date]])),\"\",_xlfn.DAYS(Table1174[[#This Row],[End Date]],Table1174[[#This Row],[Start Date]]))","v":""},{"$f":"IF(Table1174[[#This Row],[Housing Situation]]=\"\",\"\",IF(Table1174[[#This Row],[Housing Situation]]=Picklists!$A$11,Picklists!$B$1,IF(Table1174[[#This Row],[Housing Situation]]=Picklists!$A$2,Picklists!$B$1,IF(Table1174[[#This Row],[Housing Situation]]=Picklists!$A$3,Picklists!$B$1,IF(Table1174[[#This Row],[Housing Situation]]=Picklists!$A$12,Picklists!$B$1,Picklists!$C$1)))))","v":""},{"$f":"IF(Table1174[[#This Row],[Housing Situation Category]]=\"\",\"\",IF(Table1174[[#This Row],[Housing Situation Category]]=Picklists!$B$1,Picklists!$D$1,Picklists!$E$1))","v":""}]
[null,null,{"$f":"IF(Table1174[[#This Row],[Housing Situation]]=\"\",\"\",IF(Table1174[[#This Row],[Row number]]=1,$B$7,IF(OFFSET(C32,-1,-1)=\"\",\"\",OFFSET(C32,-1,-1)-1)))","v":""},{"$f":"IF(\nTable1174[[#This Row],[Start Date]]=\"\",\n\"\",\nIF(\nTable1174[[#This Row],[Housing Situation]]=\"Gap (need self-report)\",\n\"\",\nIF(\nTable1174[[#This Row],[Housing Situation]]=\"\",\n\"Missing\",\nIF(\nOR(\nAND(OR(Table1174[[#This Row],[Housing Situation]]=\"Hospital / Psych / Detox\",Table1174[[#This Row],[Housing Situation]]=\"Jail / Prison\",Table1174[[#This Row],[Housing Situation]]=\"Foster Care / Group Home\"),(Table1174[[#This Row],[End Date]]-Table1174[[#This Row],[Start Date]])>=90),\nAND(OR(Table1174[[#This Row],[Housing Situation]]=\"Apt / House (rented or owned)\",Table1174[[#This Row],[Housing Situation]]=\"Friend / Family\",Table1174[[#This Row],[Housing Situation]]=\"Self-paid Hotel / Halfway house\",Table1174[[#This Row],[Housing Situation]]=\"Transitional Housing\"),(Table1174[[#This Row],[End Date]]-Table1174[[#This Row],[Start Date]])>=7)),\n0,\nIF(\nOR(Table1174[[#This Row],[Housing Situation]]=\"ES / SH / Agency-paid Hotel\",Table1174[[#This Row],[Housing Situation]]=\"Place not meant for habitation\",Table1174[[#This Row],[Housing Situation]]=\"Gap (presumed homeless)\"),\n((Table1174[[#This Row],[End Date]]+1)-Table1174[[#This Row],[Start Date]])/(365/12),\nIF(\nAND(\nNOT(OR(Table1174[[#This Row],[Housing Situation]]=\"ES / SH / Agency-paid Hotel\",Table1174[[#This Row],[Housing Situation]]=\"Place not meant for habitation\",Table1174[[#This Row],[Housing Situation]]=\"Gap (presumed homeless)\")),\nOR(OFFSET(Table1174[[#This Row],[Housing Situation]],1,0)=\"ES / SH / Agency-paid Hotel\",OFFSET(Table1174[[#This Row],[Housing Situation]],1,0)=\"Place not meant for habitation\",Table1174[[#This Row],[Housing Situation]]=\"Gap (presumed homeless)\")),\n((Table1174[[#This Row],[End Date]]+1)-Table1174[[#This Row],[Start Date]])/(365/12),\n0))))))","v":""},null,{"$f":"IF(Table1174[[#This Row],[Housing Situation]]=\"\",\"\",IF(Table1174[[#This Row],[Housing Situation Category]]=\"Not_Homeless_Documentation_Source\",\"N/A\",\"\"))","v":""},{"$f":"IF(Table1174[[#This Row],[Housing Situation]]=\"\",\"\",IF(Table1174[[#This Row],[Housing Situation Category]]=\"Not_Homeless_Documentation_Source\",\"N/A\",\"\"))","v":""},null,{"$f":"IF(OFFSET(Table1174[[#This Row],[Months Homeless]],1,0)=\"\",0,IF(AND(Table1174[[#This Row],[Months Homeless]]=0,OFFSET(Table1174[[#This Row],[Months Homeless]],1,0)>0),1,0))","v":0},{"$f":"IF(\nTable1174[[#This Row],[Row number]]=1,\n1,\nIF(OFFSET(Table1174[[#This Row],[Months Homeless]],1,0)=\"\",\nINDIRECT(ADDRESS(ROW()-1,COLUMN())),\nIF(\nAND(\nTable1174[[#This Row],[Months Homeless]]=0,\nOFFSET(Table1174[[#This Row],[Months Homeless]],1,0)>0),\nINDIRECT(ADDRESS(ROW()-1,COLUMN()))+1,\nINDIRECT(ADDRESS(ROW()-1,COLUMN()))\n)\n)\n)","v":5},{"$f":"IF(OR(Table1174[[#This Row],[Housing Situation]]=\"\",Table1174[[#This Row],[Housing Situation]]=\"Gap (need self-report)\"),\"\",IF(Table1174[[#This Row],[Months Homeless]]=\"Missing\",\"No\",IF(AND(Table1174[[#This Row],[Housing Situation]]=\"Gap (presumed homeless)\",COUNTA(B32,C32)-(COUNTA(F32,G32)-COUNTBLANK(F32:G32))=0),\"Yes\",IF((COUNTA(B32,C32,E32)-(COUNTA(F32,G32)-COUNTBLANK(F32:G32))=1),\"Yes\",\"No\"))))","v":""},{"$f":"IF(Table1174[[#This Row],[Row Complete?]]=\"No\",Table1174[[#This Row],[Row number]]+10,\"\")","v":""},{"$f":"ROW(Table1174[#This Row])-ROW(Table1174[[#Headers], [Housing Situation]])","v":22},{"$f":"IF(ISERROR(_xlfn.DAYS(Table1174[[#This Row],[End Date]],Table1174[[#This Row],[Start Date]])),\"\",_xlfn.DAYS(Table1174[[#This Row],[End Date]],Table1174[[#This Row],[Start Date]]))","v":""},{"$f":"IF(Table1174[[#This Row],[Housing Situation]]=\"\",\"\",IF(Table1174[[#This Row],[Housing Situation]]=Picklists!$A$11,Picklists!$B$1,IF(Table1174[[#This Row],[Housing Situation]]=Picklists!$A$2,Picklists!$B$1,IF(Table1174[[#This Row],[Housing Situation]]=Picklists!$A$3,Picklists!$B$1,IF(Table1174[[#This Row],[Housing Situation]]=Picklists!$A$12,Picklists!$B$1,Picklists!$C$1)))))","v":""},{"$f":"IF(Table1174[[#This Row],[Housing Situation Category]]=\"\",\"\",IF(Table1174[[#This Row],[Housing Situation Category]]=Picklists!$B$1,Picklists!$D$1,Picklists!$E$1))","v":""}]
[null,null,{"$f":"IF(Table1174[[#This Row],[Housing Situation]]=\"\",\"\",IF(Table1174[[#This Row],[Row number]]=1,$B$7,IF(OFFSET(C33,-1,-1)=\"\",\"\",OFFSET(C33,-1,-1)-1)))","v":""},{"$f":"IF(\nTable1174[[#This Row],[Start Date]]=\"\",\n\"\",\nIF(\nTable1174[[#This Row],[Housing Situation]]=\"Gap (need self-report)\",\n\"\",\nIF(\nTable1174[[#This Row],[Housing Situation]]=\"\",\n\"Missing\",\nIF(\nOR(\nAND(OR(Table1174[[#This Row],[Housing Situation]]=\"Hospital / Psych / Detox\",Table1174[[#This Row],[Housing Situation]]=\"Jail / Prison\",Table1174[[#This Row],[Housing Situation]]=\"Foster Care / Group Home\"),(Table1174[[#This Row],[End Date]]-Table1174[[#This Row],[Start Date]])>=90),\nAND(OR(Table1174[[#This Row],[Housing Situation]]=\"Apt / House (rented or owned)\",Table1174[[#This Row],[Housing Situation]]=\"Friend / Family\",Table1174[[#This Row],[Housing Situation]]=\"Self-paid Hotel / Halfway house\",Table1174[[#This Row],[Housing Situation]]=\"Transitional Housing\"),(Table1174[[#This Row],[End Date]]-Table1174[[#This Row],[Start Date]])>=7)),\n0,\nIF(\nOR(Table1174[[#This Row],[Housing Situation]]=\"ES / SH / Agency-paid Hotel\",Table1174[[#This Row],[Housing Situation]]=\"Place not meant for habitation\",Table1174[[#This Row],[Housing Situation]]=\"Gap (presumed homeless)\"),\n((Table1174[[#This Row],[End Date]]+1)-Table1174[[#This Row],[Start Date]])/(365/12),\nIF(\nAND(\nNOT(OR(Table1174[[#This Row],[Housing Situation]]=\"ES / SH / Agency-paid Hotel\",Table1174[[#This Row],[Housing Situation]]=\"Place not meant for habitation\",Table1174[[#This Row],[Housing Situation]]=\"Gap (presumed homeless)\")),\nOR(OFFSET(Table1174[[#This Row],[Housing Situation]],1,0)=\"ES / SH / Agency-paid Hotel\",OFFSET(Table1174[[#This Row],[Housing Situation]],1,0)=\"Place not meant for habitation\",Table1174[[#This Row],[Housing Situation]]=\"Gap (presumed homeless)\")),\n((Table1174[[#This Row],[End Date]]+1)-Table1174[[#This Row],[Start Date]])/(365/12),\n0))))))","v":""},null,{"$f":"IF(Table1174[[#This Row],[Housing Situation]]=\"\",\"\",IF(Table1174[[#This Row],[Housing Situation Category]]=\"Not_Homeless_Documentation_Source\",\"N/A\",\"\"))","v":""},{"$f":"IF(Table1174[[#This Row],[Housing Situation]]=\"\",\"\",IF(Table1174[[#This Row],[Housing Situation Category]]=\"Not_Homeless_Documentation_Source\",\"N/A\",\"\"))","v":""},null,{"$f":"IF(OFFSET(Table1174[[#This Row],[Months Homeless]],1,0)=\"\",0,IF(AND(Table1174[[#This Row],[Months Homeless]]=0,OFFSET(Table1174[[#This Row],[Months Homeless]],1,0)>0),1,0))","v":0},{"$f":"IF(\nTable1174[[#This Row],[Row number]]=1,\n1,\nIF(OFFSET(Table1174[[#This Row],[Months Homeless]],1,0)=\"\",\nINDIRECT(ADDRESS(ROW()-1,COLUMN())),\nIF(\nAND(\nTable1174[[#This Row],[Months Homeless]]=0,\nOFFSET(Table1174[[#This Row],[Months Homeless]],1,0)>0),\nINDIRECT(ADDRESS(ROW()-1,COLUMN()))+1,\nINDIRECT(ADDRESS(ROW()-1,COLUMN()))\n)\n)\n)","v":5},{"$f":"IF(OR(Table1174[[#This Row],[Housing Situation]]=\"\",Table1174[[#This Row],[Housing Situation]]=\"Gap (need self-report)\"),\"\",IF(Table1174[[#This Row],[Months Homeless]]=\"Missing\",\"No\",IF(AND(Table1174[[#This Row],[Housing Situation]]=\"Gap (presumed homeless)\",COUNTA(B33,C33)-(COUNTA(F33,G33)-COUNTBLANK(F33:G33))=0),\"Yes\",IF((COUNTA(B33,C33,E33)-(COUNTA(F33,G33)-COUNTBLANK(F33:G33))=1),\"Yes\",\"No\"))))","v":""},{"$f":"IF(Table1174[[#This Row],[Row Complete?]]=\"No\",Table1174[[#This Row],[Row number]]+10,\"\")","v":""},{"$f":"ROW(Table1174[#This Row])-ROW(Table1174[[#Headers], [Housing Situation]])","v":23},{"$f":"IF(ISERROR(_xlfn.DAYS(Table1174[[#This Row],[End Date]],Table1174[[#This Row],[Start Date]])),\"\",_xlfn.DAYS(Table1174[[#This Row],[End Date]],Table1174[[#This Row],[Start Date]]))","v":""},{"$f":"IF(Table1174[[#This Row],[Housing Situation]]=\"\",\"\",IF(Table1174[[#This Row],[Housing Situation]]=Picklists!$A$11,Picklists!$B$1,IF(Table1174[[#This Row],[Housing Situation]]=Picklists!$A$2,Picklists!$B$1,IF(Table1174[[#This Row],[Housing Situation]]=Picklists!$A$3,Picklists!$B$1,IF(Table1174[[#This Row],[Housing Situation]]=Picklists!$A$12,Picklists!$B$1,Picklists!$C$1)))))","v":""},{"$f":"IF(Table1174[[#This Row],[Housing Situation Category]]=\"\",\"\",IF(Table1174[[#This Row],[Housing Situation Category]]=Picklists!$B$1,Picklists!$D$1,Picklists!$E$1))","v":""}]
[null,null,{"$f":"IF(Table1174[[#This Row],[Housing Situation]]=\"\",\"\",IF(Table1174[[#This Row],[Row number]]=1,$B$7,IF(OFFSET(C34,-1,-1)=\"\",\"\",OFFSET(C34,-1,-1)-1)))","v":""},{"$f":"IF(\nTable1174[[#This Row],[Start Date]]=\"\",\n\"\",\nIF(\nTable1174[[#This Row],[Housing Situation]]=\"Gap (need self-report)\",\n\"\",\nIF(\nTable1174[[#This Row],[Housing Situation]]=\"\",\n\"Missing\",\nIF(\nOR(\nAND(OR(Table1174[[#This Row],[Housing Situation]]=\"Hospital / Psych / Detox\",Table1174[[#This Row],[Housing Situation]]=\"Jail / Prison\",Table1174[[#This Row],[Housing Situation]]=\"Foster Care / Group Home\"),(Table1174[[#This Row],[End Date]]-Table1174[[#This Row],[Start Date]])>=90),\nAND(OR(Table1174[[#This Row],[Housing Situation]]=\"Apt / House (rented or owned)\",Table1174[[#This Row],[Housing Situation]]=\"Friend / Family\",Table1174[[#This Row],[Housing Situation]]=\"Self-paid Hotel / Halfway house\",Table1174[[#This Row],[Housing Situation]]=\"Transitional Housing\"),(Table1174[[#This Row],[End Date]]-Table1174[[#This Row],[Start Date]])>=7)),\n0,\nIF(\nOR(Table1174[[#This Row],[Housing Situation]]=\"ES / SH / Agency-paid Hotel\",Table1174[[#This Row],[Housing Situation]]=\"Place not meant for habitation\",Table1174[[#This Row],[Housing Situation]]=\"Gap (presumed homeless)\"),\n((Table1174[[#This Row],[End Date]]+1)-Table1174[[#This Row],[Start Date]])/(365/12),\nIF(\nAND(\nNOT(OR(Table1174[[#This Row],[Housing Situation]]=\"ES / SH / Agency-paid Hotel\",Table1174[[#This Row],[Housing Situation]]=\"Place not meant for habitation\",Table1174[[#This Row],[Housing Situation]]=\"Gap (presumed homeless)\")),\nOR(OFFSET(Table1174[[#This Row],[Housing Situation]],1,0)=\"ES / SH / Agency-paid Hotel\",OFFSET(Table1174[[#This Row],[Housing Situation]],1,0)=\"Place not meant for habitation\",Table1174[[#This Row],[Housing Situation]]=\"Gap (presumed homeless)\")),\n((Table1174[[#This Row],[End Date]]+1)-Table1174[[#This Row],[Start Date]])/(365/12),\n0))))))","v":""},null,{"$f":"IF(Table1174[[#This Row],[Housing Situation]]=\"\",\"\",IF(Table1174[[#This Row],[Housing Situation Category]]=\"Not_Homeless_Documentation_Source\",\"N/A\",\"\"))","v":""},{"$f":"IF(Table1174[[#This Row],[Housing Situation]]=\"\",\"\",IF(Table1174[[#This Row],[Housing Situation Category]]=\"Not_Homeless_Documentation_Source\",\"N/A\",\"\"))","v":""},null,{"$f":"IF(OFFSET(Table1174[[#This Row],[Months Homeless]],1,0)=\"\",0,IF(AND(Table1174[[#This Row],[Months Homeless]]=0,OFFSET(Table1174[[#This Row],[Months Homeless]],1,0)>0),1,0))","v":0},{"$f":"IF(\nTable1174[[#This Row],[Row number]]=1,\n1,\nIF(OFFSET(Table1174[[#This Row],[Months Homeless]],1,0)=\"\",\nINDIRECT(ADDRESS(ROW()-1,COLUMN())),\nIF(\nAND(\nTable1174[[#This Row],[Months Homeless]]=0,\nOFFSET(Table1174[[#This Row],[Months Homeless]],1,0)>0),\nINDIRECT(ADDRESS(ROW()-1,COLUMN()))+1,\nINDIRECT(ADDRESS(ROW()-1,COLUMN()))\n)\n)\n)","v":5},{"$f":"IF(OR(Table1174[[#This Row],[Housing Situation]]=\"\",Table1174[[#This Row],[Housing Situation]]=\"Gap (need self-report)\"),\"\",IF(Table1174[[#This Row],[Months Homeless]]=\"Missing\",\"No\",IF(AND(Table1174[[#This Row],[Housing Situation]]=\"Gap (presumed homeless)\",COUNTA(B34,C34)-(COUNTA(F34,G34)-COUNTBLANK(F34:G34))=0),\"Yes\",IF((COUNTA(B34,C34,E34)-(COUNTA(F34,G34)-COUNTBLANK(F34:G34))=1),\"Yes\",\"No\"))))","v":""},{"$f":"IF(Table1174[[#This Row],[Row Complete?]]=\"No\",Table1174[[#This Row],[Row number]]+10,\"\")","v":""},{"$f":"ROW(Table1174[#This Row])-ROW(Table1174[[#Headers], [Housing Situation]])","v":24},{"$f":"IF(ISERROR(_xlfn.DAYS(Table1174[[#This Row],[End Date]],Table1174[[#This Row],[Start Date]])),\"\",_xlfn.DAYS(Table1174[[#This Row],[End Date]],Table1174[[#This Row],[Start Date]]))","v":""},{"$f":"IF(Table1174[[#This Row],[Housing Situation]]=\"\",\"\",IF(Table1174[[#This Row],[Housing Situation]]=Picklists!$A$11,Picklists!$B$1,IF(Table1174[[#This Row],[Housing Situation]]=Picklists!$A$2,Picklists!$B$1,IF(Table1174[[#This Row],[Housing Situation]]=Picklists!$A$3,Picklists!$B$1,IF(Table1174[[#This Row],[Housing Situation]]=Picklists!$A$12,Picklists!$B$1,Picklists!$C$1)))))","v":""},{"$f":"IF(Table1174[[#This Row],[Housing Situation Category]]=\"\",\"\",IF(Table1174[[#This Row],[Housing Situation Category]]=Picklists!$B$1,Picklists!$D$1,Picklists!$E$1))","v":""}]
[null,null,{"$f":"IF(Table1174[[#This Row],[Housing Situation]]=\"\",\"\",IF(Table1174[[#This Row],[Row number]]=1,$B$7,IF(OFFSET(C35,-1,-1)=\"\",\"\",OFFSET(C35,-1,-1)-1)))","v":""},{"$f":"IF(\nTable1174[[#This Row],[Start Date]]=\"\",\n\"\",\nIF(\nTable1174[[#This Row],[Housing Situation]]=\"Gap (need self-report)\",\n\"\",\nIF(\nTable1174[[#This Row],[Housing Situation]]=\"\",\n\"Missing\",\nIF(\nOR(\nAND(OR(Table1174[[#This Row],[Housing Situation]]=\"Hospital / Psych / Detox\",Table1174[[#This Row],[Housing Situation]]=\"Jail / Prison\",Table1174[[#This Row],[Housing Situation]]=\"Foster Care / Group Home\"),(Table1174[[#This Row],[End Date]]-Table1174[[#This Row],[Start Date]])>=90),\nAND(OR(Table1174[[#This Row],[Housing Situation]]=\"Apt / House (rented or owned)\",Table1174[[#This Row],[Housing Situation]]=\"Friend / Family\",Table1174[[#This Row],[Housing Situation]]=\"Self-paid Hotel / Halfway house\",Table1174[[#This Row],[Housing Situation]]=\"Transitional Housing\"),(Table1174[[#This Row],[End Date]]-Table1174[[#This Row],[Start Date]])>=7)),\n0,\nIF(\nOR(Table1174[[#This Row],[Housing Situation]]=\"ES / SH / Agency-paid Hotel\",Table1174[[#This Row],[Housing Situation]]=\"Place not meant for habitation\",Table1174[[#This Row],[Housing Situation]]=\"Gap (presumed homeless)\"),\n((Table1174[[#This Row],[End Date]]+1)-Table1174[[#This Row],[Start Date]])/(365/12),\nIF(\nAND(\nNOT(OR(Table1174[[#This Row],[Housing Situation]]=\"ES / SH / Agency-paid Hotel\",Table1174[[#This Row],[Housing Situation]]=\"Place not meant for habitation\",Table1174[[#This Row],[Housing Situation]]=\"Gap (presumed homeless)\")),\nOR(OFFSET(Table1174[[#This Row],[Housing Situation]],1,0)=\"ES / SH / Agency-paid Hotel\",OFFSET(Table1174[[#This Row],[Housing Situation]],1,0)=\"Place not meant for habitation\",Table1174[[#This Row],[Housing Situation]]=\"Gap (presumed homeless)\")),\n((Table1174[[#This Row],[End Date]]+1)-Table1174[[#This Row],[Start Date]])/(365/12),\n0))))))","v":""},null,{"$f":"IF(Table1174[[#This Row],[Housing Situation]]=\"\",\"\",IF(Table1174[[#This Row],[Housing Situation Category]]=\"Not_Homeless_Documentation_Source\",\"N/A\",\"\"))","v":""},{"$f":"IF(Table1174[[#This Row],[Housing Situation]]=\"\",\"\",IF(Table1174[[#This Row],[Housing Situation Category]]=\"Not_Homeless_Documentation_Source\",\"N/A\",\"\"))","v":""},null,{"$f":"IF(OFFSET(Table1174[[#This Row],[Months Homeless]],1,0)=\"\",0,IF(AND(Table1174[[#This Row],[Months Homeless]]=0,OFFSET(Table1174[[#This Row],[Months Homeless]],1,0)>0),1,0))","v":0},{"$f":"IF(\nTable1174[[#This Row],[Row number]]=1,\n1,\nIF(OFFSET(Table1174[[#This Row],[Months Homeless]],1,0)=\"\",\nINDIRECT(ADDRESS(ROW()-1,COLUMN())),\nIF(\nAND(\nTable1174[[#This Row],[Months Homeless]]=0,\nOFFSET(Table1174[[#This Row],[Months Homeless]],1,0)>0),\nINDIRECT(ADDRESS(ROW()-1,COLUMN()))+1,\nINDIRECT(ADDRESS(ROW()-1,COLUMN()))\n)\n)\n)","v":5},{"$f":"IF(OR(Table1174[[#This Row],[Housing Situation]]=\"\",Table1174[[#This Row],[Housing Situation]]=\"Gap (need self-report)\"),\"\",IF(Table1174[[#This Row],[Months Homeless]]=\"Missing\",\"No\",IF(AND(Table1174[[#This Row],[Housing Situation]]=\"Gap (presumed homeless)\",COUNTA(B35,C35)-(COUNTA(F35,G35)-COUNTBLANK(F35:G35))=0),\"Yes\",IF((COUNTA(B35,C35,E35)-(COUNTA(F35,G35)-COUNTBLANK(F35:G35))=1),\"Yes\",\"No\"))))","v":""},{"$f":"IF(Table1174[[#This Row],[Row Complete?]]=\"No\",Table1174[[#This Row],[Row number]]+10,\"\")","v":""},{"$f":"ROW(Table1174[#This Row])-ROW(Table1174[[#Headers], [Housing Situation]])","v":25},{"$f":"IF(ISERROR(_xlfn.DAYS(Table1174[[#This Row],[End Date]],Table1174[[#This Row],[Start Date]])),\"\",_xlfn.DAYS(Table1174[[#This Row],[End Date]],Table1174[[#This Row],[Start Date]]))","v":""},{"$f":"IF(Table1174[[#This Row],[Housing Situation]]=\"\",\"\",IF(Table1174[[#This Row],[Housing Situation]]=Picklists!$A$11,Picklists!$B$1,IF(Table1174[[#This Row],[Housing Situation]]=Picklists!$A$2,Picklists!$B$1,IF(Table1174[[#This Row],[Housing Situation]]=Picklists!$A$3,Picklists!$B$1,IF(Table1174[[#This Row],[Housing Situation]]=Picklists!$A$12,Picklists!$B$1,Picklists!$C$1)))))","v":""},{"$f":"IF(Table1174[[#This Row],[Housing Situation Category]]=\"\",\"\",IF(Table1174[[#This Row],[Housing Situation Category]]=Picklists!$B$1,Picklists!$D$1,Picklists!$E$1))","v":""}]
[null,null,{"$f":"IF(Table1174[[#This Row],[Housing Situation]]=\"\",\"\",IF(Table1174[[#This Row],[Row number]]=1,$B$7,IF(OFFSET(C36,-1,-1)=\"\",\"\",OFFSET(C36,-1,-1)-1)))","v":""},{"$f":"IF(\nTable1174[[#This Row],[Start Date]]=\"\",\n\"\",\nIF(\nTable1174[[#This Row],[Housing Situation]]=\"Gap (need self-report)\",\n\"\",\nIF(\nTable1174[[#This Row],[Housing Situation]]=\"\",\n\"Missing\",\nIF(\nOR(\nAND(OR(Table1174[[#This Row],[Housing Situation]]=\"Hospital / Psych / Detox\",Table1174[[#This Row],[Housing Situation]]=\"Jail / Prison\",Table1174[[#This Row],[Housing Situation]]=\"Foster Care / Group Home\"),(Table1174[[#This Row],[End Date]]-Table1174[[#This Row],[Start Date]])>=90),\nAND(OR(Table1174[[#This Row],[Housing Situation]]=\"Apt / House (rented or owned)\",Table1174[[#This Row],[Housing Situation]]=\"Friend / Family\",Table1174[[#This Row],[Housing Situation]]=\"Self-paid Hotel / Halfway house\",Table1174[[#This Row],[Housing Situation]]=\"Transitional Housing\"),(Table1174[[#This Row],[End Date]]-Table1174[[#This Row],[Start Date]])>=7)),\n0,\nIF(\nOR(Table1174[[#This Row],[Housing Situation]]=\"ES / SH / Agency-paid Hotel\",Table1174[[#This Row],[Housing Situation]]=\"Place not meant for habitation\",Table1174[[#This Row],[Housing Situation]]=\"Gap (presumed homeless)\"),\n((Table1174[[#This Row],[End Date]]+1)-Table1174[[#This Row],[Start Date]])/(365/12),\nIF(\nAND(\nNOT(OR(Table1174[[#This Row],[Housing Situation]]=\"ES / SH / Agency-paid Hotel\",Table1174[[#This Row],[Housing Situation]]=\"Place not meant for habitation\",Table1174[[#This Row],[Housing Situation]]=\"Gap (presumed homeless)\")),\nOR(OFFSET(Table1174[[#This Row],[Housing Situation]],1,0)=\"ES / SH / Agency-paid Hotel\",OFFSET(Table1174[[#This Row],[Housing Situation]],1,0)=\"Place not meant for habitation\",Table1174[[#This Row],[Housing Situation]]=\"Gap (presumed homeless)\")),\n((Table1174[[#This Row],[End Date]]+1)-Table1174[[#This Row],[Start Date]])/(365/12),\n0))))))","v":""},null,{"$f":"IF(Table1174[[#This Row],[Housing Situation]]=\"\",\"\",IF(Table1174[[#This Row],[Housing Situation Category]]=\"Not_Homeless_Documentation_Source\",\"N/A\",\"\"))","v":""},{"$f":"IF(Table1174[[#This Row],[Housing Situation]]=\"\",\"\",IF(Table1174[[#This Row],[Housing Situation Category]]=\"Not_Homeless_Documentation_Source\",\"N/A\",\"\"))","v":""},null,{"$f":"IF(OFFSET(Table1174[[#This Row],[Months Homeless]],1,0)=\"\",0,IF(AND(Table1174[[#This Row],[Months Homeless]]=0,OFFSET(Table1174[[#This Row],[Months Homeless]],1,0)>0),1,0))","v":0},{"$f":"IF(\nTable1174[[#This Row],[Row number]]=1,\n1,\nIF(OFFSET(Table1174[[#This Row],[Months Homeless]],1,0)=\"\",\nINDIRECT(ADDRESS(ROW()-1,COLUMN())),\nIF(\nAND(\nTable1174[[#This Row],[Months Homeless]]=0,\nOFFSET(Table1174[[#This Row],[Months Homeless]],1,0)>0),\nINDIRECT(ADDRESS(ROW()-1,COLUMN()))+1,\nINDIRECT(ADDRESS(ROW()-1,COLUMN()))\n)\n)\n)","v":5},{"$f":"IF(OR(Table1174[[#This Row],[Housing Situation]]=\"\",Table1174[[#This Row],[Housing Situation]]=\"Gap (need self-report)\"),\"\",IF(Table1174[[#This Row],[Months Homeless]]=\"Missing\",\"No\",IF(AND(Table1174[[#This Row],[Housing Situation]]=\"Gap (presumed homeless)\",COUNTA(B36,C36)-(COUNTA(F36,G36)-COUNTBLANK(F36:G36))=0),\"Yes\",IF((COUNTA(B36,C36,E36)-(COUNTA(F36,G36)-COUNTBLANK(F36:G36))=1),\"Yes\",\"No\"))))","v":""},{"$f":"IF(Table1174[[#This Row],[Row Complete?]]=\"No\",Table1174[[#This Row],[Row number]]+10,\"\")","v":""},{"$f":"ROW(Table1174[#This Row])-ROW(Table1174[[#Headers], [Housing Situation]])","v":26},{"$f":"IF(ISERROR(_xlfn.DAYS(Table1174[[#This Row],[End Date]],Table1174[[#This Row],[Start Date]])),\"\",_xlfn.DAYS(Table1174[[#This Row],[End Date]],Table1174[[#This Row],[Start Date]]))","v":""},{"$f":"IF(Table1174[[#This Row],[Housing Situation]]=\"\",\"\",IF(Table1174[[#This Row],[Housing Situation]]=Picklists!$A$11,Picklists!$B$1,IF(Table1174[[#This Row],[Housing Situation]]=Picklists!$A$2,Picklists!$B$1,IF(Table1174[[#This Row],[Housing Situation]]=Picklists!$A$3,Picklists!$B$1,IF(Table1174[[#This Row],[Housing Situation]]=Picklists!$A$12,Picklists!$B$1,Picklists!$C$1)))))","v":""},{"$f":"IF(Table1174[[#This Row],[Housing Situation Category]]=\"\",\"\",IF(Table1174[[#This Row],[Housing Situation Category]]=Picklists!$B$1,Picklists!$D$1,Picklists!$E$1))","v":""}]
[null,null,{"$f":"IF(Table1174[[#This Row],[Housing Situation]]=\"\",\"\",IF(Table1174[[#This Row],[Row number]]=1,$B$7,IF(OFFSET(C37,-1,-1)=\"\",\"\",OFFSET(C37,-1,-1)-1)))","v":""},{"$f":"IF(\nTable1174[[#This Row],[Start Date]]=\"\",\n\"\",\nIF(\nTable1174[[#This Row],[Housing Situation]]=\"Gap (need self-report)\",\n\"\",\nIF(\nTable1174[[#This Row],[Housing Situation]]=\"\",\n\"Missing\",\nIF(\nOR(\nAND(OR(Table1174[[#This Row],[Housing Situation]]=\"Hospital / Psych / Detox\",Table1174[[#This Row],[Housing Situation]]=\"Jail / Prison\",Table1174[[#This Row],[Housing Situation]]=\"Foster Care / Group Home\"),(Table1174[[#This Row],[End Date]]-Table1174[[#This Row],[Start Date]])>=90),\nAND(OR(Table1174[[#This Row],[Housing Situation]]=\"Apt / House (rented or owned)\",Table1174[[#This Row],[Housing Situation]]=\"Friend / Family\",Table1174[[#This Row],[Housing Situation]]=\"Self-paid Hotel / Halfway house\",Table1174[[#This Row],[Housing Situation]]=\"Transitional Housing\"),(Table1174[[#This Row],[End Date]]-Table1174[[#This Row],[Start Date]])>=7)),\n0,\nIF(\nOR(Table1174[[#This Row],[Housing Situation]]=\"ES / SH / Agency-paid Hotel\",Table1174[[#This Row],[Housing Situation]]=\"Place not meant for habitation\",Table1174[[#This Row],[Housing Situation]]=\"Gap (presumed homeless)\"),\n((Table1174[[#This Row],[End Date]]+1)-Table1174[[#This Row],[Start Date]])/(365/12),\nIF(\nAND(\nNOT(OR(Table1174[[#This Row],[Housing Situation]]=\"ES / SH / Agency-paid Hotel\",Table1174[[#This Row],[Housing Situation]]=\"Place not meant for habitation\",Table1174[[#This Row],[Housing Situation]]=\"Gap (presumed homeless)\")),\nOR(OFFSET(Table1174[[#This Row],[Housing Situation]],1,0)=\"ES / SH / Agency-paid Hotel\",OFFSET(Table1174[[#This Row],[Housing Situation]],1,0)=\"Place not meant for habitation\",Table1174[[#This Row],[Housing Situation]]=\"Gap (presumed homeless)\")),\n((Table1174[[#This Row],[End Date]]+1)-Table1174[[#This Row],[Start Date]])/(365/12),\n0))))))","v":""},null,{"$f":"IF(Table1174[[#This Row],[Housing Situation]]=\"\",\"\",IF(Table1174[[#This Row],[Housing Situation Category]]=\"Not_Homeless_Documentation_Source\",\"N/A\",\"\"))","v":""},{"$f":"IF(Table1174[[#This Row],[Housing Situation]]=\"\",\"\",IF(Table1174[[#This Row],[Housing Situation Category]]=\"Not_Homeless_Documentation_Source\",\"N/A\",\"\"))","v":""},null,{"$f":"IF(OFFSET(Table1174[[#This Row],[Months Homeless]],1,0)=\"\",0,IF(AND(Table1174[[#This Row],[Months Homeless]]=0,OFFSET(Table1174[[#This Row],[Months Homeless]],1,0)>0),1,0))","v":0},{"$f":"IF(\nTable1174[[#This Row],[Row number]]=1,\n1,\nIF(OFFSET(Table1174[[#This Row],[Months Homeless]],1,0)=\"\",\nINDIRECT(ADDRESS(ROW()-1,COLUMN())),\nIF(\nAND(\nTable1174[[#This Row],[Months Homeless]]=0,\nOFFSET(Table1174[[#This Row],[Months Homeless]],1,0)>0),\nINDIRECT(ADDRESS(ROW()-1,COLUMN()))+1,\nINDIRECT(ADDRESS(ROW()-1,COLUMN()))\n)\n)\n)","v":5},{"$f":"IF(OR(Table1174[[#This Row],[Housing Situation]]=\"\",Table1174[[#This Row],[Housing Situation]]=\"Gap (need self-report)\"),\"\",IF(Table1174[[#This Row],[Months Homeless]]=\"Missing\",\"No\",IF(AND(Table1174[[#This Row],[Housing Situation]]=\"Gap (presumed homeless)\",COUNTA(B37,C37)-(COUNTA(F37,G37)-COUNTBLANK(F37:G37))=0),\"Yes\",IF((COUNTA(B37,C37,E37)-(COUNTA(F37,G37)-COUNTBLANK(F37:G37))=1),\"Yes\",\"No\"))))","v":""},{"$f":"IF(Table1174[[#This Row],[Row Complete?]]=\"No\",Table1174[[#This Row],[Row number]]+10,\"\")","v":""},{"$f":"ROW(Table1174[#This Row])-ROW(Table1174[[#Headers], [Housing Situation]])","v":27},{"$f":"IF(ISERROR(_xlfn.DAYS(Table1174[[#This Row],[End Date]],Table1174[[#This Row],[Start Date]])),\"\",_xlfn.DAYS(Table1174[[#This Row],[End Date]],Table1174[[#This Row],[Start Date]]))","v":""},{"$f":"IF(Table1174[[#This Row],[Housing Situation]]=\"\",\"\",IF(Table1174[[#This Row],[Housing Situation]]=Picklists!$A$11,Picklists!$B$1,IF(Table1174[[#This Row],[Housing Situation]]=Picklists!$A$2,Picklists!$B$1,IF(Table1174[[#This Row],[Housing Situation]]=Picklists!$A$3,Picklists!$B$1,IF(Table1174[[#This Row],[Housing Situation]]=Picklists!$A$12,Picklists!$B$1,Picklists!$C$1)))))","v":""},{"$f":"IF(Table1174[[#This Row],[Housing Situation Category]]=\"\",\"\",IF(Table1174[[#This Row],[Housing Situation Category]]=Picklists!$B$1,Picklists!$D$1,Picklists!$E$1))","v":""}]
[null,null,{"$f":"IF(Table1174[[#This Row],[Housing Situation]]=\"\",\"\",IF(Table1174[[#This Row],[Row number]]=1,$B$7,IF(OFFSET(C38,-1,-1)=\"\",\"\",OFFSET(C38,-1,-1)-1)))","v":""},{"$f":"IF(\nTable1174[[#This Row],[Start Date]]=\"\",\n\"\",\nIF(\nTable1174[[#This Row],[Housing Situation]]=\"Gap (need self-report)\",\n\"\",\nIF(\nTable1174[[#This Row],[Housing Situation]]=\"\",\n\"Missing\",\nIF(\nOR(\nAND(OR(Table1174[[#This Row],[Housing Situation]]=\"Hospital / Psych / Detox\",Table1174[[#This Row],[Housing Situation]]=\"Jail / Prison\",Table1174[[#This Row],[Housing Situation]]=\"Foster Care / Group Home\"),(Table1174[[#This Row],[End Date]]-Table1174[[#This Row],[Start Date]])>=90),\nAND(OR(Table1174[[#This Row],[Housing Situation]]=\"Apt / House (rented or owned)\",Table1174[[#This Row],[Housing Situation]]=\"Friend / Family\",Table1174[[#This Row],[Housing Situation]]=\"Self-paid Hotel / Halfway house\",Table1174[[#This Row],[Housing Situation]]=\"Transitional Housing\"),(Table1174[[#This Row],[End Date]]-Table1174[[#This Row],[Start Date]])>=7)),\n0,\nIF(\nOR(Table1174[[#This Row],[Housing Situation]]=\"ES / SH / Agency-paid Hotel\",Table1174[[#This Row],[Housing Situation]]=\"Place not meant for habitation\",Table1174[[#This Row],[Housing Situation]]=\"Gap (presumed homeless)\"),\n((Table1174[[#This Row],[End Date]]+1)-Table1174[[#This Row],[Start Date]])/(365/12),\nIF(\nAND(\nNOT(OR(Table1174[[#This Row],[Housing Situation]]=\"ES / SH / Agency-paid Hotel\",Table1174[[#This Row],[Housing Situation]]=\"Place not meant for habitation\",Table1174[[#This Row],[Housing Situation]]=\"Gap (presumed homeless)\")),\nOR(OFFSET(Table1174[[#This Row],[Housing Situation]],1,0)=\"ES / SH / Agency-paid Hotel\",OFFSET(Table1174[[#This Row],[Housing Situation]],1,0)=\"Place not meant for habitation\",Table1174[[#This Row],[Housing Situation]]=\"Gap (presumed homeless)\")),\n((Table1174[[#This Row],[End Date]]+1)-Table1174[[#This Row],[Start Date]])/(365/12),\n0))))))","v":""},null,{"$f":"IF(Table1174[[#This Row],[Housing Situation]]=\"\",\"\",IF(Table1174[[#This Row],[Housing Situation Category]]=\"Not_Homeless_Documentation_Source\",\"N/A\",\"\"))","v":""},{"$f":"IF(Table1174[[#This Row],[Housing Situation]]=\"\",\"\",IF(Table1174[[#This Row],[Housing Situation Category]]=\"Not_Homeless_Documentation_Source\",\"N/A\",\"\"))","v":""},null,{"$f":"IF(OFFSET(Table1174[[#This Row],[Months Homeless]],1,0)=\"\",0,IF(AND(Table1174[[#This Row],[Months Homeless]]=0,OFFSET(Table1174[[#This Row],[Months Homeless]],1,0)>0),1,0))","v":0},{"$f":"IF(\nTable1174[[#This Row],[Row number]]=1,\n1,\nIF(OFFSET(Table1174[[#This Row],[Months Homeless]],1,0)=\"\",\nINDIRECT(ADDRESS(ROW()-1,COLUMN())),\nIF(\nAND(\nTable1174[[#This Row],[Months Homeless]]=0,\nOFFSET(Table1174[[#This Row],[Months Homeless]],1,0)>0),\nINDIRECT(ADDRESS(ROW()-1,COLUMN()))+1,\nINDIRECT(ADDRESS(ROW()-1,COLUMN()))\n)\n)\n)","v":5},{"$f":"IF(OR(Table1174[[#This Row],[Housing Situation]]=\"\",Table1174[[#This Row],[Housing Situation]]=\"Gap (need self-report)\"),\"\",IF(Table1174[[#This Row],[Months Homeless]]=\"Missing\",\"No\",IF(AND(Table1174[[#This Row],[Housing Situation]]=\"Gap (presumed homeless)\",COUNTA(B38,C38)-(COUNTA(F38,G38)-COUNTBLANK(F38:G38))=0),\"Yes\",IF((COUNTA(B38,C38,E38)-(COUNTA(F38,G38)-COUNTBLANK(F38:G38))=1),\"Yes\",\"No\"))))","v":""},{"$f":"IF(Table1174[[#This Row],[Row Complete?]]=\"No\",Table1174[[#This Row],[Row number]]+10,\"\")","v":""},{"$f":"ROW(Table1174[#This Row])-ROW(Table1174[[#Headers], [Housing Situation]])","v":28},{"$f":"IF(ISERROR(_xlfn.DAYS(Table1174[[#This Row],[End Date]],Table1174[[#This Row],[Start Date]])),\"\",_xlfn.DAYS(Table1174[[#This Row],[End Date]],Table1174[[#This Row],[Start Date]]))","v":""},{"$f":"IF(Table1174[[#This Row],[Housing Situation]]=\"\",\"\",IF(Table1174[[#This Row],[Housing Situation]]=Picklists!$A$11,Picklists!$B$1,IF(Table1174[[#This Row],[Housing Situation]]=Picklists!$A$2,Picklists!$B$1,IF(Table1174[[#This Row],[Housing Situation]]=Picklists!$A$3,Picklists!$B$1,IF(Table1174[[#This Row],[Housing Situation]]=Picklists!$A$12,Picklists!$B$1,Picklists!$C$1)))))","v":""},{"$f":"IF(Table1174[[#This Row],[Housing Situation Category]]=\"\",\"\",IF(Table1174[[#This Row],[Housing Situation Category]]=Picklists!$B$1,Picklists!$D$1,Picklists!$E$1))","v":""}]
[null,null,{"$f":"IF(Table1174[[#This Row],[Housing Situation]]=\"\",\"\",IF(Table1174[[#This Row],[Row number]]=1,$B$7,IF(OFFSET(C39,-1,-1)=\"\",\"\",OFFSET(C39,-1,-1)-1)))","v":""},{"$f":"IF(\nTable1174[[#This Row],[Start Date]]=\"\",\n\"\",\nIF(\nTable1174[[#This Row],[Housing Situation]]=\"Gap (need self-report)\",\n\"\",\nIF(\nTable1174[[#This Row],[Housing Situation]]=\"\",\n\"Missing\",\nIF(\nOR(\nAND(OR(Table1174[[#This Row],[Housing Situation]]=\"Hospital / Psych / Detox\",Table1174[[#This Row],[Housing Situation]]=\"Jail / Prison\",Table1174[[#This Row],[Housing Situation]]=\"Foster Care / Group Home\"),(Table1174[[#This Row],[End Date]]-Table1174[[#This Row],[Start Date]])>=90),\nAND(OR(Table1174[[#This Row],[Housing Situation]]=\"Apt / House (rented or owned)\",Table1174[[#This Row],[Housing Situation]]=\"Friend / Family\",Table1174[[#This Row],[Housing Situation]]=\"Self-paid Hotel / Halfway house\",Table1174[[#This Row],[Housing Situation]]=\"Transitional Housing\"),(Table1174[[#This Row],[End Date]]-Table1174[[#This Row],[Start Date]])>=7)),\n0,\nIF(\nOR(Table1174[[#This Row],[Housing Situation]]=\"ES / SH / Agency-paid Hotel\",Table1174[[#This Row],[Housing Situation]]=\"Place not meant for habitation\",Table1174[[#This Row],[Housing Situation]]=\"Gap (presumed homeless)\"),\n((Table1174[[#This Row],[End Date]]+1)-Table1174[[#This Row],[Start Date]])/(365/12),\nIF(\nAND(\nNOT(OR(Table1174[[#This Row],[Housing Situation]]=\"ES / SH / Agency-paid Hotel\",Table1174[[#This Row],[Housing Situation]]=\"Place not meant for habitation\",Table1174[[#This Row],[Housing Situation]]=\"Gap (presumed homeless)\")),\nOR(OFFSET(Table1174[[#This Row],[Housing Situation]],1,0)=\"ES / SH / Agency-paid Hotel\",OFFSET(Table1174[[#This Row],[Housing Situation]],1,0)=\"Place not meant for habitation\",Table1174[[#This Row],[Housing Situation]]=\"Gap (presumed homeless)\")),\n((Table1174[[#This Row],[End Date]]+1)-Table1174[[#This Row],[Start Date]])/(365/12),\n0))))))","v":""},null,{"$f":"IF(Table1174[[#This Row],[Housing Situation]]=\"\",\"\",IF(Table1174[[#This Row],[Housing Situation Category]]=\"Not_Homeless_Documentation_Source\",\"N/A\",\"\"))","v":""},{"$f":"IF(Table1174[[#This Row],[Housing Situation]]=\"\",\"\",IF(Table1174[[#This Row],[Housing Situation Category]]=\"Not_Homeless_Documentation_Source\",\"N/A\",\"\"))","v":""},null,{"$f":"IF(OFFSET(Table1174[[#This Row],[Months Homeless]],1,0)=\"\",0,IF(AND(Table1174[[#This Row],[Months Homeless]]=0,OFFSET(Table1174[[#This Row],[Months Homeless]],1,0)>0),1,0))","v":0},{"$f":"IF(\nTable1174[[#This Row],[Row number]]=1,\n1,\nIF(OFFSET(Table1174[[#This Row],[Months Homeless]],1,0)=\"\",\nINDIRECT(ADDRESS(ROW()-1,COLUMN())),\nIF(\nAND(\nTable1174[[#This Row],[Months Homeless]]=0,\nOFFSET(Table1174[[#This Row],[Months Homeless]],1,0)>0),\nINDIRECT(ADDRESS(ROW()-1,COLUMN()))+1,\nINDIRECT(ADDRESS(ROW()-1,COLUMN()))\n)\n)\n)","v":5},{"$f":"IF(OR(Table1174[[#This Row],[Housing Situation]]=\"\",Table1174[[#This Row],[Housing Situation]]=\"Gap (need self-report)\"),\"\",IF(Table1174[[#This Row],[Months Homeless]]=\"Missing\",\"No\",IF(AND(Table1174[[#This Row],[Housing Situation]]=\"Gap (presumed homeless)\",COUNTA(B39,C39)-(COUNTA(F39,G39)-COUNTBLANK(F39:G39))=0),\"Yes\",IF((COUNTA(B39,C39,E39)-(COUNTA(F39,G39)-COUNTBLANK(F39:G39))=1),\"Yes\",\"No\"))))","v":""},{"$f":"IF(Table1174[[#This Row],[Row Complete?]]=\"No\",Table1174[[#This Row],[Row number]]+10,\"\")","v":""},{"$f":"ROW(Table1174[#This Row])-ROW(Table1174[[#Headers], [Housing Situation]])","v":29},{"$f":"IF(ISERROR(_xlfn.DAYS(Table1174[[#This Row],[End Date]],Table1174[[#This Row],[Start Date]])),\"\",_xlfn.DAYS(Table1174[[#This Row],[End Date]],Table1174[[#This Row],[Start Date]]))","v":""},{"$f":"IF(Table1174[[#This Row],[Housing Situation]]=\"\",\"\",IF(Table1174[[#This Row],[Housing Situation]]=Picklists!$A$11,Picklists!$B$1,IF(Table1174[[#This Row],[Housing Situation]]=Picklists!$A$2,Picklists!$B$1,IF(Table1174[[#This Row],[Housing Situation]]=Picklists!$A$3,Picklists!$B$1,IF(Table1174[[#This Row],[Housing Situation]]=Picklists!$A$12,Picklists!$B$1,Picklists!$C$1)))))","v":""},{"$f":"IF(Table1174[[#This Row],[Housing Situation Category]]=\"\",\"\",IF(Table1174[[#This Row],[Housing Situation Category]]=Picklists!$B$1,Picklists!$D$1,Picklists!$E$1))","v":""}]
[null,null,{"$f":"IF(Table1174[[#This Row],[Housing Situation]]=\"\",\"\",IF(Table1174[[#This Row],[Row number]]=1,$B$7,IF(OFFSET(C40,-1,-1)=\"\",\"\",OFFSET(C40,-1,-1)-1)))","v":""},{"$f":"IF(\nTable1174[[#This Row],[Start Date]]=\"\",\n\"\",\nIF(\nTable1174[[#This Row],[Housing Situation]]=\"Gap (need self-report)\",\n\"\",\nIF(\nTable1174[[#This Row],[Housing Situation]]=\"\",\n\"Missing\",\nIF(\nOR(\nAND(OR(Table1174[[#This Row],[Housing Situation]]=\"Hospital / Psych / Detox\",Table1174[[#This Row],[Housing Situation]]=\"Jail / Prison\",Table1174[[#This Row],[Housing Situation]]=\"Foster Care / Group Home\"),(Table1174[[#This Row],[End Date]]-Table1174[[#This Row],[Start Date]])>=90),\nAND(OR(Table1174[[#This Row],[Housing Situation]]=\"Apt / House (rented or owned)\",Table1174[[#This Row],[Housing Situation]]=\"Friend / Family\",Table1174[[#This Row],[Housing Situation]]=\"Self-paid Hotel / Halfway house\",Table1174[[#This Row],[Housing Situation]]=\"Transitional Housing\"),(Table1174[[#This Row],[End Date]]-Table1174[[#This Row],[Start Date]])>=7)),\n0,\nIF(\nOR(Table1174[[#This Row],[Housing Situation]]=\"ES / SH / Agency-paid Hotel\",Table1174[[#This Row],[Housing Situation]]=\"Place not meant for habitation\",Table1174[[#This Row],[Housing Situation]]=\"Gap (presumed homeless)\"),\n((Table1174[[#This Row],[End Date]]+1)-Table1174[[#This Row],[Start Date]])/(365/12),\nIF(\nAND(\nNOT(OR(Table1174[[#This Row],[Housing Situation]]=\"ES / SH / Agency-paid Hotel\",Table1174[[#This Row],[Housing Situation]]=\"Place not meant for habitation\",Table1174[[#This Row],[Housing Situation]]=\"Gap (presumed homeless)\")),\nOR(OFFSET(Table1174[[#This Row],[Housing Situation]],1,0)=\"ES / SH / Agency-paid Hotel\",OFFSET(Table1174[[#This Row],[Housing Situation]],1,0)=\"Place not meant for habitation\",Table1174[[#This Row],[Housing Situation]]=\"Gap (presumed homeless)\")),\n((Table1174[[#This Row],[End Date]]+1)-Table1174[[#This Row],[Start Date]])/(365/12),\n0))))))","v":""},null,{"$f":"IF(Table1174[[#This Row],[Housing Situation]]=\"\",\"\",IF(Table1174[[#This Row],[Housing Situation Category]]=\"Not_Homeless_Documentation_Source\",\"N/A\",\"\"))","v":""},{"$f":"IF(Table1174[[#This Row],[Housing Situation]]=\"\",\"\",IF(Table1174[[#This Row],[Housing Situation Category]]=\"Not_Homeless_Documentation_Source\",\"N/A\",\"\"))","v":""},null,{"$f":"IF(OFFSET(Table1174[[#This Row],[Months Homeless]],1,0)=\"\",0,IF(AND(Table1174[[#This Row],[Months Homeless]]=0,OFFSET(Table1174[[#This Row],[Months Homeless]],1,0)>0),1,0))","v":0},{"$f":"IF(\nTable1174[[#This Row],[Row number]]=1,\n1,\nIF(OFFSET(Table1174[[#This Row],[Months Homeless]],1,0)=\"\",\nINDIRECT(ADDRESS(ROW()-1,COLUMN())),\nIF(\nAND(\nTable1174[[#This Row],[Months Homeless]]=0,\nOFFSET(Table1174[[#This Row],[Months Homeless]],1,0)>0),\nINDIRECT(ADDRESS(ROW()-1,COLUMN()))+1,\nINDIRECT(ADDRESS(ROW()-1,COLUMN()))\n)\n)\n)","v":5},{"$f":"IF(OR(Table1174[[#This Row],[Housing Situation]]=\"\",Table1174[[#This Row],[Housing Situation]]=\"Gap (need self-report)\"),\"\",IF(Table1174[[#This Row],[Months Homeless]]=\"Missing\",\"No\",IF(AND(Table1174[[#This Row],[Housing Situation]]=\"Gap (presumed homeless)\",COUNTA(B40,C40)-(COUNTA(F40,G40)-COUNTBLANK(F40:G40))=0),\"Yes\",IF((COUNTA(B40,C40,E40)-(COUNTA(F40,G40)-COUNTBLANK(F40:G40))=1),\"Yes\",\"No\"))))","v":""},{"$f":"IF(Table1174[[#This Row],[Row Complete?]]=\"No\",Table1174[[#This Row],[Row number]]+10,\"\")","v":""},{"$f":"ROW(Table1174[#This Row])-ROW(Table1174[[#Headers], [Housing Situation]])","v":30},{"$f":"IF(ISERROR(_xlfn.DAYS(Table1174[[#This Row],[End Date]],Table1174[[#This Row],[Start Date]])),\"\",_xlfn.DAYS(Table1174[[#This Row],[End Date]],Table1174[[#This Row],[Start Date]]))","v":""},{"$f":"IF(Table1174[[#This Row],[Housing Situation]]=\"\",\"\",IF(Table1174[[#This Row],[Housing Situation]]=Picklists!$A$11,Picklists!$B$1,IF(Table1174[[#This Row],[Housing Situation]]=Picklists!$A$2,Picklists!$B$1,IF(Table1174[[#This Row],[Housing Situation]]=Picklists!$A$3,Picklists!$B$1,IF(Table1174[[#This Row],[Housing Situation]]=Picklists!$A$12,Picklists!$B$1,Picklists!$C$1)))))","v":""},{"$f":"IF(Table1174[[#This Row],[Housing Situation Category]]=\"\",\"\",IF(Table1174[[#This Row],[Housing Situation Category]]=Picklists!$B$1,Picklists!$D$1,Picklists!$E$1))","v":""}]
[null,null,{"$f":"IF(Table1174[[#This Row],[Housing Situation]]=\"\",\"\",IF(Table1174[[#This Row],[Row number]]=1,$B$7,IF(OFFSET(C41,-1,-1)=\"\",\"\",OFFSET(C41,-1,-1)-1)))","v":""},{"$f":"IF(\nTable1174[[#This Row],[Start Date]]=\"\",\n\"\",\nIF(\nTable1174[[#This Row],[Housing Situation]]=\"Gap (need self-report)\",\n\"\",\nIF(\nTable1174[[#This Row],[Housing Situation]]=\"\",\n\"Missing\",\nIF(\nOR(\nAND(OR(Table1174[[#This Row],[Housing Situation]]=\"Hospital / Psych / Detox\",Table1174[[#This Row],[Housing Situation]]=\"Jail / Prison\",Table1174[[#This Row],[Housing Situation]]=\"Foster Care / Group Home\"),(Table1174[[#This Row],[End Date]]-Table1174[[#This Row],[Start Date]])>=90),\nAND(OR(Table1174[[#This Row],[Housing Situation]]=\"Apt / House (rented or owned)\",Table1174[[#This Row],[Housing Situation]]=\"Friend / Family\",Table1174[[#This Row],[Housing Situation]]=\"Self-paid Hotel / Halfway house\",Table1174[[#This Row],[Housing Situation]]=\"Transitional Housing\"),(Table1174[[#This Row],[End Date]]-Table1174[[#This Row],[Start Date]])>=7)),\n0,\nIF(\nOR(Table1174[[#This Row],[Housing Situation]]=\"ES / SH / Agency-paid Hotel\",Table1174[[#This Row],[Housing Situation]]=\"Place not meant for habitation\",Table1174[[#This Row],[Housing Situation]]=\"Gap (presumed homeless)\"),\n((Table1174[[#This Row],[End Date]]+1)-Table1174[[#This Row],[Start Date]])/(365/12),\nIF(\nAND(\nNOT(OR(Table1174[[#This Row],[Housing Situation]]=\"ES / SH / Agency-paid Hotel\",Table1174[[#This Row],[Housing Situation]]=\"Place not meant for habitation\",Table1174[[#This Row],[Housing Situation]]=\"Gap (presumed homeless)\")),\nOR(OFFSET(Table1174[[#This Row],[Housing Situation]],1,0)=\"ES / SH / Agency-paid Hotel\",OFFSET(Table1174[[#This Row],[Housing Situation]],1,0)=\"Place not meant for habitation\",Table1174[[#This Row],[Housing Situation]]=\"Gap (presumed homeless)\")),\n((Table1174[[#This Row],[End Date]]+1)-Table1174[[#This Row],[Start Date]])/(365/12),\n0))))))","v":""},null,{"$f":"IF(Table1174[[#This Row],[Housing Situation]]=\"\",\"\",IF(Table1174[[#This Row],[Housing Situation Category]]=\"Not_Homeless_Documentation_Source\",\"N/A\",\"\"))","v":""},{"$f":"IF(Table1174[[#This Row],[Housing Situation]]=\"\",\"\",IF(Table1174[[#This Row],[Housing Situation Category]]=\"Not_Homeless_Documentation_Source\",\"N/A\",\"\"))","v":""},null,{"$f":"IF(OFFSET(Table1174[[#This Row],[Months Homeless]],1,0)=\"\",0,IF(AND(Table1174[[#This Row],[Months Homeless]]=0,OFFSET(Table1174[[#This Row],[Months Homeless]],1,0)>0),1,0))","v":0},{"$f":"IF(\nTable1174[[#This Row],[Row number]]=1,\n1,\nIF(OFFSET(Table1174[[#This Row],[Months Homeless]],1,0)=\"\",\nINDIRECT(ADDRESS(ROW()-1,COLUMN())),\nIF(\nAND(\nTable1174[[#This Row],[Months Homeless]]=0,\nOFFSET(Table1174[[#This Row],[Months Homeless]],1,0)>0),\nINDIRECT(ADDRESS(ROW()-1,COLUMN()))+1,\nINDIRECT(ADDRESS(ROW()-1,COLUMN()))\n)\n)\n)","v":5},{"$f":"IF(OR(Table1174[[#This Row],[Housing Situation]]=\"\",Table1174[[#This Row],[Housing Situation]]=\"Gap (need self-report)\"),\"\",IF(Table1174[[#This Row],[Months Homeless]]=\"Missing\",\"No\",IF(AND(Table1174[[#This Row],[Housing Situation]]=\"Gap (presumed homeless)\",COUNTA(B41,C41)-(COUNTA(F41,G41)-COUNTBLANK(F41:G41))=0),\"Yes\",IF((COUNTA(B41,C41,E41)-(COUNTA(F41,G41)-COUNTBLANK(F41:G41))=1),\"Yes\",\"No\"))))","v":""},{"$f":"IF(Table1174[[#This Row],[Row Complete?]]=\"No\",Table1174[[#This Row],[Row number]]+10,\"\")","v":""},{"$f":"ROW(Table1174[#This Row])-ROW(Table1174[[#Headers], [Housing Situation]])","v":31},{"$f":"IF(ISERROR(_xlfn.DAYS(Table1174[[#This Row],[End Date]],Table1174[[#This Row],[Start Date]])),\"\",_xlfn.DAYS(Table1174[[#This Row],[End Date]],Table1174[[#This Row],[Start Date]]))","v":""},{"$f":"IF(Table1174[[#This Row],[Housing Situation]]=\"\",\"\",IF(Table1174[[#This Row],[Housing Situation]]=Picklists!$A$11,Picklists!$B$1,IF(Table1174[[#This Row],[Housing Situation]]=Picklists!$A$2,Picklists!$B$1,IF(Table1174[[#This Row],[Housing Situation]]=Picklists!$A$3,Picklists!$B$1,IF(Table1174[[#This Row],[Housing Situation]]=Picklists!$A$12,Picklists!$B$1,Picklists!$C$1)))))","v":""},{"$f":"IF(Table1174[[#This Row],[Housing Situation Category]]=\"\",\"\",IF(Table1174[[#This Row],[Housing Situation Category]]=Picklists!$B$1,Picklists!$D$1,Picklists!$E$1))","v":""}]
[null,null,{"$f":"IF(Table1174[[#This Row],[Housing Situation]]=\"\",\"\",IF(Table1174[[#This Row],[Row number]]=1,$B$7,IF(OFFSET(C42,-1,-1)=\"\",\"\",OFFSET(C42,-1,-1)-1)))","v":""},{"$f":"IF(\nTable1174[[#This Row],[Start Date]]=\"\",\n\"\",\nIF(\nTable1174[[#This Row],[Housing Situation]]=\"Gap (need self-report)\",\n\"\",\nIF(\nTable1174[[#This Row],[Housing Situation]]=\"\",\n\"Missing\",\nIF(\nOR(\nAND(OR(Table1174[[#This Row],[Housing Situation]]=\"Hospital / Psych / Detox\",Table1174[[#This Row],[Housing Situation]]=\"Jail / Prison\",Table1174[[#This Row],[Housing Situation]]=\"Foster Care / Group Home\"),(Table1174[[#This Row],[End Date]]-Table1174[[#This Row],[Start Date]])>=90),\nAND(OR(Table1174[[#This Row],[Housing Situation]]=\"Apt / House (rented or owned)\",Table1174[[#This Row],[Housing Situation]]=\"Friend / Family\",Table1174[[#This Row],[Housing Situation]]=\"Self-paid Hotel / Halfway house\",Table1174[[#This Row],[Housing Situation]]=\"Transitional Housing\"),(Table1174[[#This Row],[End Date]]-Table1174[[#This Row],[Start Date]])>=7)),\n0,\nIF(\nOR(Table1174[[#This Row],[Housing Situation]]=\"ES / SH / Agency-paid Hotel\",Table1174[[#This Row],[Housing Situation]]=\"Place not meant for habitation\",Table1174[[#This Row],[Housing Situation]]=\"Gap (presumed homeless)\"),\n((Table1174[[#This Row],[End Date]]+1)-Table1174[[#This Row],[Start Date]])/(365/12),\nIF(\nAND(\nNOT(OR(Table1174[[#This Row],[Housing Situation]]=\"ES / SH / Agency-paid Hotel\",Table1174[[#This Row],[Housing Situation]]=\"Place not meant for habitation\",Table1174[[#This Row],[Housing Situation]]=\"Gap (presumed homeless)\")),\nOR(OFFSET(Table1174[[#This Row],[Housing Situation]],1,0)=\"ES / SH / Agency-paid Hotel\",OFFSET(Table1174[[#This Row],[Housing Situation]],1,0)=\"Place not meant for habitation\",Table1174[[#This Row],[Housing Situation]]=\"Gap (presumed homeless)\")),\n((Table1174[[#This Row],[End Date]]+1)-Table1174[[#This Row],[Start Date]])/(365/12),\n0))))))","v":""},null,{"$f":"IF(Table1174[[#This Row],[Housing Situation]]=\"\",\"\",IF(Table1174[[#This Row],[Housing Situation Category]]=\"Not_Homeless_Documentation_Source\",\"N/A\",\"\"))","v":""},{"$f":"IF(Table1174[[#This Row],[Housing Situation]]=\"\",\"\",IF(Table1174[[#This Row],[Housing Situation Category]]=\"Not_Homeless_Documentation_Source\",\"N/A\",\"\"))","v":""},null,{"$f":"IF(OFFSET(Table1174[[#This Row],[Months Homeless]],1,0)=\"\",0,IF(AND(Table1174[[#This Row],[Months Homeless]]=0,OFFSET(Table1174[[#This Row],[Months Homeless]],1,0)>0),1,0))","v":0},{"$f":"IF(\nTable1174[[#This Row],[Row number]]=1,\n1,\nIF(OFFSET(Table1174[[#This Row],[Months Homeless]],1,0)=\"\",\nINDIRECT(ADDRESS(ROW()-1,COLUMN())),\nIF(\nAND(\nTable1174[[#This Row],[Months Homeless]]=0,\nOFFSET(Table1174[[#This Row],[Months Homeless]],1,0)>0),\nINDIRECT(ADDRESS(ROW()-1,COLUMN()))+1,\nINDIRECT(ADDRESS(ROW()-1,COLUMN()))\n)\n)\n)","v":5},{"$f":"IF(OR(Table1174[[#This Row],[Housing Situation]]=\"\",Table1174[[#This Row],[Housing Situation]]=\"Gap (need self-report)\"),\"\",IF(Table1174[[#This Row],[Months Homeless]]=\"Missing\",\"No\",IF(AND(Table1174[[#This Row],[Housing Situation]]=\"Gap (presumed homeless)\",COUNTA(B42,C42)-(COUNTA(F42,G42)-COUNTBLANK(F42:G42))=0),\"Yes\",IF((COUNTA(B42,C42,E42)-(COUNTA(F42,G42)-COUNTBLANK(F42:G42))=1),\"Yes\",\"No\"))))","v":""},{"$f":"IF(Table1174[[#This Row],[Row Complete?]]=\"No\",Table1174[[#This Row],[Row number]]+10,\"\")","v":""},{"$f":"ROW(Table1174[#This Row])-ROW(Table1174[[#Headers], [Housing Situation]])","v":32},{"$f":"IF(ISERROR(_xlfn.DAYS(Table1174[[#This Row],[End Date]],Table1174[[#This Row],[Start Date]])),\"\",_xlfn.DAYS(Table1174[[#This Row],[End Date]],Table1174[[#This Row],[Start Date]]))","v":""},{"$f":"IF(Table1174[[#This Row],[Housing Situation]]=\"\",\"\",IF(Table1174[[#This Row],[Housing Situation]]=Picklists!$A$11,Picklists!$B$1,IF(Table1174[[#This Row],[Housing Situation]]=Picklists!$A$2,Picklists!$B$1,IF(Table1174[[#This Row],[Housing Situation]]=Picklists!$A$3,Picklists!$B$1,IF(Table1174[[#This Row],[Housing Situation]]=Picklists!$A$12,Picklists!$B$1,Picklists!$C$1)))))","v":""},{"$f":"IF(Table1174[[#This Row],[Housing Situation Category]]=\"\",\"\",IF(Table1174[[#This Row],[Housing Situation Category]]=Picklists!$B$1,Picklists!$D$1,Picklists!$E$1))","v":""}]
[null,null,{"$f":"IF(Table1174[[#This Row],[Housing Situation]]=\"\",\"\",IF(Table1174[[#This Row],[Row number]]=1,$B$7,IF(OFFSET(C43,-1,-1)=\"\",\"\",OFFSET(C43,-1,-1)-1)))","v":""},{"$f":"IF(\nTable1174[[#This Row],[Start Date]]=\"\",\n\"\",\nIF(\nTable1174[[#This Row],[Housing Situation]]=\"Gap (need self-report)\",\n\"\",\nIF(\nTable1174[[#This Row],[Housing Situation]]=\"\",\n\"Missing\",\nIF(\nOR(\nAND(OR(Table1174[[#This Row],[Housing Situation]]=\"Hospital / Psych / Detox\",Table1174[[#This Row],[Housing Situation]]=\"Jail / Prison\",Table1174[[#This Row],[Housing Situation]]=\"Foster Care / Group Home\"),(Table1174[[#This Row],[End Date]]-Table1174[[#This Row],[Start Date]])>=90),\nAND(OR(Table1174[[#This Row],[Housing Situation]]=\"Apt / House (rented or owned)\",Table1174[[#This Row],[Housing Situation]]=\"Friend / Family\",Table1174[[#This Row],[Housing Situation]]=\"Self-paid Hotel / Halfway house\",Table1174[[#This Row],[Housing Situation]]=\"Transitional Housing\"),(Table1174[[#This Row],[End Date]]-Table1174[[#This Row],[Start Date]])>=7)),\n0,\nIF(\nOR(Table1174[[#This Row],[Housing Situation]]=\"ES / SH / Agency-paid Hotel\",Table1174[[#This Row],[Housing Situation]]=\"Place not meant for habitation\",Table1174[[#This Row],[Housing Situation]]=\"Gap (presumed homeless)\"),\n((Table1174[[#This Row],[End Date]]+1)-Table1174[[#This Row],[Start Date]])/(365/12),\nIF(\nAND(\nNOT(OR(Table1174[[#This Row],[Housing Situation]]=\"ES / SH / Agency-paid Hotel\",Table1174[[#This Row],[Housing Situation]]=\"Place not meant for habitation\",Table1174[[#This Row],[Housing Situation]]=\"Gap (presumed homeless)\")),\nOR(OFFSET(Table1174[[#This Row],[Housing Situation]],1,0)=\"ES / SH / Agency-paid Hotel\",OFFSET(Table1174[[#This Row],[Housing Situation]],1,0)=\"Place not meant for habitation\",Table1174[[#This Row],[Housing Situation]]=\"Gap (presumed homeless)\")),\n((Table1174[[#This Row],[End Date]]+1)-Table1174[[#This Row],[Start Date]])/(365/12),\n0))))))","v":""},null,{"$f":"IF(Table1174[[#This Row],[Housing Situation]]=\"\",\"\",IF(Table1174[[#This Row],[Housing Situation Category]]=\"Not_Homeless_Documentation_Source\",\"N/A\",\"\"))","v":""},{"$f":"IF(Table1174[[#This Row],[Housing Situation]]=\"\",\"\",IF(Table1174[[#This Row],[Housing Situation Category]]=\"Not_Homeless_Documentation_Source\",\"N/A\",\"\"))","v":""},null,{"$f":"IF(OFFSET(Table1174[[#This Row],[Months Homeless]],1,0)=\"\",0,IF(AND(Table1174[[#This Row],[Months Homeless]]=0,OFFSET(Table1174[[#This Row],[Months Homeless]],1,0)>0),1,0))","v":0},{"$f":"IF(\nTable1174[[#This Row],[Row number]]=1,\n1,\nIF(OFFSET(Table1174[[#This Row],[Months Homeless]],1,0)=\"\",\nINDIRECT(ADDRESS(ROW()-1,COLUMN())),\nIF(\nAND(\nTable1174[[#This Row],[Months Homeless]]=0,\nOFFSET(Table1174[[#This Row],[Months Homeless]],1,0)>0),\nINDIRECT(ADDRESS(ROW()-1,COLUMN()))+1,\nINDIRECT(ADDRESS(ROW()-1,COLUMN()))\n)\n)\n)","v":5},{"$f":"IF(OR(Table1174[[#This Row],[Housing Situation]]=\"\",Table1174[[#This Row],[Housing Situation]]=\"Gap (need self-report)\"),\"\",IF(Table1174[[#This Row],[Months Homeless]]=\"Missing\",\"No\",IF(AND(Table1174[[#This Row],[Housing Situation]]=\"Gap (presumed homeless)\",COUNTA(B43,C43)-(COUNTA(F43,G43)-COUNTBLANK(F43:G43))=0),\"Yes\",IF((COUNTA(B43,C43,E43)-(COUNTA(F43,G43)-COUNTBLANK(F43:G43))=1),\"Yes\",\"No\"))))","v":""},{"$f":"IF(Table1174[[#This Row],[Row Complete?]]=\"No\",Table1174[[#This Row],[Row number]]+10,\"\")","v":""},{"$f":"ROW(Table1174[#This Row])-ROW(Table1174[[#Headers], [Housing Situation]])","v":33},{"$f":"IF(ISERROR(_xlfn.DAYS(Table1174[[#This Row],[End Date]],Table1174[[#This Row],[Start Date]])),\"\",_xlfn.DAYS(Table1174[[#This Row],[End Date]],Table1174[[#This Row],[Start Date]]))","v":""},{"$f":"IF(Table1174[[#This Row],[Housing Situation]]=\"\",\"\",IF(Table1174[[#This Row],[Housing Situation]]=Picklists!$A$11,Picklists!$B$1,IF(Table1174[[#This Row],[Housing Situation]]=Picklists!$A$2,Picklists!$B$1,IF(Table1174[[#This Row],[Housing Situation]]=Picklists!$A$3,Picklists!$B$1,IF(Table1174[[#This Row],[Housing Situation]]=Picklists!$A$12,Picklists!$B$1,Picklists!$C$1)))))","v":""},{"$f":"IF(Table1174[[#This Row],[Housing Situation Category]]=\"\",\"\",IF(Table1174[[#This Row],[Housing Situation Category]]=Picklists!$B$1,Picklists!$D$1,Picklists!$E$1))","v":""}]
[null,null,{"$f":"IF(Table1174[[#This Row],[Housing Situation]]=\"\",\"\",IF(Table1174[[#This Row],[Row number]]=1,$B$7,IF(OFFSET(C44,-1,-1)=\"\",\"\",OFFSET(C44,-1,-1)-1)))","v":""},{"$f":"IF(\nTable1174[[#This Row],[Start Date]]=\"\",\n\"\",\nIF(\nTable1174[[#This Row],[Housing Situation]]=\"Gap (need self-report)\",\n\"\",\nIF(\nTable1174[[#This Row],[Housing Situation]]=\"\",\n\"Missing\",\nIF(\nOR(\nAND(OR(Table1174[[#This Row],[Housing Situation]]=\"Hospital / Psych / Detox\",Table1174[[#This Row],[Housing Situation]]=\"Jail / Prison\",Table1174[[#This Row],[Housing Situation]]=\"Foster Care / Group Home\"),(Table1174[[#This Row],[End Date]]-Table1174[[#This Row],[Start Date]])>=90),\nAND(OR(Table1174[[#This Row],[Housing Situation]]=\"Apt / House (rented or owned)\",Table1174[[#This Row],[Housing Situation]]=\"Friend / Family\",Table1174[[#This Row],[Housing Situation]]=\"Self-paid Hotel / Halfway house\",Table1174[[#This Row],[Housing Situation]]=\"Transitional Housing\"),(Table1174[[#This Row],[End Date]]-Table1174[[#This Row],[Start Date]])>=7)),\n0,\nIF(\nOR(Table1174[[#This Row],[Housing Situation]]=\"ES / SH / Agency-paid Hotel\",Table1174[[#This Row],[Housing Situation]]=\"Place not meant for habitation\",Table1174[[#This Row],[Housing Situation]]=\"Gap (presumed homeless)\"),\n((Table1174[[#This Row],[End Date]]+1)-Table1174[[#This Row],[Start Date]])/(365/12),\nIF(\nAND(\nNOT(OR(Table1174[[#This Row],[Housing Situation]]=\"ES / SH / Agency-paid Hotel\",Table1174[[#This Row],[Housing Situation]]=\"Place not meant for habitation\",Table1174[[#This Row],[Housing Situation]]=\"Gap (presumed homeless)\")),\nOR(OFFSET(Table1174[[#This Row],[Housing Situation]],1,0)=\"ES / SH / Agency-paid Hotel\",OFFSET(Table1174[[#This Row],[Housing Situation]],1,0)=\"Place not meant for habitation\",Table1174[[#This Row],[Housing Situation]]=\"Gap (presumed homeless)\")),\n((Table1174[[#This Row],[End Date]]+1)-Table1174[[#This Row],[Start Date]])/(365/12),\n0))))))","v":""},null,{"$f":"IF(Table1174[[#This Row],[Housing Situation]]=\"\",\"\",IF(Table1174[[#This Row],[Housing Situation Category]]=\"Not_Homeless_Documentation_Source\",\"N/A\",\"\"))","v":""},{"$f":"IF(Table1174[[#This Row],[Housing Situation]]=\"\",\"\",IF(Table1174[[#This Row],[Housing Situation Category]]=\"Not_Homeless_Documentation_Source\",\"N/A\",\"\"))","v":""},null,{"$f":"IF(OFFSET(Table1174[[#This Row],[Months Homeless]],1,0)=\"\",0,IF(AND(Table1174[[#This Row],[Months Homeless]]=0,OFFSET(Table1174[[#This Row],[Months Homeless]],1,0)>0),1,0))","v":0},{"$f":"IF(\nTable1174[[#This Row],[Row number]]=1,\n1,\nIF(OFFSET(Table1174[[#This Row],[Months Homeless]],1,0)=\"\",\nINDIRECT(ADDRESS(ROW()-1,COLUMN())),\nIF(\nAND(\nTable1174[[#This Row],[Months Homeless]]=0,\nOFFSET(Table1174[[#This Row],[Months Homeless]],1,0)>0),\nINDIRECT(ADDRESS(ROW()-1,COLUMN()))+1,\nINDIRECT(ADDRESS(ROW()-1,COLUMN()))\n)\n)\n)","v":5},{"$f":"IF(OR(Table1174[[#This Row],[Housing Situation]]=\"\",Table1174[[#This Row],[Housing Situation]]=\"Gap (need self-report)\"),\"\",IF(Table1174[[#This Row],[Months Homeless]]=\"Missing\",\"No\",IF(AND(Table1174[[#This Row],[Housing Situation]]=\"Gap (presumed homeless)\",COUNTA(B44,C44)-(COUNTA(F44,G44)-COUNTBLANK(F44:G44))=0),\"Yes\",IF((COUNTA(B44,C44,E44)-(COUNTA(F44,G44)-COUNTBLANK(F44:G44))=1),\"Yes\",\"No\"))))","v":""},{"$f":"IF(Table1174[[#This Row],[Row Complete?]]=\"No\",Table1174[[#This Row],[Row number]]+10,\"\")","v":""},{"$f":"ROW(Table1174[#This Row])-ROW(Table1174[[#Headers], [Housing Situation]])","v":34},{"$f":"IF(ISERROR(_xlfn.DAYS(Table1174[[#This Row],[End Date]],Table1174[[#This Row],[Start Date]])),\"\",_xlfn.DAYS(Table1174[[#This Row],[End Date]],Table1174[[#This Row],[Start Date]]))","v":""},{"$f":"IF(Table1174[[#This Row],[Housing Situation]]=\"\",\"\",IF(Table1174[[#This Row],[Housing Situation]]=Picklists!$A$11,Picklists!$B$1,IF(Table1174[[#This Row],[Housing Situation]]=Picklists!$A$2,Picklists!$B$1,IF(Table1174[[#This Row],[Housing Situation]]=Picklists!$A$3,Picklists!$B$1,IF(Table1174[[#This Row],[Housing Situation]]=Picklists!$A$12,Picklists!$B$1,Picklists!$C$1)))))","v":""},{"$f":"IF(Table1174[[#This Row],[Housing Situation Category]]=\"\",\"\",IF(Table1174[[#This Row],[Housing Situation Category]]=Picklists!$B$1,Picklists!$D$1,Picklists!$E$1))","v":""}]

{"sheet":"HHTF","index":3,"n_rows":44,"n_cols":20,"rows_kept":44,"cut":false,"hidden":false,"merged":[[0,0,0,7],[3,1,3,3],[4,1,4,3],[8,0,8,7],[5,6,5,7],[7,1,7,2],[5,1,5,3],[6,1,6,3],[6,6,6,7],[2,0,2,7],[1,2,1,7]]}
["Homeless History Tracking Form v1"]
[null,null,"Copyright © 2020 Institute for Community Alliances. All Rights Reserved. For information, contact info@icalliances.org."]
["This form is meant to comprehensively present a client's homelesss history going back 3 years from the interview date and establish current and needed documentation for verifying chronic homeless status."]
["Client Name",null,null,null,"#Episodes",{"$f":"IFERROR((SUM(Table1[Break Counter])+1)-$I$11,\"0\")","v":1},"Documented Chronic in 1st Episode?",{"$f":"IF(SUM(SUMIFS(Table1[Months Homeless],Table1[Episode'#],1,Table1[Documentation Obtained?],{\"Yes\",\"N/A - Month already counted\",\"N/A - Not Homeless Not Break\"}))>=12,\"Yes\",\"No\")","v":"No"},null,null,null,null,null,null,null,null,null,null,null,{"$f":"F5*30.4","v":0}]
["HMIS ID",null,null,null,"# Total Reported Months",{"$f":"SUM(Table1[Months Homeless])","v":0},"Disability Documentation",null,null,null,null,null,null,null,null,null,null,null,null,"Days Documented"]
["Interviewing Staff",null,null,null,"# Documented Months",{"$f":"SUM(SUMIFS(Table1[Months Homeless],Table1[Documentation Obtained?],{\"Yes\",\"N/A\"}))","v":0},"?  ",null,null,null,null,null,null,null,null,null,null,null,null,{"$f":"F6*30.4","v":0}]
["Date of Interview ",null,null,null,"# Months requiring documentation to meet length of time threshold",{"$f":"IF($H$4=\"Yes\",\"None - client is verified\",IF($F$6<12,12-$F$6,\"None - client is verified\"))","v":12},"?  "]
["Data Quality Checks","Self-Certification Count",null,{"$f":"COUNTIF(F:F,\"Self-Certification Letter\")","v":0},"# of gaps needing self-report",{"$f":"IF(COUNTIF(A:A,\"Gap (need self-report)\")=0,\"None\",COUNTIF(A:A,\"Gap (need self-report)\"))","v":"None"},"Row #s with incomplete info",{"$f":"IF(COUNT(Table1[Incomplete Row Number])=0,\"None\",_xlfn.TEXTJOIN(\", \",TRUE,Table1[Incomplete Row Number]))","v":"None"},null,null,{"$f":"COUNTA(F11,G11)-COUNTBLANK(F11:G11)","v":0}]
[null,null,null,null,null,null,null,null,null,null,{"$f":"COUNTBLANK(F11:G11)","v":2}]
["Housing Situation","Start Date","End Date","Months Homeless","Whereabouts (description)","Documentation Source (obtained or anticipated)","Documentation Obtained?","Documentation Notes","Break Counter","Episode#","Row Complete?","Incomplete Row Number","Row number","Days Between","Housing Situation Category","Documentation Category"]
[null,null,{"$f":"IF(Table1[[#This Row],[Housing Situation]]=\"\",\"\",IF(Table1[[#This Row],[Row number]]=1,$B$7,IF(OFFSET(C11,-1,-1)=\"\",\"\",OFFSET(C11,-1,-1)-1)))","v":""},{"$f":"IF(\nTable1[[#This Row],[Start Date]]=\"\",\n\"\",\nIF(\nTable1[[#This Row],[Housing Situation]]=\"Gap (need self-report)\",\n\"\",\nIF(\nTable1[[#This Row],[Housing Situation]]=\"\",\n\"Missing\",\nIF(\nOR(\nAND(OR(Table1[[#This Row],[Housing Situation]]=\"Hospital / Psych / Detox\",Table1[[#This Row],[Housing Situation]]=\"Jail / Prison\",Table1[[#This Row],[Housing Situation]]=\"Foster Care / Group Home\"),(Table1[[#This Row],[End Date]]-Table1[[#This Row],[Start Date]])>=90),\nAND(OR(Table1[[#This Row],[Housing Situation]]=\"Apt / House (rented or owned)\",Table1[[#This Row],[Housing Situation]]=\"Friend / Family\",Table1[[#This Row],[Housing Situation]]=\"Self-paid Hotel / Halfway house\",Table1[[#This Row],[Housing Situation]]=\"Transitional Housing\"),(Table1[[#This Row],[End Date]]-Table1[[#This Row],[Start Date]])>=7)),\n0,\nIF(\nOR(Table1[[#This Row],[Housing Situation]]=\"ES / SH / Agency-paid Hotel\",Table1[[#This Row],[Housing Situation]]=\"Place not meant for habitation\",Table1[[#This Row],[Housing Situation]]=\"Gap (presumed homeless)\"),\n((Table1[[#This Row],[End Date]]+1)-Table1[[#This Row],[Start Date]])/(365/12),\nIF(\nAND(\nNOT(OR(Table1[[#This Row],[Housing Situation]]=\"ES / SH / Agency-paid Hotel\",Table1[[#This Row],[Housing Situation]]=\"Place not meant for habitation\",Table1[[#This Row],[Housing Situation]]=\"Gap (presumed homeless)\")),\nOR(OFFSET(Table1[[#This Row],[Housing Situation]],1,0)=\"ES / SH / Agency-paid Hotel\",OFFSET(Table1[[#This Row],[Housing Situation]],1,0)=\"Place not meant for habitation\",Table1[[#This Row],[Housing Situation]]=\"Gap (presumed homeless)\")),\n((Table1[[#This Row],[End Date]]+1)-Table1[[#This Row],[Start Date]])/(365/12),\n0))))))","v":""},null,{"$f":"IF(Table1[[#This Row],[Housing Situation]]=\"\",\"\",IF(Table1[[#This Row],[Housing Situation Category]]=\"Not_Homeless_Documentation_Source\",\"N/A\",\"\"))","v":""},{"$f":"IF(Table1[[#This Row],[Housing Situation]]=\"\",\"\",IF(Table1[[#This Row],[Housing Situation Category]]=\"Not_Homeless_Documentation_Source\",\"N/A\",\"\"))","v":""},null,{"$f":"IF(OFFSET(Table1[[#This Row],[Months Homeless]],1,0)=\"\",0,IF(AND(Table1[[#This Row],[Months Homeless]]=0,OFFSET(Table1[[#This Row],[Months Homeless]],1,0)>0),1,0))","v":0},{"$f":"IF(\nTable1[[#This Row],[Row number]]=1,\n1,\nIF(OFFSET(Table1[[#This Row],[Months Homeless]],1,0)=\"\",\nINDIRECT(ADDRESS(ROW()-1,COLUMN())),\nIF(\nAND(\nTable1[[#This Row],[Months Homeless]]=0,\nOFFSET(Table1[[#This Row],[Months Homeless]],1,0)>0),\nINDIRECT(ADDRESS(ROW()-1,COLUMN()))+1,\nINDIRECT(ADDRESS(ROW()-1,COLUMN()))\n)\n)\n)","v":1},{"$f":"IF(OR(Table1[[#This Row],[Housing Situation]]=\"\",Table1[[#This Row],[Housing Situation]]=\"Gap (need self-report)\"),\"\",IF(Table1[[#This Row],[Months Homeless]]=\"Missing\",\"No\",IF(AND(Table1[[#This Row],[Housing Situation]]=\"Gap (presumed homeless)\",COUNTA(B11,C11)-(COUNTA(F11,G11)-COUNTBLANK(F11:G11))=0),\"Yes\",IF((COUNTA(B11,C11,E11)-(COUNTA(F11,G11)-COUNTBLANK(F11:G11))=1),\"Yes\",\"No\"))))","v":""},{"$f":"IF(Table1[[#This Row],[Row Complete?]]=\"No\",Table1[[#This Row],[Row number]]+10,\"\")","v":""},{"$f":"ROW(Table1[#This Row])-ROW(Table1[[#Headers], [Housing Situation]])","v":1},{"$f":"IF(ISERROR(_xlfn.DAYS(Table1[[#This Row],[End Date]],Table1[[#This Row],[Start Date]])),\"\",_xlfn.DAYS(Table1[[#This Row],[End Date]],Table1[[#This Row],[Start Date]]))","v":""},{"$f":"IF(Table1[[#This Row],[Housing Situation]]=\"\",\"\",IF(Table1[[#This Row],[Housing Situation]]=Picklists!$A$11,Picklists!$B$1,IF(Table1[[#This Row],[Housing Situation]]=Picklists!$A$2,Picklists!$B$1,IF(Table1[[#This Row],[Housing Situation]]=Picklists!$A$3,Picklists!$B$1,IF(Table1[[#This Row],[Housing Situation]]=Picklists!$A$12,Picklists!$B$1,Picklists!$C$1)))))","v":""},{"$f":"IF(Table1[[#This Row],[Housing Situation Category]]=\"\",\"\",IF(Table1[[#This Row],[Housing Situation Category]]=Picklists!$B$1,Picklists!$D$1,Picklists!$E$1))","v":""}]
[null,null,{"$f":"IF(Table1[[#This Row],[Housing Situation]]=\"\",\"\",IF(Table1[[#This Row],[Row number]]=1,$B$7,IF(OFFSET(C12,-1,-1)=\"\",\"\",OFFSET(C12,-1,-1)-1)))","v":""},{"$f":"IF(\nTable1[[#This Row],[Start Date]]=\"\",\n\"\",\nIF(\nTable1[[#This Row],[Housing Situation]]=\"Gap (need self-report)\",\n\"\",\nIF(\nTable1[[#This Row],[Housing Situation]]=\"\",\n\"Missing\",\nIF(\nOR(\nAND(OR(Table1[[#This Row],[Housing Situation]]=\"Hospital / Psych / Detox\",Table1[[#This Row],[Housing Situation]]=\"Jail / Prison\",Table1[[#This Row],[Housing Situation]]=\"Foster Care / Group Home\"),(Table1[[#This Row],[End Date]]-Table1[[#This Row],[Start Date]])>=90),\nAND(OR(Table1[[#This Row],[Housing Situation]]=\"Apt / House (rented or owned)\",Table1[[#This Row],[Housing Situation]]=\"Friend / Family\",Table1[[#This Row],[Housing Situation]]=\"Self-paid Hotel / Halfway house\",Table1[[#This Row],[Housing Situation]]=\"Transitional Housing\"),(Table1[[#This Row],[End Date]]-Table1[[#This Row],[Start Date]])>=7)),\n0,\nIF(\nOR(Table1[[#This Row],[Housing Situation]]=\"ES / SH / Agency-paid Hotel\",Table1[[#This Row],[Housing Situation]]=\"Place not meant for habitation\",Table1[[#This Row],[Housing Situation]]=\"Gap (presumed homeless)\"),\n((Table1[[#This Row],[End Date]]+1)-Table1[[#This Row],[Start Date]])/(365/12),\nIF(\nAND(\nNOT(OR(Table1[[#This Row],[Housing Situation]]=\"ES / SH / Agency-paid Hotel\",Table1[[#This Row],[Housing Situation]]=\"Place not meant for habitation\",Table1[[#This Row],[Housing Situation]]=\"Gap (presumed homeless)\")),\nOR(OFFSET(Table1[[#This Row],[Housing Situation]],1,0)=\"ES / SH / Agency-paid Hotel\",OFFSET(Table1[[#This Row],[Housing Situation]],1,0)=\"Place not meant for habitation\",Table1[[#This Row],[Housing Situation]]=\"Gap (presumed homeless)\")),\n((Table1[[#This Row],[End Date]]+1)-Table1[[#This Row],[Start Date]])/(365/12),\n0))))))","v":""},null,{"$f":"IF(Table1[[#This Row],[Housing Situation]]=\"\",\"\",IF(Table1[[#This Row],[Housing Situation Category]]=\"Not_Homeless_Documentation_Source\",\"N/A\",\"\"))","v":""},{"$f":"IF(Table1[[#This Row],[Housing Situation]]=\"\",\"\",IF(Table1[[#This Row],[Housing Situation Category]]=\"Not_Homeless_Documentation_Source\",\"N/A\",\"\"))","v":""},null,{"$f":"IF(OFFSET(Table1[[#This Row],[Months Homeless]],1,0)=\"\",0,IF(AND(Table1[[#This Row],[Months Homeless]]=0,OFFSET(Table1[[#This Row],[Months Homeless]],1,0)>0),1,0))","v":0},{"$f":"IF(\nTable1[[#This Row],[Row number]]=1,\n1,\nIF(OFFSET(Table1[[#This Row],[Months Homeless]],1,0)=\"\",\nINDIRECT(ADDRESS(ROW()-1,COLUMN())),\nIF(\nAND(\nTable1[[#This Row],[Months Homeless]]=0,\nOFFSET(Table1[[#This Row],[Months Homeless]],1,0)>0),\nINDIRECT(ADDRESS(ROW()-1,COLUMN()))+1,\nINDIRECT(ADDRESS(ROW()-1,COLUMN()))\n)\n)\n)","v":1},{"$f":"IF(OR(Table1[[#This Row],[Housing Situation]]=\"\",Table1[[#This Row],[Housing Situation]]=\"Gap (need self-report)\"),\"\",IF(Table1[[#This Row],[Months Homeless]]=\"Missing\",\"No\",IF(AND(Table1[[#This Row],[Housing Situation]]=\"Gap (presumed homeless)\",COUNTA(B12,C12)-(COUNTA(F12,G12)-COUNTBLANK(F12:G12))=0),\"Yes\",IF((COUNTA(B12,C12,E12)-(COUNTA(F12,G12)-COUNTBLANK(F12:G12))=1),\"Yes\",\"No\"))))","v":""},{"$f":"IF(Table1[[#This Row],[Row Complete?]]=\"No\",Table1[[#This Row],[Row number]]+10,\"\")","v":""},{"$f":"ROW(Table1[#This Row])-ROW(Table1[[#Headers], [Housing Situation]])","v":2},{"$f":"IF(ISERROR(_xlfn.DAYS(Table1[[#This Row],[End Date]],Table1[[#This Row],[Start Date]])),\"\",_xlfn.DAYS(Table1[[#This Row],[End Date]],Table1[[#This Row],[Start Date]]))","v":""},{"$f":"IF(Table1[[#This Row],[Housing Situation]]=\"\",\"\",IF(Table1[[#This Row],[Housing Situation]]=Picklists!$A$11,Picklists!$B$1,IF(Table1[[#This Row],[Housing Situation]]=Picklists!$A$2,Picklists!$B$1,IF(Table1[[#This Row],[Housing Situation]]=Picklists!$A$3,Picklists!$B$1,IF(Table1[[#This Row],[Housing Situation]]=Picklists!$A$12,Picklists!$B$1,Picklists!$C$1)))))","v":""},{"$f":"IF(Table1[[#This Row],[Housing Situation Category]]=\"\",\"\",IF(Table1[[#This Row],[Housing Situation Category]]=Picklists!$B$1,Picklists!$D$1,Picklists!$E$1))","v":""}]
[null,null,{"$f":"IF(Table1[[#This Row],[Housing Situation]]=\"\",\"\",IF(Table1[[#This Row],[Row number]]=1,$B$7,IF(OFFSET(C13,-1,-1)=\"\",\"\",OFFSET(C13,-1,-1)-1)))","v":""},{"$f":"IF(\nTable1[[#This Row],[Start Date]]=\"\",\n\"\",\nIF(\nTable1[[#This Row],[Housing Situation]]=\"Gap (need self-report)\",\n\"\",\nIF(\nTable1[[#This Row],[Housing Situation]]=\"\",\n\"Missing\",\nIF(\nOR(\nAND(OR(Table1[[#This Row],[Housing Situation]]=\"Hospital / Psych / Detox\",Table1[[#This Row],[Housing Situation]]=\"Jail / Prison\",Table1[[#This Row],[Housing Situation]]=\"Foster Care / Group Home\"),(Table1[[#This Row],[End Date]]-Table1[[#This Row],[Start Date]])>=90),\nAND(OR(Table1[[#This Row],[Housing Situation]]=\"Apt / House (rented or owned)\",Table1[[#This Row],[Housing Situation]]=\"Friend / Family\",Table1[[#This Row],[Housing Situation]]=\"Self-paid Hotel / Halfway house\",Table1[[#This Row],[Housing Situation]]=\"Transitional Housing\"),(Table1[[#This Row],[End Date]]-Table1[[#This Row],[Start Date]])>=7)),\n0,\nIF(\nOR(Table1[[#This Row],[Housing Situation]]=\"ES / SH / Agency-paid Hotel\",Table1[[#This Row],[Housing Situation]]=\"Place not meant for habitation\",Table1[[#This Row],[Housing Situation]]=\"Gap (presumed homeless)\"),\n((Table1[[#This Row],[End Date]]+1)-Table1[[#This Row],[Start Date]])/(365/12),\nIF(\nAND(\nNOT(OR(Table1[[#This Row],[Housing Situation]]=\"ES / SH / Agency-paid Hotel\",Table1[[#This Row],[Housing Situation]]=\"Place not meant for habitation\",Table1[[#This Row],[Housing Situation]]=\"Gap (presumed homeless)\")),\nOR(OFFSET(Table1[[#This Row],[Housing Situation]],1,0)=\"ES / SH / Agency-paid Hotel\",OFFSET(Table1[[#This Row],[Housing Situation]],1,0)=\"Place not meant for habitation\",Table1[[#This Row],[Housing Situation]]=\"Gap (presumed homeless)\")),\n((Table1[[#This Row],[End Date]]+1)-Table1[[#This Row],[Start Date]])/(365/12),\n0))))))","v":""},null,{"$f":"IF(Table1[[#This Row],[Housing Situation]]=\"\",\"\",IF(Table1[[#This Row],[Housing Situation Category]]=\"Not_Homeless_Documentation_Source\",\"N/A\",\"\"))","v":""},{"$f":"IF(Table1[[#This Row],[Housing Situation]]=\"\",\"\",IF(Table1[[#This Row],[Housing Situation Category]]=\"Not_Homeless_Documentation_Source\",\"N/A\",\"\"))","v":""},null,{"$f":"IF(OFFSET(Table1[[#This Row],[Months Homeless]],1,0)=\"\",0,IF(AND(Table1[[#This Row],[Months Homeless]]=0,OFFSET(Table1[[#This Row],[Months Homeless]],1,0)>0),1,0))","v":0},{"$f":"IF(\nTable1[[#This Row],[Row number]]=1,\n1,\nIF(OFFSET(Table1[[#This Row],[Months Homeless]],1,0)=\"\",\nINDIRECT(ADDRESS(ROW()-1,COLUMN())),\nIF(\nAND(\nTable1[[#This Row],[Months Homeless]]=0,\nOFFSET(Table1[[#This Row],[Months Homeless]],1,0)>0),\nINDIRECT(ADDRESS(ROW()-1,COLUMN()))+1,\nINDIRECT(ADDRESS(ROW()-1,COLUMN()))\n)\n)\n)","v":1},{"$f":"IF(OR(Table1[[#This Row],[Housing Situation]]=\"\",Table1[[#This Row],[Housing Situation]]=\"Gap (need self-report)\"),\"\",IF(Table1[[#This Row],[Months Homeless]]=\"Missing\",\"No\",IF(AND(Table1[[#This Row],[Housing Situation]]=\"Gap (presumed homeless)\",COUNTA(B13,C13)-(COUNTA(F13,G13)-COUNTBLANK(F13:G13))=0),\"Yes\",IF((COUNTA(B13,C13,E13)-(COUNTA(F13,G13)-COUNTBLANK(F13:G13))=1),\"Yes\",\"No\"))))","v":""},{"$f":"IF(Table1[[#This Row],[Row Complete?]]=\"No\",Table1[[#This Row],[Row number]]+10,\"\")","v":""},{"$f":"ROW(Table1[#This Row])-ROW(Table1[[#Headers], [Housing Situation]])","v":3},{"$f":"IF(ISERROR(_xlfn.DAYS(Table1[[#This Row],[End Date]],Table1[[#This Row],[Start Date]])),\"\",_xlfn.DAYS(Table1[[#This Row],[End Date]],Table1[[#This Row],[Start Date]]))","v":""},{"$f":"IF(Table1[[#This Row],[Housing Situation]]=\"\",\"\",IF(Table1[[#This Row],[Housing Situation]]=Picklists!$A$11,Picklists!$B$1,IF(Table1[[#This Row],[Housing Situation]]=Picklists!$A$2,Picklists!$B$1,IF(Table1[[#This Row],[Housing Situation]]=Picklists!$A$3,Picklists!$B$1,IF(Table1[[#This Row],[Housing Situation]]=Picklists!$A$12,Picklists!$B$1,Picklists!$C$1)))))","v":""},{"$f":"IF(Table1[[#This Row],[Housing Situation Category]]=\"\",\"\",IF(Table1[[#This Row],[Housing Situation Category]]=Picklists!$B$1,Picklists!$D$1,Picklists!$E$1))","v":""}]
[null,null,{"$f":"IF(Table1[[#This Row],[Housing Situation]]=\"\",\"\",IF(Table1[[#This Row],[Row number]]=1,$B$7,IF(OFFSET(C14,-1,-1)=\"\",\"\",OFFSET(C14,-1,-1)-1)))","v":""},{"$f":"IF(\nTable1[[#This Row],[Start Date]]=\"\",\n\"\",\nIF(\nTable1[[#This Row],[Housing Situation]]=\"Gap (need self-report)\",\n\"\",\nIF(\nTable1[[#This Row],[Housing Situation]]=\"\",\n\"Missing\",\nIF(\nOR(\nAND(OR(Table1[[#This Row],[Housing Situation]]=\"Hospital / Psych / Detox\",Table1[[#This Row],[Housing Situation]]=\"Jail / Prison\",Table1[[#This Row],[Housing Situation]]=\"Foster Care / Group Home\"),(Table1[[#This Row],[End Date]]-Table1[[#This Row],[Start Date]])>=90),\nAND(OR(Table1[[#This Row],[Housing Situation]]=\"Apt / House (rented or owned)\",Table1[[#This Row],[Housing Situation]]=\"Friend / Family\",Table1[[#This Row],[Housing Situation]]=\"Self-paid Hotel / Halfway house\",Table1[[#This Row],[Housing Situation]]=\"Transitional Housing\"),(Table1[[#This Row],[End Date]]-Table1[[#This Row],[Start Date]])>=7)),\n0,\nIF(\nOR(Table1[[#This Row],[Housing Situation]]=\"ES / SH / Agency-paid Hotel\",Table1[[#This Row],[Housing Situation]]=\"Place not meant for habitation\",Table1[[#This Row],[Housing Situation]]=\"Gap (presumed homeless)\"),\n((Table1[[#This Row],[End Date]]+1)-Table1[[#This Row],[Start Date]])/(365/12),\nIF(\nAND(\nNOT(OR(Table1[[#This Row],[Housing Situation]]=\"ES / SH / Agency-paid Hotel\",Table1[[#This Row],[Housing Situation]]=\"Place not meant for habitation\",Table1[[#This Row],[Housing Situation]]=\"Gap (presumed homeless)\")),\nOR(OFFSET(Table1[[#This Row],[Housing Situation]],1,0)=\"ES / SH / Agency-paid Hotel\",OFFSET(Table1[[#This Row],[Housing Situation]],1,0)=\"Place not meant for habitation\",Table1[[#This Row],[Housing Situation]]=\"Gap (presumed homeless)\")),\n((Table1[[#This Row],[End Date]]+1)-Table1[[#This Row],[Start Date]])/(365/12),\n0))))))","v":""},null,{"$f":"IF(Table1[[#This Row],[Housing Situation]]=\"\",\"\",IF(Table1[[#This Row],[Housing Situation Category]]=\"Not_Homeless_Documentation_Source\",\"N/A\",\"\"))","v":""},{"$f":"IF(Table1[[#This Row],[Housing Situation]]=\"\",\"\",IF(Table1[[#This Row],[Housing Situation Category]]=\"Not_Homeless_Documentation_Source\",\"N/A\",\"\"))","v":""},null,{"$f":"IF(OFFSET(Table1[[#This Row],[Months Homeless]],1,0)=\"\",0,IF(AND(Table1[[#This Row],[Months Homeless]]=0,OFFSET(Table1[[#This Row],[Months Homeless]],1,0)>0),1,0))","v":0},{"$f":"IF(\nTable1[[#This Row],[Row number]]=1,\n1,\nIF(OFFSET(Table1[[#This Row],[Months Homeless]],1,0)=\"\",\nINDIRECT(ADDRESS(ROW()-1,COLUMN())),\nIF(\nAND(\nTable1[[#This Row],[Months Homeless]]=0,\nOFFSET(Table1[[#This Row],[Months Homeless]],1,0)>0),\nINDIRECT(ADDRESS(ROW()-1,COLUMN()))+1,\nINDIRECT(ADDRESS(ROW()-1,COLUMN()))\n)\n)\n)","v":1},{"$f":"IF(OR(Table1[[#This Row],[Housing Situation]]=\"\",Table1[[#This Row],[Housing Situation]]=\"Gap (need self-report)\"),\"\",IF(Table1[[#This Row],[Months Homeless]]=\"Missing\",\"No\",IF(AND(Table1[[#This Row],[Housing Situation]]=\"Gap (presumed homeless)\",COUNTA(B14,C14)-(COUNTA(F14,G14)-COUNTBLANK(F14:G14))=0),\"Yes\",IF((COUNTA(B14,C14,E14)-(COUNTA(F14,G14)-COUNTBLANK(F14:G14))=1),\"Yes\",\"No\"))))","v":""},{"$f":"IF(Table1[[#This Row],[Row Complete?]]=\"No\",Table1[[#This Row],[Row number]]+10,\"\")","v":""},{"$f":"ROW(Table1[#This Row])-ROW(Table1[[#Headers], [Housing Situation]])","v":4},{"$f":"IF(ISERROR(_xlfn.DAYS(Table1[[#This Row],[End Date]],Table1[[#This Row],[Start Date]])),\"\",_xlfn.DAYS(Table1[[#This Row],[End Date]],Table1[[#This Row],[Start Date]]))","v":""},{"$f":"IF(Table1[[#This Row],[Housing Situation]]=\"\",\"\",IF(Table1[[#This Row],[Housing Situation]]=Picklists!$A$11,Picklists!$B$1,IF(Table1[[#This Row],[Housing Situation]]=Picklists!$A$2,Picklists!$B$1,IF(Table1[[#This Row],[Housing Situation]]=Picklists!$A$3,Picklists!$B$1,IF(Table1[[#This Row],[Housing Situation]]=Picklists!$A$12,Picklists!$B$1,Picklists!$C$1)))))","v":""},{"$f":"IF(Table1[[#This Row],[Housing Situation Category]]=\"\",\"\",IF(Table1[[#This Row],[Housing Situation Category]]=Picklists!$B$1,Picklists!$D$1,Picklists!$E$1))","v":""}]
[null,null,{"$f":"IF(Table1[[#This Row],[Housing Situation]]=\"\",\"\",IF(Table1[[#This Row],[Row number]]=1,$B$7,IF(OFFSET(C15,-1,-1)=\"\",\"\",OFFSET(C15,-1,-1)-1)))","v":""},{"$f":"IF(\nTable1[[#This Row],[Start Date]]=\"\",\n\"\",\nIF(\nTable1[[#This Row],[Housing Situation]]=\"Gap (need self-report)\",\n\"\",\nIF(\nTable1[[#This Row],[Housing Situation]]=\"\",\n\"Missing\",\nIF(\nOR(\nAND(OR(Table1[[#This Row],[Housing Situation]]=\"Hospital / Psych / Detox\",Table1[[#This Row],[Housing Situation]]=\"Jail / Prison\",Table1[[#This Row],[Housing Situation]]=\"Foster Care / Group Home\"),(Table1[[#This Row],[End Date]]-Table1[[#This Row],[Start Date]])>=90),\nAND(OR(Table1[[#This Row],[Housing Situation]]=\"Apt / House (rented or owned)\",Table1[[#This Row],[Housing Situation]]=\"Friend / Family\",Table1[[#This Row],[Housing Situation]]=\"Self-paid Hotel / Halfway house\",Table1[[#This Row],[Housing Situation]]=\"Transitional Housing\"),(Table1[[#This Row],[End Date]]-Table1[[#This Row],[Start Date]])>=7)),\n0,\nIF(\nOR(Table1[[#This Row],[Housing Situation]]=\"ES / SH / Agency-paid Hotel\",Table1[[#This Row],[Housing Situation]]=\"Place not meant for habitation\",Table1[[#This Row],[Housing Situation]]=\"Gap (presumed homeless)\"),\n((Table1[[#This Row],[End Date]]+1)-Table1[[#This Row],[Start Date]])/(365/12),\nIF(\nAND(\nNOT(OR(Table1[[#This Row],[Housing Situation]]=\"ES / SH / Agency-paid Hotel\",Table1[[#This Row],[Housing Situation]]=\"Place not meant for habitation\",Table1[[#This Row],[Housing Situation]]=\"Gap (presumed homeless)\")),\nOR(OFFSET(Table1[[#This Row],[Housing Situation]],1,0)=\"ES / SH / Agency-paid Hotel\",OFFSET(Table1[[#This Row],[Housing Situation]],1,0)=\"Place not meant for habitation\",Table1[[#This Row],[Housing Situation]]=\"Gap (presumed homeless)\")),\n((Table1[[#This Row],[End Date]]+1)-Table1[[#This Row],[Start Date]])/(365/12),\n0))))))","v":""},null,{"$f":"IF(Table1[[#This Row],[Housing Situation]]=\"\",\"\",IF(Table1[[#This Row],[Housing Situation Category]]=\"Not_Homeless_Documentation_Source\",\"N/A\",\"\"))","v":""},{"$f":"IF(Table1[[#This Row],[Housing Situation]]=\"\",\"\",IF(Table1[[#This Row],[Housing Situation Category]]=\"Not_Homeless_Documentation_Source\",\"N/A\",\"\"))","v":""},null,{"$f":"IF(OFFSET(Table1[[#This Row],[Months Homeless]],1,0)=\"\",0,IF(AND(Table1[[#This Row],[Months Homeless]]=0,OFFSET(Table1[[#This Row],[Months Homeless]],1,0)>0),1,0))","v":0},{"$f":"IF(\nTable1[[#This Row],[Row number]]=1,\n1,\nIF(OFFSET(Table1[[#This Row],[Months Homeless]],1,0)=\"\",\nINDIRECT(ADDRESS(ROW()-1,COLUMN())),\nIF(\nAND(\nTable1[[#This Row],[Months Homeless]]=0,\nOFFSET(Table1[[#This Row],[Months Homeless]],1,0)>0),\nINDIRECT(ADDRESS(ROW()-1,COLUMN()))+1,\nINDIRECT(ADDRESS(ROW()-1,COLUMN()))\n)\n)\n)","v":1},{"$f":"IF(OR(Table1[[#This Row],[Housing Situation]]=\"\",Table1[[#This Row],[Housing Situation]]=\"Gap (need self-report)\"),\"\",IF(Table1[[#This Row],[Months Homeless]]=\"Missing\",\"No\",IF(AND(Table1[[#This Row],[Housing Situation]]=\"Gap (presumed homeless)\",COUNTA(B15,C15)-(COUNTA(F15,G15)-COUNTBLANK(F15:G15))=0),\"Yes\",IF((COUNTA(B15,C15,E15)-(COUNTA(F15,G15)-COUNTBLANK(F15:G15))=1),\"Yes\",\"No\"))))","v":""},{"$f":"IF(Table1[[#This Row],[Row Complete?]]=\"No\",Table1[[#This Row],[Row number]]+10,\"\")","v":""},{"$f":"ROW(Table1[#This Row])-ROW(Table1[[#Headers], [Housing Situation]])","v":5},{"$f":"IF(ISERROR(_xlfn.DAYS(Table1[[#This Row],[End Date]],Table1[[#This Row],[Start Date]])),\"\",_xlfn.DAYS(Table1[[#This Row],[End Date]],Table1[[#This Row],[Start Date]]))","v":""},{"$f":"IF(Table1[[#This Row],[Housing Situation]]=\"\",\"\",IF(Table1[[#This Row],[Housing Situation]]=Picklists!$A$11,Picklists!$B$1,IF(Table1[[#This Row],[Housing Situation]]=Picklists!$A$2,Picklists!$B$1,IF(Table1[[#This Row],[Housing Situation]]=Picklists!$A$3,Picklists!$B$1,IF(Table1[[#This Row],[Housing Situation]]=Picklists!$A$12,Picklists!$B$1,Picklists!$C$1)))))","v":""},{"$f":"IF(Table1[[#This Row],[Housing Situation Category]]=\"\",\"\",IF(Table1[[#This Row],[Housing Situation Category]]=Picklists!$B$1,Picklists!$D$1,Picklists!$E$1))","v":""}]
[null,null,{"$f":"IF(Table1[[#This Row],[Housing Situation]]=\"\",\"\",IF(Table1[[#This Row],[Row number]]=1,$B$7,IF(OFFSET(C16,-1,-1)=\"\",\"\",OFFSET(C16,-1,-1)-1)))","v":""},{"$f":"IF(\nTable1[[#This Row],[Start Date]]=\"\",\n\"\",\nIF(\nTable1[[#This Row],[Housing Situation]]=\"Gap (need self-report)\",\n\"\",\nIF(\nTable1[[#This Row],[Housing Situation]]=\"\",\n\"Missing\",\nIF(\nOR(\nAND(OR(Table1[[#This Row],[Housing Situation]]=\"Hospital / Psych / Detox\",Table1[[#This Row],[Housing Situation]]=\"Jail / Prison\",Table1[[#This Row],[Housing Situation]]=\"Foster Care / Group Home\"),(Table1[[#This Row],[End Date]]-Table1[[#This Row],[Start Date]])>=90),\nAND(OR(Table1[[#This Row],[Housing Situation]]=\"Apt / House (rented or owned)\",Table1[[#This Row],[Housing Situation]]=\"Friend / Family\",Table1[[#This Row],[Housing Situation]]=\"Self-paid Hotel / Halfway house\",Table1[[#This Row],[Housing Situation]]=\"Transitional Housing\"),(Table1[[#This Row],[End Date]]-Table1[[#This Row],[Start Date]])>=7)),\n0,\nIF(\nOR(Table1[[#This Row],[Housing Situation]]=\"ES / SH / Agency-paid Hotel\",Table1[[#This Row],[Housing Situation]]=\"Place not meant for habitation\",Table1[[#This Row],[Housing Situation]]=\"Gap (presumed homeless)\"),\n((Table1[[#This Row],[End Date]]+1)-Table1[[#This Row],[Start Date]])/(365/12),\nIF(\nAND(\nNOT(OR(Table1[[#This Row],[Housing Situation]]=\"ES / SH / Agency-paid Hotel\",Table1[[#This Row],[Housing Situation]]=\"Place not meant for habitation\",Table1[[#This Row],[Housing Situation]]=\"Gap (presumed homeless)\")),\nOR(OFFSET(Table1[[#This Row],[Housing Situation]],1,0)=\"ES / SH / Agency-paid Hotel\",OFFSET(Table1[[#This Row],[Housing Situation]],1,0)=\"Place not meant for habitation\",Table1[[#This Row],[Housing Situation]]=\"Gap (presumed homeless)\")),\n((Table1[[#This Row],[End Date]]+1)-Table1[[#This Row],[Start Date]])/(365/12),\n0))))))","v":""},null,{"$f":"IF(Table1[[#This Row],[Housing Situation]]=\"\",\"\",IF(Table1[[#This Row],[Housing Situation Category]]=\"Not_Homeless_Documentation_Source\",\"N/A\",\"\"))","v":""},{"$f":"IF(Table1[[#This Row],[Housing Situation]]=\"\",\"\",IF(Table1[[#This Row],[Housing Situation Category]]=\"Not_Homeless_Documentation_Source\",\"N/A\",\"\"))","v":""},null,{"$f":"IF(OFFSET(Table1[[#This Row],[Months Homeless]],1,0)=\"\",0,IF(AND(Table1[[#This Row],[Months Homeless]]=0,OFFSET(Table1[[#This Row],[Months Homeless]],1,0)>0),1,0))","v":0},{"$f":"IF(\nTable1[[#This Row],[Row number]]=1,\n1,\nIF(OFFSET(Table1[[#This Row],[Months Homeless]],1,0)=\"\",\nINDIRECT(ADDRESS(ROW()-1,COLUMN())),\nIF(\nAND(\nTable1[[#This Row],[Months Homeless]]=0,\nOFFSET(Table1[[#This Row],[Months Homeless]],1,0)>0),\nINDIRECT(ADDRESS(ROW()-1,COLUMN()))+1,\nINDIRECT(ADDRESS(ROW()-1,COLUMN()))\n)\n)\n)","v":1},{"$f":"IF(OR(Table1[[#This Row],[Housing Situation]]=\"\",Table1[[#This Row],[Housing Situation]]=\"Gap (need self-report)\"),\"\",IF(Table1[[#This Row],[Months Homeless]]=\"Missing\",\"No\",IF(AND(Table1[[#This Row],[Housing Situation]]=\"Gap (presumed homeless)\",COUNTA(B16,C16)-(COUNTA(F16,G16)-COUNTBLANK(F16:G16))=0),\"Yes\",IF((COUNTA(B16,C16,E16)-(COUNTA(F16,G16)-COUNTBLANK(F16:G16))=1),\"Yes\",\"No\"))))","v":""},{"$f":"IF(Table1[[#This Row],[Row Complete?]]=\"No\",Table1[[#This Row],[Row number]]+10,\"\")","v":""},{"$f":"ROW(Table1[#This Row])-ROW(Table1[[#Headers], [Housing Situation]])","v":6},{"$f":"IF(ISERROR(_xlfn.DAYS(Table1[[#This Row],[End Date]],Table1[[#This Row],[Start Date]])),\"\",_xlfn.DAYS(Table1[[#This Row],[End Date]],Table1[[#This Row],[Start Date]]))","v":""},{"$f":"IF(Table1[[#This Row],[Housing Situation]]=\"\",\"\",IF(Table1[[#This Row],[Housing Situation]]=Picklists!$A$11,Picklists!$B$1,IF(Table1[[#This Row],[Housing Situation]]=Picklists!$A$2,Picklists!$B$1,IF(Table1[[#This Row],[Housing Situation]]=Picklists!$A$3,Picklists!$B$1,IF(Table1[[#This Row],[Housing Situation]]=Picklists!$A$12,Picklists!$B$1,Picklists!$C$1)))))","v":""},{"$f":"IF(Table1[[#This Row],[Housing Situation Category]]=\"\",\"\",IF(Table1[[#This Row],[Housing Situation Category]]=Picklists!$B$1,Picklists!$D$1,Picklists!$E$1))","v":""}]
[null,null,{"$f":"IF(Table1[[#This Row],[Housing Situation]]=\"\",\"\",IF(Table1[[#This Row],[Row number]]=1,$B$7,IF(OFFSET(C17,-1,-1)=\"\",\"\",OFFSET(C17,-1,-1)-1)))","v":""},{"$f":"IF(\nTable1[[#This Row],[Start Date]]=\"\",\n\"\",\nIF(\nTable1[[#This Row],[Housing Situation]]=\"Gap (need self-report)\",\n\"\",\nIF(\nTable1[[#This Row],[Housing Situation]]=\"\",\n\"Missing\",\nIF(\nOR(\nAND(OR(Table1[[#This Row],[Housing Situation]]=\"Hospital / Psych / Detox\",Table1[[#This Row],[Housing Situation]]=\"Jail / Prison\",Table1[[#This Row],[Housing Situation]]=\"Foster Care / Group Home\"),(Table1[[#This Row],[End Date]]-Table1[[#This Row],[Start Date]])>=90),\nAND(OR(Table1[[#This Row],[Housing Situation]]=\"Apt / House (rented or owned)\",Table1[[#This Row],[Housing Situation]]=\"Friend / Family\",Table1[[#This Row],[Housing Situation]]=\"Self-paid Hotel / Halfway house\",Table1[[#This Row],[Housing Situation]]=\"Transitional Housing\"),(Table1[[#This Row],[End Date]]-Table1[[#This Row],[Start Date]])>=7)),\n0,\nIF(\nOR(Table1[[#This Row],[Housing Situation]]=\"ES / SH / Agency-paid Hotel\",Table1[[#This Row],[Housing Situation]]=\"Place not meant for habitation\",Table1[[#This Row],[Housing Situation]]=\"Gap (presumed homeless)\"),\n((Table1[[#This Row],[End Date]]+1)-Table1[[#This Row],[Start Date]])/(365/12),\nIF(\nAND(\nNOT(OR(Table1[[#This Row],[Housing Situation]]=\"ES / SH / Agency-paid Hotel\",Table1[[#This Row],[Housing Situation]]=\"Place not meant for habitation\",Table1[[#This Row],[Housing Situation]]=\"Gap (presumed homeless)\")),\nOR(OFFSET(Table1[[#This Row],[Housing Situation]],1,0)=\"ES / SH / Agency-paid Hotel\",OFFSET(Table1[[#This Row],[Housing Situation]],1,0)=\"Place not meant for habitation\",Table1[[#This Row],[Housing Situation]]=\"Gap (presumed homeless)\")),\n((Table1[[#This Row],[End Date]]+1)-Table1[[#This Row],[Start Date]])/(365/12),\n0))))))","v":""},null,{"$f":"IF(Table1[[#This Row],[Housing Situation]]=\"\",\"\",IF(Table1[[#This Row],[Housing Situation Category]]=\"Not_Homeless_Documentation_Source\",\"N/A\",\"\"))","v":""},{"$f":"IF(Table1[[#This Row],[Housing Situation]]=\"\",\"\",IF(Table1[[#This Row],[Housing Situation Category]]=\"Not_Homeless_Documentation_Source\",\"N/A\",\"\"))","v":""},null,{"$f":"IF(OFFSET(Table1[[#This Row],[Months Homeless]],1,0)=\"\",0,IF(AND(Table1[[#This Row],[Months Homeless]]=0,OFFSET(Table1[[#This Row],[Months Homeless]],1,0)>0),1,0))","v":0},{"$f":"IF(\nTable1[[#This Row],[Row number]]=1,\n1,\nIF(OFFSET(Table1[[#This Row],[Months Homeless]],1,0)=\"\",\nINDIRECT(ADDRESS(ROW()-1,COLUMN())),\nIF(\nAND(\nTable1[[#This Row],[Months Homeless]]=0,\nOFFSET(Table1[[#This Row],[Months Homeless]],1,0)>0),\nINDIRECT(ADDRESS(ROW()-1,COLUMN()))+1,\nINDIRECT(ADDRESS(ROW()-1,COLUMN()))\n)\n)\n)","v":1},{"$f":"IF(OR(Table1[[#This Row],[Housing Situation]]=\"\",Table1[[#This Row],[Housing Situation]]=\"Gap (need self-report)\"),\"\",IF(Table1[[#This Row],[Months Homeless]]=\"Missing\",\"No\",IF(AND(Table1[[#This Row],[Housing Situation]]=\"Gap (presumed homeless)\",COUNTA(B17,C17)-(COUNTA(F17,G17)-COUNTBLANK(F17:G17))=0),\"Yes\",IF((COUNTA(B17,C17,E17)-(COUNTA(F17,G17)-COUNTBLANK(F17:G17))=1),\"Yes\",\"No\"))))","v":""},{"$f":"IF(Table1[[#This Row],[Row Complete?]]=\"No\",Table1[[#This Row],[Row number]]+10,\"\")","v":""},{"$f":"ROW(Table1[#This Row])-ROW(Table1[[#Headers], [Housing Situation]])","v":7},{"$f":"IF(ISERROR(_xlfn.DAYS(Table1[[#This Row],[End Date]],Table1[[#This Row],[Start Date]])),\"\",_xlfn.DAYS(Table1[[#This Row],[End Date]],Table1[[#This Row],[Start Date]]))","v":""},{"$f":"IF(Table1[[#This Row],[Housing Situation]]=\"\",\"\",IF(Table1[[#This Row],[Housing Situation]]=Picklists!$A$11,Picklists!$B$1,IF(Table1[[#This Row],[Housing Situation]]=Picklists!$A$2,Picklists!$B$1,IF(Table1[[#This Row],[Housing Situation]]=Picklists!$A$3,Picklists!$B$1,IF(Table1[[#This Row],[Housing Situation]]=Picklists!$A$12,Picklists!$B$1,Picklists!$C$1)))))","v":""},{"$f":"IF(Table1[[#This Row],[Housing Situation Category]]=\"\",\"\",IF(Table1[[#This Row],[Housing Situation Category]]=Picklists!$B$1,Picklists!$D$1,Picklists!$E$1))","v":""}]
[null,null,{"$f":"IF(Table1[[#This Row],[Housing Situation]]=\"\",\"\",IF(Table1[[#This Row],[Row number]]=1,$B$7,IF(OFFSET(C18,-1,-1)=\"\",\"\",OFFSET(C18,-1,-1)-1)))","v":""},{"$f":"IF(\nTable1[[#This Row],[Start Date]]=\"\",\n\"\",\nIF(\nTable1[[#This Row],[Housing Situation]]=\"Gap (need self-report)\",\n\"\",\nIF(\nTable1[[#This Row],[Housing Situation]]=\"\",\n\"Missing\",\nIF(\nOR(\nAND(OR(Table1[[#This Row],[Housing Situation]]=\"Hospital / Psych / Detox\",Table1[[#This Row],[Housing Situation]]=\"Jail / Prison\",Table1[[#This Row],[Housing Situation]]=\"Foster Care / Group Home\"),(Table1[[#This Row],[End Date]]-Table1[[#This Row],[Start Date]])>=90),\nAND(OR(Table1[[#This Row],[Housing Situation]]=\"Apt / House (rented or owned)\",Table1[[#This Row],[Housing Situation]]=\"Friend / Family\",Table1[[#This Row],[Housing Situation]]=\"Self-paid Hotel / Halfway house\",Table1[[#This Row],[Housing Situation]]=\"Transitional Housing\"),(Table1[[#This Row],[End Date]]-Table1[[#This Row],[Start Date]])>=7)),\n0,\nIF(\nOR(Table1[[#This Row],[Housing Situation]]=\"ES / SH / Agency-paid Hotel\",Table1[[#This Row],[Housing Situation]]=\"Place not meant for habitation\",Table1[[#This Row],[Housing Situation]]=\"Gap (presumed homeless)\"),\n((Table1[[#This Row],[End Date]]+1)-Table1[[#This Row],[Start Date]])/(365/12),\nIF(\nAND(\nNOT(OR(Table1[[#This Row],[Housing Situation]]=\"ES / SH / Agency-paid Hotel\",Table1[[#This Row],[Housing Situation]]=\"Place not meant for habitation\",Table1[[#This Row],[Housing Situation]]=\"Gap (presumed homeless)\")),\nOR(OFFSET(Table1[[#This Row],[Housing Situation]],1,0)=\"ES / SH / Agency-paid Hotel\",OFFSET(Table1[[#This Row],[Housing Situation]],1,0)=\"Place not meant for habitation\",Table1[[#This Row],[Housing Situation]]=\"Gap (presumed homeless)\")),\n((Table1[[#This Row],[End Date]]+1)-Table1[[#This Row],[Start Date]])/(365/12),\n0))))))","v":""},null,{"$f":"IF(Table1[[#This Row],[Housing Situation]]=\"\",\"\",IF(Table1[[#This Row],[Housing Situation Category]]=\"Not_Homeless_Documentation_Source\",\"N/A\",\"\"))","v":""},{"$f":"IF(Table1[[#This Row],[Housing Situation]]=\"\",\"\",IF(Table1[[#This Row],[Housing Situation Category]]=\"Not_Homeless_Documentation_Source\",\"N/A\",\"\"))","v":""},null,{"$f":"IF(OFFSET(Table1[[#This Row],[Months Homeless]],1,0)=\"\",0,IF(AND(Table1[[#This Row],[Months Homeless]]=0,OFFSET(Table1[[#This Row],[Months Homeless]],1,0)>0),1,0))","v":0},{"$f":"IF(\nTable1[[#This Row],[Row number]]=1,\n1,\nIF(OFFSET(Table1[[#This Row],[Months Homeless]],1,0)=\"\",\nINDIRECT(ADDRESS(ROW()-1,COLUMN())),\nIF(\nAND(\nTable1[[#This Row],[Months Homeless]]=0,\nOFFSET(Table1[[#This Row],[Months Homeless]],1,0)>0),\nINDIRECT(ADDRESS(ROW()-1,COLUMN()))+1,\nINDIRECT(ADDRESS(ROW()-1,COLUMN()))\n)\n)\n)","v":1},{"$f":"IF(OR(Table1[[#This Row],[Housing Situation]]=\"\",Table1[[#This Row],[Housing Situation]]=\"Gap (need self-report)\"),\"\",IF(Table1[[#This Row],[Months Homeless]]=\"Missing\",\"No\",IF(AND(Table1[[#This Row],[Housing Situation]]=\"Gap (presumed homeless)\",COUNTA(B18,C18)-(COUNTA(F18,G18)-COUNTBLANK(F18:G18))=0),\"Yes\",IF((COUNTA(B18,C18,E18)-(COUNTA(F18,G18)-COUNTBLANK(F18:G18))=1),\"Yes\",\"No\"))))","v":""},{"$f":"IF(Table1[[#This Row],[Row Complete?]]=\"No\",Table1[[#This Row],[Row number]]+10,\"\")","v":""},{"$f":"ROW(Table1[#This Row])-ROW(Table1[[#Headers], [Housing Situation]])","v":8},{"$f":"IF(ISERROR(_xlfn.DAYS(Table1[[#This Row],[End Date]],Table1[[#This Row],[Start Date]])),\"\",_xlfn.DAYS(Table1[[#This Row],[End Date]],Table1[[#This Row],[Start Date]]))","v":""},{"$f":"IF(Table1[[#This Row],[Housing Situation]]=\"\",\"\",IF(Table1[[#This Row],[Housing Situation]]=Picklists!$A$11,Picklists!$B$1,IF(Table1[[#This Row],[Housing Situation]]=Picklists!$A$2,Picklists!$B$1,IF(Table1[[#This Row],[Housing Situation]]=Picklists!$A$3,Picklists!$B$1,IF(Table1[[#This Row],[Housing Situation]]=Picklists!$A$12,Picklists!$B$1,Picklists!$C$1)))))","v":""},{"$f":"IF(Table1[[#This Row],[Housing Situation Category]]=\"\",\"\",IF(Table1[[#This Row],[Housing Situation Category]]=Picklists!$B$1,Picklists!$D$1,Picklists!$E$1))","v":""}]
[null,null,{"$f":"IF(Table1[[#This Row],[Housing Situation]]=\"\",\"\",IF(Table1[[#This Row],[Row number]]=1,$B$7,IF(OFFSET(C19,-1,-1)=\"\",\"\",OFFSET(C19,-1,-1)-1)))","v":""},{"$f":"IF(\nTable1[[#This Row],[Start Date]]=\"\",\n\"\",\nIF(\nTable1[[#This Row],[Housing Situation]]=\"Gap (need self-report)\",\n\"\",\nIF(\nTable1[[#This Row],[Housing Situation]]=\"\",\n\"Missing\",\nIF(\nOR(\nAND(OR(Table1[[#This Row],[Housing Situation]]=\"Hospital / Psych / Detox\",Table1[[#This Row],[Housing Situation]]=\"Jail / Prison\",Table1[[#This Row],[Housing Situation]]=\"Foster Care / Group Home\"),(Table1[[#This Row],[End Date]]-Table1[[#This Row],[Start Date]])>=90),\nAND(OR(Table1[[#This Row],[Housing Situation]]=\"Apt / House (rented or owned)\",Table1[[#This Row],[Housing Situation]]=\"Friend / Family\",Table1[[#This Row],[Housing Situation]]=\"Self-paid Hotel / Halfway house\",Table1[[#This Row],[Housing Situation]]=\"Transitional Housing\"),(Table1[[#This Row],[End Date]]-Table1[[#This Row],[Start Date]])>=7)),\n0,\nIF(\nOR(Table1[[#This Row],[Housing Situation]]=\"ES / SH / Agency-paid Hotel\",Table1[[#This Row],[Housing Situation]]=\"Place not meant for habitation\",Table1[[#This Row],[Housing Situation]]=\"Gap (presumed homeless)\"),\n((Table1[[#This Row],[End Date]]+1)-Table1[[#This Row],[Start Date]])/(365/12),\nIF(\nAND(\nNOT(OR(Table1[[#This Row],[Housing Situation]]=\"ES / SH / Agency-paid Hotel\",Table1[[#This Row],[Housing Situation]]=\"Place not meant for habitation\",Table1[[#This Row],[Housing Situation]]=\"Gap (presumed homeless)\")),\nOR(OFFSET(Table1[[#This Row],[Housing Situation]],1,0)=\"ES / SH / Agency-paid Hotel\",OFFSET(Table1[[#This Row],[Housing Situation]],1,0)=\"Place not meant for habitation\",Table1[[#This Row],[Housing Situation]]=\"Gap (presumed homeless)\")),\n((Table1[[#This Row],[End Date]]+1)-Table1[[#This Row],[Start Date]])/(365/12),\n0))))))","v":""},null,{"$f":"IF(Table1[[#This Row],[Housing Situation]]=\"\",\"\",IF(Table1[[#This Row],[Housing Situation Category]]=\"Not_Homeless_Documentation_Source\",\"N/A\",\"\"))","v":""},{"$f":"IF(Table1[[#This Row],[Housing Situation]]=\"\",\"\",IF(Table1[[#This Row],[Housing Situation Category]]=\"Not_Homeless_Documentation_Source\",\"N/A\",\"\"))","v":""},null,{"$f":"IF(OFFSET(Table1[[#This Row],[Months Homeless]],1,0)=\"\",0,IF(AND(Table1[[#This Row],[Months Homeless]]=0,OFFSET(Table1[[#This Row],[Months Homeless]],1,0)>0),1,0))","v":0},{"$f":"IF(\nTable1[[#This Row],[Row number]]=1,\n1,\nIF(OFFSET(Table1[[#This Row],[Months Homeless]],1,0)=\"\",\nINDIRECT(ADDRESS(ROW()-1,COLUMN())),\nIF(\nAND(\nTable1[[#This Row],[Months Homeless]]=0,\nOFFSET(Table1[[#This Row],[Months Homeless]],1,0)>0),\nINDIRECT(ADDRESS(ROW()-1,COLUMN()))+1,\nINDIRECT(ADDRESS(ROW()-1,COLUMN()))\n)\n)\n)","v":1},{"$f":"IF(OR(Table1[[#This Row],[Housing Situation]]=\"\",Table1[[#This Row],[Housing Situation]]=\"Gap (need self-report)\"),\"\",IF(Table1[[#This Row],[Months Homeless]]=\"Missing\",\"No\",IF(AND(Table1[[#This Row],[Housing Situation]]=\"Gap (presumed homeless)\",COUNTA(B19,C19)-(COUNTA(F19,G19)-COUNTBLANK(F19:G19))=0),\"Yes\",IF((COUNTA(B19,C19,E19)-(COUNTA(F19,G19)-COUNTBLANK(F19:G19))=1),\"Yes\",\"No\"))))","v":""},{"$f":"IF(Table1[[#This Row],[Row Complete?]]=\"No\",Table1[[#This Row],[Row number]]+10,\"\")","v":""},{"$f":"ROW(Table1[#This Row])-ROW(Table1[[#Headers], [Housing Situation]])","v":9},{"$f":"IF(ISERROR(_xlfn.DAYS(Table1[[#This Row],[End Date]],Table1[[#This Row],[Start Date]])),\"\",_xlfn.DAYS(Table1[[#This Row],[End Date]],Table1[[#This Row],[Start Date]]))","v":""},{"$f":"IF(Table1[[#This Row],[Housing Situation]]=\"\",\"\",IF(Table1[[#This Row],[Housing Situation]]=Picklists!$A$11,Picklists!$B$1,IF(Table1[[#This Row],[Housing Situation]]=Picklists!$A$2,Picklists!$B$1,IF(Table1[[#This Row],[Housing Situation]]=Picklists!$A$3,Picklists!$B$1,IF(Table1[[#This Row],[Housing Situation]]=Picklists!$A$12,Picklists!$B$1,Picklists!$C$1)))))","v":""},{"$f":"IF(Table1[[#This Row],[Housing Situation Category]]=\"\",\"\",IF(Table1[[#This Row],[Housing Situation Category]]=Picklists!$B$1,Picklists!$D$1,Picklists!$E$1))","v":""}]
[null,null,{"$f":"IF(Table1[[#This Row],[Housing Situation]]=\"\",\"\",IF(Table1[[#This Row],[Row number]]=1,$B$7,IF(OFFSET(C20,-1,-1)=\"\",\"\",OFFSET(C20,-1,-1)-1)))","v":""},{"$f":"IF(\nTable1[[#This Row],[Start Date]]=\"\",\n\"\",\nIF(\nTable1[[#This Row],[Housing Situation]]=\"Gap (need self-report)\",\n\"\",\nIF(\nTable1[[#This Row],[Housing Situation]]=\"\",\n\"Missing\",\nIF(\nOR(\nAND(OR(Table1[[#This Row],[Housing Situation]]=\"Hospital / Psych / Detox\",Table1[[#This Row],[Housing Situation]]=\"Jail / Prison\",Table1[[#This Row],[Housing Situation]]=\"Foster Care / Group Home\"),(Table1[[#This Row],[End Date]]-Table1[[#This Row],[Start Date]])>=90),\nAND(OR(Table1[[#This Row],[Housing Situation]]=\"Apt / House (rented or owned)\",Table1[[#This Row],[Housing Situation]]=\"Friend / Family\",Table1[[#This Row],[Housing Situation]]=\"Self-paid Hotel / Halfway house\",Table1[[#This Row],[Housing Situation]]=\"Transitional Housing\"),(Table1[[#This Row],[End Date]]-Table1[[#This Row],[Start Date]])>=7)),\n0,\nIF(\nOR(Table1[[#This Row],[Housing Situation]]=\"ES / SH / Agency-paid Hotel\",Table1[[#This Row],[Housing Situation]]=\"Place not meant for habitation\",Table1[[#This Row],[Housing Situation]]=\"Gap (presumed homeless)\"),\n((Table1[[#This Row],[End Date]]+1)-Table1[[#This Row],[Start Date]])/(365/12),\nIF(\nAND(\nNOT(OR(Table1[[#This Row],[Housing Situation]]=\"ES / SH / Agency-paid Hotel\",Table1[[#This Row],[Housing Situation]]=\"Place not meant for habitation\",Table1[[#This Row],[Housing Situation]]=\"Gap (presumed homeless)\")),\nOR(OFFSET(Table1[[#This Row],[Housing Situation]],1,0)=\"ES / SH / Agency-paid Hotel\",OFFSET(Table1[[#This Row],[Housing Situation]],1,0)=\"Place not meant for habitation\",Table1[[#This Row],[Housing Situation]]=\"Gap (presumed homeless)\")),\n((Table1[[#This Row],[End Date]]+1)-Table1[[#This Row],[Start Date]])/(365/12),\n0))))))","v":""},null,{"$f":"IF(Table1[[#This Row],[Housing Situation]]=\"\",\"\",IF(Table1[[#This Row],[Housing Situation Category]]=\"Not_Homeless_Documentation_Source\",\"N/A\",\"\"))","v":""},{"$f":"IF(Table1[[#This Row],[Housing Situation]]=\"\",\"\",IF(Table1[[#This Row],[Housing Situation Category]]=\"Not_Homeless_Documentation_Source\",\"N/A\",\"\"))","v":""},null,{"$f":"IF(OFFSET(Table1[[#This Row],[Months Homeless]],1,0)=\"\",0,IF(AND(Table1[[#This Row],[Months Homeless]]=0,OFFSET(Table1[[#This Row],[Months Homeless]],1,0)>0),1,0))","v":0},{"$f":"IF(\nTable1[[#This Row],[Row number]]=1,\n1,\nIF(OFFSET(Table1[[#This Row],[Months Homeless]],1,0)=\"\",\nINDIRECT(ADDRESS(ROW()-1,COLUMN())),\nIF(\nAND(\nTable1[[#This Row],[Months Homeless]]=0,\nOFFSET(Table1[[#This Row],[Months Homeless]],1,0)>0),\nINDIRECT(ADDRESS(ROW()-1,COLUMN()))+1,\nINDIRECT(ADDRESS(ROW()-1,COLUMN()))\n)\n)\n)","v":1},{"$f":"IF(OR(Table1[[#This Row],[Housing Situation]]=\"\",Table1[[#This Row],[Housing Situation]]=\"Gap (need self-report)\"),\"\",IF(Table1[[#This Row],[Months Homeless]]=\"Missing\",\"No\",IF(AND(Table1[[#This Row],[Housing Situation]]=\"Gap (presumed homeless)\",COUNTA(B20,C20)-(COUNTA(F20,G20)-COUNTBLANK(F20:G20))=0),\"Yes\",IF((COUNTA(B20,C20,E20)-(COUNTA(F20,G20)-COUNTBLANK(F20:G20))=1),\"Yes\",\"No\"))))","v":""},{"$f":"IF(Table1[[#This Row],[Row Complete?]]=\"No\",Table1[[#This Row],[Row number]]+10,\"\")","v":""},{"$f":"ROW(Table1[#This Row])-ROW(Table1[[#Headers], [Housing Situation]])","v":10},{"$f":"IF(ISERROR(_xlfn.DAYS(Table1[[#This Row],[End Date]],Table1[[#This Row],[Start Date]])),\"\",_xlfn.DAYS(Table1[[#This Row],[End Date]],Table1[[#This Row],[Start Date]]))","v":""},{"$f":"IF(Table1[[#This Row],[Housing Situation]]=\"\",\"\",IF(Table1[[#This Row],[Housing Situation]]=Picklists!$A$11,Picklists!$B$1,IF(Table1[[#This Row],[Housing Situation]]=Picklists!$A$2,Picklists!$B$1,IF(Table1[[#This Row],[Housing Situation]]=Picklists!$A$3,Picklists!$B$1,IF(Table1[[#This Row],[Housing Situation]]=Picklists!$A$12,Picklists!$B$1,Picklists!$C$1)))))","v":""},{"$f":"IF(Table1[[#This Row],[Housing Situation Category]]=\"\",\"\",IF(Table1[[#This Row],[Housing Situation Category]]=Picklists!$B$1,Picklists!$D$1,Picklists!$E$1))","v":""}]
[null,null,{"$f":"IF(Table1[[#This Row],[Housing Situation]]=\"\",\"\",IF(Table1[[#This Row],[Row number]]=1,$B$7,IF(OFFSET(C21,-1,-1)=\"\",\"\",OFFSET(C21,-1,-1)-1)))","v":""},{"$f":"IF(\nTable1[[#This Row],[Start Date]]=\"\",\n\"\",\nIF(\nTable1[[#This Row],[Housing Situation]]=\"Gap (need self-report)\",\n\"\",\nIF(\nTable1[[#This Row],[Housing Situation]]=\"\",\n\"Missing\",\nIF(\nOR(\nAND(OR(Table1[[#This Row],[Housing Situation]]=\"Hospital / Psych / Detox\",Table1[[#This Row],[Housing Situation]]=\"Jail / Prison\",Table1[[#This Row],[Housing Situation]]=\"Foster Care / Group Home\"),(Table1[[#This Row],[End Date]]-Table1[[#This Row],[Start Date]])>=90),\nAND(OR(Table1[[#This Row],[Housing Situation]]=\"Apt / House (rented or owned)\",Table1[[#This Row],[Housing Situation]]=\"Friend / Family\",Table1[[#This Row],[Housing Situation]]=\"Self-paid Hotel / Halfway house\",Table1[[#This Row],[Housing Situation]]=\"Transitional Housing\"),(Table1[[#This Row],[End Date]]-Table1[[#This Row],[Start Date]])>=7)),\n0,\nIF(\nOR(Table1[[#This Row],[Housing Situation]]=\"ES / SH / Agency-paid Hotel\",Table1[[#This Row],[Housing Situation]]=\"Place not meant for habitation\",Table1[[#This Row],[Housing Situation]]=\"Gap (presumed homeless)\"),\n((Table1[[#This Row],[End Date]]+1)-Table1[[#This Row],[Start Date]])/(365/12),\nIF(\nAND(\nNOT(OR(Table1[[#This Row],[Housing Situation]]=\"ES / SH / Agency-paid Hotel\",Table1[[#This Row],[Housing Situation]]=\"Place not meant for habitation\",Table1[[#This Row],[Housing Situation]]=\"Gap (presumed homeless)\")),\nOR(OFFSET(Table1[[#This Row],[Housing Situation]],1,0)=\"ES / SH / Agency-paid Hotel\",OFFSET(Table1[[#This Row],[Housing Situation]],1,0)=\"Place not meant for habitation\",Table1[[#This Row],[Housing Situation]]=\"Gap (presumed homeless)\")),\n((Table1[[#This Row],[End Date]]+1)-Table1[[#This Row],[Start Date]])/(365/12),\n0))))))","v":""},null,{"$f":"IF(Table1[[#This Row],[Housing Situation]]=\"\",\"\",IF(Table1[[#This Row],[Housing Situation Category]]=\"Not_Homeless_Documentation_Source\",\"N/A\",\"\"))","v":""},{"$f":"IF(Table1[[#This Row],[Housing Situation]]=\"\",\"\",IF(Table1[[#This Row],[Housing Situation Category]]=\"Not_Homeless_Documentation_Source\",\"N/A\",\"\"))","v":""},null,{"$f":"IF(OFFSET(Table1[[#This Row],[Months Homeless]],1,0)=\"\",0,IF(AND(Table1[[#This Row],[Months Homeless]]=0,OFFSET(Table1[[#This Row],[Months Homeless]],1,0)>0),1,0))","v":0},{"$f":"IF(\nTable1[[#This Row],[Row number]]=1,\n1,\nIF(OFFSET(Table1[[#This Row],[Months Homeless]],1,0)=\"\",\nINDIRECT(ADDRESS(ROW()-1,COLUMN())),\nIF(\nAND(\nTable1[[#This Row],[Months Homeless]]=0,\nOFFSET(Table1[[#This Row],[Months Homeless]],1,0)>0),\nINDIRECT(ADDRESS(ROW()-1,COLUMN()))+1,\nINDIRECT(ADDRESS(ROW()-1,COLUMN()))\n)\n)\n)","v":1},{"$f":"IF(OR(Table1[[#This Row],[Housing Situation]]=\"\",Table1[[#This Row],[Housing Situation]]=\"Gap (need self-report)\"),\"\",IF(Table1[[#This Row],[Months Homeless]]=\"Missing\",\"No\",IF(AND(Table1[[#This Row],[Housing Situation]]=\"Gap (presumed homeless)\",COUNTA(B21,C21)-(COUNTA(F21,G21)-COUNTBLANK(F21:G21))=0),\"Yes\",IF((COUNTA(B21,C21,E21)-(COUNTA(F21,G21)-COUNTBLANK(F21:G21))=1),\"Yes\",\"No\"))))","v":""},{"$f":"IF(Table1[[#This Row],[Row Complete?]]=\"No\",Table1[[#This Row],[Row number]]+10,\"\")","v":""},{"$f":"ROW(Table1[#This Row])-ROW(Table1[[#Headers], [Housing Situation]])","v":11},{"$f":"IF(ISERROR(_xlfn.DAYS(Table1[[#This Row],[End Date]],Table1[[#This Row],[Start Date]])),\"\",_xlfn.DAYS(Table1[[#This Row],[End Date]],Table1[[#This Row],[Start Date]]))","v":""},{"$f":"IF(Table1[[#This Row],[Housing Situation]]=\"\",\"\",IF(Table1[[#This Row],[Housing Situation]]=Picklists!$A$11,Picklists!$B$1,IF(Table1[[#This Row],[Housing Situation]]=Picklists!$A$2,Picklists!$B$1,IF(Table1[[#This Row],[Housing Situation]]=Picklists!$A$3,Picklists!$B$1,IF(Table1[[#This Row],[Housing Situation]]=Picklists!$A$12,Picklists!$B$1,Picklists!$C$1)))))","v":""},{"$f":"IF(Table1[[#This Row],[Housing Situation Category]]=\"\",\"\",IF(Table1[[#This Row],[Housing Situation Category]]=Picklists!$B$1,Picklists!$D$1,Picklists!$E$1))","v":""}]
[null,null,{"$f":"IF(Table1[[#This Row],[Housing Situation]]=\"\",\"\",IF(Table1[[#This Row],[Row number]]=1,$B$7,IF(OFFSET(C22,-1,-1)=\"\",\"\",OFFSET(C22,-1,-1)-1)))","v":""},{"$f":"IF(\nTable1[[#This Row],[Start Date]]=\"\",\n\"\",\nIF(\nTable1[[#This Row],[Housing Situation]]=\"Gap (need self-report)\",\n\"\",\nIF(\nTable1[[#This Row],[Housing Situation]]=\"\",\n\"Missing\",\nIF(\nOR(\nAND(OR(Table1[[#This Row],[Housing Situation]]=\"Hospital / Psych / Detox\",Table1[[#This Row],[Housing Situation]]=\"Jail / Prison\",Table1[[#This Row],[Housing Situation]]=\"Foster Care / Group Home\"),(Table1[[#This Row],[End Date]]-Table1[[#This Row],[Start Date]])>=90),\nAND(OR(Table1[[#This Row],[Housing Situation]]=\"Apt / House (rented or owned)\",Table1[[#This Row],[Housing Situation]]=\"Friend / Family\",Table1[[#This Row],[Housing Situation]]=\"Self-paid Hotel / Halfway house\",Table1[[#This Row],[Housing Situation]]=\"Transitional Housing\"),(Table1[[#This Row],[End Date]]-Table1[[#This Row],[Start Date]])>=7)),\n0,\nIF(\nOR(Table1[[#This Row],[Housing Situation]]=\"ES / SH / Agency-paid Hotel\",Table1[[#This Row],[Housing Situation]]=\"Place not meant for habitation\",Table1[[#This Row],[Housing Situation]]=\"Gap (presumed homeless)\"),\n((Table1[[#This Row],[End Date]]+1)-Table1[[#This Row],[Start Date]])/(365/12),\nIF(\nAND(\nNOT(OR(Table1[[#This Row],[Housing Situation]]=\"ES / SH / Agency-paid Hotel\",Table1[[#This Row],[Housing Situation]]=\"Place not meant for habitation\",Table1[[#This Row],[Housing Situation]]=\"Gap (presumed homeless)\")),\nOR(OFFSET(Table1[[#This Row],[Housing Situation]],1,0)=\"ES / SH / Agency-paid Hotel\",OFFSET(Table1[[#This Row],[Housing Situation]],1,0)=\"Place not meant for habitation\",Table1[[#This Row],[Housing Situation]]=\"Gap (presumed homeless)\")),\n((Table1[[#This Row],[End Date]]+1)-Table1[[#This Row],[Start Date]])/(365/12),\n0))))))","v":""},null,{"$f":"IF(Table1[[#This Row],[Housing Situation]]=\"\",\"\",IF(Table1[[#This Row],[Housing Situation Category]]=\"Not_Homeless_Documentation_Source\",\"N/A\",\"\"))","v":""},{"$f":"IF(Table1[[#This Row],[Housing Situation]]=\"\",\"\",IF(Table1[[#This Row],[Housing Situation Category]]=\"Not_Homeless_Documentation_Source\",\"N/A\",\"\"))","v":""},null,{"$f":"IF(OFFSET(Table1[[#This Row],[Months Homeless]],1,0)=\"\",0,IF(AND(Table1[[#This Row],[Months Homeless]]=0,OFFSET(Table1[[#This Row],[Months Homeless]],1,0)>0),1,0))","v":0},{"$f":"IF(\nTable1[[#This Row],[Row number]]=1,\n1,\nIF(OFFSET(Table1[[#This Row],[Months Homeless]],1,0)=\"\",\nINDIRECT(ADDRESS(ROW()-1,COLUMN())),\nIF(\nAND(\nTable1[[#This Row],[Months Homeless]]=0,\nOFFSET(Table1[[#This Row],[Months Homeless]],1,0)>0),\nINDIRECT(ADDRESS(ROW()-1,COLUMN()))+1,\nINDIRECT(ADDRESS(ROW()-1,COLUMN()))\n)\n)\n)","v":1},{"$f":"IF(OR(Table1[[#This Row],[Housing Situation]]=\"\",Table1[[#This Row],[Housing Situation]]=\"Gap (need self-report)\"),\"\",IF(Table1[[#This Row],[Months Homeless]]=\"Missing\",\"No\",IF(AND(Table1[[#This Row],[Housing Situation]]=\"Gap (presumed homeless)\",COUNTA(B22,C22)-(COUNTA(F22,G22)-COUNTBLANK(F22:G22))=0),\"Yes\",IF((COUNTA(B22,C22,E22)-(COUNTA(F22,G22)-COUNTBLANK(F22:G22))=1),\"Yes\",\"No\"))))","v":""},{"$f":"IF(Table1[[#This Row],[Row Complete?]]=\"No\",Table1[[#This Row],[Row number]]+10,\"\")","v":""},{"$f":"ROW(Table1[#This Row])-ROW(Table1[[#Headers], [Housing Situation]])","v":12},{"$f":"IF(ISERROR(_xlfn.DAYS(Table1[[#This Row],[End Date]],Table1[[#This Row],[Start Date]])),\"\",_xlfn.DAYS(Table1[[#This Row],[End Date]],Table1[[#This Row],[Start Date]]))","v":""},{"$f":"IF(Table1[[#This Row],[Housing Situation]]=\"\",\"\",IF(Table1[[#This Row],[Housing Situation]]=Picklists!$A$11,Picklists!$B$1,IF(Table1[[#This Row],[Housing Situation]]=Picklists!$A$2,Picklists!$B$1,IF(Table1[[#This Row],[Housing Situation]]=Picklists!$A$3,Picklists!$B$1,IF(Table1[[#This Row],[Housing Situation]]=Picklists!$A$12,Picklists!$B$1,Picklists!$C$1)))))","v":""},{"$f":"IF(Table1[[#This Row],[Housing Situation Category]]=\"\",\"\",IF(Table1[[#This Row],[Housing Situation Category]]=Picklists!$B$1,Picklists!$D$1,Picklists!$E$1))","v":""}]
[null,null,{"$f":"IF(Table1[[#This Row],[Housing Situation]]=\"\",\"\",IF(Table1[[#This Row],[Row number]]=1,$B$7,IF(OFFSET(C23,-1,-1)=\"\",\"\",OFFSET(C23,-1,-1)-1)))","v":""},{"$f":"IF(\nTable1[[#This Row],[Start Date]]=\"\",\n\"\",\nIF(\nTable1[[#This Row],[Housing Situation]]=\"Gap (need self-report)\",\n\"\",\nIF(\nTable1[[#This Row],[Housing Situation]]=\"\",\n\"Missing\",\nIF(\nOR(\nAND(OR(Table1[[#This Row],[Housing Situation]]=\"Hospital / Psych / Detox\",Table1[[#This Row],[Housing Situation]]=\"Jail / Prison\",Table1[[#This Row],[Housing Situation]]=\"Foster Care / Group Home\"),(Table1[[#This Row],[End Date]]-Table1[[#This Row],[Start Date]])>=90),\nAND(OR(Table1[[#This Row],[Housing Situation]]=\"Apt / House (rented or owned)\",Table1[[#This Row],[Housing Situation]]=\"Friend / Family\",Table1[[#This Row],[Housing Situation]]=\"Self-paid Hotel / Halfway house\",Table1[[#This Row],[Housing Situation]]=\"Transitional Housing\"),(Table1[[#This Row],[End Date]]-Table1[[#This Row],[Start Date]])>=7)),\n0,\nIF(\nOR(Table1[[#This Row],[Housing Situation]]=\"ES / SH / Agency-paid Hotel\",Table1[[#This Row],[Housing Situation]]=\"Place not meant for habitation\",Table1[[#This Row],[Housing Situation]]=\"Gap (presumed homeless)\"),\n((Table1[[#This Row],[End Date]]+1)-Table1[[#This Row],[Start Date]])/(365/12),\nIF(\nAND(\nNOT(OR(Table1[[#This Row],[Housing Situation]]=\"ES / SH / Agency-paid Hotel\",Table1[[#This Row],[Housing Situation]]=\"Place not meant for habitation\",Table1[[#This Row],[Housing Situation]]=\"Gap (presumed homeless)\")),\nOR(OFFSET(Table1[[#This Row],[Housing Situation]],1,0)=\"ES / SH / Agency-paid Hotel\",OFFSET(Table1[[#This Row],[Housing Situation]],1,0)=\"Place not meant for habitation\",Table1[[#This Row],[Housing Situation]]=\"Gap (presumed homeless)\")),\n((Table1[[#This Row],[End Date]]+1)-Table1[[#This Row],[Start Date]])/(365/12),\n0))))))","v":""},null,{"$f":"IF(Table1[[#This Row],[Housing Situation]]=\"\",\"\",IF(Table1[[#This Row],[Housing Situation Category]]=\"Not_Homeless_Documentation_Source\",\"N/A\",\"\"))","v":""},{"$f":"IF(Table1[[#This Row],[Housing Situation]]=\"\",\"\",IF(Table1[[#This Row],[Housing Situation Category]]=\"Not_Homeless_Documentation_Source\",\"N/A\",\"\"))","v":""},null,{"$f":"IF(OFFSET(Table1[[#This Row],[Months Homeless]],1,0)=\"\",0,IF(AND(Table1[[#This Row],[Months Homeless]]=0,OFFSET(Table1[[#This Row],[Months Homeless]],1,0)>0),1,0))","v":0},{"$f":"IF(\nTable1[[#This Row],[Row number]]=1,\n1,\nIF(OFFSET(Table1[[#This Row],[Months Homeless]],1,0)=\"\",\nINDIRECT(ADDRESS(ROW()-1,COLUMN())),\nIF(\nAND(\nTable1[[#This Row],[Months Homeless]]=0,\nOFFSET(Table1[[#This Row],[Months Homeless]],1,0)>0),\nINDIRECT(ADDRESS(ROW()-1,COLUMN()))+1,\nINDIRECT(ADDRESS(ROW()-1,COLUMN()))\n)\n)\n)","v":1},{"$f":"IF(OR(Table1[[#This Row],[Housing Situation]]=\"\",Table1[[#This Row],[Housing Situation]]=\"Gap (need self-report)\"),\"\",IF(Table1[[#This Row],[Months Homeless]]=\"Missing\",\"No\",IF(AND(Table1[[#This Row],[Housing Situation]]=\"Gap (presumed homeless)\",COUNTA(B23,C23)-(COUNTA(F23,G23)-COUNTBLANK(F23:G23))=0),\"Yes\",IF((COUNTA(B23,C23,E23)-(COUNTA(F23,G23)-COUNTBLANK(F23:G23))=1),\"Yes\",\"No\"))))","v":""},{"$f":"IF(Table1[[#This Row],[Row Complete?]]=\"No\",Table1[[#This Row],[Row number]]+10,\"\")","v":""},{"$f":"ROW(Table1[#This Row])-ROW(Table1[[#Headers], [Housing Situation]])","v":13},{"$f":"IF(ISERROR(_xlfn.DAYS(Table1[[#This Row],[End Date]],Table1[[#This Row],[Start Date]])),\"\",_xlfn.DAYS(Table1[[#This Row],[End Date]],Table1[[#This Row],[Start Date]]))","v":""},{"$f":"IF(Table1[[#This Row],[Housing Situation]]=\"\",\"\",IF(Table1[[#This Row],[Housing Situation]]=Picklists!$A$11,Picklists!$B$1,IF(Table1[[#This Row],[Housing Situation]]=Picklists!$A$2,Picklists!$B$1,IF(Table1[[#This Row],[Housing Situation]]=Picklists!$A$3,Picklists!$B$1,IF(Table1[[#This Row],[Housing Situation]]=Picklists!$A$12,Picklists!$B$1,Picklists!$C$1)))))","v":""},{"$f":"IF(Table1[[#This Row],[Housing Situation Category]]=\"\",\"\",IF(Table1[[#This Row],[Housing Situation Category]]=Picklists!$B$1,Picklists!$D$1,Picklists!$E$1))","v":""}]
[null,null,{"$f":"IF(Table1[[#This Row],[Housing Situation]]=\"\",\"\",IF(Table1[[#This Row],[Row number]]=1,$B$7,IF(OFFSET(C24,-1,-1)=\"\",\"\",OFFSET(C24,-1,-1)-1)))","v":""},{"$f":"IF(\nTable1[[#This Row],[Start Date]]=\"\",\n\"\",\nIF(\nTable1[[#This Row],[Housing Situation]]=\"Gap (need self-report)\",\n\"\",\nIF(\nTable1[[#This Row],[Housing Situation]]=\"\",\n\"Missing\",\nIF(\nOR(\nAND(OR(Table1[[#This Row],[Housing Situation]]=\"Hospital / Psych / Detox\",Table1[[#This Row],[Housing Situation]]=\"Jail / Prison\",Table1[[#This Row],[Housing Situation]]=\"Foster Care / Group Home\"),(Table1[[#This Row],[End Date]]-Table1[[#This Row],[Start Date]])>=90),\nAND(OR(Table1[[#This Row],[Housing Situation]]=\"Apt / House (rented or owned)\",Table1[[#This Row],[Housing Situation]]=\"Friend / Family\",Table1[[#This Row],[Housing Situation]]=\"Self-paid Hotel / Halfway house\",Table1[[#This Row],[Housing Situation]]=\"Transitional Housing\"),(Table1[[#This Row],[End Date]]-Table1[[#This Row],[Start Date]])>=7)),\n0,\nIF(\nOR(Table1[[#This Row],[Housing Situation]]=\"ES / SH / Agency-paid Hotel\",Table1[[#This Row],[Housing Situation]]=\"Place not meant for habitation\",Table1[[#This Row],[Housing Situation]]=\"Gap (presumed homeless)\"),\n((Table1[[#This Row],[End Date]]+1)-Table1[[#This Row],[Start Date]])/(365/12),\nIF(\nAND(\nNOT(OR(Table1[[#This Row],[Housing Situation]]=\"ES / SH / Agency-paid Hotel\",Table1[[#This Row],[Housing Situation]]=\"Place not meant for habitation\",Table1[[#This Row],[Housing Situation]]=\"Gap (presumed homeless)\")),\nOR(OFFSET(Table1[[#This Row],[Housing Situation]],1,0)=\"ES / SH / Agency-paid Hotel\",OFFSET(Table1[[#This Row],[Housing Situation]],1,0)=\"Place not meant for habitation\",Table1[[#This Row],[Housing Situation]]=\"Gap (presumed homeless)\")),\n((Table1[[#This Row],[End Date]]+1)-Table1[[#This Row],[Start Date]])/(365/12),\n0))))))","v":""},null,{"$f":"IF(Table1[[#This Row],[Housing Situation]]=\"\",\"\",IF(Table1[[#This Row],[Housing Situation Category]]=\"Not_Homeless_Documentation_Source\",\"N/A\",\"\"))","v":""},{"$f":"IF(Table1[[#This Row],[Housing Situation]]=\"\",\"\",IF(Table1[[#This Row],[Housing Situation Category]]=\"Not_Homeless_Documentation_Source\",\"N/A\",\"\"))","v":""},null,{"$f":"IF(OFFSET(Table1[[#This Row],[Months Homeless]],1,0)=\"\",0,IF(AND(Table1[[#This Row],[Months Homeless]]=0,OFFSET(Table1[[#This Row],[Months Homeless]],1,0)>0),1,0))","v":0},{"$f":"IF(\nTable1[[#This Row],[Row number]]=1,\n1,\nIF(OFFSET(Table1[[#This Row],[Months Homeless]],1,0)=\"\",\nINDIRECT(ADDRESS(ROW()-1,COLUMN())),\nIF(\nAND(\nTable1[[#This Row],[Months Homeless]]=0,\nOFFSET(Table1[[#This Row],[Months Homeless]],1,0)>0),\nINDIRECT(ADDRESS(ROW()-1,COLUMN()))+1,\nINDIRECT(ADDRESS(ROW()-1,COLUMN()))\n)\n)\n)","v":1},{"$f":"IF(OR(Table1[[#This Row],[Housing Situation]]=\"\",Table1[[#This Row],[Housing Situation]]=\"Gap (need self-report)\"),\"\",IF(Table1[[#This Row],[Months Homeless]]=\"Missing\",\"No\",IF(AND(Table1[[#This Row],[Housing Situation]]=\"Gap (presumed homeless)\",COUNTA(B24,C24)-(COUNTA(F24,G24)-COUNTBLANK(F24:G24))=0),\"Yes\",IF((COUNTA(B24,C24,E24)-(COUNTA(F24,G24)-COUNTBLANK(F24:G24))=1),\"Yes\",\"No\"))))","v":""},{"$f":"IF(Table1[[#This Row],[Row Complete?]]=\"No\",Table1[[#This Row],[Row number]]+10,\"\")","v":""},{"$f":"ROW(Table1[#This Row])-ROW(Table1[[#Headers], [Housing Situation]])","v":14},{"$f":"IF(ISERROR(_xlfn.DAYS(Table1[[#This Row],[End Date]],Table1[[#This Row],[Start Date]])),\"\",_xlfn.DAYS(Table1[[#This Row],[End Date]],Table1[[#This Row],[Start Date]]))","v":""},{"$f":"IF(Table1[[#This Row],[Housing Situation]]=\"\",\"\",IF(Table1[[#This Row],[Housing Situation]]=Picklists!$A$11,Picklists!$B$1,IF(Table1[[#This Row],[Housing Situation]]=Picklists!$A$2,Picklists!$B$1,IF(Table1[[#This Row],[Housing Situation]]=Picklists!$A$3,Picklists!$B$1,IF(Table1[[#This Row],[Housing Situation]]=Picklists!$A$12,Picklists!$B$1,Picklists!$C$1)))))","v":""},{"$f":"IF(Table1[[#This Row],[Housing Situation Category]]=\"\",\"\",IF(Table1[[#This Row],[Housing Situation Category]]=Picklists!$B$1,Picklists!$D$1,Picklists!$E$1))","v":""}]
[null,null,{"$f":"IF(Table1[[#This Row],[Housing Situation]]=\"\",\"\",IF(Table1[[#This Row],[Row number]]=1,$B$7,IF(OFFSET(C25,-1,-1)=\"\",\"\",OFFSET(C25,-1,-1)-1)))","v":""},{"$f":"IF(\nTable1[[#This Row],[Start Date]]=\"\",\n\"\",\nIF(\nTable1[[#This Row],[Housing Situation]]=\"Gap (need self-report)\",\n\"\",\nIF(\nTable1[[#This Row],[Housing Situation]]=\"\",\n\"Missing\",\nIF(\nOR(\nAND(OR(Table1[[#This Row],[Housing Situation]]=\"Hospital / Psych / Detox\",Table1[[#This Row],[Housing Situation]]=\"Jail / Prison\",Table1[[#This Row],[Housing Situation]]=\"Foster Care / Group Home\"),(Table1[[#This Row],[End Date]]-Table1[[#This Row],[Start Date]])>=90),\nAND(OR(Table1[[#This Row],[Housing Situation]]=\"Apt / House (rented or owned)\",Table1[[#This Row],[Housing Situation]]=\"Friend / Family\",Table1[[#This Row],[Housing Situation]]=\"Self-paid Hotel / Halfway house\",Table1[[#This Row],[Housing Situation]]=\"Transitional Housing\"),(Table1[[#This Row],[End Date]]-Table1[[#This Row],[Start Date]])>=7)),\n0,\nIF(\nOR(Table1[[#This Row],[Housing Situation]]=\"ES / SH / Agency-paid Hotel\",Table1[[#This Row],[Housing Situation]]=\"Place not meant for habitation\",Table1[[#This Row],[Housing Situation]]=\"Gap (presumed homeless)\"),\n((Table1[[#This Row],[End Date]]+1)-Table1[[#This Row],[Start Date]])/(365/12),\nIF(\nAND(\nNOT(OR(Table1[[#This Row],[Housing Situation]]=\"ES / SH / Agency-paid Hotel\",Table1[[#This Row],[Housing Situation]]=\"Place not meant for habitation\",Table1[[#This Row],[Housing Situation]]=\"Gap (presumed homeless)\")),\nOR(OFFSET(Table1[[#This Row],[Housing Situation]],1,0)=\"ES / SH / Agency-paid Hotel\",OFFSET(Table1[[#This Row],[Housing Situation]],1,0)=\"Place not meant for habitation\",Table1[[#This Row],[Housing Situation]]=\"Gap (presumed homeless)\")),\n((Table1[[#This Row],[End Date]]+1)-Table1[[#This Row],[Start Date]])/(365/12),\n0))))))","v":""},null,{"$f":"IF(Table1[[#This Row],[Housing Situation]]=\"\",\"\",IF(Table1[[#This Row],[Housing Situation Category]]=\"Not_Homeless_Documentation_Source\",\"N/A\",\"\"))","v":""},{"$f":"IF(Table1[[#This Row],[Housing Situation]]=\"\",\"\",IF(Table1[[#This Row],[Housing Situation Category]]=\"Not_Homeless_Documentation_Source\",\"N/A\",\"\"))","v":""},null,{"$f":"IF(OFFSET(Table1[[#This Row],[Months Homeless]],1,0)=\"\",0,IF(AND(Table1[[#This Row],[Months Homeless]]=0,OFFSET(Table1[[#This Row],[Months Homeless]],1,0)>0),1,0))","v":0},{"$f":"IF(\nTable1[[#This Row],[Row number]]=1,\n1,\nIF(OFFSET(Table1[[#This Row],[Months Homeless]],1,0)=\"\",\nINDIRECT(ADDRESS(ROW()-1,COLUMN())),\nIF(\nAND(\nTable1[[#This Row],[Months Homeless]]=0,\nOFFSET(Table1[[#This Row],[Months Homeless]],1,0)>0),\nINDIRECT(ADDRESS(ROW()-1,COLUMN()))+1,\nINDIRECT(ADDRESS(ROW()-1,COLUMN()))\n)\n)\n)","v":1},{"$f":"IF(OR(Table1[[#This Row],[Housing Situation]]=\"\",Table1[[#This Row],[Housing Situation]]=\"Gap (need self-report)\"),\"\",IF(Table1[[#This Row],[Months Homeless]]=\"Missing\",\"No\",IF(AND(Table1[[#This Row],[Housing Situation]]=\"Gap (presumed homeless)\",COUNTA(B25,C25)-(COUNTA(F25,G25)-COUNTBLANK(F25:G25))=0),\"Yes\",IF((COUNTA(B25,C25,E25)-(COUNTA(F25,G25)-COUNTBLANK(F25:G25))=1),\"Yes\",\"No\"))))","v":""},{"$f":"IF(Table1[[#This Row],[Row Complete?]]=\"No\",Table1[[#This Row],[Row number]]+10,\"\")","v":""},{"$f":"ROW(Table1[#This Row])-ROW(Table1[[#Headers], [Housing Situation]])","v":15},{"$f":"IF(ISERROR(_xlfn.DAYS(Table1[[#This Row],[End Date]],Table1[[#This Row],[Start Date]])),\"\",_xlfn.DAYS(Table1[[#This Row],[End Date]],Table1[[#This Row],[Start Date]]))","v":""},{"$f":"IF(Table1[[#This Row],[Housing Situation]]=\"\",\"\",IF(Table1[[#This Row],[Housing Situation]]=Picklists!$A$11,Picklists!$B$1,IF(Table1[[#This Row],[Housing Situation]]=Picklists!$A$2,Picklists!$B$1,IF(Table1[[#This Row],[Housing Situation]]=Picklists!$A$3,Picklists!$B$1,IF(Table1[[#This Row],[Housing Situation]]=Picklists!$A$12,Picklists!$B$1,Picklists!$C$1)))))","v":""},{"$f":"IF(Table1[[#This Row],[Housing Situation Category]]=\"\",\"\",IF(Table1[[#This Row],[Housing Situation Category]]=Picklists!$B$1,Picklists!$D$1,Picklists!$E$1))","v":""}]
[null,null,{"$f":"IF(Table1[[#This Row],[Housing Situation]]=\"\",\"\",IF(Table1[[#This Row],[Row number]]=1,$B$7,IF(OFFSET(C26,-1,-1)=\"\",\"\",OFFSET(C26,-1,-1)-1)))","v":""},{"$f":"IF(\nTable1[[#This Row],[Start Date]]=\"\",\n\"\",\nIF(\nTable1[[#This Row],[Housing Situation]]=\"Gap (need self-report)\",\n\"\",\nIF(\nTable1[[#This Row],[Housing Situation]]=\"\",\n\"Missing\",\nIF(\nOR(\nAND(OR(Table1[[#This Row],[Housing Situation]]=\"Hospital / Psych / Detox\",Table1[[#This Row],[Housing Situation]]=\"Jail / Prison\",Table1[[#This Row],[Housing Situation]]=\"Foster Care / Group Home\"),(Table1[[#This Row],[End Date]]-Table1[[#This Row],[Start Date]])>=90),\nAND(OR(Table1[[#This Row],[Housing Situation]]=\"Apt / House (rented or owned)\",Table1[[#This Row],[Housing Situation]]=\"Friend / Family\",Table1[[#This Row],[Housing Situation]]=\"Self-paid Hotel / Halfway house\",Table1[[#This Row],[Housing Situation]]=\"Transitional Housing\"),(Table1[[#This Row],[End Date]]-Table1[[#This Row],[Start Date]])>=7)),\n0,\nIF(\nOR(Table1[[#This Row],[Housing Situation]]=\"ES / SH / Agency-paid Hotel\",Table1[[#This Row],[Housing Situation]]=\"Place not meant for habitation\",Table1[[#This Row],[Housing Situation]]=\"Gap (presumed homeless)\"),\n((Table1[[#This Row],[End Date]]+1)-Table1[[#This Row],[Start Date]])/(365/12),\nIF(\nAND(\nNOT(OR(Table1[[#This Row],[Housing Situation]]=\"ES / SH / Agency-paid Hotel\",Table1[[#This Row],[Housing Situation]]=\"Place not meant for habitation\",Table1[[#This Row],[Housing Situation]]=\"Gap (presumed homeless)\")),\nOR(OFFSET(Table1[[#This Row],[Housing Situation]],1,0)=\"ES / SH / Agency-paid Hotel\",OFFSET(Table1[[#This Row],[Housing Situation]],1,0)=\"Place not meant for habitation\",Table1[[#This Row],[Housing Situation]]=\"Gap (presumed homeless)\")),\n((Table1[[#This Row],[End Date]]+1)-Table1[[#This Row],[Start Date]])/(365/12),\n0))))))","v":""},null,{"$f":"IF(Table1[[#This Row],[Housing Situation]]=\"\",\"\",IF(Table1[[#This Row],[Housing Situation Category]]=\"Not_Homeless_Documentation_Source\",\"N/A\",\"\"))","v":""},{"$f":"IF(Table1[[#This Row],[Housing Situation]]=\"\",\"\",IF(Table1[[#This Row],[Housing Situation Category]]=\"Not_Homeless_Documentation_Source\",\"N/A\",\"\"))","v":""},null,{"$f":"IF(OFFSET(Table1[[#This Row],[Months Homeless]],1,0)=\"\",0,IF(AND(Table1[[#This Row],[Months Homeless]]=0,OFFSET(Table1[[#This Row],[Months Homeless]],1,0)>0),1,0))","v":0},{"$f":"IF(\nTable1[[#This Row],[Row number]]=1,\n1,\nIF(OFFSET(Table1[[#This Row],[Months Homeless]],1,0)=\"\",\nINDIRECT(ADDRESS(ROW()-1,COLUMN())),\nIF(\nAND(\nTable1[[#This Row],[Months Homeless]]=0,\nOFFSET(Table1[[#This Row],[Months Homeless]],1,0)>0),\nINDIRECT(ADDRESS(ROW()-1,COLUMN()))+1,\nINDIRECT(ADDRESS(ROW()-1,COLUMN()))\n)\n)\n)","v":1},{"$f":"IF(OR(Table1[[#This Row],[Housing Situation]]=\"\",Table1[[#This Row],[Housing Situation]]=\"Gap (need self-report)\"),\"\",IF(Table1[[#This Row],[Months Homeless]]=\"Missing\",\"No\",IF(AND(Table1[[#This Row],[Housing Situation]]=\"Gap (presumed homeless)\",COUNTA(B26,C26)-(COUNTA(F26,G26)-COUNTBLANK(F26:G26))=0),\"Yes\",IF((COUNTA(B26,C26,E26)-(COUNTA(F26,G26)-COUNTBLANK(F26:G26))=1),\"Yes\",\"No\"))))","v":""},{"$f":"IF(Table1[[#This Row],[Row Complete?]]=\"No\",Table1[[#This Row],[Row number]]+10,\"\")","v":""},{"$f":"ROW(Table1[#This Row])-ROW(Table1[[#Headers], [Housing Situation]])","v":16},{"$f":"IF(ISERROR(_xlfn.DAYS(Table1[[#This Row],[End Date]],Table1[[#This Row],[Start Date]])),\"\",_xlfn.DAYS(Table1[[#This Row],[End Date]],Table1[[#This Row],[Start Date]]))","v":""},{"$f":"IF(Table1[[#This Row],[Housing Situation]]=\"\",\"\",IF(Table1[[#This Row],[Housing Situation]]=Picklists!$A$11,Picklists!$B$1,IF(Table1[[#This Row],[Housing Situation]]=Picklists!$A$2,Picklists!$B$1,IF(Table1[[#This Row],[Housing Situation]]=Picklists!$A$3,Picklists!$B$1,IF(Table1[[#This Row],[Housing Situation]]=Picklists!$A$12,Picklists!$B$1,Picklists!$C$1)))))","v":""},{"$f":"IF(Table1[[#This Row],[Housing Situation Category]]=\"\",\"\",IF(Table1[[#This Row],[Housing Situation Category]]=Picklists!$B$1,Picklists!$D$1,Picklists!$E$1))","v":""}]
[null,null,{"$f":"IF(Table1[[#This Row],[Housing Situation]]=\"\",\"\",IF(Table1[[#This Row],[Row number]]=1,$B$7,IF(OFFSET(C27,-1,-1)=\"\",\"\",OFFSET(C27,-1,-1)-1)))","v":""},{"$f":"IF(\nTable1[[#This Row],[Start Date]]=\"\",\n\"\",\nIF(\nTable1[[#This Row],[Housing Situation]]=\"Gap (need self-report)\",\n\"\",\nIF(\nTable1[[#This Row],[Housing Situation]]=\"\",\n\"Missing\",\nIF(\nOR(\nAND(OR(Table1[[#This Row],[Housing Situation]]=\"Hospital / Psych / Detox\",Table1[[#This Row],[Housing Situation]]=\"Jail / Prison\",Table1[[#This Row],[Housing Situation]]=\"Foster Care / Group Home\"),(Table1[[#This Row],[End Date]]-Table1[[#This Row],[Start Date]])>=90),\nAND(OR(Table1[[#This Row],[Housing Situation]]=\"Apt / House (rented or owned)\",Table1[[#This Row],[Housing Situation]]=\"Friend / Family\",Table1[[#This Row],[Housing Situation]]=\"Self-paid Hotel / Halfway house\",Table1[[#This Row],[Housing Situation]]=\"Transitional Housing\"),(Table1[[#This Row],[End Date]]-Table1[[#This Row],[Start Date]])>=7)),\n0,\nIF(\nOR(Table1[[#This Row],[Housing Situation]]=\"ES / SH / Agency-paid Hotel\",Table1[[#This Row],[Housing Situation]]=\"Place not meant for habitation\",Table1[[#This Row],[Housing Situation]]=\"Gap (presumed homeless)\"),\n((Table1[[#This Row],[End Date]]+1)-Table1[[#This Row],[Start Date]])/(365/12),\nIF(\nAND(\nNOT(OR(Table1[[#This Row],[Housing Situation]]=\"ES / SH / Agency-paid Hotel\",Table1[[#This Row],[Housing Situation]]=\"Place not meant for habitation\",Table1[[#This Row],[Housing Situation]]=\"Gap (presumed homeless)\")),\nOR(OFFSET(Table1[[#This Row],[Housing Situation]],1,0)=\"ES / SH / Agency-paid Hotel\",OFFSET(Table1[[#This Row],[Housing Situation]],1,0)=\"Place not meant for habitation\",Table1[[#This Row],[Housing Situation]]=\"Gap (presumed homeless)\")),\n((Table1[[#This Row],[End Date]]+1)-Table1[[#This Row],[Start Date]])/(365/12),\n0))))))","v":""},null,{"$f":"IF(Table1[[#This Row],[Housing Situation]]=\"\",\"\",IF(Table1[[#This Row],[Housing Situation Category]]=\"Not_Homeless_Documentation_Source\",\"N/A\",\"\"))","v":""},{"$f":"IF(Table1[[#This Row],[Housing Situation]]=\"\",\"\",IF(Table1[[#This Row],[Housing Situation Category]]=\"Not_Homeless_Documentation_Source\",\"N/A\",\"\"))","v":""},null,{"$f":"IF(OFFSET(Table1[[#This Row],[Months Homeless]],1,0)=\"\",0,IF(AND(Table1[[#This Row],[Months Homeless]]=0,OFFSET(Table1[[#This Row],[Months Homeless]],1,0)>0),1,0))","v":0},{"$f":"IF(\nTable1[[#This Row],[Row number]]=1,\n1,\nIF(OFFSET(Table1[[#This Row],[Months Homeless]],1,0)=\"\",\nINDIRECT(ADDRESS(ROW()-1,COLUMN())),\nIF(\nAND(\nTable1[[#This Row],[Months Homeless]]=0,\nOFFSET(Table1[[#This Row],[Months Homeless]],1,0)>0),\nINDIRECT(ADDRESS(ROW()-1,COLUMN()))+1,\nINDIRECT(ADDRESS(ROW()-1,COLUMN()))\n)\n)\n)","v":1},{"$f":"IF(OR(Table1[[#This Row],[Housing Situation]]=\"\",Table1[[#This Row],[Housing Situation]]=\"Gap (need self-report)\"),\"\",IF(Table1[[#This Row],[Months Homeless]]=\"Missing\",\"No\",IF(AND(Table1[[#This Row],[Housing Situation]]=\"Gap (presumed homeless)\",COUNTA(B27,C27)-(COUNTA(F27,G27)-COUNTBLANK(F27:G27))=0),\"Yes\",IF((COUNTA(B27,C27,E27)-(COUNTA(F27,G27)-COUNTBLANK(F27:G27))=1),\"Yes\",\"No\"))))","v":""},{"$f":"IF(Table1[[#This Row],[Row Complete?]]=\"No\",Table1[[#This Row],[Row number]]+10,\"\")","v":""},{"$f":"ROW(Table1[#This Row])-ROW(Table1[[#Headers], [Housing Situation]])","v":17},{"$f":"IF(ISERROR(_xlfn.DAYS(Table1[[#This Row],[End Date]],Table1[[#This Row],[Start Date]])),\"\",_xlfn.DAYS(Table1[[#This Row],[End Date]],Table1[[#This Row],[Start Date]]))","v":""},{"$f":"IF(Table1[[#This Row],[Housing Situation]]=\"\",\"\",IF(Table1[[#This Row],[Housing Situation]]=Picklists!$A$11,Picklists!$B$1,IF(Table1[[#This Row],[Housing Situation]]=Picklists!$A$2,Picklists!$B$1,IF(Table1[[#This Row],[Housing Situation]]=Picklists!$A$3,Picklists!$B$1,IF(Table1[[#This Row],[Housing Situation]]=Picklists!$A$12,Picklists!$B$1,Picklists!$C$1)))))","v":""},{"$f":"IF(Table1[[#This Row],[Housing Situation Category]]=\"\",\"\",IF(Table1[[#This Row],[Housing Situation Category]]=Picklists!$B$1,Picklists!$D$1,Picklists!$E$1))","v":""}]
[null,null,{"$f":"IF(Table1[[#This Row],[Housing Situation]]=\"\",\"\",IF(Table1[[#This Row],[Row number]]=1,$B$7,IF(OFFSET(C28,-1,-1)=\"\",\"\",OFFSET(C28,-1,-1)-1)))","v":""},{"$f":"IF(\nTable1[[#This Row],[Start Date]]=\"\",\n\"\",\nIF(\nTable1[[#This Row],[Housing Situation]]=\"Gap (need self-report)\",\n\"\",\nIF(\nTable1[[#This Row],[Housing Situation]]=\"\",\n\"Missing\",\nIF(\nOR(\nAND(OR(Table1[[#This Row],[Housing Situation]]=\"Hospital / Psych / Detox\",Table1[[#This Row],[Housing Situation]]=\"Jail / Prison\",Table1[[#This Row],[Housing Situation]]=\"Foster Care / Group Home\"),(Table1[[#This Row],[End Date]]-Table1[[#This Row],[Start Date]])>=90),\nAND(OR(Table1[[#This Row],[Housing Situation]]=\"Apt / House (rented or owned)\",Table1[[#This Row],[Housing Situation]]=\"Friend / Family\",Table1[[#This Row],[Housing Situation]]=\"Self-paid Hotel / Halfway house\",Table1[[#This Row],[Housing Situation]]=\"Transitional Housing\"),(Table1[[#This Row],[End Date]]-Table1[[#This Row],[Start Date]])>=7)),\n0,\nIF(\nOR(Table1[[#This Row],[Housing Situation]]=\"ES / SH / Agency-paid Hotel\",Table1[[#This Row],[Housing Situation]]=\"Place not meant for habitation\",Table1[[#This Row],[Housing Situation]]=\"Gap (presumed homeless)\"),\n((Table1[[#This Row],[End Date]]+1)-Table1[[#This Row],[Start Date]])/(365/12),\nIF(\nAND(\nNOT(OR(Table1[[#This Row],[Housing Situation]]=\"ES / SH / Agency-paid Hotel\",Table1[[#This Row],[Housing Situation]]=\"Place not meant for habitation\",Table1[[#This Row],[Housing Situation]]=\"Gap (presumed homeless)\")),\nOR(OFFSET(Table1[[#This Row],[Housing Situation]],1,0)=\"ES / SH / Agency-paid Hotel\",OFFSET(Table1[[#This Row],[Housing Situation]],1,0)=\"Place not meant for habitation\",Table1[[#This Row],[Housing Situation]]=\"Gap (presumed homeless)\")),\n((Table1[[#This Row],[End Date]]+1)-Table1[[#This Row],[Start Date]])/(365/12),\n0))))))","v":""},null,{"$f":"IF(Table1[[#This Row],[Housing Situation]]=\"\",\"\",IF(Table1[[#This Row],[Housing Situation Category]]=\"Not_Homeless_Documentation_Source\",\"N/A\",\"\"))","v":""},{"$f":"IF(Table1[[#This Row],[Housing Situation]]=\"\",\"\",IF(Table1[[#This Row],[Housing Situation Category]]=\"Not_Homeless_Documentation_Source\",\"N/A\",\"\"))","v":""},null,{"$f":"IF(OFFSET(Table1[[#This Row],[Months Homeless]],1,0)=\"\",0,IF(AND(Table1[[#This Row],[Months Homeless]]=0,OFFSET(Table1[[#This Row],[Months Homeless]],1,0)>0),1,0))","v":0},{"$f":"IF(\nTable1[[#This Row],[Row number]]=1,\n1,\nIF(OFFSET(Table1[[#This Row],[Months Homeless]],1,0)=\"\",\nINDIRECT(ADDRESS(ROW()-1,COLUMN())),\nIF(\nAND(\nTable1[[#This Row],[Months Homeless]]=0,\nOFFSET(Table1[[#This Row],[Months Homeless]],1,0)>0),\nINDIRECT(ADDRESS(ROW()-1,COLUMN()))+1,\nINDIRECT(ADDRESS(ROW()-1,COLUMN()))\n)\n)\n)","v":1},{"$f":"IF(OR(Table1[[#This Row],[Housing Situation]]=\"\",Table1[[#This Row],[Housing Situation]]=\"Gap (need self-report)\"),\"\",IF(Table1[[#This Row],[Months Homeless]]=\"Missing\",\"No\",IF(AND(Table1[[#This Row],[Housing Situation]]=\"Gap (presumed homeless)\",COUNTA(B28,C28)-(COUNTA(F28,G28)-COUNTBLANK(F28:G28))=0),\"Yes\",IF((COUNTA(B28,C28,E28)-(COUNTA(F28,G28)-COUNTBLANK(F28:G28))=1),\"Yes\",\"No\"))))","v":""},{"$f":"IF(Table1[[#This Row],[Row Complete?]]=\"No\",Table1[[#This Row],[Row number]]+10,\"\")","v":""},{"$f":"ROW(Table1[#This Row])-ROW(Table1[[#Headers], [Housing Situation]])","v":18},{"$f":"IF(ISERROR(_xlfn.DAYS(Table1[[#This Row],[End Date]],Table1[[#This Row],[Start Date]])),\"\",_xlfn.DAYS(Table1[[#This Row],[End Date]],Table1[[#This Row],[Start Date]]))","v":""},{"$f":"IF(Table1[[#This Row],[Housing Situation]]=\"\",\"\",IF(Table1[[#This Row],[Housing Situation]]=Picklists!$A$11,Picklists!$B$1,IF(Table1[[#This Row],[Housing Situation]]=Picklists!$A$2,Picklists!$B$1,IF(Table1[[#This Row],[Housing Situation]]=Picklists!$A$3,Picklists!$B$1,IF(Table1[[#This Row],[Housing Situation]]=Picklists!$A$12,Picklists!$B$1,Picklists!$C$1)))))","v":""},{"$f":"IF(Table1[[#This Row],[Housing Situation Category]]=\"\",\"\",IF(Table1[[#This Row],[Housing Situation Category]]=Picklists!$B$1,Picklists!$D$1,Picklists!$E$1))","v":""}]
[null,null,{"$f":"IF(Table1[[#This Row],[Housing Situation]]=\"\",\"\",IF(Table1[[#This Row],[Row number]]=1,$B$7,IF(OFFSET(C29,-1,-1)=\"\",\"\",OFFSET(C29,-1,-1)-1)))","v":""},{"$f":"IF(\nTable1[[#This Row],[Start Date]]=\"\",\n\"\",\nIF(\nTable1[[#This Row],[Housing Situation]]=\"Gap (need self-report)\",\n\"\",\nIF(\nTable1[[#This Row],[Housing Situation]]=\"\",\n\"Missing\",\nIF(\nOR(\nAND(OR(Table1[[#This Row],[Housing Situation]]=\"Hospital / Psych / Detox\",Table1[[#This Row],[Housing Situation]]=\"Jail / Prison\",Table1[[#This Row],[Housing Situation]]=\"Foster Care / Group Home\"),(Table1[[#This Row],[End Date]]-Table1[[#This Row],[Start Date]])>=90),\nAND(OR(Table1[[#This Row],[Housing Situation]]=\"Apt / House (rented or owned)\",Table1[[#This Row],[Housing Situation]]=\"Friend / Family\",Table1[[#This Row],[Housing Situation]]=\"Self-paid Hotel / Halfway house\",Table1[[#This Row],[Housing Situation]]=\"Transitional Housing\"),(Table1[[#This Row],[End Date]]-Table1[[#This Row],[Start Date]])>=7)),\n0,\nIF(\nOR(Table1[[#This Row],[Housing Situation]]=\"ES / SH / Agency-paid Hotel\",Table1[[#This Row],[Housing Situation]]=\"Place not meant for habitation\",Table1[[#This Row],[Housing Situation]]=\"Gap (presumed homeless)\"),\n((Table1[[#This Row],[End Date]]+1)-Table1[[#This Row],[Start Date]])/(365/12),\nIF(\nAND(\nNOT(OR(Table1[[#This Row],[Housing Situation]]=\"ES / SH / Agency-paid Hotel\",Table1[[#This Row],[Housing Situation]]=\"Place not meant for habitation\",Table1[[#This Row],[Housing Situation]]=\"Gap (presumed homeless)\")),\nOR(OFFSET(Table1[[#This Row],[Housing Situation]],1,0)=\"ES / SH / Agency-paid Hotel\",OFFSET(Table1[[#This Row],[Housing Situation]],1,0)=\"Place not meant for habitation\",Table1[[#This Row],[Housing Situation]]=\"Gap (presumed homeless)\")),\n((Table1[[#This Row],[End Date]]+1)-Table1[[#This Row],[Start Date]])/(365/12),\n0))))))","v":""},null,{"$f":"IF(Table1[[#This Row],[Housing Situation]]=\"\",\"\",IF(Table1[[#This Row],[Housing Situation Category]]=\"Not_Homeless_Documentation_Source\",\"N/A\",\"\"))","v":""},{"$f":"IF(Table1[[#This Row],[Housing Situation]]=\"\",\"\",IF(Table1[[#This Row],[Housing Situation Category]]=\"Not_Homeless_Documentation_Source\",\"N/A\",\"\"))","v":""},null,{"$f":"IF(OFFSET(Table1[[#This Row],[Months Homeless]],1,0)=\"\",0,IF(AND(Table1[[#This Row],[Months Homeless]]=0,OFFSET(Table1[[#This Row],[Months Homeless]],1,0)>0),1,0))","v":0},{"$f":"IF(\nTable1[[#This Row],[Row number]]=1,\n1,\nIF(OFFSET(Table1[[#This Row],[Months Homeless]],1,0)=\"\",\nINDIRECT(ADDRESS(ROW()-1,COLUMN())),\nIF(\nAND(\nTable1[[#This Row],[Months Homeless]]=0,\nOFFSET(Table1[[#This Row],[Months Homeless]],1,0)>0),\nINDIRECT(ADDRESS(ROW()-1,COLUMN()))+1,\nINDIRECT(ADDRESS(ROW()-1,COLUMN()))\n)\n)\n)","v":1},{"$f":"IF(OR(Table1[[#This Row],[Housing Situation]]=\"\",Table1[[#This Row],[Housing Situation]]=\"Gap (need self-report)\"),\"\",IF(Table1[[#This Row],[Months Homeless]]=\"Missing\",\"No\",IF(AND(Table1[[#This Row],[Housing Situation]]=\"Gap (presumed homeless)\",COUNTA(B29,C29)-(COUNTA(F29,G29)-COUNTBLANK(F29:G29))=0),\"Yes\",IF((COUNTA(B29,C29,E29)-(COUNTA(F29,G29)-COUNTBLANK(F29:G29))=1),\"Yes\",\"No\"))))","v":""},{"$f":"IF(Table1[[#This Row],[Row Complete?]]=\"No\",Table1[[#This Row],[Row number]]+10,\"\")","v":""},{"$f":"ROW(Table1[#This Row])-ROW(Table1[[#Headers], [Housing Situation]])","v":19},{"$f":"IF(ISERROR(_xlfn.DAYS(Table1[[#This Row],[End Date]],Table1[[#This Row],[Start Date]])),\"\",_xlfn.DAYS(Table1[[#This Row],[End Date]],Table1[[#This Row],[Start Date]]))","v":""},{"$f":"IF(Table1[[#This Row],[Housing Situation]]=\"\",\"\",IF(Table1[[#This Row],[Housing Situation]]=Picklists!$A$11,Picklists!$B$1,IF(Table1[[#This Row],[Housing Situation]]=Picklists!$A$2,Picklists!$B$1,IF(Table1[[#This Row],[Housing Situation]]=Picklists!$A$3,Picklists!$B$1,IF(Table1[[#This Row],[Housing Situation]]=Picklists!$A$12,Picklists!$B$1,Picklists!$C$1)))))","v":""},{"$f":"IF(Table1[[#This Row],[Housing Situation Category]]=\"\",\"\",IF(Table1[[#This Row],[Housing Situation Category]]=Picklists!$B$1,Picklists!$D$1,Picklists!$E$1))","v":""}]
[null,null,{"$f":"IF(Table1[[#This Row],[Housing Situation]]=\"\",\"\",IF(Table1[[#This Row],[Row number]]=1,$B$7,IF(OFFSET(C30,-1,-1)=\"\",\"\",OFFSET(C30,-1,-1)-1)))","v":""},{"$f":"IF(\nTable1[[#This Row],[Start Date]]=\"\",\n\"\",\nIF(\nTable1[[#This Row],[Housing Situation]]=\"Gap (need self-report)\",\n\"\",\nIF(\nTable1[[#This Row],[Housing Situation]]=\"\",\n\"Missing\",\nIF(\nOR(\nAND(OR(Table1[[#This Row],[Housing Situation]]=\"Hospital / Psych / Detox\",Table1[[#This Row],[Housing Situation]]=\"Jail / Prison\",Table1[[#This Row],[Housing Situation]]=\"Foster Care / Group Home\"),(Table1[[#This Row],[End Date]]-Table1[[#This Row],[Start Date]])>=90),\nAND(OR(Table1[[#This Row],[Housing Situation]]=\"Apt / House (rented or owned)\",Table1[[#This Row],[Housing Situation]]=\"Friend / Family\",Table1[[#This Row],[Housing Situation]]=\"Self-paid Hotel / Halfway house\",Table1[[#This Row],[Housing Situation]]=\"Transitional Housing\"),(Table1[[#This Row],[End Date]]-Table1[[#This Row],[Start Date]])>=7)),\n0,\nIF(\nOR(Table1[[#This Row],[Housing Situation]]=\"ES / SH / Agency-paid Hotel\",Table1[[#This Row],[Housing Situation]]=\"Place not meant for habitation\",Table1[[#This Row],[Housing Situation]]=\"Gap (presumed homeless)\"),\n((Table1[[#This Row],[End Date]]+1)-Table1[[#This Row],[Start Date]])/(365/12),\nIF(\nAND(\nNOT(OR(Table1[[#This Row],[Housing Situation]]=\"ES / SH / Agency-paid Hotel\",Table1[[#This Row],[Housing Situation]]=\"Place not meant for habitation\",Table1[[#This Row],[Housing Situation]]=\"Gap (presumed homeless)\")),\nOR(OFFSET(Table1[[#This Row],[Housing Situation]],1,0)=\"ES / SH / Agency-paid Hotel\",OFFSET(Table1[[#This Row],[Housing Situation]],1,0)=\"Place not meant for habitation\",Table1[[#This Row],[Housing Situation]]=\"Gap (presumed homeless)\")),\n((Table1[[#This Row],[End Date]]+1)-Table1[[#This Row],[Start Date]])/(365/12),\n0))))))","v":""},null,{"$f":"IF(Table1[[#This Row],[Housing Situation]]=\"\",\"\",IF(Table1[[#This Row],[Housing Situation Category]]=\"Not_Homeless_Documentation_Source\",\"N/A\",\"\"))","v":""},{"$f":"IF(Table1[[#This Row],[Housing Situation]]=\"\",\"\",IF(Table1[[#This Row],[Housing Situation Category]]=\"Not_Homeless_Documentation_Source\",\"N/A\",\"\"))","v":""},null,{"$f":"IF(OFFSET(Table1[[#This Row],[Months Homeless]],1,0)=\"\",0,IF(AND(Table1[[#This Row],[Months Homeless]]=0,OFFSET(Table1[[#This Row],[Months Homeless]],1,0)>0),1,0))","v":0},{"$f":"IF(\nTable1[[#This Row],[Row number]]=1,\n1,\nIF(OFFSET(Table1[[#This Row],[Months Homeless]],1,0)=\"\",\nINDIRECT(ADDRESS(ROW()-1,COLUMN())),\nIF(\nAND(\nTable1[[#This Row],[Months Homeless]]=0,\nOFFSET(Table1[[#This Row],[Months Homeless]],1,0)>0),\nINDIRECT(ADDRESS(ROW()-1,COLUMN()))+1,\nINDIRECT(ADDRESS(ROW()-1,COLUMN()))\n)\n)\n)","v":1},{"$f":"IF(OR(Table1[[#This Row],[Housing Situation]]=\"\",Table1[[#This Row],[Housing Situation]]=\"Gap (need self-report)\"),\"\",IF(Table1[[#This Row],[Months Homeless]]=\"Missing\",\"No\",IF(AND(Table1[[#This Row],[Housing Situation]]=\"Gap (presumed homeless)\",COUNTA(B30,C30)-(COUNTA(F30,G30)-COUNTBLANK(F30:G30))=0),\"Yes\",IF((COUNTA(B30,C30,E30)-(COUNTA(F30,G30)-COUNTBLANK(F30:G30))=1),\"Yes\",\"No\"))))","v":""},{"$f":"IF(Table1[[#This Row],[Row Complete?]]=\"No\",Table1[[#This Row],[Row number]]+10,\"\")","v":""},{"$f":"ROW(Table1[#This Row])-ROW(Table1[[#Headers], [Housing Situation]])","v":20},{"$f":"IF(ISERROR(_xlfn.DAYS(Table1[[#This Row],[End Date]],Table1[[#This Row],[Start Date]])),\"\",_xlfn.DAYS(Table1[[#This Row],[End Date]],Table1[[#This Row],[Start Date]]))","v":""},{"$f":"IF(Table1[[#This Row],[Housing Situation]]=\"\",\"\",IF(Table1[[#This Row],[Housing Situation]]=Picklists!$A$11,Picklists!$B$1,IF(Table1[[#This Row],[Housing Situation]]=Picklists!$A$2,Picklists!$B$1,IF(Table1[[#This Row],[Housing Situation]]=Picklists!$A$3,Picklists!$B$1,IF(Table1[[#This Row],[Housing Situation]]=Picklists!$A$12,Picklists!$B$1,Picklists!$C$1)))))","v":""},{"$f":"IF(Table1[[#This Row],[Housing Situation Category]]=\"\",\"\",IF(Table1[[#This Row],[Housing Situation Category]]=Picklists!$B$1,Picklists!$D$1,Picklists!$E$1))","v":""}]
[null,null,{"$f":"IF(Table1[[#This Row],[Housing Situation]]=\"\",\"\",IF(Table1[[#This Row],[Row number]]=1,$B$7,IF(OFFSET(C31,-1,-1)=\"\",\"\",OFFSET(C31,-1,-1)-1)))","v":""},{"$f":"IF(\nTable1[[#This Row],[Start Date]]=\"\",\n\"\",\nIF(\nTable1[[#This Row],[Housing Situation]]=\"Gap (need self-report)\",\n\"\",\nIF(\nTable1[[#This Row],[Housing Situation]]=\"\",\n\"Missing\",\nIF(\nOR(\nAND(OR(Table1[[#This Row],[Housing Situation]]=\"Hospital / Psych / Detox\",Table1[[#This Row],[Housing Situation]]=\"Jail / Prison\",Table1[[#This Row],[Housing Situation]]=\"Foster Care / Group Home\"),(Table1[[#This Row],[End Date]]-Table1[[#This Row],[Start Date]])>=90),\nAND(OR(Table1[[#This Row],[Housing Situation]]=\"Apt / House (rented or owned)\",Table1[[#This Row],[Housing Situation]]=\"Friend / Family\",Table1[[#This Row],[Housing Situation]]=\"Self-paid Hotel / Halfway house\",Table1[[#This Row],[Housing Situation]]=\"Transitional Housing\"),(Table1[[#This Row],[End Date]]-Table1[[#This Row],[Start Date]])>=7)),\n0,\nIF(\nOR(Table1[[#This Row],[Housing Situation]]=\"ES / SH / Agency-paid Hotel\",Table1[[#This Row],[Housing Situation]]=\"Place not meant for habitation\",Table1[[#This Row],[Housing Situation]]=\"Gap (presumed homeless)\"),\n((Table1[[#This Row],[End Date]]+1)-Table1[[#This Row],[Start Date]])/(365/12),\nIF(\nAND(\nNOT(OR(Table1[[#This Row],[Housing Situation]]=\"ES / SH / Agency-paid Hotel\",Table1[[#This Row],[Housing Situation]]=\"Place not meant for habitation\",Table1[[#This Row],[Housing Situation]]=\"Gap (presumed homeless)\")),\nOR(OFFSET(Table1[[#This Row],[Housing Situation]],1,0)=\"ES / SH / Agency-paid Hotel\",OFFSET(Table1[[#This Row],[Housing Situation]],1,0)=\"Place not meant for habitation\",Table1[[#This Row],[Housing Situation]]=\"Gap (presumed homeless)\")),\n((Table1[[#This Row],[End Date]]+1)-Table1[[#This Row],[Start Date]])/(365/12),\n0))))))","v":""},null,{"$f":"IF(Table1[[#This Row],[Housing Situation]]=\"\",\"\",IF(Table1[[#This Row],[Housing Situation Category]]=\"Not_Homeless_Documentation_Source\",\"N/A\",\"\"))","v":""},{"$f":"IF(Table1[[#This Row],[Housing Situation]]=\"\",\"\",IF(Table1[[#This Row],[Housing Situation Category]]=\"Not_Homeless_Documentation_Source\",\"N/A\",\"\"))","v":""},null,{"$f":"IF(OFFSET(Table1[[#This Row],[Months Homeless]],1,0)=\"\",0,IF(AND(Table1[[#This Row],[Months Homeless]]=0,OFFSET(Table1[[#This Row],[Months Homeless]],1,0)>0),1,0))","v":0},{"$f":"IF(\nTable1[[#This Row],[Row number]]=1,\n1,\nIF(OFFSET(Table1[[#This Row],[Months Homeless]],1,0)=\"\",\nINDIRECT(ADDRESS(ROW()-1,COLUMN())),\nIF(\nAND(\nTable1[[#This Row],[Months Homeless]]=0,\nOFFSET(Table1[[#This Row],[Months Homeless]],1,0)>0),\nINDIRECT(ADDRESS(ROW()-1,COLUMN()))+1,\nINDIRECT(ADDRESS(ROW()-1,COLUMN()))\n)\n)\n)","v":1},{"$f":"IF(OR(Table1[[#This Row],[Housing Situation]]=\"\",Table1[[#This Row],[Housing Situation]]=\"Gap (need self-report)\"),\"\",IF(Table1[[#This Row],[Months Homeless]]=\"Missing\",\"No\",IF(AND(Table1[[#This Row],[Housing Situation]]=\"Gap (presumed homeless)\",COUNTA(B31,C31)-(COUNTA(F31,G31)-COUNTBLANK(F31:G31))=0),\"Yes\",IF((COUNTA(B31,C31,E31)-(COUNTA(F31,G31)-COUNTBLANK(F31:G31))=1),\"Yes\",\"No\"))))","v":""},{"$f":"IF(Table1[[#This Row],[Row Complete?]]=\"No\",Table1[[#This Row],[Row number]]+10,\"\")","v":""},{"$f":"ROW(Table1[#This Row])-ROW(Table1[[#Headers], [Housing Situation]])","v":21},{"$f":"IF(ISERROR(_xlfn.DAYS(Table1[[#This Row],[End Date]],Table1[[#This Row],[Start Date]])),\"\",_xlfn.DAYS(Table1[[#This Row],[End Date]],Table1[[#This Row],[Start Date]]))","v":""},{"$f":"IF(Table1[[#This Row],[Housing Situation]]=\"\",\"\",IF(Table1[[#This Row],[Housing Situation]]=Picklists!$A$11,Picklists!$B$1,IF(Table1[[#This Row],[Housing Situation]]=Picklists!$A$2,Picklists!$B$1,IF(Table1[[#This Row],[Housing Situation]]=Picklists!$A$3,Picklists!$B$1,IF(Table1[[#This Row],[Housing Situation]]=Picklists!$A$12,Picklists!$B$1,Picklists!$C$1)))))","v":""},{"$f":"IF(Table1[[#This Row],[Housing Situation Category]]=\"\",\"\",IF(Table1[[#This Row],[Housing Situation Category]]=Picklists!$B$1,Picklists!$D$1,Picklists!$E$1))","v":""}]
[null,null,{"$f":"IF(Table1[[#This Row],[Housing Situation]]=\"\",\"\",IF(Table1[[#This Row],[Row number]]=1,$B$7,IF(OFFSET(C32,-1,-1)=\"\",\"\",OFFSET(C32,-1,-1)-1)))","v":""},{"$f":"IF(\nTable1[[#This Row],[Start Date]]=\"\",\n\"\",\nIF(\nTable1[[#This Row],[Housing Situation]]=\"Gap (need self-report)\",\n\"\",\nIF(\nTable1[[#This Row],[Housing Situation]]=\"\",\n\"Missing\",\nIF(\nOR(\nAND(OR(Table1[[#This Row],[Housing Situation]]=\"Hospital / Psych / Detox\",Table1[[#This Row],[Housing Situation]]=\"Jail / Prison\",Table1[[#This Row],[Housing Situation]]=\"Foster Care / Group Home\"),(Table1[[#This Row],[End Date]]-Table1[[#This Row],[Start Date]])>=90),\nAND(OR(Table1[[#This Row],[Housing Situation]]=\"Apt / House (rented or owned)\",Table1[[#This Row],[Housing Situation]]=\"Friend / Family\",Table1[[#This Row],[Housing Situation]]=\"Self-paid Hotel / Halfway house\",Table1[[#This Row],[Housing Situation]]=\"Transitional Housing\"),(Table1[[#This Row],[End Date]]-Table1[[#This Row],[Start Date]])>=7)),\n0,\nIF(\nOR(Table1[[#This Row],[Housing Situation]]=\"ES / SH / Agency-paid Hotel\",Table1[[#This Row],[Housing Situation]]=\"Place not meant for habitation\",Table1[[#This Row],[Housing Situation]]=\"Gap (presumed homeless)\"),\n((Table1[[#This Row],[End Date]]+1)-Table1[[#This Row],[Start Date]])/(365/12),\nIF(\nAND(\nNOT(OR(Table1[[#This Row],[Housing Situation]]=\"ES / SH / Agency-paid Hotel\",Table1[[#This Row],[Housing Situation]]=\"Place not meant for habitation\",Table1[[#This Row],[Housing Situation]]=\"Gap (presumed homeless)\")),\nOR(OFFSET(Table1[[#This Row],[Housing Situation]],1,0)=\"ES / SH / Agency-paid Hotel\",OFFSET(Table1[[#This Row],[Housing Situation]],1,0)=\"Place not meant for habitation\",Table1[[#This Row],[Housing Situation]]=\"Gap (presumed homeless)\")),\n((Table1[[#This Row],[End Date]]+1)-Table1[[#This Row],[Start Date]])/(365/12),\n0))))))","v":""},null,{"$f":"IF(Table1[[#This Row],[Housing Situation]]=\"\",\"\",IF(Table1[[#This Row],[Housing Situation Category]]=\"Not_Homeless_Documentation_Source\",\"N/A\",\"\"))","v":""},{"$f":"IF(Table1[[#This Row],[Housing Situation]]=\"\",\"\",IF(Table1[[#This Row],[Housing Situation Category]]=\"Not_Homeless_Documentation_Source\",\"N/A\",\"\"))","v":""},null,{"$f":"IF(OFFSET(Table1[[#This Row],[Months Homeless]],1,0)=\"\",0,IF(AND(Table1[[#This Row],[Months Homeless]]=0,OFFSET(Table1[[#This Row],[Months Homeless]],1,0)>0),1,0))","v":0},{"$f":"IF(\nTable1[[#This Row],[Row number]]=1,\n1,\nIF(OFFSET(Table1[[#This Row],[Months Homeless]],1,0)=\"\",\nINDIRECT(ADDRESS(ROW()-1,COLUMN())),\nIF(\nAND(\nTable1[[#This Row],[Months Homeless]]=0,\nOFFSET(Table1[[#This Row],[Months Homeless]],1,0)>0),\nINDIRECT(ADDRESS(ROW()-1,COLUMN()))+1,\nINDIRECT(ADDRESS(ROW()-1,COLUMN()))\n)\n)\n)","v":1},{"$f":"IF(OR(Table1[[#This Row],[Housing Situation]]=\"\",Table1[[#This Row],[Housing Situation]]=\"Gap (need self-report)\"),\"\",IF(Table1[[#This Row],[Months Homeless]]=\"Missing\",\"No\",IF(AND(Table1[[#This Row],[Housing Situation]]=\"Gap (presumed homeless)\",COUNTA(B32,C32)-(COUNTA(F32,G32)-COUNTBLANK(F32:G32))=0),\"Yes\",IF((COUNTA(B32,C32,E32)-(COUNTA(F32,G32)-COUNTBLANK(F32:G32))=1),\"Yes\",\"No\"))))","v":""},{"$f":"IF(Table1[[#This Row],[Row Complete?]]=\"No\",Table1[[#This Row],[Row number]]+10,\"\")","v":""},{"$f":"ROW(Table1[#This Row])-ROW(Table1[[#Headers], [Housing Situation]])","v":22},{"$f":"IF(ISERROR(_xlfn.DAYS(Table1[[#This Row],[End Date]],Table1[[#This Row],[Start Date]])),\"\",_xlfn.DAYS(Table1[[#This Row],[End Date]],Table1[[#This Row],[Start Date]]))","v":""},{"$f":"IF(Table1[[#This Row],[Housing Situation]]=\"\",\"\",IF(Table1[[#This Row],[Housing Situation]]=Picklists!$A$11,Picklists!$B$1,IF(Table1[[#This Row],[Housing Situation]]=Picklists!$A$2,Picklists!$B$1,IF(Table1[[#This Row],[Housing Situation]]=Picklists!$A$3,Picklists!$B$1,IF(Table1[[#This Row],[Housing Situation]]=Picklists!$A$12,Picklists!$B$1,Picklists!$C$1)))))","v":""},{"$f":"IF(Table1[[#This Row],[Housing Situation Category]]=\"\",\"\",IF(Table1[[#This Row],[Housing Situation Category]]=Picklists!$B$1,Picklists!$D$1,Picklists!$E$1))","v":""}]
[null,null,{"$f":"IF(Table1[[#This Row],[Housing Situation]]=\"\",\"\",IF(Table1[[#This Row],[Row number]]=1,$B$7,IF(OFFSET(C33,-1,-1)=\"\",\"\",OFFSET(C33,-1,-1)-1)))","v":""},{"$f":"IF(\nTable1[[#This Row],[Start Date]]=\"\",\n\"\",\nIF(\nTable1[[#This Row],[Housing Situation]]=\"Gap (need self-report)\",\n\"\",\nIF(\nTable1[[#This Row],[Housing Situation]]=\"\",\n\"Missing\",\nIF(\nOR(\nAND(OR(Table1[[#This Row],[Housing Situation]]=\"Hospital / Psych / Detox\",Table1[[#This Row],[Housing Situation]]=\"Jail / Prison\",Table1[[#This Row],[Housing Situation]]=\"Foster Care / Group Home\"),(Table1[[#This Row],[End Date]]-Table1[[#This Row],[Start Date]])>=90),\nAND(OR(Table1[[#This Row],[Housing Situation]]=\"Apt / House (rented or owned)\",Table1[[#This Row],[Housing Situation]]=\"Friend / Family\",Table1[[#This Row],[Housing Situation]]=\"Self-paid Hotel / Halfway house\",Table1[[#This Row],[Housing Situation]]=\"Transitional Housing\"),(Table1[[#This Row],[End Date]]-Table1[[#This Row],[Start Date]])>=7)),\n0,\nIF(\nOR(Table1[[#This Row],[Housing Situation]]=\"ES / SH / Agency-paid Hotel\",Table1[[#This Row],[Housing Situation]]=\"Place not meant for habitation\",Table1[[#This Row],[Housing Situation]]=\"Gap (presumed homeless)\"),\n((Table1[[#This Row],[End Date]]+1)-Table1[[#This Row],[Start Date]])/(365/12),\nIF(\nAND(\nNOT(OR(Table1[[#This Row],[Housing Situation]]=\"ES / SH / Agency-paid Hotel\",Table1[[#This Row],[Housing Situation]]=\"Place not meant for habitation\",Table1[[#This Row],[Housing Situation]]=\"Gap (presumed homeless)\")),\nOR(OFFSET(Table1[[#This Row],[Housing Situation]],1,0)=\"ES / SH / Agency-paid Hotel\",OFFSET(Table1[[#This Row],[Housing Situation]],1,0)=\"Place not meant for habitation\",Table1[[#This Row],[Housing Situation]]=\"Gap (presumed homeless)\")),\n((Table1[[#This Row],[End Date]]+1)-Table1[[#This Row],[Start Date]])/(365/12),\n0))))))","v":""},null,{"$f":"IF(Table1[[#This Row],[Housing Situation]]=\"\",\"\",IF(Table1[[#This Row],[Housing Situation Category]]=\"Not_Homeless_Documentation_Source\",\"N/A\",\"\"))","v":""},{"$f":"IF(Table1[[#This Row],[Housing Situation]]=\"\",\"\",IF(Table1[[#This Row],[Housing Situation Category]]=\"Not_Homeless_Documentation_Source\",\"N/A\",\"\"))","v":""},null,{"$f":"IF(OFFSET(Table1[[#This Row],[Months Homeless]],1,0)=\"\",0,IF(AND(Table1[[#This Row],[Months Homeless]]=0,OFFSET(Table1[[#This Row],[Months Homeless]],1,0)>0),1,0))","v":0},{"$f":"IF(\nTable1[[#This Row],[Row number]]=1,\n1,\nIF(OFFSET(Table1[[#This Row],[Months Homeless]],1,0)=\"\",\nINDIRECT(ADDRESS(ROW()-1,COLUMN())),\nIF(\nAND(\nTable1[[#This Row],[Months Homeless]]=0,\nOFFSET(Table1[[#This Row],[Months Homeless]],1,0)>0),\nINDIRECT(ADDRESS(ROW()-1,COLUMN()))+1,\nINDIRECT(ADDRESS(ROW()-1,COLUMN()))\n)\n)\n)","v":1},{"$f":"IF(OR(Table1[[#This Row],[Housing Situation]]=\"\",Table1[[#This Row],[Housing Situation]]=\"Gap (need self-report)\"),\"\",IF(Table1[[#This Row],[Months Homeless]]=\"Missing\",\"No\",IF(AND(Table1[[#This Row],[Housing Situation]]=\"Gap (presumed homeless)\",COUNTA(B33,C33)-(COUNTA(F33,G33)-COUNTBLANK(F33:G33))=0),\"Yes\",IF((COUNTA(B33,C33,E33)-(COUNTA(F33,G33)-COUNTBLANK(F33:G33))=1),\"Yes\",\"No\"))))","v":""},{"$f":"IF(Table1[[#This Row],[Row Complete?]]=\"No\",Table1[[#This Row],[Row number]]+10,\"\")","v":""},{"$f":"ROW(Table1[#This Row])-ROW(Table1[[#Headers], [Housing Situation]])","v":23},{"$f":"IF(ISERROR(_xlfn.DAYS(Table1[[#This Row],[End Date]],Table1[[#This Row],[Start Date]])),\"\",_xlfn.DAYS(Table1[[#This Row],[End Date]],Table1[[#This Row],[Start Date]]))","v":""},{"$f":"IF(Table1[[#This Row],[Housing Situation]]=\"\",\"\",IF(Table1[[#This Row],[Housing Situation]]=Picklists!$A$11,Picklists!$B$1,IF(Table1[[#This Row],[Housing Situation]]=Picklists!$A$2,Picklists!$B$1,IF(Table1[[#This Row],[Housing Situation]]=Picklists!$A$3,Picklists!$B$1,IF(Table1[[#This Row],[Housing Situation]]=Picklists!$A$12,Picklists!$B$1,Picklists!$C$1)))))","v":""},{"$f":"IF(Table1[[#This Row],[Housing Situation Category]]=\"\",\"\",IF(Table1[[#This Row],[Housing Situation Category]]=Picklists!$B$1,Picklists!$D$1,Picklists!$E$1))","v":""}]
[null,null,{"$f":"IF(Table1[[#This Row],[Housing Situation]]=\"\",\"\",IF(Table1[[#This Row],[Row number]]=1,$B$7,IF(OFFSET(C34,-1,-1)=\"\",\"\",OFFSET(C34,-1,-1)-1)))","v":""},{"$f":"IF(\nTable1[[#This Row],[Start Date]]=\"\",\n\"\",\nIF(\nTable1[[#This Row],[Housing Situation]]=\"Gap (need self-report)\",\n\"\",\nIF(\nTable1[[#This Row],[Housing Situation]]=\"\",\n\"Missing\",\nIF(\nOR(\nAND(OR(Table1[[#This Row],[Housing Situation]]=\"Hospital / Psych / Detox\",Table1[[#This Row],[Housing Situation]]=\"Jail / Prison\",Table1[[#This Row],[Housing Situation]]=\"Foster Care / Group Home\"),(Table1[[#This Row],[End Date]]-Table1[[#This Row],[Start Date]])>=90),\nAND(OR(Table1[[#This Row],[Housing Situation]]=\"Apt / House (rented or owned)\",Table1[[#This Row],[Housing Situation]]=\"Friend / Family\",Table1[[#This Row],[Housing Situation]]=\"Self-paid Hotel / Halfway house\",Table1[[#This Row],[Housing Situation]]=\"Transitional Housing\"),(Table1[[#This Row],[End Date]]-Table1[[#This Row],[Start Date]])>=7)),\n0,\nIF(\nOR(Table1[[#This Row],[Housing Situation]]=\"ES / SH / Agency-paid Hotel\",Table1[[#This Row],[Housing Situation]]=\"Place not meant for habitation\",Table1[[#This Row],[Housing Situation]]=\"Gap (presumed homeless)\"),\n((Table1[[#This Row],[End Date]]+1)-Table1[[#This Row],[Start Date]])/(365/12),\nIF(\nAND(\nNOT(OR(Table1[[#This Row],[Housing Situation]]=\"ES / SH / Agency-paid Hotel\",Table1[[#This Row],[Housing Situation]]=\"Place not meant for habitation\",Table1[[#This Row],[Housing Situation]]=\"Gap (presumed homeless)\")),\nOR(OFFSET(Table1[[#This Row],[Housing Situation]],1,0)=\"ES / SH / Agency-paid Hotel\",OFFSET(Table1[[#This Row],[Housing Situation]],1,0)=\"Place not meant for habitation\",Table1[[#This Row],[Housing Situation]]=\"Gap (presumed homeless)\")),\n((Table1[[#This Row],[End Date]]+1)-Table1[[#This Row],[Start Date]])/(365/12),\n0))))))","v":""},null,{"$f":"IF(Table1[[#This Row],[Housing Situation]]=\"\",\"\",IF(Table1[[#This Row],[Housing Situation Category]]=\"Not_Homeless_Documentation_Source\",\"N/A\",\"\"))","v":""},{"$f":"IF(Table1[[#This Row],[Housing Situation]]=\"\",\"\",IF(Table1[[#This Row],[Housing Situation Category]]=\"Not_Homeless_Documentation_Source\",\"N/A\",\"\"))","v":""},null,{"$f":"IF(OFFSET(Table1[[#This Row],[Months Homeless]],1,0)=\"\",0,IF(AND(Table1[[#This Row],[Months Homeless]]=0,OFFSET(Table1[[#This Row],[Months Homeless]],1,0)>0),1,0))","v":0},{"$f":"IF(\nTable1[[#This Row],[Row number]]=1,\n1,\nIF(OFFSET(Table1[[#This Row],[Months Homeless]],1,0)=\"\",\nINDIRECT(ADDRESS(ROW()-1,COLUMN())),\nIF(\nAND(\nTable1[[#This Row],[Months Homeless]]=0,\nOFFSET(Table1[[#This Row],[Months Homeless]],1,0)>0),\nINDIRECT(ADDRESS(ROW()-1,COLUMN()))+1,\nINDIRECT(ADDRESS(ROW()-1,COLUMN()))\n)\n)\n)","v":1},{"$f":"IF(OR(Table1[[#This Row],[Housing Situation]]=\"\",Table1[[#This Row],[Housing Situation]]=\"Gap (need self-report)\"),\"\",IF(Table1[[#This Row],[Months Homeless]]=\"Missing\",\"No\",IF(AND(Table1[[#This Row],[Housing Situation]]=\"Gap (presumed homeless)\",COUNTA(B34,C34)-(COUNTA(F34,G34)-COUNTBLANK(F34:G34))=0),\"Yes\",IF((COUNTA(B34,C34,E34)-(COUNTA(F34,G34)-COUNTBLANK(F34:G34))=1),\"Yes\",\"No\"))))","v":""},{"$f":"IF(Table1[[#This Row],[Row Complete?]]=\"No\",Table1[[#This Row],[Row number]]+10,\"\")","v":""},{"$f":"ROW(Table1[#This Row])-ROW(Table1[[#Headers], [Housing Situation]])","v":24},{"$f":"IF(ISERROR(_xlfn.DAYS(Table1[[#This Row],[End Date]],Table1[[#This Row],[Start Date]])),\"\",_xlfn.DAYS(Table1[[#This Row],[End Date]],Table1[[#This Row],[Start Date]]))","v":""},{"$f":"IF(Table1[[#This Row],[Housing Situation]]=\"\",\"\",IF(Table1[[#This Row],[Housing Situation]]=Picklists!$A$11,Picklists!$B$1,IF(Table1[[#This Row],[Housing Situation]]=Picklists!$A$2,Picklists!$B$1,IF(Table1[[#This Row],[Housing Situation]]=Picklists!$A$3,Picklists!$B$1,IF(Table1[[#This Row],[Housing Situation]]=Picklists!$A$12,Picklists!$B$1,Picklists!$C$1)))))","v":""},{"$f":"IF(Table1[[#This Row],[Housing Situation Category]]=\"\",\"\",IF(Table1[[#This Row],[Housing Situation Category]]=Picklists!$B$1,Picklists!$D$1,Picklists!$E$1))","v":""}]
[null,null,{"$f":"IF(Table1[[#This Row],[Housing Situation]]=\"\",\"\",IF(Table1[[#This Row],[Row number]]=1,$B$7,IF(OFFSET(C35,-1,-1)=\"\",\"\",OFFSET(C35,-1,-1)-1)))","v":""},{"$f":"IF(\nTable1[[#This Row],[Start Date]]=\"\",\n\"\",\nIF(\nTable1[[#This Row],[Housing Situation]]=\"Gap (need self-report)\",\n\"\",\nIF(\nTable1[[#This Row],[Housing Situation]]=\"\",\n\"Missing\",\nIF(\nOR(\nAND(OR(Table1[[#This Row],[Housing Situation]]=\"Hospital / Psych / Detox\",Table1[[#This Row],[Housing Situation]]=\"Jail / Prison\",Table1[[#This Row],[Housing Situation]]=\"Foster Care / Group Home\"),(Table1[[#This Row],[End Date]]-Table1[[#This Row],[Start Date]])>=90),\nAND(OR(Table1[[#This Row],[Housing Situation]]=\"Apt / House (rented or owned)\",Table1[[#This Row],[Housing Situation]]=\"Friend / Family\",Table1[[#This Row],[Housing Situation]]=\"Self-paid Hotel / Halfway house\",Table1[[#This Row],[Housing Situation]]=\"Transitional Housing\"),(Table1[[#This Row],[End Date]]-Table1[[#This Row],[Start Date]])>=7)),\n0,\nIF(\nOR(Table1[[#This Row],[Housing Situation]]=\"ES / SH / Agency-paid Hotel\",Table1[[#This Row],[Housing Situation]]=\"Place not meant for habitation\",Table1[[#This Row],[Housing Situation]]=\"Gap (presumed homeless)\"),\n((Table1[[#This Row],[End Date]]+1)-Table1[[#This Row],[Start Date]])/(365/12),\nIF(\nAND(\nNOT(OR(Table1[[#This Row],[Housing Situation]]=\"ES / SH / Agency-paid Hotel\",Table1[[#This Row],[Housing Situation]]=\"Place not meant for habitation\",Table1[[#This Row],[Housing Situation]]=\"Gap (presumed homeless)\")),\nOR(OFFSET(Table1[[#This Row],[Housing Situation]],1,0)=\"ES / SH / Agency-paid Hotel\",OFFSET(Table1[[#This Row],[Housing Situation]],1,0)=\"Place not meant for habitation\",Table1[[#This Row],[Housing Situation]]=\"Gap (presumed homeless)\")),\n((Table1[[#This Row],[End Date]]+1)-Table1[[#This Row],[Start Date]])/(365/12),\n0))))))","v":""},null,{"$f":"IF(Table1[[#This Row],[Housing Situation]]=\"\",\"\",IF(Table1[[#This Row],[Housing Situation Category]]=\"Not_Homeless_Documentation_Source\",\"N/A\",\"\"))","v":""},{"$f":"IF(Table1[[#This Row],[Housing Situation]]=\"\",\"\",IF(Table1[[#This Row],[Housing Situation Category]]=\"Not_Homeless_Documentation_Source\",\"N/A\",\"\"))","v":""},null,{"$f":"IF(OFFSET(Table1[[#This Row],[Months Homeless]],1,0)=\"\",0,IF(AND(Table1[[#This Row],[Months Homeless]]=0,OFFSET(Table1[[#This Row],[Months Homeless]],1,0)>0),1,0))","v":0},{"$f":"IF(\nTable1[[#This Row],[Row number]]=1,\n1,\nIF(OFFSET(Table1[[#This Row],[Months Homeless]],1,0)=\"\",\nINDIRECT(ADDRESS(ROW()-1,COLUMN())),\nIF(\nAND(\nTable1[[#This Row],[Months Homeless]]=0,\nOFFSET(Table1[[#This Row],[Months Homeless]],1,0)>0),\nINDIRECT(ADDRESS(ROW()-1,COLUMN()))+1,\nINDIRECT(ADDRESS(ROW()-1,COLUMN()))\n)\n)\n)","v":1},{"$f":"IF(OR(Table1[[#This Row],[Housing Situation]]=\"\",Table1[[#This Row],[Housing Situation]]=\"Gap (need self-report)\"),\"\",IF(Table1[[#This Row],[Months Homeless]]=\"Missing\",\"No\",IF(AND(Table1[[#This Row],[Housing Situation]]=\"Gap (presumed homeless)\",COUNTA(B35,C35)-(COUNTA(F35,G35)-COUNTBLANK(F35:G35))=0),\"Yes\",IF((COUNTA(B35,C35,E35)-(COUNTA(F35,G35)-COUNTBLANK(F35:G35))=1),\"Yes\",\"No\"))))","v":""},{"$f":"IF(Table1[[#This Row],[Row Complete?]]=\"No\",Table1[[#This Row],[Row number]]+10,\"\")","v":""},{"$f":"ROW(Table1[#This Row])-ROW(Table1[[#Headers], [Housing Situation]])","v":25},{"$f":"IF(ISERROR(_xlfn.DAYS(Table1[[#This Row],[End Date]],Table1[[#This Row],[Start Date]])),\"\",_xlfn.DAYS(Table1[[#This Row],[End Date]],Table1[[#This Row],[Start Date]]))","v":""},{"$f":"IF(Table1[[#This Row],[Housing Situation]]=\"\",\"\",IF(Table1[[#This Row],[Housing Situation]]=Picklists!$A$11,Picklists!$B$1,IF(Table1[[#This Row],[Housing Situation]]=Picklists!$A$2,Picklists!$B$1,IF(Table1[[#This Row],[Housing Situation]]=Picklists!$A$3,Picklists!$B$1,IF(Table1[[#This Row],[Housing Situation]]=Picklists!$A$12,Picklists!$B$1,Picklists!$C$1)))))","v":""},{"$f":"IF(Table1[[#This Row],[Housing Situation Category]]=\"\",\"\",IF(Table1[[#This Row],[Housing Situation Category]]=Picklists!$B$1,Picklists!$D$1,Picklists!$E$1))","v":""}]
[null,null,{"$f":"IF(Table1[[#This Row],[Housing Situation]]=\"\",\"\",IF(Table1[[#This Row],[Row number]]=1,$B$7,IF(OFFSET(C36,-1,-1)=\"\",\"\",OFFSET(C36,-1,-1)-1)))","v":""},{"$f":"IF(\nTable1[[#This Row],[Start Date]]=\"\",\n\"\",\nIF(\nTable1[[#This Row],[Housing Situation]]=\"Gap (need self-report)\",\n\"\",\nIF(\nTable1[[#This Row],[Housing Situation]]=\"\",\n\"Missing\",\nIF(\nOR(\nAND(OR(Table1[[#This Row],[Housing Situation]]=\"Hospital / Psych / Detox\",Table1[[#This Row],[Housing Situation]]=\"Jail / Prison\",Table1[[#This Row],[Housing Situation]]=\"Foster Care / Group Home\"),(Table1[[#This Row],[End Date]]-Table1[[#This Row],[Start Date]])>=90),\nAND(OR(Table1[[#This Row],[Housing Situation]]=\"Apt / House (rented or owned)\",Table1[[#This Row],[Housing Situation]]=\"Friend / Family\",Table1[[#This Row],[Housing Situation]]=\"Self-paid Hotel / Halfway house\",Table1[[#This Row],[Housing Situation]]=\"Transitional Housing\"),(Table1[[#This Row],[End Date]]-Table1[[#This Row],[Start Date]])>=7)),\n0,\nIF(\nOR(Table1[[#This Row],[Housing Situation]]=\"ES / SH / Agency-paid Hotel\",Table1[[#This Row],[Housing Situation]]=\"Place not meant for habitation\",Table1[[#This Row],[Housing Situation]]=\"Gap (presumed homeless)\"),\n((Table1[[#This Row],[End Date]]+1)-Table1[[#This Row],[Start Date]])/(365/12),\nIF(\nAND(\nNOT(OR(Table1[[#This Row],[Housing Situation]]=\"ES / SH / Agency-paid Hotel\",Table1[[#This Row],[Housing Situation]]=\"Place not meant for habitation\",Table1[[#This Row],[Housing Situation]]=\"Gap (presumed homeless)\")),\nOR(OFFSET(Table1[[#This Row],[Housing Situation]],1,0)=\"ES / SH / Agency-paid Hotel\",OFFSET(Table1[[#This Row],[Housing Situation]],1,0)=\"Place not meant for habitation\",Table1[[#This Row],[Housing Situation]]=\"Gap (presumed homeless)\")),\n((Table1[[#This Row],[End Date]]+1)-Table1[[#This Row],[Start Date]])/(365/12),\n0))))))","v":""},null,{"$f":"IF(Table1[[#This Row],[Housing Situation]]=\"\",\"\",IF(Table1[[#This Row],[Housing Situation Category]]=\"Not_Homeless_Documentation_Source\",\"N/A\",\"\"))","v":""},{"$f":"IF(Table1[[#This Row],[Housing Situation]]=\"\",\"\",IF(Table1[[#This Row],[Housing Situation Category]]=\"Not_Homeless_Documentation_Source\",\"N/A\",\"\"))","v":""},null,{"$f":"IF(OFFSET(Table1[[#This Row],[Months Homeless]],1,0)=\"\",0,IF(AND(Table1[[#This Row],[Months Homeless]]=0,OFFSET(Table1[[#This Row],[Months Homeless]],1,0)>0),1,0))","v":0},{"$f":"IF(\nTable1[[#This Row],[Row number]]=1,\n1,\nIF(OFFSET(Table1[[#This Row],[Months Homeless]],1,0)=\"\",\nINDIRECT(ADDRESS(ROW()-1,COLUMN())),\nIF(\nAND(\nTable1[[#This Row],[Months Homeless]]=0,\nOFFSET(Table1[[#This Row],[Months Homeless]],1,0)>0),\nINDIRECT(ADDRESS(ROW()-1,COLUMN()))+1,\nINDIRECT(ADDRESS(ROW()-1,COLUMN()))\n)\n)\n)","v":1},{"$f":"IF(OR(Table1[[#This Row],[Housing Situation]]=\"\",Table1[[#This Row],[Housing Situation]]=\"Gap (need self-report)\"),\"\",IF(Table1[[#This Row],[Months Homeless]]=\"Missing\",\"No\",IF(AND(Table1[[#This Row],[Housing Situation]]=\"Gap (presumed homeless)\",COUNTA(B36,C36)-(COUNTA(F36,G36)-COUNTBLANK(F36:G36))=0),\"Yes\",IF((COUNTA(B36,C36,E36)-(COUNTA(F36,G36)-COUNTBLANK(F36:G36))=1),\"Yes\",\"No\"))))","v":""},{"$f":"IF(Table1[[#This Row],[Row Complete?]]=\"No\",Table1[[#This Row],[Row number]]+10,\"\")","v":""},{"$f":"ROW(Table1[#This Row])-ROW(Table1[[#Headers], [Housing Situation]])","v":26},{"$f":"IF(ISERROR(_xlfn.DAYS(Table1[[#This Row],[End Date]],Table1[[#This Row],[Start Date]])),\"\",_xlfn.DAYS(Table1[[#This Row],[End Date]],Table1[[#This Row],[Start Date]]))","v":""},{"$f":"IF(Table1[[#This Row],[Housing Situation]]=\"\",\"\",IF(Table1[[#This Row],[Housing Situation]]=Picklists!$A$11,Picklists!$B$1,IF(Table1[[#This Row],[Housing Situation]]=Picklists!$A$2,Picklists!$B$1,IF(Table1[[#This Row],[Housing Situation]]=Picklists!$A$3,Picklists!$B$1,IF(Table1[[#This Row],[Housing Situation]]=Picklists!$A$12,Picklists!$B$1,Picklists!$C$1)))))","v":""},{"$f":"IF(Table1[[#This Row],[Housing Situation Category]]=\"\",\"\",IF(Table1[[#This Row],[Housing Situation Category]]=Picklists!$B$1,Picklists!$D$1,Picklists!$E$1))","v":""}]
[null,null,{"$f":"IF(Table1[[#This Row],[Housing Situation]]=\"\",\"\",IF(Table1[[#This Row],[Row number]]=1,$B$7,IF(OFFSET(C37,-1,-1)=\"\",\"\",OFFSET(C37,-1,-1)-1)))","v":""},{"$f":"IF(\nTable1[[#This Row],[Start Date]]=\"\",\n\"\",\nIF(\nTable1[[#This Row],[Housing Situation]]=\"Gap (need self-report)\",\n\"\",\nIF(\nTable1[[#This Row],[Housing Situation]]=\"\",\n\"Missing\",\nIF(\nOR(\nAND(OR(Table1[[#This Row],[Housing Situation]]=\"Hospital / Psych / Detox\",Table1[[#This Row],[Housing Situation]]=\"Jail / Prison\",Table1[[#This Row],[Housing Situation]]=\"Foster Care / Group Home\"),(Table1[[#This Row],[End Date]]-Table1[[#This Row],[Start Date]])>=90),\nAND(OR(Table1[[#This Row],[Housing Situation]]=\"Apt / House (rented or owned)\",Table1[[#This Row],[Housing Situation]]=\"Friend / Family\",Table1[[#This Row],[Housing Situation]]=\"Self-paid Hotel / Halfway house\",Table1[[#This Row],[Housing Situation]]=\"Transitional Housing\"),(Table1[[#This Row],[End Date]]-Table1[[#This Row],[Start Date]])>=7)),\n0,\nIF(\nOR(Table1[[#This Row],[Housing Situation]]=\"ES / SH / Agency-paid Hotel\",Table1[[#This Row],[Housing Situation]]=\"Place not meant for habitation\",Table1[[#This Row],[Housing Situation]]=\"Gap (presumed homeless)\"),\n((Table1[[#This Row],[End Date]]+1)-Table1[[#This Row],[Start Date]])/(365/12),\nIF(\nAND(\nNOT(OR(Table1[[#This Row],[Housing Situation]]=\"ES / SH / Agency-paid Hotel\",Table1[[#This Row],[Housing Situation]]=\"Place not meant for habitation\",Table1[[#This Row],[Housing Situation]]=\"Gap (presumed homeless)\")),\nOR(OFFSET(Table1[[#This Row],[Housing Situation]],1,0)=\"ES / SH / Agency-paid Hotel\",OFFSET(Table1[[#This Row],[Housing Situation]],1,0)=\"Place not meant for habitation\",Table1[[#This Row],[Housing Situation]]=\"Gap (presumed homeless)\")),\n((Table1[[#This Row],[End Date]]+1)-Table1[[#This Row],[Start Date]])/(365/12),\n0))))))","v":""},null,{"$f":"IF(Table1[[#This Row],[Housing Situation]]=\"\",\"\",IF(Table1[[#This Row],[Housing Situation Category]]=\"Not_Homeless_Documentation_Source\",\"N/A\",\"\"))","v":""},{"$f":"IF(Table1[[#This Row],[Housing Situation]]=\"\",\"\",IF(Table1[[#This Row],[Housing Situation Category]]=\"Not_Homeless_Documentation_Source\",\"N/A\",\"\"))","v":""},null,{"$f":"IF(OFFSET(Table1[[#This Row],[Months Homeless]],1,0)=\"\",0,IF(AND(Table1[[#This Row],[Months Homeless]]=0,OFFSET(Table1[[#This Row],[Months Homeless]],1,0)>0),1,0))","v":0},{"$f":"IF(\nTable1[[#This Row],[Row number]]=1,\n1,\nIF(OFFSET(Table1[[#This Row],[Months Homeless]],1,0)=\"\",\nINDIRECT(ADDRESS(ROW()-1,COLUMN())),\nIF(\nAND(\nTable1[[#This Row],[Months Homeless]]=0,\nOFFSET(Table1[[#This Row],[Months Homeless]],1,0)>0),\nINDIRECT(ADDRESS(ROW()-1,COLUMN()))+1,\nINDIRECT(ADDRESS(ROW()-1,COLUMN()))\n)\n)\n)","v":1},{"$f":"IF(OR(Table1[[#This Row],[Housing Situation]]=\"\",Table1[[#This Row],[Housing Situation]]=\"Gap (need self-report)\"),\"\",IF(Table1[[#This Row],[Months Homeless]]=\"Missing\",\"No\",IF(AND(Table1[[#This Row],[Housing Situation]]=\"Gap (presumed homeless)\",COUNTA(B37,C37)-(COUNTA(F37,G37)-COUNTBLANK(F37:G37))=0),\"Yes\",IF((COUNTA(B37,C37,E37)-(COUNTA(F37,G37)-COUNTBLANK(F37:G37))=1),\"Yes\",\"No\"))))","v":""},{"$f":"IF(Table1[[#This Row],[Row Complete?]]=\"No\",Table1[[#This Row],[Row number]]+10,\"\")","v":""},{"$f":"ROW(Table1[#This Row])-ROW(Table1[[#Headers], [Housing Situation]])","v":27},{"$f":"IF(ISERROR(_xlfn.DAYS(Table1[[#This Row],[End Date]],Table1[[#This Row],[Start Date]])),\"\",_xlfn.DAYS(Table1[[#This Row],[End Date]],Table1[[#This Row],[Start Date]]))","v":""},{"$f":"IF(Table1[[#This Row],[Housing Situation]]=\"\",\"\",IF(Table1[[#This Row],[Housing Situation]]=Picklists!$A$11,Picklists!$B$1,IF(Table1[[#This Row],[Housing Situation]]=Picklists!$A$2,Picklists!$B$1,IF(Table1[[#This Row],[Housing Situation]]=Picklists!$A$3,Picklists!$B$1,IF(Table1[[#This Row],[Housing Situation]]=Picklists!$A$12,Picklists!$B$1,Picklists!$C$1)))))","v":""},{"$f":"IF(Table1[[#This Row],[Housing Situation Category]]=\"\",\"\",IF(Table1[[#This Row],[Housing Situation Category]]=Picklists!$B$1,Picklists!$D$1,Picklists!$E$1))","v":""}]
[null,null,{"$f":"IF(Table1[[#This Row],[Housing Situation]]=\"\",\"\",IF(Table1[[#This Row],[Row number]]=1,$B$7,IF(OFFSET(C38,-1,-1)=\"\",\"\",OFFSET(C38,-1,-1)-1)))","v":""},{"$f":"IF(\nTable1[[#This Row],[Start Date]]=\"\",\n\"\",\nIF(\nTable1[[#This Row],[Housing Situation]]=\"Gap (need self-report)\",\n\"\",\nIF(\nTable1[[#This Row],[Housing Situation]]=\"\",\n\"Missing\",\nIF(\nOR(\nAND(OR(Table1[[#This Row],[Housing Situation]]=\"Hospital / Psych / Detox\",Table1[[#This Row],[Housing Situation]]=\"Jail / Prison\",Table1[[#This Row],[Housing Situation]]=\"Foster Care / Group Home\"),(Table1[[#This Row],[End Date]]-Table1[[#This Row],[Start Date]])>=90),\nAND(OR(Table1[[#This Row],[Housing Situation]]=\"Apt / House (rented or owned)\",Table1[[#This Row],[Housing Situation]]=\"Friend / Family\",Table1[[#This Row],[Housing Situation]]=\"Self-paid Hotel / Halfway house\",Table1[[#This Row],[Housing Situation]]=\"Transitional Housing\"),(Table1[[#This Row],[End Date]]-Table1[[#This Row],[Start Date]])>=7)),\n0,\nIF(\nOR(Table1[[#This Row],[Housing Situation]]=\"ES / SH / Agency-paid Hotel\",Table1[[#This Row],[Housing Situation]]=\"Place not meant for habitation\",Table1[[#This Row],[Housing Situation]]=\"Gap (presumed homeless)\"),\n((Table1[[#This Row],[End Date]]+1)-Table1[[#This Row],[Start Date]])/(365/12),\nIF(\nAND(\nNOT(OR(Table1[[#This Row],[Housing Situation]]=\"ES / SH / Agency-paid Hotel\",Table1[[#This Row],[Housing Situation]]=\"Place not meant for habitation\",Table1[[#This Row],[Housing Situation]]=\"Gap (presumed homeless)\")),\nOR(OFFSET(Table1[[#This Row],[Housing Situation]],1,0)=\"ES / SH / Agency-paid Hotel\",OFFSET(Table1[[#This Row],[Housing Situation]],1,0)=\"Place not meant for habitation\",Table1[[#This Row],[Housing Situation]]=\"Gap (presumed homeless)\")),\n((Table1[[#This Row],[End Date]]+1)-Table1[[#This Row],[Start Date]])/(365/12),\n0))))))","v":""},null,{"$f":"IF(Table1[[#This Row],[Housing Situation]]=\"\",\"\",IF(Table1[[#This Row],[Housing Situation Category]]=\"Not_Homeless_Documentation_Source\",\"N/A\",\"\"))","v":""},{"$f":"IF(Table1[[#This Row],[Housing Situation]]=\"\",\"\",IF(Table1[[#This Row],[Housing Situation Category]]=\"Not_Homeless_Documentation_Source\",\"N/A\",\"\"))","v":""},null,{"$f":"IF(OFFSET(Table1[[#This Row],[Months Homeless]],1,0)=\"\",0,IF(AND(Table1[[#This Row],[Months Homeless]]=0,OFFSET(Table1[[#This Row],[Months Homeless]],1,0)>0),1,0))","v":0},{"$f":"IF(\nTable1[[#This Row],[Row number]]=1,\n1,\nIF(OFFSET(Table1[[#This Row],[Months Homeless]],1,0)=\"\",\nINDIRECT(ADDRESS(ROW()-1,COLUMN())),\nIF(\nAND(\nTable1[[#This Row],[Months Homeless]]=0,\nOFFSET(Table1[[#This Row],[Months Homeless]],1,0)>0),\nINDIRECT(ADDRESS(ROW()-1,COLUMN()))+1,\nINDIRECT(ADDRESS(ROW()-1,COLUMN()))\n)\n)\n)","v":1},{"$f":"IF(OR(Table1[[#This Row],[Housing Situation]]=\"\",Table1[[#This Row],[Housing Situation]]=\"Gap (need self-report)\"),\"\",IF(Table1[[#This Row],[Months Homeless]]=\"Missing\",\"No\",IF(AND(Table1[[#This Row],[Housing Situation]]=\"Gap (presumed homeless)\",COUNTA(B38,C38)-(COUNTA(F38,G38)-COUNTBLANK(F38:G38))=0),\"Yes\",IF((COUNTA(B38,C38,E38)-(COUNTA(F38,G38)-COUNTBLANK(F38:G38))=1),\"Yes\",\"No\"))))","v":""},{"$f":"IF(Table1[[#This Row],[Row Complete?]]=\"No\",Table1[[#This Row],[Row number]]+10,\"\")","v":""},{"$f":"ROW(Table1[#This Row])-ROW(Table1[[#Headers], [Housing Situation]])","v":28},{"$f":"IF(ISERROR(_xlfn.DAYS(Table1[[#This Row],[End Date]],Table1[[#This Row],[Start Date]])),\"\",_xlfn.DAYS(Table1[[#This Row],[End Date]],Table1[[#This Row],[Start Date]]))","v":""},{"$f":"IF(Table1[[#This Row],[Housing Situation]]=\"\",\"\",IF(Table1[[#This Row],[Housing Situation]]=Picklists!$A$11,Picklists!$B$1,IF(Table1[[#This Row],[Housing Situation]]=Picklists!$A$2,Picklists!$B$1,IF(Table1[[#This Row],[Housing Situation]]=Picklists!$A$3,Picklists!$B$1,IF(Table1[[#This Row],[Housing Situation]]=Picklists!$A$12,Picklists!$B$1,Picklists!$C$1)))))","v":""},{"$f":"IF(Table1[[#This Row],[Housing Situation Category]]=\"\",\"\",IF(Table1[[#This Row],[Housing Situation Category]]=Picklists!$B$1,Picklists!$D$1,Picklists!$E$1))","v":""}]
[null,null,{"$f":"IF(Table1[[#This Row],[Housing Situation]]=\"\",\"\",IF(Table1[[#This Row],[Row number]]=1,$B$7,IF(OFFSET(C39,-1,-1)=\"\",\"\",OFFSET(C39,-1,-1)-1)))","v":""},{"$f":"IF(\nTable1[[#This Row],[Start Date]]=\"\",\n\"\",\nIF(\nTable1[[#This Row],[Housing Situation]]=\"Gap (need self-report)\",\n\"\",\nIF(\nTable1[[#This Row],[Housing Situation]]=\"\",\n\"Missing\",\nIF(\nOR(\nAND(OR(Table1[[#This Row],[Housing Situation]]=\"Hospital / Psych / Detox\",Table1[[#This Row],[Housing Situation]]=\"Jail / Prison\",Table1[[#This Row],[Housing Situation]]=\"Foster Care / Group Home\"),(Table1[[#This Row],[End Date]]-Table1[[#This Row],[Start Date]])>=90),\nAND(OR(Table1[[#This Row],[Housing Situation]]=\"Apt / House (rented or owned)\",Table1[[#This Row],[Housing Situation]]=\"Friend / Family\",Table1[[#This Row],[Housing Situation]]=\"Self-paid Hotel / Halfway house\",Table1[[#This Row],[Housing Situation]]=\"Transitional Housing\"),(Table1[[#This Row],[End Date]]-Table1[[#This Row],[Start Date]])>=7)),\n0,\nIF(\nOR(Table1[[#This Row],[Housing Situation]]=\"ES / SH / Agency-paid Hotel\",Table1[[#This Row],[Housing Situation]]=\"Place not meant for habitation\",Table1[[#This Row],[Housing Situation]]=\"Gap (presumed homeless)\"),\n((Table1[[#This Row],[End Date]]+1)-Table1[[#This Row],[Start Date]])/(365/12),\nIF(\nAND(\nNOT(OR(Table1[[#This Row],[Housing Situation]]=\"ES / SH / Agency-paid Hotel\",Table1[[#This Row],[Housing Situation]]=\"Place not meant for habitation\",Table1[[#This Row],[Housing Situation]]=\"Gap (presumed homeless)\")),\nOR(OFFSET(Table1[[#This Row],[Housing Situation]],1,0)=\"ES / SH / Agency-paid Hotel\",OFFSET(Table1[[#This Row],[Housing Situation]],1,0)=\"Place not meant for habitation\",Table1[[#This Row],[Housing Situation]]=\"Gap (presumed homeless)\")),\n((Table1[[#This Row],[End Date]]+1)-Table1[[#This Row],[Start Date]])/(365/12),\n0))))))","v":""},null,{"$f":"IF(Table1[[#This Row],[Housing Situation]]=\"\",\"\",IF(Table1[[#This Row],[Housing Situation Category]]=\"Not_Homeless_Documentation_Source\",\"N/A\",\"\"))","v":""},{"$f":"IF(Table1[[#This Row],[Housing Situation]]=\"\",\"\",IF(Table1[[#This Row],[Housing Situation Category]]=\"Not_Homeless_Documentation_Source\",\"N/A\",\"\"))","v":""},null,{"$f":"IF(OFFSET(Table1[[#This Row],[Months Homeless]],1,0)=\"\",0,IF(AND(Table1[[#This Row],[Months Homeless]]=0,OFFSET(Table1[[#This Row],[Months Homeless]],1,0)>0),1,0))","v":0},{"$f":"IF(\nTable1[[#This Row],[Row number]]=1,\n1,\nIF(OFFSET(Table1[[#This Row],[Months Homeless]],1,0)=\"\",\nINDIRECT(ADDRESS(ROW()-1,COLUMN())),\nIF(\nAND(\nTable1[[#This Row],[Months Homeless]]=0,\nOFFSET(Table1[[#This Row],[Months Homeless]],1,0)>0),\nINDIRECT(ADDRESS(ROW()-1,COLUMN()))+1,\nINDIRECT(ADDRESS(ROW()-1,COLUMN()))\n)\n)\n)","v":1},{"$f":"IF(OR(Table1[[#This Row],[Housing Situation]]=\"\",Table1[[#This Row],[Housing Situation]]=\"Gap (need self-report)\"),\"\",IF(Table1[[#This Row],[Months Homeless]]=\"Missing\",\"No\",IF(AND(Table1[[#This Row],[Housing Situation]]=\"Gap (presumed homeless)\",COUNTA(B39,C39)-(COUNTA(F39,G39)-COUNTBLANK(F39:G39))=0),\"Yes\",IF((COUNTA(B39,C39,E39)-(COUNTA(F39,G39)-COUNTBLANK(F39:G39))=1),\"Yes\",\"No\"))))","v":""},{"$f":"IF(Table1[[#This Row],[Row Complete?]]=\"No\",Table1[[#This Row],[Row number]]+10,\"\")","v":""},{"$f":"ROW(Table1[#This Row])-ROW(Table1[[#Headers], [Housing Situation]])","v":29},{"$f":"IF(ISERROR(_xlfn.DAYS(Table1[[#This Row],[End Date]],Table1[[#This Row],[Start Date]])),\"\",_xlfn.DAYS(Table1[[#This Row],[End Date]],Table1[[#This Row],[Start Date]]))","v":""},{"$f":"IF(Table1[[#This Row],[Housing Situation]]=\"\",\"\",IF(Table1[[#This Row],[Housing Situation]]=Picklists!$A$11,Picklists!$B$1,IF(Table1[[#This Row],[Housing Situation]]=Picklists!$A$2,Picklists!$B$1,IF(Table1[[#This Row],[Housing Situation]]=Picklists!$A$3,Picklists!$B$1,IF(Table1[[#This Row],[Housing Situation]]=Picklists!$A$12,Picklists!$B$1,Picklists!$C$1)))))","v":""},{"$f":"IF(Table1[[#This Row],[Housing Situation Category]]=\"\",\"\",IF(Table1[[#This Row],[Housing Situation Category]]=Picklists!$B$1,Picklists!$D$1,Picklists!$E$1))","v":""}]
[null,null,{"$f":"IF(Table1[[#This Row],[Housing Situation]]=\"\",\"\",IF(Table1[[#This Row],[Row number]]=1,$B$7,IF(OFFSET(C40,-1,-1)=\"\",\"\",OFFSET(C40,-1,-1)-1)))","v":""},{"$f":"IF(\nTable1[[#This Row],[Start Date]]=\"\",\n\"\",\nIF(\nTable1[[#This Row],[Housing Situation]]=\"Gap (need self-report)\",\n\"\",\nIF(\nTable1[[#This Row],[Housing Situation]]=\"\",\n\"Missing\",\nIF(\nOR(\nAND(OR(Table1[[#This Row],[Housing Situation]]=\"Hospital / Psych / Detox\",Table1[[#This Row],[Housing Situation]]=\"Jail / Prison\",Table1[[#This Row],[Housing Situation]]=\"Foster Care / Group Home\"),(Table1[[#This Row],[End Date]]-Table1[[#This Row],[Start Date]])>=90),\nAND(OR(Table1[[#This Row],[Housing Situation]]=\"Apt / House (rented or owned)\",Table1[[#This Row],[Housing Situation]]=\"Friend / Family\",Table1[[#This Row],[Housing Situation]]=\"Self-paid Hotel / Halfway house\",Table1[[#This Row],[Housing Situation]]=\"Transitional Housing\"),(Table1[[#This Row],[End Date]]-Table1[[#This Row],[Start Date]])>=7)),\n0,\nIF(\nOR(Table1[[#This Row],[Housing Situation]]=\"ES / SH / Agency-paid Hotel\",Table1[[#This Row],[Housing Situation]]=\"Place not meant for habitation\",Table1[[#This Row],[Housing Situation]]=\"Gap (presumed homeless)\"),\n((Table1[[#This Row],[End Date]]+1)-Table1[[#This Row],[Start Date]])/(365/12),\nIF(\nAND(\nNOT(OR(Table1[[#This Row],[Housing Situation]]=\"ES / SH / Agency-paid Hotel\",Table1[[#This Row],[Housing Situation]]=\"Place not meant for habitation\",Table1[[#This Row],[Housing Situation]]=\"Gap (presumed homeless)\")),\nOR(OFFSET(Table1[[#This Row],[Housing Situation]],1,0)=\"ES / SH / Agency-paid Hotel\",OFFSET(Table1[[#This Row],[Housing Situation]],1,0)=\"Place not meant for habitation\",Table1[[#This Row],[Housing Situation]]=\"Gap (presumed homeless)\")),\n((Table1[[#This Row],[End Date]]+1)-Table1[[#This Row],[Start Date]])/(365/12),\n0))))))","v":""},null,{"$f":"IF(Table1[[#This Row],[Housing Situation]]=\"\",\"\",IF(Table1[[#This Row],[Housing Situation Category]]=\"Not_Homeless_Documentation_Source\",\"N/A\",\"\"))","v":""},{"$f":"IF(Table1[[#This Row],[Housing Situation]]=\"\",\"\",IF(Table1[[#This Row],[Housing Situation Category]]=\"Not_Homeless_Documentation_Source\",\"N/A\",\"\"))","v":""},null,{"$f":"IF(OFFSET(Table1[[#This Row],[Months Homeless]],1,0)=\"\",0,IF(AND(Table1[[#This Row],[Months Homeless]]=0,OFFSET(Table1[[#This Row],[Months Homeless]],1,0)>0),1,0))","v":0},{"$f":"IF(\nTable1[[#This Row],[Row number]]=1,\n1,\nIF(OFFSET(Table1[[#This Row],[Months Homeless]],1,0)=\"\",\nINDIRECT(ADDRESS(ROW()-1,COLUMN())),\nIF(\nAND(\nTable1[[#This Row],[Months Homeless]]=0,\nOFFSET(Table1[[#This Row],[Months Homeless]],1,0)>0),\nINDIRECT(ADDRESS(ROW()-1,COLUMN()))+1,\nINDIRECT(ADDRESS(ROW()-1,COLUMN()))\n)\n)\n)","v":1},{"$f":"IF(OR(Table1[[#This Row],[Housing Situation]]=\"\",Table1[[#This Row],[Housing Situation]]=\"Gap (need self-report)\"),\"\",IF(Table1[[#This Row],[Months Homeless]]=\"Missing\",\"No\",IF(AND(Table1[[#This Row],[Housing Situation]]=\"Gap (presumed homeless)\",COUNTA(B40,C40)-(COUNTA(F40,G40)-COUNTBLANK(F40:G40))=0),\"Yes\",IF((COUNTA(B40,C40,E40)-(COUNTA(F40,G40)-COUNTBLANK(F40:G40))=1),\"Yes\",\"No\"))))","v":""},{"$f":"IF(Table1[[#This Row],[Row Complete?]]=\"No\",Table1[[#This Row],[Row number]]+10,\"\")","v":""},{"$f":"ROW(Table1[#This Row])-ROW(Table1[[#Headers], [Housing Situation]])","v":30},{"$f":"IF(ISERROR(_xlfn.DAYS(Table1[[#This Row],[End Date]],Table1[[#This Row],[Start Date]])),\"\",_xlfn.DAYS(Table1[[#This Row],[End Date]],Table1[[#This Row],[Start Date]]))","v":""},{"$f":"IF(Table1[[#This Row],[Housing Situation]]=\"\",\"\",IF(Table1[[#This Row],[Housing Situation]]=Picklists!$A$11,Picklists!$B$1,IF(Table1[[#This Row],[Housing Situation]]=Picklists!$A$2,Picklists!$B$1,IF(Table1[[#This Row],[Housing Situation]]=Picklists!$A$3,Picklists!$B$1,IF(Table1[[#This Row],[Housing Situation]]=Picklists!$A$12,Picklists!$B$1,Picklists!$C$1)))))","v":""},{"$f":"IF(Table1[[#This Row],[Housing Situation Category]]=\"\",\"\",IF(Table1[[#This Row],[Housing Situation Category]]=Picklists!$B$1,Picklists!$D$1,Picklists!$E$1))","v":""}]
[null,null,{"$f":"IF(Table1[[#This Row],[Housing Situation]]=\"\",\"\",IF(Table1[[#This Row],[Row number]]=1,$B$7,IF(OFFSET(C41,-1,-1)=\"\",\"\",OFFSET(C41,-1,-1)-1)))","v":""},{"$f":"IF(\nTable1[[#This Row],[Start Date]]=\"\",\n\"\",\nIF(\nTable1[[#This Row],[Housing Situation]]=\"Gap (need self-report)\",\n\"\",\nIF(\nTable1[[#This Row],[Housing Situation]]=\"\",\n\"Missing\",\nIF(\nOR(\nAND(OR(Table1[[#This Row],[Housing Situation]]=\"Hospital / Psych / Detox\",Table1[[#This Row],[Housing Situation]]=\"Jail / Prison\",Table1[[#This Row],[Housing Situation]]=\"Foster Care / Group Home\"),(Table1[[#This Row],[End Date]]-Table1[[#This Row],[Start Date]])>=90),\nAND(OR(Table1[[#This Row],[Housing Situation]]=\"Apt / House (rented or owned)\",Table1[[#This Row],[Housing Situation]]=\"Friend / Family\",Table1[[#This Row],[Housing Situation]]=\"Self-paid Hotel / Halfway house\",Table1[[#This Row],[Housing Situation]]=\"Transitional Housing\"),(Table1[[#This Row],[End Date]]-Table1[[#This Row],[Start Date]])>=7)),\n0,\nIF(\nOR(Table1[[#This Row],[Housing Situation]]=\"ES / SH / Agency-paid Hotel\",Table1[[#This Row],[Housing Situation]]=\"Place not meant for habitation\",Table1[[#This Row],[Housing Situation]]=\"Gap (presumed homeless)\"),\n((Table1[[#This Row],[End Date]]+1)-Table1[[#This Row],[Start Date]])/(365/12),\nIF(\nAND(\nNOT(OR(Table1[[#This Row],[Housing Situation]]=\"ES / SH / Agency-paid Hotel\",Table1[[#This Row],[Housing Situation]]=\"Place not meant for habitation\",Table1[[#This Row],[Housing Situation]]=\"Gap (presumed homeless)\")),\nOR(OFFSET(Table1[[#This Row],[Housing Situation]],1,0)=\"ES / SH / Agency-paid Hotel\",OFFSET(Table1[[#This Row],[Housing Situation]],1,0)=\"Place not meant for habitation\",Table1[[#This Row],[Housing Situation]]=\"Gap (presumed homeless)\")),\n((Table1[[#This Row],[End Date]]+1)-Table1[[#This Row],[Start Date]])/(365/12),\n0))))))","v":""},null,{"$f":"IF(Table1[[#This Row],[Housing Situation]]=\"\",\"\",IF(Table1[[#This Row],[Housing Situation Category]]=\"Not_Homeless_Documentation_Source\",\"N/A\",\"\"))","v":""},{"$f":"IF(Table1[[#This Row],[Housing Situation]]=\"\",\"\",IF(Table1[[#This Row],[Housing Situation Category]]=\"Not_Homeless_Documentation_Source\",\"N/A\",\"\"))","v":""},null,{"$f":"IF(OFFSET(Table1[[#This Row],[Months Homeless]],1,0)=\"\",0,IF(AND(Table1[[#This Row],[Months Homeless]]=0,OFFSET(Table1[[#This Row],[Months Homeless]],1,0)>0),1,0))","v":0},{"$f":"IF(\nTable1[[#This Row],[Row number]]=1,\n1,\nIF(OFFSET(Table1[[#This Row],[Months Homeless]],1,0)=\"\",\nINDIRECT(ADDRESS(ROW()-1,COLUMN())),\nIF(\nAND(\nTable1[[#This Row],[Months Homeless]]=0,\nOFFSET(Table1[[#This Row],[Months Homeless]],1,0)>0),\nINDIRECT(ADDRESS(ROW()-1,COLUMN()))+1,\nINDIRECT(ADDRESS(ROW()-1,COLUMN()))\n)\n)\n)","v":1},{"$f":"IF(OR(Table1[[#This Row],[Housing Situation]]=\"\",Table1[[#This Row],[Housing Situation]]=\"Gap (need self-report)\"),\"\",IF(Table1[[#This Row],[Months Homeless]]=\"Missing\",\"No\",IF(AND(Table1[[#This Row],[Housing Situation]]=\"Gap (presumed homeless)\",COUNTA(B41,C41)-(COUNTA(F41,G41)-COUNTBLANK(F41:G41))=0),\"Yes\",IF((COUNTA(B41,C41,E41)-(COUNTA(F41,G41)-COUNTBLANK(F41:G41))=1),\"Yes\",\"No\"))))","v":""},{"$f":"IF(Table1[[#This Row],[Row Complete?]]=\"No\",Table1[[#This Row],[Row number]]+10,\"\")","v":""},{"$f":"ROW(Table1[#This Row])-ROW(Table1[[#Headers], [Housing Situation]])","v":31},{"$f":"IF(ISERROR(_xlfn.DAYS(Table1[[#This Row],[End Date]],Table1[[#This Row],[Start Date]])),\"\",_xlfn.DAYS(Table1[[#This Row],[End Date]],Table1[[#This Row],[Start Date]]))","v":""},{"$f":"IF(Table1[[#This Row],[Housing Situation]]=\"\",\"\",IF(Table1[[#This Row],[Housing Situation]]=Picklists!$A$11,Picklists!$B$1,IF(Table1[[#This Row],[Housing Situation]]=Picklists!$A$2,Picklists!$B$1,IF(Table1[[#This Row],[Housing Situation]]=Picklists!$A$3,Picklists!$B$1,IF(Table1[[#This Row],[Housing Situation]]=Picklists!$A$12,Picklists!$B$1,Picklists!$C$1)))))","v":""},{"$f":"IF(Table1[[#This Row],[Housing Situation Category]]=\"\",\"\",IF(Table1[[#This Row],[Housing Situation Category]]=Picklists!$B$1,Picklists!$D$1,Picklists!$E$1))","v":""}]
[null,null,{"$f":"IF(Table1[[#This Row],[Housing Situation]]=\"\",\"\",IF(Table1[[#This Row],[Row number]]=1,$B$7,IF(OFFSET(C42,-1,-1)=\"\",\"\",OFFSET(C42,-1,-1)-1)))","v":""},{"$f":"IF(\nTable1[[#This Row],[Start Date]]=\"\",\n\"\",\nIF(\nTable1[[#This Row],[Housing Situation]]=\"Gap (need self-report)\",\n\"\",\nIF(\nTable1[[#This Row],[Housing Situation]]=\"\",\n\"Missing\",\nIF(\nOR(\nAND(OR(Table1[[#This Row],[Housing Situation]]=\"Hospital / Psych / Detox\",Table1[[#This Row],[Housing Situation]]=\"Jail / Prison\",Table1[[#This Row],[Housing Situation]]=\"Foster Care / Group Home\"),(Table1[[#This Row],[End Date]]-Table1[[#This Row],[Start Date]])>=90),\nAND(OR(Table1[[#This Row],[Housing Situation]]=\"Apt / House (rented or owned)\",Table1[[#This Row],[Housing Situation]]=\"Friend / Family\",Table1[[#This Row],[Housing Situation]]=\"Self-paid Hotel / Halfway house\",Table1[[#This Row],[Housing Situation]]=\"Transitional Housing\"),(Table1[[#This Row],[End Date]]-Table1[[#This Row],[Start Date]])>=7)),\n0,\nIF(\nOR(Table1[[#This Row],[Housing Situation]]=\"ES / SH / Agency-paid Hotel\",Table1[[#This Row],[Housing Situation]]=\"Place not meant for habitation\",Table1[[#This Row],[Housing Situation]]=\"Gap (presumed homeless)\"),\n((Table1[[#This Row],[End Date]]+1)-Table1[[#This Row],[Start Date]])/(365/12),\nIF(\nAND(\nNOT(OR(Table1[[#This Row],[Housing Situation]]=\"ES / SH / Agency-paid Hotel\",Table1[[#This Row],[Housing Situation]]=\"Place not meant for habitation\",Table1[[#This Row],[Housing Situation]]=\"Gap (presumed homeless)\")),\nOR(OFFSET(Table1[[#This Row],[Housing Situation]],1,0)=\"ES / SH / Agency-paid Hotel\",OFFSET(Table1[[#This Row],[Housing Situation]],1,0)=\"Place not meant for habitation\",Table1[[#This Row],[Housing Situation]]=\"Gap (presumed homeless)\")),\n((Table1[[#This Row],[End Date]]+1)-Table1[[#This Row],[Start Date]])/(365/12),\n0))))))","v":""},null,{"$f":"IF(Table1[[#This Row],[Housing Situation]]=\"\",\"\",IF(Table1[[#This Row],[Housing Situation Category]]=\"Not_Homeless_Documentation_Source\",\"N/A\",\"\"))","v":""},{"$f":"IF(Table1[[#This Row],[Housing Situation]]=\"\",\"\",IF(Table1[[#This Row],[Housing Situation Category]]=\"Not_Homeless_Documentation_Source\",\"N/A\",\"\"))","v":""},null,{"$f":"IF(OFFSET(Table1[[#This Row],[Months Homeless]],1,0)=\"\",0,IF(AND(Table1[[#This Row],[Months Homeless]]=0,OFFSET(Table1[[#This Row],[Months Homeless]],1,0)>0),1,0))","v":0},{"$f":"IF(\nTable1[[#This Row],[Row number]]=1,\n1,\nIF(OFFSET(Table1[[#This Row],[Months Homeless]],1,0)=\"\",\nINDIRECT(ADDRESS(ROW()-1,COLUMN())),\nIF(\nAND(\nTable1[[#This Row],[Months Homeless]]=0,\nOFFSET(Table1[[#This Row],[Months Homeless]],1,0)>0),\nINDIRECT(ADDRESS(ROW()-1,COLUMN()))+1,\nINDIRECT(ADDRESS(ROW()-1,COLUMN()))\n)\n)\n)","v":1},{"$f":"IF(OR(Table1[[#This Row],[Housing Situation]]=\"\",Table1[[#This Row],[Housing Situation]]=\"Gap (need self-report)\"),\"\",IF(Table1[[#This Row],[Months Homeless]]=\"Missing\",\"No\",IF(AND(Table1[[#This Row],[Housing Situation]]=\"Gap (presumed homeless)\",COUNTA(B42,C42)-(COUNTA(F42,G42)-COUNTBLANK(F42:G42))=0),\"Yes\",IF((COUNTA(B42,C42,E42)-(COUNTA(F42,G42)-COUNTBLANK(F42:G42))=1),\"Yes\",\"No\"))))","v":""},{"$f":"IF(Table1[[#This Row],[Row Complete?]]=\"No\",Table1[[#This Row],[Row number]]+10,\"\")","v":""},{"$f":"ROW(Table1[#This Row])-ROW(Table1[[#Headers], [Housing Situation]])","v":32},{"$f":"IF(ISERROR(_xlfn.DAYS(Table1[[#This Row],[End Date]],Table1[[#This Row],[Start Date]])),\"\",_xlfn.DAYS(Table1[[#This Row],[End Date]],Table1[[#This Row],[Start Date]]))","v":""},{"$f":"IF(Table1[[#This Row],[Housing Situation]]=\"\",\"\",IF(Table1[[#This Row],[Housing Situation]]=Picklists!$A$11,Picklists!$B$1,IF(Table1[[#This Row],[Housing Situation]]=Picklists!$A$2,Picklists!$B$1,IF(Table1[[#This Row],[Housing Situation]]=Picklists!$A$3,Picklists!$B$1,IF(Table1[[#This Row],[Housing Situation]]=Picklists!$A$12,Picklists!$B$1,Picklists!$C$1)))))","v":""},{"$f":"IF(Table1[[#This Row],[Housing Situation Category]]=\"\",\"\",IF(Table1[[#This Row],[Housing Situation Category]]=Picklists!$B$1,Picklists!$D$1,Picklists!$E$1))","v":""}]
[null,null,{"$f":"IF(Table1[[#This Row],[Housing Situation]]=\"\",\"\",IF(Table1[[#This Row],[Row number]]=1,$B$7,IF(OFFSET(C43,-1,-1)=\"\",\"\",OFFSET(C43,-1,-1)-1)))","v":""},{"$f":"IF(\nTable1[[#This Row],[Start Date]]=\"\",\n\"\",\nIF(\nTable1[[#This Row],[Housing Situation]]=\"Gap (need self-report)\",\n\"\",\nIF(\nTable1[[#This Row],[Housing Situation]]=\"\",\n\"Missing\",\nIF(\nOR(\nAND(OR(Table1[[#This Row],[Housing Situation]]=\"Hospital / Psych / Detox\",Table1[[#This Row],[Housing Situation]]=\"Jail / Prison\",Table1[[#This Row],[Housing Situation]]=\"Foster Care / Group Home\"),(Table1[[#This Row],[End Date]]-Table1[[#This Row],[Start Date]])>=90),\nAND(OR(Table1[[#This Row],[Housing Situation]]=\"Apt / House (rented or owned)\",Table1[[#This Row],[Housing Situation]]=\"Friend / Family\",Table1[[#This Row],[Housing Situation]]=\"Self-paid Hotel / Halfway house\",Table1[[#This Row],[Housing Situation]]=\"Transitional Housing\"),(Table1[[#This Row],[End Date]]-Table1[[#This Row],[Start Date]])>=7)),\n0,\nIF(\nOR(Table1[[#This Row],[Housing Situation]]=\"ES / SH / Agency-paid Hotel\",Table1[[#This Row],[Housing Situation]]=\"Place not meant for habitation\",Table1[[#This Row],[Housing Situation]]=\"Gap (presumed homeless)\"),\n((Table1[[#This Row],[End Date]]+1)-Table1[[#This Row],[Start Date]])/(365/12),\nIF(\nAND(\nNOT(OR(Table1[[#This Row],[Housing Situation]]=\"ES / SH / Agency-paid Hotel\",Table1[[#This Row],[Housing Situation]]=\"Place not meant for habitation\",Table1[[#This Row],[Housing Situation]]=\"Gap (presumed homeless)\")),\nOR(OFFSET(Table1[[#This Row],[Housing Situation]],1,0)=\"ES / SH / Agency-paid Hotel\",OFFSET(Table1[[#This Row],[Housing Situation]],1,0)=\"Place not meant for habitation\",Table1[[#This Row],[Housing Situation]]=\"Gap (presumed homeless)\")),\n((Table1[[#This Row],[End Date]]+1)-Table1[[#This Row],[Start Date]])/(365/12),\n0))))))","v":""},null,{"$f":"IF(Table1[[#This Row],[Housing Situation]]=\"\",\"\",IF(Table1[[#This Row],[Housing Situation Category]]=\"Not_Homeless_Documentation_Source\",\"N/A\",\"\"))","v":""},{"$f":"IF(Table1[[#This Row],[Housing Situation]]=\"\",\"\",IF(Table1[[#This Row],[Housing Situation Category]]=\"Not_Homeless_Documentation_Source\",\"N/A\",\"\"))","v":""},null,{"$f":"IF(OFFSET(Table1[[#This Row],[Months Homeless]],1,0)=\"\",0,IF(AND(Table1[[#This Row],[Months Homeless]]=0,OFFSET(Table1[[#This Row],[Months Homeless]],1,0)>0),1,0))","v":0},{"$f":"IF(\nTable1[[#This Row],[Row number]]=1,\n1,\nIF(OFFSET(Table1[[#This Row],[Months Homeless]],1,0)=\"\",\nINDIRECT(ADDRESS(ROW()-1,COLUMN())),\nIF(\nAND(\nTable1[[#This Row],[Months Homeless]]=0,\nOFFSET(Table1[[#This Row],[Months Homeless]],1,0)>0),\nINDIRECT(ADDRESS(ROW()-1,COLUMN()))+1,\nINDIRECT(ADDRESS(ROW()-1,COLUMN()))\n)\n)\n)","v":1},{"$f":"IF(OR(Table1[[#This Row],[Housing Situation]]=\"\",Table1[[#This Row],[Housing Situation]]=\"Gap (need self-report)\"),\"\",IF(Table1[[#This Row],[Months Homeless]]=\"Missing\",\"No\",IF(AND(Table1[[#This Row],[Housing Situation]]=\"Gap (presumed homeless)\",COUNTA(B43,C43)-(COUNTA(F43,G43)-COUNTBLANK(F43:G43))=0),\"Yes\",IF((COUNTA(B43,C43,E43)-(COUNTA(F43,G43)-COUNTBLANK(F43:G43))=1),\"Yes\",\"No\"))))","v":""},{"$f":"IF(Table1[[#This Row],[Row Complete?]]=\"No\",Table1[[#This Row],[Row number]]+10,\"\")","v":""},{"$f":"ROW(Table1[#This Row])-ROW(Table1[[#Headers], [Housing Situation]])","v":33},{"$f":"IF(ISERROR(_xlfn.DAYS(Table1[[#This Row],[End Date]],Table1[[#This Row],[Start Date]])),\"\",_xlfn.DAYS(Table1[[#This Row],[End Date]],Table1[[#This Row],[Start Date]]))","v":""},{"$f":"IF(Table1[[#This Row],[Housing Situation]]=\"\",\"\",IF(Table1[[#This Row],[Housing Situation]]=Picklists!$A$11,Picklists!$B$1,IF(Table1[[#This Row],[Housing Situation]]=Picklists!$A$2,Picklists!$B$1,IF(Table1[[#This Row],[Housing Situation]]=Picklists!$A$3,Picklists!$B$1,IF(Table1[[#This Row],[Housing Situation]]=Picklists!$A$12,Picklists!$B$1,Picklists!$C$1)))))","v":""},{"$f":"IF(Table1[[#This Row],[Housing Situation Category]]=\"\",\"\",IF(Table1[[#This Row],[Housing Situation Category]]=Picklists!$B$1,Picklists!$D$1,Picklists!$E$1))","v":""}]
[null,null,{"$f":"IF(Table1[[#This Row],[Housing Situation]]=\"\",\"\",IF(Table1[[#This Row],[Row number]]=1,$B$7,IF(OFFSET(C44,-1,-1)=\"\",\"\",OFFSET(C44,-1,-1)-1)))","v":""},{"$f":"IF(\nTable1[[#This Row],[Start Date]]=\"\",\n\"\",\nIF(\nTable1[[#This Row],[Housing Situation]]=\"Gap (need self-report)\",\n\"\",\nIF(\nTable1[[#This Row],[Housing Situation]]=\"\",\n\"Missing\",\nIF(\nOR(\nAND(OR(Table1[[#This Row],[Housing Situation]]=\"Hospital / Psych / Detox\",Table1[[#This Row],[Housing Situation]]=\"Jail / Prison\",Table1[[#This Row],[Housing Situation]]=\"Foster Care / Group Home\"),(Table1[[#This Row],[End Date]]-Table1[[#This Row],[Start Date]])>=90),\nAND(OR(Table1[[#This Row],[Housing Situation]]=\"Apt / House (rented or owned)\",Table1[[#This Row],[Housing Situation]]=\"Friend / Family\",Table1[[#This Row],[Housing Situation]]=\"Self-paid Hotel / Halfway house\",Table1[[#This Row],[Housing Situation]]=\"Transitional Housing\"),(Table1[[#This Row],[End Date]]-Table1[[#This Row],[Start Date]])>=7)),\n0,\nIF(\nOR(Table1[[#This Row],[Housing Situation]]=\"ES / SH / Agency-paid Hotel\",Table1[[#This Row],[Housing Situation]]=\"Place not meant for habitation\",Table1[[#This Row],[Housing Situation]]=\"Gap (presumed homeless)\"),\n((Table1[[#This Row],[End Date]]+1)-Table1[[#This Row],[Start Date]])/(365/12),\nIF(\nAND(\nNOT(OR(Table1[[#This Row],[Housing Situation]]=\"ES / SH / Agency-paid Hotel\",Table1[[#This Row],[Housing Situation]]=\"Place not meant for habitation\",Table1[[#This Row],[Housing Situation]]=\"Gap (presumed homeless)\")),\nOR(OFFSET(Table1[[#This Row],[Housing Situation]],1,0)=\"ES / SH / Agency-paid Hotel\",OFFSET(Table1[[#This Row],[Housing Situation]],1,0)=\"Place not meant for habitation\",Table1[[#This Row],[Housing Situation]]=\"Gap (presumed homeless)\")),\n((Table1[[#This Row],[End Date]]+1)-Table1[[#This Row],[Start Date]])/(365/12),\n0))))))","v":""},null,{"$f":"IF(Table1[[#This Row],[Housing Situation]]=\"\",\"\",IF(Table1[[#This Row],[Housing Situation Category]]=\"Not_Homeless_Documentation_Source\",\"N/A\",\"\"))","v":""},{"$f":"IF(Table1[[#This Row],[Housing Situation]]=\"\",\"\",IF(Table1[[#This Row],[Housing Situation Category]]=\"Not_Homeless_Documentation_Source\",\"N/A\",\"\"))","v":""},null,{"$f":"IF(OFFSET(Table1[[#This Row],[Months Homeless]],1,0)=\"\",0,IF(AND(Table1[[#This Row],[Months Homeless]]=0,OFFSET(Table1[[#This Row],[Months Homeless]],1,0)>0),1,0))","v":0},{"$f":"IF(\nTable1[[#This Row],[Row number]]=1,\n1,\nIF(OFFSET(Table1[[#This Row],[Months Homeless]],1,0)=\"\",\nINDIRECT(ADDRESS(ROW()-1,COLUMN())),\nIF(\nAND(\nTable1[[#This Row],[Months Homeless]]=0,\nOFFSET(Table1[[#This Row],[Months Homeless]],1,0)>0),\nINDIRECT(ADDRESS(ROW()-1,COLUMN()))+1,\nINDIRECT(ADDRESS(ROW()-1,COLUMN()))\n)\n)\n)","v":1},{"$f":"IF(OR(Table1[[#This Row],[Housing Situation]]=\"\",Table1[[#This Row],[Housing Situation]]=\"Gap (need self-report)\"),\"\",IF(Table1[[#This Row],[Months Homeless]]=\"Missing\",\"No\",IF(AND(Table1[[#This Row],[Housing Situation]]=\"Gap (presumed homeless)\",COUNTA(B44,C44)-(COUNTA(F44,G44)-COUNTBLANK(F44:G44))=0),\"Yes\",IF((COUNTA(B44,C44,E44)-(COUNTA(F44,G44)-COUNTBLANK(F44:G44))=1),\"Yes\",\"No\"))))","v":""},{"$f":"IF(Table1[[#This Row],[Row Complete?]]=\"No\",Table1[[#This Row],[Row number]]+10,\"\")","v":""},{"$f":"ROW(Table1[#This Row])-ROW(Table1[[#Headers], [Housing Situation]])","v":34},{"$f":"IF(ISERROR(_xlfn.DAYS(Table1[[#This Row],[End Date]],Table1[[#This Row],[Start Date]])),\"\",_xlfn.DAYS(Table1[[#This Row],[End Date]],Table1[[#This Row],[Start Date]]))","v":""},{"$f":"IF(Table1[[#This Row],[Housing Situation]]=\"\",\"\",IF(Table1[[#This Row],[Housing Situation]]=Picklists!$A$11,Picklists!$B$1,IF(Table1[[#This Row],[Housing Situation]]=Picklists!$A$2,Picklists!$B$1,IF(Table1[[#This Row],[Housing Situation]]=Picklists!$A$3,Picklists!$B$1,IF(Table1[[#This Row],[Housing Situation]]=Picklists!$A$12,Picklists!$B$1,Picklists!$C$1)))))","v":""},{"$f":"IF(Table1[[#This Row],[Housing Situation Category]]=\"\",\"\",IF(Table1[[#This Row],[Housing Situation Category]]=Picklists!$B$1,Picklists!$D$1,Picklists!$E$1))","v":""}]

{"sheet":"Picklists","index":4,"n_rows":12,"n_cols":6,"rows_kept":12,"cut":false,"hidden":true,"merged":[]}
["Housing_Situation","Homeless_Documentation_Source","Not_Homeless_Documentation_Source","Homeless_Documentation_Obtained?","Not_Homeless_Documentation_Obtained?","Disability_Status"]
["Place not meant for habitation","HMIS ES / SH / SO record(s)","N/A","Yes","N/A","Verified Yes"]
["ES / SH / Agency-paid Hotel","3rd Party Letter",null,"Pending",null,"Self-report Yes; Verification Pending"]
["Transitional Housing","Self-Certification Letter",null,null,null,"No Disability"]
["Hospital / Psych / Detox","Month Already Counted"]
["Jail / Prison"]
["Foster Care / Group Home"]
["Apt / House (rented or owned)"]
["Friend / Family"]
["Self-paid Hotel / Halfway House"]
["Gap (need self-report)"]
["Gap (presumed homeless)"]